{"text_format":"1","workbook":"xlsx","n_sheets":8,"sheets":["Introduction","QUESTIONNAIRE","Général","\"Moyenne\"","Parties prenantes","Entreprise","Synth.","Résultats"],"not_rendered":{"charts":2,"images":1,"macros":1,"external_links":0,"defined_names":0,"comments":1,"pivot_tables":0},"unopened":[],"bounds":{"document_bytes":16777216,"sheet_cells":100000,"rows_first":2000,"rows_last":500,"rows_between":2000,"halvings":0,"cell_chars":16384,"cell_head_chars":4096},"cells_cut":0,"cells_raw":0,"read":"whole","date_system":"1900"}

{"sheet":"Introduction","index":0,"n_rows":21,"n_cols":4,"rows_kept":21,"cut":false,"hidden":false,"merged":[[19,1,19,3],[1,1,1,3],[2,1,2,3],[10,1,10,3],[20,0,20,3],[17,2,17,3],[8,1,8,2],[7,1,7,2],[6,1,6,2],[5,1,5,2],[11,1,11,3],[14,2,14,3],[15,2,15,3],[16,2,16,3],[4,1,4,2]]}
[]
[null,"L’analyse bidimensionnelle de matérialité :"]
[null,"Offrir aux entreprises la possibilité de s’évaluer, d’évoluer, et d’innover  grâce à un dialogue avec ses parties prenantes et ciblant ses objectifs prioritaires.\n"]
[]
[null,"Qu’est donc que la RSE ?"]
[null,"La RSE est l’engagement volontaire d’un établissement d’établir des relations de confiance et un dialogue construit avec l’ensemble de ses partenaires (salariés, dirigeants, actionnaires, fournisseurs, clients…) au niveau des préoccupations environnementales, sociales et éthiques dans un respect complet des lois internationales."]
[null,"L'objectif:"]
[null,"Pour une entreprise, adopter une démarche RSE, c’est intégrer une politique de développement durable à son organisation en prenant en compte sa propre pérennité ainsi que celles de ses parties prenantes (individu ou groupe ayant un intérêt dans les décisions ou activités d'une organisation[1]). Le respect des lois et normes internationales est fondamentale à ce niveau."]
[null,"La démarche est holistique, c'est-à-dire globale, pour que chacun y trouve un intérêt, avantage ou bénéfice. C’est une interrelation « gagnant-gagnant ».",null,"Concept général"]
[]
[null,"Prise en main de la matrice de matérialité bidimensionnelle:"]
[null,"Principe: évaluer tous les enjeux de la RSE en hiérarchisant les priorités des parties prenantes en fonction des objectifs prioritaires de l'entreprise.\n\n\n"]
[]
[null,"\"Mode d'emploi\":"]
[null,"1.","Un premier questionnaire (onglet « QUESTIONNAIRE ») est proposé aux parties prenantes, de façon la plus large possible, en essayant d’avoir un effectif important pour être le plus représentatif possible."]
[null,"2.","A chaque retour du questionnaire complété par une partie prenante, les réponses seront regroupés (par un copier/coller) dans une base de données (onglet « Général »)  afin d’être intégrées à l’analyse."]
[null,"3."," Une fois les réponses des parties prenantes obtenues, l’entreprise peut alors hiérarchiser ses priorités dans l’onglet « Entreprise » :"]
[null,"4.","Une analyse est alors synthétisée dans un troisième onglet « Résultat » :\n  -   à gauche: les attentes des parties prenantes dans l’ordre de priorité.\n  -   au milieu: l’image que l’entreprise renvoie par rapport à ces mêmes attentes et l’ordre qu’elle semble y accorder et enfin.\n  -   à droite: dans le cadre bleu, les axes devant être améliorer afin de répondre aux attentes de ces parties prenantes.\nIl est possible de sélectionner la catégorie de partie prenante afin de détailler et analyser plus précisément les résultats."]
[]
[null,"Finalité: cartographier la perception de l’image d’une entreprise par ces parties prenantes et de les comparer à leurs attentes.\nCette analyse offre aux entreprises la possibilité de déterminer quels enjeux n’apparaissent pas suffisamment élaborés ou mis en avant dans leur démarche RSE et ainsi de cibler les axes d’amélioration prioritaires à mettre en œuvre."]
["[1] « ISO 26000:2010 - Lignes directrices relatives à la responsabilité sociétale ». [En ligne]. Disponible sur: https://www.iso.org/fr/standard/42546.html."]

{"sheet":"QUESTIONNAIRE","index":1,"n_rows":23,"n_cols":4,"rows_kept":23,"cut":false,"hidden":false,"merged":[]}
[null,"Répondez à  propositions selon ce que vous vous attendez d'une RSE."]
[null,"ÊTES-VOUS D'ACCORD AVEC LES PROPOSITIONS SUIVANTES?","En général,\npour toutes entreprises","Concernant notre entreprise, votre ressenti"]
[1,"Vous êtes concernés par des certifications ou réglementations type ISO, Reach, ECSS, droit de l'Homme, code du travail…"]
[2,"L’écoute et la communication est importante pour votre relation avec une/notre entreprise."]
[3,"Une entreprise doit continuer à s’améliorer même si les attentes clients sont respectées."]
[4,"Le respect des droits de l'homme, du code du travail et des pratiques éthiques sont importantes dans les pratiques d’entreprise."]
[5,"La diversité et la lutte contre la discrimination sont des critères qui vous amènent à collaborer avec une entreprise."]
[6,"Relations et conditions de travail: la santé et le bien-être sont essentiels."]
[7,"Il faut prévenir des accidents et assurer la sécurité dans une entreprise, même pour les clients/consommateurs."]
[8,"Chaque entreprise doit réduire son empreinte carbone et améliorer la gestion de l'énergie."]
[9,"L'éco-construction et l'éco-gestion doivent être intégrées dans la politique d'une entreprise."]
[10,"Le tri des déchets doit être mise en œuvre partout."]
[11,"Les valeurs morales, la confiance, la partenariat, la confidentialité, l'intégrité à une concurrence loyale doivent être présentes dans une entreprise."]
[12,"La lutte contre la corruption , le respect, la transparence, la loyauté de pratique doivent être visibles au sein d'une organisation."]
[13,"L’innovation est un \"booster\" pour la satisfaction client."]
[14,"Qualité du produit et des prestations doivent être optimales."]
[15,"Un délai/réponse rapide et fiable est un critère de choix dans des échanges."]
[16,"Le « pensez global, agir local » est un bon adage."]
[17,"Le mécénat et patrimoine local est important pour l'image d'une entreprise."]
[18,"Etre créatrice d'emploi est valorisant pour une entreprise."]
[19,"Proposer des offres compétitives est un facteur de succès."]
[20,"Enfin, êtes-vous:",null,{"$f":"IF(C23=0,\"MERCI DE VOTRE COLLABORATION!\",\"\")","v":""}]
[null,null,{"$f":"COUNTBLANK(C3:C22)+COUNTBLANK(D3:D21)","v":39}]

{"sheet":"Général","index":2,"n_rows":42,"n_cols":102,"rows_kept":42,"cut":false,"hidden":false,"merged":[[0,1,1,1]]}
[null,"Exemple","Date","Date","Date","Date","Date","Date","Date","Date","Date","Date","Date","Date","Date","Date","Date","Date","Date","Date","Date","Date","Date","Date","Date","Date","Date","Date","Date","Date","Date","Date","Date","Date","Date","Date","Date","Date","Date","Date","Date","Date","Date","Date","Date","Date","Date","Date","Date","Date","Date","Date","Date","Date","Date","Date","Date","Date","Date","Date","Date","Date","Date","Date","Date","Date","Date","Date","Date","Date","Date","Date","Date","Date","Date","Date","Date","Date","Date","Date","Date","Date","Date","Date","Date","Date","Date","Date","Date","Date","Date","Date","Date","Date","Date","Date","Date","Date","Date","Date","Date","Date"]
["Question",null,"Nom entreprise","Nom entreprise","Nom entreprise","Nom entreprise","Nom entreprise","Nom entreprise","Nom entreprise","Nom entreprise","Nom entreprise","Nom entreprise","Nom entreprise","Nom entreprise","Nom entreprise","Nom entreprise","Nom entreprise","Nom entreprise","Nom entreprise","Nom entreprise","Nom entreprise","Nom entreprise","Nom entreprise","Nom entreprise","Nom entreprise","Nom entreprise","Nom entreprise","Nom entreprise","Nom entreprise","Nom entreprise","Nom entreprise","Nom entreprise","Nom entreprise","Nom entreprise","Nom entreprise","Nom entreprise","Nom entreprise","Nom entreprise","Nom entreprise","Nom entreprise","Nom entreprise","Nom entreprise","Nom entreprise","Nom entreprise","Nom entreprise","Nom entreprise","Nom entreprise","Nom entreprise","Nom entreprise","Nom entreprise","Nom entreprise","Nom entreprise","Nom entreprise","Nom entreprise","Nom entreprise","Nom entreprise","Nom entreprise","Nom entreprise","Nom entreprise","Nom entreprise","Nom entreprise","Nom entreprise","Nom entreprise","Nom entreprise","Nom entreprise","Nom entreprise","Nom entreprise","Nom entreprise","Nom entreprise","Nom entreprise","Nom entreprise","Nom entreprise","Nom entreprise","Nom entreprise","Nom entreprise","Nom entreprise","Nom entreprise","Nom entreprise","Nom entreprise","Nom entreprise","Nom entreprise","Nom entreprise","Nom entreprise","Nom entreprise","Nom entreprise","Nom entreprise","Nom entreprise","Nom entreprise","Nom entreprise","Nom entreprise","Nom entreprise","Nom entreprise","Nom entreprise","Nom entreprise","Nom entreprise","Nom entreprise","Nom entreprise","Nom entreprise","Nom entreprise","Nom entreprise","Nom entreprise","Nom entreprise"]
[20,"Un client"]
["G1","Oui, tout à fait d'accord"]
["G2","Plutôt d'accord"]
["G3","Oui, tout à fait d'accord"]
["G4","Plutôt pas d'accord"]
["G5","Plutôt d'accord"]
["G6","Non, pas du tout d'accord"]
["G7","Plutôt d'accord"]
["G8","Plutôt d'accord"]
["G9","Oui, tout à fait d'accord"]
["G10","Plutôt d'accord"]
["G11","Oui, tout à fait d'accord"]
["G12","Plutôt pas d'accord"]
["G13","Plutôt d'accord"]
["G14","Non, pas du tout d'accord"]
["G15","Plutôt d'accord"]
["G16","Plutôt pas d'accord"]
["G17","Plutôt d'accord"]
["G18","Non, pas du tout d'accord"]
["G19","Plutôt d'accord"]
["E1","Plutôt pas d'accord"]
["E2","Plutôt d'accord"]
["E3","Plutôt pas d'accord"]
["E4","Plutôt d'accord"]
["E5","Non, pas du tout d'accord"]
["E6","Plutôt d'accord"]
["E7","Plutôt pas d'accord"]
["E8","Plutôt d'accord"]
["E9","Non, pas du tout d'accord"]
["E10","Plutôt d'accord"]
["E11","Plutôt pas d'accord"]
["E12","Plutôt d'accord"]
["E13","Non, pas du tout d'accord"]
["E14","Plutôt d'accord"]
["E15","Plutôt pas d'accord"]
["E16","Plutôt d'accord"]
["E17","Non, pas du tout d'accord"]
["E18","Plutôt d'accord"]
["E19","Plutôt d'accord"]
[null,{"$f":"B2","v":0},{"$f":"C2","v":"Nom entreprise"},{"$f":"D2","v":"Nom entreprise"},"Nom entreprise","Nom entreprise","Nom entreprise","Nom entreprise","Nom entreprise","Nom entreprise","Nom entreprise","Nom entreprise","Nom entreprise","Nom entreprise","Nom entreprise","Nom entreprise","Nom entreprise","Nom entreprise","Nom entreprise","Nom entreprise","Nom entreprise","Nom entreprise","Nom entreprise","Nom entreprise","Nom entreprise","Nom entreprise","Nom entreprise","Nom entreprise","Nom entreprise","Nom entreprise","Nom entreprise","Nom entreprise","Nom entreprise","Nom entreprise","Nom entreprise","Nom entreprise","Nom entreprise","Nom entreprise","Nom entreprise","Nom entreprise","Nom entreprise","Nom entreprise","Nom entreprise","Nom entreprise","Nom entreprise","Nom entreprise","Nom entreprise","Nom entreprise","Nom entreprise","Nom entreprise","Nom entreprise","Nom entreprise","Nom entreprise","Nom entreprise","Nom entreprise","Nom entreprise","Nom entreprise","Nom entreprise","Nom entreprise","Nom entreprise","Nom entreprise","Nom entreprise","Nom entreprise","Nom entreprise","Nom entreprise","Nom entreprise","Nom entreprise",{"$f":"BP2","v":"Nom entreprise"},"Nom entreprise","Nom entreprise","Nom entreprise","Nom entreprise","Nom entreprise","Nom entreprise","Nom entreprise","Nom entreprise","Nom entreprise","Nom entreprise","Nom entreprise","Nom entreprise","Nom entreprise","Nom entreprise","Nom entreprise","Nom entreprise","Nom entreprise","Nom entreprise","Nom entreprise","Nom entreprise","Nom entreprise","Nom entreprise","Nom entreprise","Nom entreprise","Nom entreprise","Nom entreprise","Nom entreprise","Nom entreprise","Nom entreprise","Nom entreprise","Nom entreprise","Nom entreprise","Nom entreprise","Nom entreprise"]

{"sheet":"\"Moyenne\"","index":3,"n_rows":41,"n_cols":175,"rows_kept":41,"cut":false,"hidden":true,"merged":[]}
["Question",null,null,null,null,null,null,null,null,null,null,null,null,null,null,null,null,null,null,null,null,null,null,null,null,null,null,null,null,null,null,null,null,null,null,null,null,null,null,null,null,null,null,null,null,null,null,null,null,null,null,null,null,null,null,null,null,null,null,null,null,null,null,null,null,null,null,null,null,null,null,null,null,null,null,null,null,null,null,null,null,null,null,null,null,null,null,null,null,null,null,null,null,null,null,null,null,null,null,null,null,null,"Oui, tout à fait d'accord","Plutôt d'accord","Plutôt pas d'accord","Non, pas du tout d'accord","Non concerné",null,"MAX","CLIENTS","Oui, tout à fait d'accord","Plutôt d'accord","Plutôt pas d'accord","Non, pas du tout d'accord","Non concerné",null,"MAX","FOURNISSEURS","Oui, tout à fait d'accord","Plutôt d'accord","Plutôt pas d'accord","Non, pas du tout d'accord","Non concerné",null,"MAX","COLLECTIVITE/ORG. LOCAL","Oui, tout à fait d'accord","Plutôt d'accord","Plutôt pas d'accord","Non, pas du tout d'accord","Non concerné",null,"MAX","COLLABORATEUR/SALARIE","Oui, tout à fait d'accord","Plutôt d'accord","Plutôt pas d'accord","Non, pas du tout d'accord","Non concerné",null,"MAX","PRESTATAIRE","Oui, tout à fait d'accord","Plutôt d'accord","Plutôt pas d'accord","Non, pas du tout d'accord","Non concerné",null,"MAX","ACTIONNAIRE","Oui, tout à fait d'accord","Plutôt d'accord","Plutôt pas d'accord","Non, pas du tout d'accord","Non concerné",null,"MAX","AUTRE","Oui, tout à fait d'accord","Plutôt d'accord","Plutôt pas d'accord","Non, pas du tout d'accord","Non concerné",null,"MAX","GENERAL","Nb de max","GENERAL","Oui, tout à fait d'accord","Plutôt d'accord","Plutôt pas d'accord","Non, pas du tout d'accord","Non concerné","MOYENNE"]
["G1",{"$f":"CONCATENATE(Général!C$3,Général!C4)","v":""},{"$f":"CONCATENATE(Général!D$3,Général!D4)","v":""},{"$f":"CONCATENATE(Général!E$3,Général!E4)","v":""},{"$f":"CONCATENATE(Général!F$3,Général!F4)","v":""},{"$f":"CONCATENATE(Général!G$3,Général!G4)","v":""},{"$f":"CONCATENATE(Général!H$3,Général!H4)","v":""},{"$f":"CONCATENATE(Général!I$3,Général!I4)","v":""},{"$f":"CONCATENATE(Général!J$3,Général!J4)","v":""},{"$f":"CONCATENATE(Général!K$3,Général!K4)","v":""},{"$f":"CONCATENATE(Général!L$3,Général!L4)","v":""},{"$f":"CONCATENATE(Général!M$3,Général!M4)","v":""},{"$f":"CONCATENATE(Général!N$3,Général!N4)","v":""},{"$f":"CONCATENATE(Général!O$3,Général!O4)","v":""},{"$f":"CONCATENATE(Général!P$3,Général!P4)","v":""},{"$f":"CONCATENATE(Général!Q$3,Général!Q4)","v":""},{"$f":"CONCATENATE(Général!R$3,Général!R4)","v":""},{"$f":"CONCATENATE(Général!S$3,Général!S4)","v":""},{"$f":"CONCATENATE(Général!T$3,Général!T4)","v":""},{"$f":"CONCATENATE(Général!U$3,Général!U4)","v":""},{"$f":"CONCATENATE(Général!V$3,Général!V4)","v":""},{"$f":"CONCATENATE(Général!W$3,Général!W4)","v":""},{"$f":"CONCATENATE(Général!X$3,Général!X4)","v":""},{"$f":"CONCATENATE(Général!Y$3,Général!Y4)","v":""},{"$f":"CONCATENATE(Général!Z$3,Général!Z4)","v":""},{"$f":"CONCATENATE(Général!AA$3,Général!AA4)","v":""},{"$f":"CONCATENATE(Général!AB$3,Général!AB4)","v":""},{"$f":"CONCATENATE(Général!AC$3,Général!AC4)","v":""},{"$f":"CONCATENATE(Général!AD$3,Général!AD4)","v":""},{"$f":"CONCATENATE(Général!AE$3,Général!AE4)","v":""},{"$f":"CONCATENATE(Général!AF$3,Général!AF4)","v":""},{"$f":"CONCATENATE(Général!AG$3,Général!AG4)","v":""},{"$f":"CONCATENATE(Général!AH$3,Général!AH4)","v":""},{"$f":"CONCATENATE(Général!AI$3,Général!AI4)","v":""},{"$f":"CONCATENATE(Général!AJ$3,Général!AJ4)","v":""},{"$f":"CONCATENATE(Général!AK$3,Général!AK4)","v":""},{"$f":"CONCATENATE(Général!AL$3,Général!AL4)","v":""},{"$f":"CONCATENATE(Général!AM$3,Général!AM4)","v":""},{"$f":"CONCATENATE(Général!AN$3,Général!AN4)","v":""},{"$f":"CONCATENATE(Général!AO$3,Général!AO4)","v":""},{"$f":"CONCATENATE(Général!AP$3,Général!AP4)","v":""},{"$f":"CONCATENATE(Général!AQ$3,Général!AQ4)","v":""},{"$f":"CONCATENATE(Général!AR$3,Général!AR4)","v":""},{"$f":"CONCATENATE(Général!AS$3,Général!AS4)","v":""},{"$f":"CONCATENATE(Général!AT$3,Général!AT4)","v":""},{"$f":"CONCATENATE(Général!AU$3,Général!AU4)","v":""},{"$f":"CONCATENATE(Général!AV$3,Général!AV4)","v":""},{"$f":"CONCATENATE(Général!AW$3,Général!AW4)","v":""},{"$f":"CONCATENATE(Général!AX$3,Général!AX4)","v":""},{"$f":"CONCATENATE(Général!AY$3,Général!AY4)","v":""},{"$f":"CONCATENATE(Général!AZ$3,Général!AZ4)","v":""},{"$f":"CONCATENATE(Général!BA$3,Général!BA4)","v":""},{"$f":"CONCATENATE(Général!BB$3,Général!BB4)","v":""},{"$f":"CONCATENATE(Général!BC$3,Général!BC4)","v":""},{"$f":"CONCATENATE(Général!BD$3,Général!BD4)","v":""},{"$f":"CONCATENATE(Général!BE$3,Général!BE4)","v":""},{"$f":"CONCATENATE(Général!BF$3,Général!BF4)","v":""},{"$f":"CONCATENATE(Général!BG$3,Général!BG4)","v":""},{"$f":"CONCATENATE(Général!BH$3,Général!BH4)","v":""},{"$f":"CONCATENATE(Général!BI$3,Général!BI4)","v":""},{"$f":"CONCATENATE(Général!BJ$3,Général!BJ4)","v":""},{"$f":"CONCATENATE(Général!BK$3,Général!BK4)","v":""},{"$f":"CONCATENATE(Général!BL$3,Général!BL4)","v":""},{"$f":"CONCATENATE(Général!BM$3,Général!BM4)","v":""},{"$f":"CONCATENATE(Général!BN$3,Général!BN4)","v":""},{"$f":"CONCATENATE(Général!BO$3,Général!BO4)","v":""},{"$f":"CONCATENATE(Général!BP$3,Général!BP4)","v":""},{"$f":"CONCATENATE(Général!BQ$3,Général!BQ4)","v":""},{"$f":"CONCATENATE(Général!BR$3,Général!BR4)","v":""},{"$f":"CONCATENATE(Général!BS$3,Général!BS4)","v":""},{"$f":"CONCATENATE(Général!BT$3,Général!BT4)","v":""},{"$f":"CONCATENATE(Général!BU$3,Général!BU4)","v":""},{"$f":"CONCATENATE(Général!BV$3,Général!BV4)","v":""},{"$f":"CONCATENATE(Général!BW$3,Général!BW4)","v":""},{"$f":"CONCATENATE(Général!BX$3,Général!BX4)","v":""},{"$f":"CONCATENATE(Général!BY$3,Général!BY4)","v":""},{"$f":"CONCATENATE(Général!BZ$3,Général!BZ4)","v":""},{"$f":"CONCATENATE(Général!CA$3,Général!CA4)","v":""},{"$f":"CONCATENATE(Général!CB$3,Général!CB4)","v":""},{"$f":"CONCATENATE(Général!CC$3,Général!CC4)","v":""},{"$f":"CONCATENATE(Général!CD$3,Général!CD4)","v":""},{"$f":"CONCATENATE(Général!CE$3,Général!CE4)","v":""},{"$f":"CONCATENATE(Général!CF$3,Général!CF4)","v":""},{"$f":"CONCATENATE(Général!CG$3,Général!CG4)","v":""},{"$f":"CONCATENATE(Général!CH$3,Général!CH4)","v":""},{"$f":"CONCATENATE(Général!CI$3,Général!CI4)","v":""},{"$f":"CONCATENATE(Général!CJ$3,Général!CJ4)","v":""},{"$f":"CONCATENATE(Général!CK$3,Général!CK4)","v":""},{"$f":"CONCATENATE(Général!CL$3,Général!CL4)","v":""},{"$f":"CONCATENATE(Général!CM$3,Général!CM4)","v":""},{"$f":"CONCATENATE(Général!CN$3,Général!CN4)","v":""},{"$f":"CONCATENATE(Général!CO$3,Général!CO4)","v":""},{"$f":"CONCATENATE(Général!CP$3,Général!CP4)","v":""},{"$f":"CONCATENATE(Général!CQ$3,Général!CQ4)","v":""},{"$f":"CONCATENATE(Général!CR$3,Général!CR4)","v":""},{"$f":"CONCATENATE(Général!CS$3,Général!CS4)","v":""},{"$f":"CONCATENATE(Général!CT$3,Général!CT4)","v":""},{"$f":"CONCATENATE(Général!CU$3,Général!CU4)","v":""},{"$f":"CONCATENATE(Général!CV$3,Général!CV4)","v":""},{"$f":"CONCATENATE(Général!CW$3,Général!CW4)","v":""},{"$f":"CONCATENATE(Général!CX$3,Général!CX4)","v":""},null,{"$f":"COUNTIF($A2:$CW2,(CONCATENATE(\"Un client\",CY$1)))","v":0},{"$f":"COUNTIF($A2:$CW2,(CONCATENATE(\"Un client\",CZ$1)))","v":0},0,0,0,39,{"$f":"MAX(CY2:DC2)","v":0},{"$f":"IF(DE2=0,\"\",HLOOKUP(DE2,CY2:DC$40,DD2,FALSE))","v":""},{"$f":"COUNTIF($A2:$CW2,(CONCATENATE(\"Un fournisseur\",DG$1)))","v":0},0,0,0,0,39,{"$f":"MAX(DG2:DK2)","v":0},{"$f":"IF(DM2=0,\"\",HLOOKUP(DM2,DG2:DK$40,DL2,FALSE))","v":""},{"$f":"COUNTIF($A2:$CW2,(CONCATENATE(\"Une collectivité/organisme local\",DO$1)))","v":0},0,0,0,0,39,{"$f":"MAX(DO2:DS2)","v":0},{"$f":"IF(DU2=0,\"\",HLOOKUP(DU2,DO2:DS$40,DT2,FALSE))","v":""},{"$f":"COUNTIF($A2:$CW2,(CONCATENATE(\"Un collaborateur/salarié\",DW$1)))","v":0},0,0,0,0,39,{"$f":"MAX(DW2:EA2)","v":0},{"$f":"IF(EC2=0,\"\",HLOOKUP(EC2,DW2:EA$40,EB2,FALSE))","v":""},{"$f":"COUNTIF($A2:$CW2,(CONCATENATE(\"Un prestataire\",EE$1)))","v":0},0,0,0,0,39,{"$f":"MAX(EE2:EI2)","v":0},{"$f":"IF(EK2=0,\"\",HLOOKUP(EK2,EE2:EI$40,EJ2,FALSE))","v":""},{"$f":"COUNTIF($A2:$CW2,(CONCATENATE(\"Un actionnaire\",EM$1)))","v":0},0,0,0,0,39,{"$f":"MAX(EM2:EQ2)","v":0},{"$f":"IF(ES2=0,\"\",HLOOKUP(ES2,EM2:EQ$40,ER2,FALSE))","v":""},{"$f":"COUNTIF($A2:$CW2,(CONCATENATE(\"Autre\",EU$1)))","v":0},{"$f":"COUNTIF($A2:$CW2,(CONCATENATE(\"Autre\",EV$1)))","v":0},0,0,{"$f":"COUNTIF($A2:$CW2,(CONCATENATE(\"Autre\",EY$1)))","v":0},39,{"$f":"MAX(EU2:EY2)","v":0},{"$f":"IF(FA2=0,\"\",HLOOKUP(FA2,EU2:EY$40,EZ2,FALSE))","v":""},{"$f":"COUNTIF(Général!$C4:$CX4,FC$1)","v":0},{"$f":"COUNTIF(Général!$C4:$CX4,FD$1)","v":0},{"$f":"COUNTIF(Général!$C4:$CX4,FE$1)","v":0},{"$f":"COUNTIF(Général!$C4:$CX4,FF$1)","v":0},{"$f":"COUNTIF(Général!$C4:$CX4,FG$1)","v":0},39,{"$f":"MAX(FC2:FG2)","v":0},{"$f":"IF(FI2<1,\"\",HLOOKUP(FI2,FC2:FG$40,FH2,FALSE))","v":""},{"$f":"COUNTIFS(FC2:FG2,FI2)","v":5},{"$f":"IF(FK2>1,FS2,FJ2)","v":"Non concerné"},{"$f":"IF($FI2=FC2,\"1\",\"0\")","v":"1"},{"$f":"IF($FI2=FD2,\"10\",\"0\")","v":"10"},{"$f":"IF($FI2=FE2,\"100\",\"0\")","v":"100"},{"$f":"IF($FI2=FF2,\"1000\",\"0\")","v":"1000"},{"$f":"IF($FI2=FG2,\"10000\",\"0\")","v":"10000"},{"$f":"(FM2+FN2+FO2+FP2+FQ2)/5","v":2222.1999999999998},{"$f":"IF($FR2<10,$FM$1,(IF(AND($FR2>1,$FR2<100),$FN$1,(IF(AND($FR2>10,$FR2<1000),$FO$1,(IF(AND($FR2>999,$FR2<1010),$FP$1,$FQ$1)))))))","v":"Non concerné"}]
["G2",{"$f":"CONCATENATE(Général!C$3,Général!C5)","v":""},{"$f":"CONCATENATE(Général!D$3,Général!D5)","v":""},{"$f":"CONCATENATE(Général!E$3,Général!E5)","v":""},{"$f":"CONCATENATE(Général!F$3,Général!F5)","v":""},{"$f":"CONCATENATE(Général!G$3,Général!G5)","v":""},{"$f":"CONCATENATE(Général!H$3,Général!H5)","v":""},{"$f":"CONCATENATE(Général!I$3,Général!I5)","v":""},{"$f":"CONCATENATE(Général!J$3,Général!J5)","v":""},{"$f":"CONCATENATE(Général!K$3,Général!K5)","v":""},{"$f":"CONCATENATE(Général!L$3,Général!L5)","v":""},{"$f":"CONCATENATE(Général!M$3,Général!M5)","v":""},{"$f":"CONCATENATE(Général!N$3,Général!N5)","v":""},{"$f":"CONCATENATE(Général!O$3,Général!O5)","v":""},{"$f":"CONCATENATE(Général!P$3,Général!P5)","v":""},{"$f":"CONCATENATE(Général!Q$3,Général!Q5)","v":""},{"$f":"CONCATENATE(Général!R$3,Général!R5)","v":""},{"$f":"CONCATENATE(Général!S$3,Général!S5)","v":""},{"$f":"CONCATENATE(Général!T$3,Général!T5)","v":""},{"$f":"CONCATENATE(Général!U$3,Général!U5)","v":""},{"$f":"CONCATENATE(Général!V$3,Général!V5)","v":""},{"$f":"CONCATENATE(Général!W$3,Général!W5)","v":""},{"$f":"CONCATENATE(Général!X$3,Général!X5)","v":""},{"$f":"CONCATENATE(Général!Y$3,Général!Y5)","v":""},{"$f":"CONCATENATE(Général!Z$3,Général!Z5)","v":""},{"$f":"CONCATENATE(Général!AA$3,Général!AA5)","v":""},{"$f":"CONCATENATE(Général!AB$3,Général!AB5)","v":""},{"$f":"CONCATENATE(Général!AC$3,Général!AC5)","v":""},{"$f":"CONCATENATE(Général!AD$3,Général!AD5)","v":""},{"$f":"CONCATENATE(Général!AE$3,Général!AE5)","v":""},{"$f":"CONCATENATE(Général!AF$3,Général!AF5)","v":""},{"$f":"CONCATENATE(Général!AG$3,Général!AG5)","v":""},{"$f":"CONCATENATE(Général!AH$3,Général!AH5)","v":""},{"$f":"CONCATENATE(Général!AI$3,Général!AI5)","v":""},{"$f":"CONCATENATE(Général!AJ$3,Général!AJ5)","v":""},{"$f":"CONCATENATE(Général!AK$3,Général!AK5)","v":""},{"$f":"CONCATENATE(Général!AL$3,Général!AL5)","v":""},{"$f":"CONCATENATE(Général!AM$3,Général!AM5)","v":""},{"$f":"CONCATENATE(Général!AN$3,Général!AN5)","v":""},{"$f":"CONCATENATE(Général!AO$3,Général!AO5)","v":""},{"$f":"CONCATENATE(Général!AP$3,Général!AP5)","v":""},{"$f":"CONCATENATE(Général!AQ$3,Général!AQ5)","v":""},{"$f":"CONCATENATE(Général!AR$3,Général!AR5)","v":""},{"$f":"CONCATENATE(Général!AS$3,Général!AS5)","v":""},{"$f":"CONCATENATE(Général!AT$3,Général!AT5)","v":""},{"$f":"CONCATENATE(Général!AU$3,Général!AU5)","v":""},{"$f":"CONCATENATE(Général!AV$3,Général!AV5)","v":""},{"$f":"CONCATENATE(Général!AW$3,Général!AW5)","v":""},{"$f":"CONCATENATE(Général!AX$3,Général!AX5)","v":""},{"$f":"CONCATENATE(Général!AY$3,Général!AY5)","v":""},{"$f":"CONCATENATE(Général!AZ$3,Général!AZ5)","v":""},{"$f":"CONCATENATE(Général!BA$3,Général!BA5)","v":""},{"$f":"CONCATENATE(Général!BB$3,Général!BB5)","v":""},{"$f":"CONCATENATE(Général!BC$3,Général!BC5)","v":""},{"$f":"CONCATENATE(Général!BD$3,Général!BD5)","v":""},{"$f":"CONCATENATE(Général!BE$3,Général!BE5)","v":""},{"$f":"CONCATENATE(Général!BF$3,Général!BF5)","v":""},{"$f":"CONCATENATE(Général!BG$3,Général!BG5)","v":""},{"$f":"CONCATENATE(Général!BH$3,Général!BH5)","v":""},{"$f":"CONCATENATE(Général!BI$3,Général!BI5)","v":""},{"$f":"CONCATENATE(Général!BJ$3,Général!BJ5)","v":""},{"$f":"CONCATENATE(Général!BK$3,Général!BK5)","v":""},{"$f":"CONCATENATE(Général!BL$3,Général!BL5)","v":""},{"$f":"CONCATENATE(Général!BM$3,Général!BM5)","v":""},{"$f":"CONCATENATE(Général!BN$3,Général!BN5)","v":""},{"$f":"CONCATENATE(Général!BO$3,Général!BO5)","v":""},{"$f":"CONCATENATE(Général!BP$3,Général!BP5)","v":""},{"$f":"CONCATENATE(Général!BQ$3,Général!BQ5)","v":""},{"$f":"CONCATENATE(Général!BR$3,Général!BR5)","v":""},{"$f":"CONCATENATE(Général!BS$3,Général!BS5)","v":""},{"$f":"CONCATENATE(Général!BT$3,Général!BT5)","v":""},{"$f":"CONCATENATE(Général!BU$3,Général!BU5)","v":""},{"$f":"CONCATENATE(Général!BV$3,Général!BV5)","v":""},{"$f":"CONCATENATE(Général!BW$3,Général!BW5)","v":""},{"$f":"CONCATENATE(Général!BX$3,Général!BX5)","v":""},{"$f":"CONCATENATE(Général!BY$3,Général!BY5)","v":""},{"$f":"CONCATENATE(Général!BZ$3,Général!BZ5)","v":""},{"$f":"CONCATENATE(Général!CA$3,Général!CA5)","v":""},{"$f":"CONCATENATE(Général!CB$3,Général!CB5)","v":""},{"$f":"CONCATENATE(Général!CC$3,Général!CC5)","v":""},{"$f":"CONCATENATE(Général!CD$3,Général!CD5)","v":""},{"$f":"CONCATENATE(Général!CE$3,Général!CE5)","v":""},{"$f":"CONCATENATE(Général!CF$3,Général!CF5)","v":""},{"$f":"CONCATENATE(Général!CG$3,Général!CG5)","v":""},{"$f":"CONCATENATE(Général!CH$3,Général!CH5)","v":""},{"$f":"CONCATENATE(Général!CI$3,Général!CI5)","v":""},{"$f":"CONCATENATE(Général!CJ$3,Général!CJ5)","v":""},{"$f":"CONCATENATE(Général!CK$3,Général!CK5)","v":""},{"$f":"CONCATENATE(Général!CL$3,Général!CL5)","v":""},{"$f":"CONCATENATE(Général!CM$3,Général!CM5)","v":""},{"$f":"CONCATENATE(Général!CN$3,Général!CN5)","v":""},{"$f":"CONCATENATE(Général!CO$3,Général!CO5)","v":""},{"$f":"CONCATENATE(Général!CP$3,Général!CP5)","v":""},{"$f":"CONCATENATE(Général!CQ$3,Général!CQ5)","v":""},{"$f":"CONCATENATE(Général!CR$3,Général!CR5)","v":""},{"$f":"CONCATENATE(Général!CS$3,Général!CS5)","v":""},{"$f":"CONCATENATE(Général!CT$3,Général!CT5)","v":""},{"$f":"CONCATENATE(Général!CU$3,Général!CU5)","v":""},{"$f":"CONCATENATE(Général!CV$3,Général!CV5)","v":""},{"$f":"CONCATENATE(Général!CW$3,Général!CW5)","v":""},{"$f":"CONCATENATE(Général!CX$3,Général!CX5)","v":""},null,{"$f":"COUNTIF($A3:$CW3,(CONCATENATE(\"Un client\",CY$1)))","v":0},0,0,0,0,38,0,{"$f":"IF(DE3=0,\"\",HLOOKUP(DE3,CY3:DC$40,DD3,FALSE))","v":""},0,0,0,0,0,38,0,{"$f":"IF(DM3=0,\"\",HLOOKUP(DM3,DG3:DK$40,DL3,FALSE))","v":""},0,0,0,0,0,38,0,{"$f":"IF(DU3=0,\"\",HLOOKUP(DU3,DO3:DS$40,DT3,FALSE))","v":""},0,0,0,0,0,38,0,{"$f":"IF(EC3=0,\"\",HLOOKUP(EC3,DW3:EA$40,EB3,FALSE))","v":""},0,0,0,0,0,38,0,{"$f":"IF(EK3=0,\"\",HLOOKUP(EK3,EE3:EI$40,EJ3,FALSE))","v":""},0,0,0,0,0,38,0,{"$f":"IF(ES3=0,\"\",HLOOKUP(ES3,EM3:EQ$40,ER3,FALSE))","v":""},0,0,0,0,0,38,0,{"$f":"IF(FA3=0,\"\",HLOOKUP(FA3,EU3:EY$40,EZ3,FALSE))","v":""},{"$f":"COUNTIF(Général!$C5:$CX5,FC$1)","v":0},{"$f":"COUNTIF(Général!$C5:$CX5,FD$1)","v":0},{"$f":"COUNTIF(Général!$C5:$CX5,FE$1)","v":0},{"$f":"COUNTIF(Général!$C5:$CX5,FF$1)","v":0},{"$f":"COUNTIF(Général!$C5:$CX5,FG$1)","v":0},38,{"$f":"MAX(FC3:FG3)","v":0},{"$f":"IF(FI3<1,\"\",HLOOKUP(FI3,FC3:FG$40,FH3,FALSE))","v":""},{"$f":"COUNTIFS(FC3:FG3,FI3)","v":5},{"$f":"IF(FK3>1,FS3,FJ3)","v":"Non concerné"},{"$f":"IF($FI3=FC3,\"1\",\"0\")","v":"1"},{"$f":"IF($FI3=FD3,\"10\",\"0\")","v":"10"},{"$f":"IF($FI3=FE3,\"100\",\"0\")","v":"100"},{"$f":"IF($FI3=FF3,\"1000\",\"0\")","v":"1000"},{"$f":"IF($FI3=FG3,\"10000\",\"0\")","v":"10000"},{"$f":"(FM3+FN3+FO3+FP3+FQ3)/5","v":2222.1999999999998},{"$f":"IF($FR3<10,$FM$1,(IF(AND($FR3>1,$FR3<100),$FN$1,(IF(AND($FR3>10,$FR3<1000),$FO$1,(IF(AND($FR3>999,$FR3<1010),$FP$1,$FQ$1)))))))","v":"Non concerné"}]
["G3",{"$f":"CONCATENATE(Général!C$3,Général!C6)","v":""},{"$f":"CONCATENATE(Général!D$3,Général!D6)","v":""},{"$f":"CONCATENATE(Général!E$3,Général!E6)","v":""},{"$f":"CONCATENATE(Général!F$3,Général!F6)","v":""},{"$f":"CONCATENATE(Général!G$3,Général!G6)","v":""},{"$f":"CONCATENATE(Général!H$3,Général!H6)","v":""},{"$f":"CONCATENATE(Général!I$3,Général!I6)","v":""},{"$f":"CONCATENATE(Général!J$3,Général!J6)","v":""},{"$f":"CONCATENATE(Général!K$3,Général!K6)","v":""},{"$f":"CONCATENATE(Général!L$3,Général!L6)","v":""},{"$f":"CONCATENATE(Général!M$3,Général!M6)","v":""},{"$f":"CONCATENATE(Général!N$3,Général!N6)","v":""},{"$f":"CONCATENATE(Général!O$3,Général!O6)","v":""},{"$f":"CONCATENATE(Général!P$3,Général!P6)","v":""},{"$f":"CONCATENATE(Général!Q$3,Général!Q6)","v":""},{"$f":"CONCATENATE(Général!R$3,Général!R6)","v":""},{"$f":"CONCATENATE(Général!S$3,Général!S6)","v":""},{"$f":"CONCATENATE(Général!T$3,Général!T6)","v":""},{"$f":"CONCATENATE(Général!U$3,Général!U6)","v":""},{"$f":"CONCATENATE(Général!V$3,Général!V6)","v":""},{"$f":"CONCATENATE(Général!W$3,Général!W6)","v":""},{"$f":"CONCATENATE(Général!X$3,Général!X6)","v":""},{"$f":"CONCATENATE(Général!Y$3,Général!Y6)","v":""},{"$f":"CONCATENATE(Général!Z$3,Général!Z6)","v":""},{"$f":"CONCATENATE(Général!AA$3,Général!AA6)","v":""},{"$f":"CONCATENATE(Général!AB$3,Général!AB6)","v":""},{"$f":"CONCATENATE(Général!AC$3,Général!AC6)","v":""},{"$f":"CONCATENATE(Général!AD$3,Général!AD6)","v":""},{"$f":"CONCATENATE(Général!AE$3,Général!AE6)","v":""},{"$f":"CONCATENATE(Général!AF$3,Général!AF6)","v":""},{"$f":"CONCATENATE(Général!AG$3,Général!AG6)","v":""},{"$f":"CONCATENATE(Général!AH$3,Général!AH6)","v":""},{"$f":"CONCATENATE(Général!AI$3,Général!AI6)","v":""},{"$f":"CONCATENATE(Général!AJ$3,Général!AJ6)","v":""},{"$f":"CONCATENATE(Général!AK$3,Général!AK6)","v":""},{"$f":"CONCATENATE(Général!AL$3,Général!AL6)","v":""},{"$f":"CONCATENATE(Général!AM$3,Général!AM6)","v":""},{"$f":"CONCATENATE(Général!AN$3,Général!AN6)","v":""},{"$f":"CONCATENATE(Général!AO$3,Général!AO6)","v":""},{"$f":"CONCATENATE(Général!AP$3,Général!AP6)","v":""},{"$f":"CONCATENATE(Général!AQ$3,Général!AQ6)","v":""},{"$f":"CONCATENATE(Général!AR$3,Général!AR6)","v":""},{"$f":"CONCATENATE(Général!AS$3,Général!AS6)","v":""},{"$f":"CONCATENATE(Général!AT$3,Général!AT6)","v":""},{"$f":"CONCATENATE(Général!AU$3,Général!AU6)","v":""},{"$f":"CONCATENATE(Général!AV$3,Général!AV6)","v":""},{"$f":"CONCATENATE(Général!AW$3,Général!AW6)","v":""},{"$f":"CONCATENATE(Général!AX$3,Général!AX6)","v":""},{"$f":"CONCATENATE(Général!AY$3,Général!AY6)","v":""},{"$f":"CONCATENATE(Général!AZ$3,Général!AZ6)","v":""},{"$f":"CONCATENATE(Général!BA$3,Général!BA6)","v":""},{"$f":"CONCATENATE(Général!BB$3,Général!BB6)","v":""},{"$f":"CONCATENATE(Général!BC$3,Général!BC6)","v":""},{"$f":"CONCATENATE(Général!BD$3,Général!BD6)","v":""},{"$f":"CONCATENATE(Général!BE$3,Général!BE6)","v":""},{"$f":"CONCATENATE(Général!BF$3,Général!BF6)","v":""},{"$f":"CONCATENATE(Général!BG$3,Général!BG6)","v":""},{"$f":"CONCATENATE(Général!BH$3,Général!BH6)","v":""},{"$f":"CONCATENATE(Général!BI$3,Général!BI6)","v":""},{"$f":"CONCATENATE(Général!BJ$3,Général!BJ6)","v":""},{"$f":"CONCATENATE(Général!BK$3,Général!BK6)","v":""},{"$f":"CONCATENATE(Général!BL$3,Général!BL6)","v":""},{"$f":"CONCATENATE(Général!BM$3,Général!BM6)","v":""},{"$f":"CONCATENATE(Général!BN$3,Général!BN6)","v":""},{"$f":"CONCATENATE(Général!BO$3,Général!BO6)","v":""},{"$f":"CONCATENATE(Général!BP$3,Général!BP6)","v":""},{"$f":"CONCATENATE(Général!BQ$3,Général!BQ6)","v":""},{"$f":"CONCATENATE(Général!BR$3,Général!BR6)","v":""},{"$f":"CONCATENATE(Général!BS$3,Général!BS6)","v":""},{"$f":"CONCATENATE(Général!BT$3,Général!BT6)","v":""},{"$f":"CONCATENATE(Général!BU$3,Général!BU6)","v":""},{"$f":"CONCATENATE(Général!BV$3,Général!BV6)","v":""},{"$f":"CONCATENATE(Général!BW$3,Général!BW6)","v":""},{"$f":"CONCATENATE(Général!BX$3,Général!BX6)","v":""},{"$f":"CONCATENATE(Général!BY$3,Général!BY6)","v":""},{"$f":"CONCATENATE(Général!BZ$3,Général!BZ6)","v":""},{"$f":"CONCATENATE(Général!CA$3,Général!CA6)","v":""},{"$f":"CONCATENATE(Général!CB$3,Général!CB6)","v":""},{"$f":"CONCATENATE(Général!CC$3,Général!CC6)","v":""},{"$f":"CONCATENATE(Général!CD$3,Général!CD6)","v":""},{"$f":"CONCATENATE(Général!CE$3,Général!CE6)","v":""},{"$f":"CONCATENATE(Général!CF$3,Général!CF6)","v":""},{"$f":"CONCATENATE(Général!CG$3,Général!CG6)","v":""},{"$f":"CONCATENATE(Général!CH$3,Général!CH6)","v":""},{"$f":"CONCATENATE(Général!CI$3,Général!CI6)","v":""},{"$f":"CONCATENATE(Général!CJ$3,Général!CJ6)","v":""},{"$f":"CONCATENATE(Général!CK$3,Général!CK6)","v":""},{"$f":"CONCATENATE(Général!CL$3,Général!CL6)","v":""},{"$f":"CONCATENATE(Général!CM$3,Général!CM6)","v":""},{"$f":"CONCATENATE(Général!CN$3,Général!CN6)","v":""},{"$f":"CONCATENATE(Général!CO$3,Général!CO6)","v":""},{"$f":"CONCATENATE(Général!CP$3,Général!CP6)","v":""},{"$f":"CONCATENATE(Général!CQ$3,Général!CQ6)","v":""},{"$f":"CONCATENATE(Général!CR$3,Général!CR6)","v":""},{"$f":"CONCATENATE(Général!CS$3,Général!CS6)","v":""},{"$f":"CONCATENATE(Général!CT$3,Général!CT6)","v":""},{"$f":"CONCATENATE(Général!CU$3,Général!CU6)","v":""},{"$f":"CONCATENATE(Général!CV$3,Général!CV6)","v":""},{"$f":"CONCATENATE(Général!CW$3,Général!CW6)","v":""},{"$f":"CONCATENATE(Général!CX$3,Général!CX6)","v":""},null,0,0,0,0,0,37,0,{"$f":"IF(DE4=0,\"\",HLOOKUP(DE4,CY4:DC$40,DD4,FALSE))","v":""},0,0,0,0,0,37,0,{"$f":"IF(DM4=0,\"\",HLOOKUP(DM4,DG4:DK$40,DL4,FALSE))","v":""},0,0,0,0,0,37,0,{"$f":"IF(DU4=0,\"\",HLOOKUP(DU4,DO4:DS$40,DT4,FALSE))","v":""},0,0,0,0,0,37,0,{"$f":"IF(EC4=0,\"\",HLOOKUP(EC4,DW4:EA$40,EB4,FALSE))","v":""},0,0,0,0,0,37,0,{"$f":"IF(EK4=0,\"\",HLOOKUP(EK4,EE4:EI$40,EJ4,FALSE))","v":""},0,0,0,0,0,37,0,{"$f":"IF(ES4=0,\"\",HLOOKUP(ES4,EM4:EQ$40,ER4,FALSE))","v":""},0,0,0,0,0,37,0,{"$f":"IF(FA4=0,\"\",HLOOKUP(FA4,EU4:EY$40,EZ4,FALSE))","v":""},{"$f":"COUNTIF(Général!$C6:$CX6,FC$1)","v":0},{"$f":"COUNTIF(Général!$C6:$CX6,FD$1)","v":0},{"$f":"COUNTIF(Général!$C6:$CX6,FE$1)","v":0},{"$f":"COUNTIF(Général!$C6:$CX6,FF$1)","v":0},{"$f":"COUNTIF(Général!$C6:$CX6,FG$1)","v":0},37,0,{"$f":"IF(FI4<1,\"\",HLOOKUP(FI4,FC4:FG$40,FH4,FALSE))","v":""},5,"Non concerné","1","10","100","1000","10000",2222.1999999999998,"Non concerné"]
["G4",{"$f":"CONCATENATE(Général!C$3,Général!C7)","v":""},{"$f":"CONCATENATE(Général!D$3,Général!D7)","v":""},{"$f":"CONCATENATE(Général!E$3,Général!E7)","v":""},{"$f":"CONCATENATE(Général!F$3,Général!F7)","v":""},{"$f":"CONCATENATE(Général!G$3,Général!G7)","v":""},{"$f":"CONCATENATE(Général!H$3,Général!H7)","v":""},{"$f":"CONCATENATE(Général!I$3,Général!I7)","v":""},{"$f":"CONCATENATE(Général!J$3,Général!J7)","v":""},{"$f":"CONCATENATE(Général!K$3,Général!K7)","v":""},{"$f":"CONCATENATE(Général!L$3,Général!L7)","v":""},{"$f":"CONCATENATE(Général!M$3,Général!M7)","v":""},{"$f":"CONCATENATE(Général!N$3,Général!N7)","v":""},{"$f":"CONCATENATE(Général!O$3,Général!O7)","v":""},{"$f":"CONCATENATE(Général!P$3,Général!P7)","v":""},{"$f":"CONCATENATE(Général!Q$3,Général!Q7)","v":""},{"$f":"CONCATENATE(Général!R$3,Général!R7)","v":""},{"$f":"CONCATENATE(Général!S$3,Général!S7)","v":""},{"$f":"CONCATENATE(Général!T$3,Général!T7)","v":""},{"$f":"CONCATENATE(Général!U$3,Général!U7)","v":""},{"$f":"CONCATENATE(Général!V$3,Général!V7)","v":""},{"$f":"CONCATENATE(Général!W$3,Général!W7)","v":""},{"$f":"CONCATENATE(Général!X$3,Général!X7)","v":""},{"$f":"CONCATENATE(Général!Y$3,Général!Y7)","v":""},{"$f":"CONCATENATE(Général!Z$3,Général!Z7)","v":""},{"$f":"CONCATENATE(Général!AA$3,Général!AA7)","v":""},{"$f":"CONCATENATE(Général!AB$3,Général!AB7)","v":""},{"$f":"CONCATENATE(Général!AC$3,Général!AC7)","v":""},{"$f":"CONCATENATE(Général!AD$3,Général!AD7)","v":""},{"$f":"CONCATENATE(Général!AE$3,Général!AE7)","v":""},{"$f":"CONCATENATE(Général!AF$3,Général!AF7)","v":""},{"$f":"CONCATENATE(Général!AG$3,Général!AG7)","v":""},{"$f":"CONCATENATE(Général!AH$3,Général!AH7)","v":""},{"$f":"CONCATENATE(Général!AI$3,Général!AI7)","v":""},{"$f":"CONCATENATE(Général!AJ$3,Général!AJ7)","v":""},{"$f":"CONCATENATE(Général!AK$3,Général!AK7)","v":""},{"$f":"CONCATENATE(Général!AL$3,Général!AL7)","v":""},{"$f":"CONCATENATE(Général!AM$3,Général!AM7)","v":""},{"$f":"CONCATENATE(Général!AN$3,Général!AN7)","v":""},{"$f":"CONCATENATE(Général!AO$3,Général!AO7)","v":""},{"$f":"CONCATENATE(Général!AP$3,Général!AP7)","v":""},{"$f":"CONCATENATE(Général!AQ$3,Général!AQ7)","v":""},{"$f":"CONCATENATE(Général!AR$3,Général!AR7)","v":""},{"$f":"CONCATENATE(Général!AS$3,Général!AS7)","v":""},{"$f":"CONCATENATE(Général!AT$3,Général!AT7)","v":""},{"$f":"CONCATENATE(Général!AU$3,Général!AU7)","v":""},{"$f":"CONCATENATE(Général!AV$3,Général!AV7)","v":""},{"$f":"CONCATENATE(Général!AW$3,Général!AW7)","v":""},{"$f":"CONCATENATE(Général!AX$3,Général!AX7)","v":""},{"$f":"CONCATENATE(Général!AY$3,Général!AY7)","v":""},{"$f":"CONCATENATE(Général!AZ$3,Général!AZ7)","v":""},{"$f":"CONCATENATE(Général!BA$3,Général!BA7)","v":""},{"$f":"CONCATENATE(Général!BB$3,Général!BB7)","v":""},{"$f":"CONCATENATE(Général!BC$3,Général!BC7)","v":""},{"$f":"CONCATENATE(Général!BD$3,Général!BD7)","v":""},{"$f":"CONCATENATE(Général!BE$3,Général!BE7)","v":""},{"$f":"CONCATENATE(Général!BF$3,Général!BF7)","v":""},{"$f":"CONCATENATE(Général!BG$3,Général!BG7)","v":""},{"$f":"CONCATENATE(Général!BH$3,Général!BH7)","v":""},{"$f":"CONCATENATE(Général!BI$3,Général!BI7)","v":""},{"$f":"CONCATENATE(Général!BJ$3,Général!BJ7)","v":""},{"$f":"CONCATENATE(Général!BK$3,Général!BK7)","v":""},{"$f":"CONCATENATE(Général!BL$3,Général!BL7)","v":""},{"$f":"CONCATENATE(Général!BM$3,Général!BM7)","v":""},{"$f":"CONCATENATE(Général!BN$3,Général!BN7)","v":""},{"$f":"CONCATENATE(Général!BO$3,Général!BO7)","v":""},{"$f":"CONCATENATE(Général!BP$3,Général!BP7)","v":""},{"$f":"CONCATENATE(Général!BQ$3,Général!BQ7)","v":""},{"$f":"CONCATENATE(Général!BR$3,Général!BR7)","v":""},{"$f":"CONCATENATE(Général!BS$3,Général!BS7)","v":""},{"$f":"CONCATENATE(Général!BT$3,Général!BT7)","v":""},{"$f":"CONCATENATE(Général!BU$3,Général!BU7)","v":""},{"$f":"CONCATENATE(Général!BV$3,Général!BV7)","v":""},{"$f":"CONCATENATE(Général!BW$3,Général!BW7)","v":""},{"$f":"CONCATENATE(Général!BX$3,Général!BX7)","v":""},{"$f":"CONCATENATE(Général!BY$3,Général!BY7)","v":""},{"$f":"CONCATENATE(Général!BZ$3,Général!BZ7)","v":""},{"$f":"CONCATENATE(Général!CA$3,Général!CA7)","v":""},{"$f":"CONCATENATE(Général!CB$3,Général!CB7)","v":""},{"$f":"CONCATENATE(Général!CC$3,Général!CC7)","v":""},{"$f":"CONCATENATE(Général!CD$3,Général!CD7)","v":""},{"$f":"CONCATENATE(Général!CE$3,Général!CE7)","v":""},{"$f":"CONCATENATE(Général!CF$3,Général!CF7)","v":""},{"$f":"CONCATENATE(Général!CG$3,Général!CG7)","v":""},{"$f":"CONCATENATE(Général!CH$3,Général!CH7)","v":""},{"$f":"CONCATENATE(Général!CI$3,Général!CI7)","v":""},{"$f":"CONCATENATE(Général!CJ$3,Général!CJ7)","v":""},{"$f":"CONCATENATE(Général!CK$3,Général!CK7)","v":""},{"$f":"CONCATENATE(Général!CL$3,Général!CL7)","v":""},{"$f":"CONCATENATE(Général!CM$3,Général!CM7)","v":""},{"$f":"CONCATENATE(Général!CN$3,Général!CN7)","v":""},{"$f":"CONCATENATE(Général!CO$3,Général!CO7)","v":""},{"$f":"CONCATENATE(Général!CP$3,Général!CP7)","v":""},{"$f":"CONCATENATE(Général!CQ$3,Général!CQ7)","v":""},{"$f":"CONCATENATE(Général!CR$3,Général!CR7)","v":""},{"$f":"CONCATENATE(Général!CS$3,Général!CS7)","v":""},{"$f":"CONCATENATE(Général!CT$3,Général!CT7)","v":""},{"$f":"CONCATENATE(Général!CU$3,Général!CU7)","v":""},{"$f":"CONCATENATE(Général!CV$3,Général!CV7)","v":""},{"$f":"CONCATENATE(Général!CW$3,Général!CW7)","v":""},{"$f":"CONCATENATE(Général!CX$3,Général!CX7)","v":""},null,0,0,0,0,0,36,0,{"$f":"IF(DE5=0,\"\",HLOOKUP(DE5,CY5:DC$40,DD5,FALSE))","v":""},0,0,0,0,0,36,0,{"$f":"IF(DM5=0,\"\",HLOOKUP(DM5,DG5:DK$40,DL5,FALSE))","v":""},0,0,0,0,0,36,0,{"$f":"IF(DU5=0,\"\",HLOOKUP(DU5,DO5:DS$40,DT5,FALSE))","v":""},0,0,0,0,0,36,0,{"$f":"IF(EC5=0,\"\",HLOOKUP(EC5,DW5:EA$40,EB5,FALSE))","v":""},0,0,0,0,0,36,{"$f":"MAX(EE5:EI5)","v":0},{"$f":"IF(EK5=0,\"\",HLOOKUP(EK5,EE5:EI$40,EJ5,FALSE))","v":""},0,0,0,0,0,36,{"$f":"MAX(EM5:EQ5)","v":0},{"$f":"IF(ES5=0,\"\",HLOOKUP(ES5,EM5:EQ$40,ER5,FALSE))","v":""},0,0,0,0,0,36,{"$f":"MAX(EU5:EY5)","v":0},{"$f":"IF(FA5=0,\"\",HLOOKUP(FA5,EU5:EY$40,EZ5,FALSE))","v":""},{"$f":"COUNTIF(Général!$C7:$CX7,FC$1)","v":0},{"$f":"COUNTIF(Général!$C7:$CX7,FD$1)","v":0},{"$f":"COUNTIF(Général!$C7:$CX7,FE$1)","v":0},{"$f":"COUNTIF(Général!$C7:$CX7,FF$1)","v":0},{"$f":"COUNTIF(Général!$C7:$CX7,FG$1)","v":0},36,{"$f":"MAX(FC5:FG5)","v":0},{"$f":"IF(FI5<1,\"\",HLOOKUP(FI5,FC5:FG$40,FH5,FALSE))","v":""},5,"Non concerné","1","10","100","1000","10000",2222.1999999999998,"Non concerné"]
["G5",{"$f":"CONCATENATE(Général!C$3,Général!C8)","v":""},{"$f":"CONCATENATE(Général!D$3,Général!D8)","v":""},{"$f":"CONCATENATE(Général!E$3,Général!E8)","v":""},{"$f":"CONCATENATE(Général!F$3,Général!F8)","v":""},{"$f":"CONCATENATE(Général!G$3,Général!G8)","v":""},{"$f":"CONCATENATE(Général!H$3,Général!H8)","v":""},{"$f":"CONCATENATE(Général!I$3,Général!I8)","v":""},{"$f":"CONCATENATE(Général!J$3,Général!J8)","v":""},{"$f":"CONCATENATE(Général!K$3,Général!K8)","v":""},{"$f":"CONCATENATE(Général!L$3,Général!L8)","v":""},{"$f":"CONCATENATE(Général!M$3,Général!M8)","v":""},{"$f":"CONCATENATE(Général!N$3,Général!N8)","v":""},{"$f":"CONCATENATE(Général!O$3,Général!O8)","v":""},{"$f":"CONCATENATE(Général!P$3,Général!P8)","v":""},{"$f":"CONCATENATE(Général!Q$3,Général!Q8)","v":""},{"$f":"CONCATENATE(Général!R$3,Général!R8)","v":""},{"$f":"CONCATENATE(Général!S$3,Général!S8)","v":""},{"$f":"CONCATENATE(Général!T$3,Général!T8)","v":""},{"$f":"CONCATENATE(Général!U$3,Général!U8)","v":""},{"$f":"CONCATENATE(Général!V$3,Général!V8)","v":""},{"$f":"CONCATENATE(Général!W$3,Général!W8)","v":""},{"$f":"CONCATENATE(Général!X$3,Général!X8)","v":""},{"$f":"CONCATENATE(Général!Y$3,Général!Y8)","v":""},{"$f":"CONCATENATE(Général!Z$3,Général!Z8)","v":""},{"$f":"CONCATENATE(Général!AA$3,Général!AA8)","v":""},{"$f":"CONCATENATE(Général!AB$3,Général!AB8)","v":""},{"$f":"CONCATENATE(Général!AC$3,Général!AC8)","v":""},{"$f":"CONCATENATE(Général!AD$3,Général!AD8)","v":""},{"$f":"CONCATENATE(Général!AE$3,Général!AE8)","v":""},{"$f":"CONCATENATE(Général!AF$3,Général!AF8)","v":""},{"$f":"CONCATENATE(Général!AG$3,Général!AG8)","v":""},{"$f":"CONCATENATE(Général!AH$3,Général!AH8)","v":""},{"$f":"CONCATENATE(Général!AI$3,Général!AI8)","v":""},{"$f":"CONCATENATE(Général!AJ$3,Général!AJ8)","v":""},{"$f":"CONCATENATE(Général!AK$3,Général!AK8)","v":""},{"$f":"CONCATENATE(Général!AL$3,Général!AL8)","v":""},{"$f":"CONCATENATE(Général!AM$3,Général!AM8)","v":""},{"$f":"CONCATENATE(Général!AN$3,Général!AN8)","v":""},{"$f":"CONCATENATE(Général!AO$3,Général!AO8)","v":""},{"$f":"CONCATENATE(Général!AP$3,Général!AP8)","v":""},{"$f":"CONCATENATE(Général!AQ$3,Général!AQ8)","v":""},{"$f":"CONCATENATE(Général!AR$3,Général!AR8)","v":""},{"$f":"CONCATENATE(Général!AS$3,Général!AS8)","v":""},{"$f":"CONCATENATE(Général!AT$3,Général!AT8)","v":""},{"$f":"CONCATENATE(Général!AU$3,Général!AU8)","v":""},{"$f":"CONCATENATE(Général!AV$3,Général!AV8)","v":""},{"$f":"CONCATENATE(Général!AW$3,Général!AW8)","v":""},{"$f":"CONCATENATE(Général!AX$3,Général!AX8)","v":""},{"$f":"CONCATENATE(Général!AY$3,Général!AY8)","v":""},{"$f":"CONCATENATE(Général!AZ$3,Général!AZ8)","v":""},{"$f":"CONCATENATE(Général!BA$3,Général!BA8)","v":""},{"$f":"CONCATENATE(Général!BB$3,Général!BB8)","v":""},{"$f":"CONCATENATE(Général!BC$3,Général!BC8)","v":""},{"$f":"CONCATENATE(Général!BD$3,Général!BD8)","v":""},{"$f":"CONCATENATE(Général!BE$3,Général!BE8)","v":""},{"$f":"CONCATENATE(Général!BF$3,Général!BF8)","v":""},{"$f":"CONCATENATE(Général!BG$3,Général!BG8)","v":""},{"$f":"CONCATENATE(Général!BH$3,Général!BH8)","v":""},{"$f":"CONCATENATE(Général!BI$3,Général!BI8)","v":""},{"$f":"CONCATENATE(Général!BJ$3,Général!BJ8)","v":""},{"$f":"CONCATENATE(Général!BK$3,Général!BK8)","v":""},{"$f":"CONCATENATE(Général!BL$3,Général!BL8)","v":""},{"$f":"CONCATENATE(Général!BM$3,Général!BM8)","v":""},{"$f":"CONCATENATE(Général!BN$3,Général!BN8)","v":""},{"$f":"CONCATENATE(Général!BO$3,Général!BO8)","v":""},{"$f":"CONCATENATE(Général!BP$3,Général!BP8)","v":""},{"$f":"CONCATENATE(Général!BQ$3,Général!BQ8)","v":""},{"$f":"CONCATENATE(Général!BR$3,Général!BR8)","v":""},{"$f":"CONCATENATE(Général!BS$3,Général!BS8)","v":""},{"$f":"CONCATENATE(Général!BT$3,Général!BT8)","v":""},{"$f":"CONCATENATE(Général!BU$3,Général!BU8)","v":""},{"$f":"CONCATENATE(Général!BV$3,Général!BV8)","v":""},{"$f":"CONCATENATE(Général!BW$3,Général!BW8)","v":""},{"$f":"CONCATENATE(Général!BX$3,Général!BX8)","v":""},{"$f":"CONCATENATE(Général!BY$3,Général!BY8)","v":""},{"$f":"CONCATENATE(Général!BZ$3,Général!BZ8)","v":""},{"$f":"CONCATENATE(Général!CA$3,Général!CA8)","v":""},{"$f":"CONCATENATE(Général!CB$3,Général!CB8)","v":""},{"$f":"CONCATENATE(Général!CC$3,Général!CC8)","v":""},{"$f":"CONCATENATE(Général!CD$3,Général!CD8)","v":""},{"$f":"CONCATENATE(Général!CE$3,Général!CE8)","v":""},{"$f":"CONCATENATE(Général!CF$3,Général!CF8)","v":""},{"$f":"CONCATENATE(Général!CG$3,Général!CG8)","v":""},{"$f":"CONCATENATE(Général!CH$3,Général!CH8)","v":""},{"$f":"CONCATENATE(Général!CI$3,Général!CI8)","v":""},{"$f":"CONCATENATE(Général!CJ$3,Général!CJ8)","v":""},{"$f":"CONCATENATE(Général!CK$3,Général!CK8)","v":""},{"$f":"CONCATENATE(Général!CL$3,Général!CL8)","v":""},{"$f":"CONCATENATE(Général!CM$3,Général!CM8)","v":""},{"$f":"CONCATENATE(Général!CN$3,Général!CN8)","v":""},{"$f":"CONCATENATE(Général!CO$3,Général!CO8)","v":""},{"$f":"CONCATENATE(Général!CP$3,Général!CP8)","v":""},{"$f":"CONCATENATE(Général!CQ$3,Général!CQ8)","v":""},{"$f":"CONCATENATE(Général!CR$3,Général!CR8)","v":""},{"$f":"CONCATENATE(Général!CS$3,Général!CS8)","v":""},{"$f":"CONCATENATE(Général!CT$3,Général!CT8)","v":""},{"$f":"CONCATENATE(Général!CU$3,Général!CU8)","v":""},{"$f":"CONCATENATE(Général!CV$3,Général!CV8)","v":""},{"$f":"CONCATENATE(Général!CW$3,Général!CW8)","v":""},{"$f":"CONCATENATE(Général!CX$3,Général!CX8)","v":""},null,0,0,0,0,0,35,0,{"$f":"IF(DE6=0,\"\",HLOOKUP(DE6,CY6:DC$40,DD6,FALSE))","v":""},0,0,0,0,0,35,0,{"$f":"IF(DM6=0,\"\",HLOOKUP(DM6,DG6:DK$40,DL6,FALSE))","v":""},0,0,0,0,0,35,0,{"$f":"IF(DU6=0,\"\",HLOOKUP(DU6,DO6:DS$40,DT6,FALSE))","v":""},0,0,0,0,0,35,0,{"$f":"IF(EC6=0,\"\",HLOOKUP(EC6,DW6:EA$40,EB6,FALSE))","v":""},0,0,0,0,0,35,0,{"$f":"IF(EK6=0,\"\",HLOOKUP(EK6,EE6:EI$40,EJ6,FALSE))","v":""},0,0,0,0,0,35,{"$f":"MAX(EM6:EQ6)","v":0},{"$f":"IF(ES6=0,\"\",HLOOKUP(ES6,EM6:EQ$40,ER6,FALSE))","v":""},0,0,0,0,0,35,{"$f":"MAX(EU6:EY6)","v":0},{"$f":"IF(FA6=0,\"\",HLOOKUP(FA6,EU6:EY$40,EZ6,FALSE))","v":""},{"$f":"COUNTIF(Général!$C8:$CX8,FC$1)","v":0},{"$f":"COUNTIF(Général!$C8:$CX8,FD$1)","v":0},{"$f":"COUNTIF(Général!$C8:$CX8,FE$1)","v":0},{"$f":"COUNTIF(Général!$C8:$CX8,FF$1)","v":0},{"$f":"COUNTIF(Général!$C8:$CX8,FG$1)","v":0},35,{"$f":"MAX(FC6:FG6)","v":0},{"$f":"IF(FI6<1,\"\",HLOOKUP(FI6,FC6:FG$40,FH6,FALSE))","v":""},5,"Non concerné","1","10","100","1000","10000",2222.1999999999998,"Non concerné"]
["G6",{"$f":"CONCATENATE(Général!C$3,Général!C9)","v":""},{"$f":"CONCATENATE(Général!D$3,Général!D9)","v":""},{"$f":"CONCATENATE(Général!E$3,Général!E9)","v":""},{"$f":"CONCATENATE(Général!F$3,Général!F9)","v":""},{"$f":"CONCATENATE(Général!G$3,Général!G9)","v":""},{"$f":"CONCATENATE(Général!H$3,Général!H9)","v":""},{"$f":"CONCATENATE(Général!I$3,Général!I9)","v":""},{"$f":"CONCATENATE(Général!J$3,Général!J9)","v":""},{"$f":"CONCATENATE(Général!K$3,Général!K9)","v":""},{"$f":"CONCATENATE(Général!L$3,Général!L9)","v":""},{"$f":"CONCATENATE(Général!M$3,Général!M9)","v":""},{"$f":"CONCATENATE(Général!N$3,Général!N9)","v":""},{"$f":"CONCATENATE(Général!O$3,Général!O9)","v":""},{"$f":"CONCATENATE(Général!P$3,Général!P9)","v":""},{"$f":"CONCATENATE(Général!Q$3,Général!Q9)","v":""},{"$f":"CONCATENATE(Général!R$3,Général!R9)","v":""},{"$f":"CONCATENATE(Général!S$3,Général!S9)","v":""},{"$f":"CONCATENATE(Général!T$3,Général!T9)","v":""},{"$f":"CONCATENATE(Général!U$3,Général!U9)","v":""},{"$f":"CONCATENATE(Général!V$3,Général!V9)","v":""},{"$f":"CONCATENATE(Général!W$3,Général!W9)","v":""},{"$f":"CONCATENATE(Général!X$3,Général!X9)","v":""},{"$f":"CONCATENATE(Général!Y$3,Général!Y9)","v":""},{"$f":"CONCATENATE(Général!Z$3,Général!Z9)","v":""},{"$f":"CONCATENATE(Général!AA$3,Général!AA9)","v":""},{"$f":"CONCATENATE(Général!AB$3,Général!AB9)","v":""},{"$f":"CONCATENATE(Général!AC$3,Général!AC9)","v":""},{"$f":"CONCATENATE(Général!AD$3,Général!AD9)","v":""},{"$f":"CONCATENATE(Général!AE$3,Général!AE9)","v":""},{"$f":"CONCATENATE(Général!AF$3,Général!AF9)","v":""},{"$f":"CONCATENATE(Général!AG$3,Général!AG9)","v":""},{"$f":"CONCATENATE(Général!AH$3,Général!AH9)","v":""},{"$f":"CONCATENATE(Général!AI$3,Général!AI9)","v":""},{"$f":"CONCATENATE(Général!AJ$3,Général!AJ9)","v":""},{"$f":"CONCATENATE(Général!AK$3,Général!AK9)","v":""},{"$f":"CONCATENATE(Général!AL$3,Général!AL9)","v":""},{"$f":"CONCATENATE(Général!AM$3,Général!AM9)","v":""},{"$f":"CONCATENATE(Général!AN$3,Général!AN9)","v":""},{"$f":"CONCATENATE(Général!AO$3,Général!AO9)","v":""},{"$f":"CONCATENATE(Général!AP$3,Général!AP9)","v":""},{"$f":"CONCATENATE(Général!AQ$3,Général!AQ9)","v":""},{"$f":"CONCATENATE(Général!AR$3,Général!AR9)","v":""},{"$f":"CONCATENATE(Général!AS$3,Général!AS9)","v":""},{"$f":"CONCATENATE(Général!AT$3,Général!AT9)","v":""},{"$f":"CONCATENATE(Général!AU$3,Général!AU9)","v":""},{"$f":"CONCATENATE(Général!AV$3,Général!AV9)","v":""},{"$f":"CONCATENATE(Général!AW$3,Général!AW9)","v":""},{"$f":"CONCATENATE(Général!AX$3,Général!AX9)","v":""},{"$f":"CONCATENATE(Général!AY$3,Général!AY9)","v":""},{"$f":"CONCATENATE(Général!AZ$3,Général!AZ9)","v":""},{"$f":"CONCATENATE(Général!BA$3,Général!BA9)","v":""},{"$f":"CONCATENATE(Général!BB$3,Général!BB9)","v":""},{"$f":"CONCATENATE(Général!BC$3,Général!BC9)","v":""},{"$f":"CONCATENATE(Général!BD$3,Général!BD9)","v":""},{"$f":"CONCATENATE(Général!BE$3,Général!BE9)","v":""},{"$f":"CONCATENATE(Général!BF$3,Général!BF9)","v":""},{"$f":"CONCATENATE(Général!BG$3,Général!BG9)","v":""},{"$f":"CONCATENATE(Général!BH$3,Général!BH9)","v":""},{"$f":"CONCATENATE(Général!BI$3,Général!BI9)","v":""},{"$f":"CONCATENATE(Général!BJ$3,Général!BJ9)","v":""},{"$f":"CONCATENATE(Général!BK$3,Général!BK9)","v":""},{"$f":"CONCATENATE(Général!BL$3,Général!BL9)","v":""},{"$f":"CONCATENATE(Général!BM$3,Général!BM9)","v":""},{"$f":"CONCATENATE(Général!BN$3,Général!BN9)","v":""},{"$f":"CONCATENATE(Général!BO$3,Général!BO9)","v":""},{"$f":"CONCATENATE(Général!BP$3,Général!BP9)","v":""},{"$f":"CONCATENATE(Général!BQ$3,Général!BQ9)","v":""},{"$f":"CONCATENATE(Général!BR$3,Général!BR9)","v":""},{"$f":"CONCATENATE(Général!BS$3,Général!BS9)","v":""},{"$f":"CONCATENATE(Général!BT$3,Général!BT9)","v":""},{"$f":"CONCATENATE(Général!BU$3,Général!BU9)","v":""},{"$f":"CONCATENATE(Général!BV$3,Général!BV9)","v":""},{"$f":"CONCATENATE(Général!BW$3,Général!BW9)","v":""},{"$f":"CONCATENATE(Général!BX$3,Général!BX9)","v":""},{"$f":"CONCATENATE(Général!BY$3,Général!BY9)","v":""},{"$f":"CONCATENATE(Général!BZ$3,Général!BZ9)","v":""},{"$f":"CONCATENATE(Général!CA$3,Général!CA9)","v":""},{"$f":"CONCATENATE(Général!CB$3,Général!CB9)","v":""},{"$f":"CONCATENATE(Général!CC$3,Général!CC9)","v":""},{"$f":"CONCATENATE(Général!CD$3,Général!CD9)","v":""},{"$f":"CONCATENATE(Général!CE$3,Général!CE9)","v":""},{"$f":"CONCATENATE(Général!CF$3,Général!CF9)","v":""},{"$f":"CONCATENATE(Général!CG$3,Général!CG9)","v":""},{"$f":"CONCATENATE(Général!CH$3,Général!CH9)","v":""},{"$f":"CONCATENATE(Général!CI$3,Général!CI9)","v":""},{"$f":"CONCATENATE(Général!CJ$3,Général!CJ9)","v":""},{"$f":"CONCATENATE(Général!CK$3,Général!CK9)","v":""},{"$f":"CONCATENATE(Général!CL$3,Général!CL9)","v":""},{"$f":"CONCATENATE(Général!CM$3,Général!CM9)","v":""},{"$f":"CONCATENATE(Général!CN$3,Général!CN9)","v":""},{"$f":"CONCATENATE(Général!CO$3,Général!CO9)","v":""},{"$f":"CONCATENATE(Général!CP$3,Général!CP9)","v":""},{"$f":"CONCATENATE(Général!CQ$3,Général!CQ9)","v":""},{"$f":"CONCATENATE(Général!CR$3,Général!CR9)","v":""},{"$f":"CONCATENATE(Général!CS$3,Général!CS9)","v":""},{"$f":"CONCATENATE(Général!CT$3,Général!CT9)","v":""},{"$f":"CONCATENATE(Général!CU$3,Général!CU9)","v":""},{"$f":"CONCATENATE(Général!CV$3,Général!CV9)","v":""},{"$f":"CONCATENATE(Général!CW$3,Général!CW9)","v":""},{"$f":"CONCATENATE(Général!CX$3,Général!CX9)","v":""},null,0,0,0,0,0,34,0,{"$f":"IF(DE7=0,\"\",HLOOKUP(DE7,CY7:DC$40,DD7,FALSE))","v":""},0,0,0,0,0,34,0,{"$f":"IF(DM7=0,\"\",HLOOKUP(DM7,DG7:DK$40,DL7,FALSE))","v":""},0,0,0,0,0,34,0,{"$f":"IF(DU7=0,\"\",HLOOKUP(DU7,DO7:DS$40,DT7,FALSE))","v":""},0,0,0,0,0,34,0,{"$f":"IF(EC7=0,\"\",HLOOKUP(EC7,DW7:EA$40,EB7,FALSE))","v":""},0,0,0,0,0,34,0,{"$f":"IF(EK7=0,\"\",HLOOKUP(EK7,EE7:EI$40,EJ7,FALSE))","v":""},0,0,0,0,0,34,0,{"$f":"IF(ES7=0,\"\",HLOOKUP(ES7,EM7:EQ$40,ER7,FALSE))","v":""},0,0,0,0,0,34,0,{"$f":"IF(FA7=0,\"\",HLOOKUP(FA7,EU7:EY$40,EZ7,FALSE))","v":""},{"$f":"COUNTIF(Général!$C9:$CX9,FC$1)","v":0},{"$f":"COUNTIF(Général!$C9:$CX9,FD$1)","v":0},{"$f":"COUNTIF(Général!$C9:$CX9,FE$1)","v":0},{"$f":"COUNTIF(Général!$C9:$CX9,FF$1)","v":0},{"$f":"COUNTIF(Général!$C9:$CX9,FG$1)","v":0},34,0,{"$f":"IF(FI7<1,\"\",HLOOKUP(FI7,FC7:FG$40,FH7,FALSE))","v":""},5,"Non concerné","1","10","100","1000","10000",2222.1999999999998,"Non concerné"]
["G7",{"$f":"CONCATENATE(Général!C$3,Général!C10)","v":""},{"$f":"CONCATENATE(Général!D$3,Général!D10)","v":""},{"$f":"CONCATENATE(Général!E$3,Général!E10)","v":""},{"$f":"CONCATENATE(Général!F$3,Général!F10)","v":""},{"$f":"CONCATENATE(Général!G$3,Général!G10)","v":""},{"$f":"CONCATENATE(Général!H$3,Général!H10)","v":""},{"$f":"CONCATENATE(Général!I$3,Général!I10)","v":""},{"$f":"CONCATENATE(Général!J$3,Général!J10)","v":""},{"$f":"CONCATENATE(Général!K$3,Général!K10)","v":""},{"$f":"CONCATENATE(Général!L$3,Général!L10)","v":""},{"$f":"CONCATENATE(Général!M$3,Général!M10)","v":""},{"$f":"CONCATENATE(Général!N$3,Général!N10)","v":""},{"$f":"CONCATENATE(Général!O$3,Général!O10)","v":""},{"$f":"CONCATENATE(Général!P$3,Général!P10)","v":""},{"$f":"CONCATENATE(Général!Q$3,Général!Q10)","v":""},{"$f":"CONCATENATE(Général!R$3,Général!R10)","v":""},{"$f":"CONCATENATE(Général!S$3,Général!S10)","v":""},{"$f":"CONCATENATE(Général!T$3,Général!T10)","v":""},{"$f":"CONCATENATE(Général!U$3,Général!U10)","v":""},{"$f":"CONCATENATE(Général!V$3,Général!V10)","v":""},{"$f":"CONCATENATE(Général!W$3,Général!W10)","v":""},{"$f":"CONCATENATE(Général!X$3,Général!X10)","v":""},{"$f":"CONCATENATE(Général!Y$3,Général!Y10)","v":""},{"$f":"CONCATENATE(Général!Z$3,Général!Z10)","v":""},{"$f":"CONCATENATE(Général!AA$3,Général!AA10)","v":""},{"$f":"CONCATENATE(Général!AB$3,Général!AB10)","v":""},{"$f":"CONCATENATE(Général!AC$3,Général!AC10)","v":""},{"$f":"CONCATENATE(Général!AD$3,Général!AD10)","v":""},{"$f":"CONCATENATE(Général!AE$3,Général!AE10)","v":""},{"$f":"CONCATENATE(Général!AF$3,Général!AF10)","v":""},{"$f":"CONCATENATE(Général!AG$3,Général!AG10)","v":""},{"$f":"CONCATENATE(Général!AH$3,Général!AH10)","v":""},{"$f":"CONCATENATE(Général!AI$3,Général!AI10)","v":""},{"$f":"CONCATENATE(Général!AJ$3,Général!AJ10)","v":""},{"$f":"CONCATENATE(Général!AK$3,Général!AK10)","v":""},{"$f":"CONCATENATE(Général!AL$3,Général!AL10)","v":""},{"$f":"CONCATENATE(Général!AM$3,Général!AM10)","v":""},{"$f":"CONCATENATE(Général!AN$3,Général!AN10)","v":""},{"$f":"CONCATENATE(Général!AO$3,Général!AO10)","v":""},{"$f":"CONCATENATE(Général!AP$3,Général!AP10)","v":""},{"$f":"CONCATENATE(Général!AQ$3,Général!AQ10)","v":""},{"$f":"CONCATENATE(Général!AR$3,Général!AR10)","v":""},{"$f":"CONCATENATE(Général!AS$3,Général!AS10)","v":""},{"$f":"CONCATENATE(Général!AT$3,Général!AT10)","v":""},{"$f":"CONCATENATE(Général!AU$3,Général!AU10)","v":""},{"$f":"CONCATENATE(Général!AV$3,Général!AV10)","v":""},{"$f":"CONCATENATE(Général!AW$3,Général!AW10)","v":""},{"$f":"CONCATENATE(Général!AX$3,Général!AX10)","v":""},{"$f":"CONCATENATE(Général!AY$3,Général!AY10)","v":""},{"$f":"CONCATENATE(Général!AZ$3,Général!AZ10)","v":""},{"$f":"CONCATENATE(Général!BA$3,Général!BA10)","v":""},{"$f":"CONCATENATE(Général!BB$3,Général!BB10)","v":""},{"$f":"CONCATENATE(Général!BC$3,Général!BC10)","v":""},{"$f":"CONCATENATE(Général!BD$3,Général!BD10)","v":""},{"$f":"CONCATENATE(Général!BE$3,Général!BE10)","v":""},{"$f":"CONCATENATE(Général!BF$3,Général!BF10)","v":""},{"$f":"CONCATENATE(Général!BG$3,Général!BG10)","v":""},{"$f":"CONCATENATE(Général!BH$3,Général!BH10)","v":""},{"$f":"CONCATENATE(Général!BI$3,Général!BI10)","v":""},{"$f":"CONCATENATE(Général!BJ$3,Général!BJ10)","v":""},{"$f":"CONCATENATE(Général!BK$3,Général!BK10)","v":""},{"$f":"CONCATENATE(Général!BL$3,Général!BL10)","v":""},{"$f":"CONCATENATE(Général!BM$3,Général!BM10)","v":""},{"$f":"CONCATENATE(Général!BN$3,Général!BN10)","v":""},{"$f":"CONCATENATE(Général!BO$3,Général!BO10)","v":""},{"$f":"CONCATENATE(Général!BP$3,Général!BP10)","v":""},{"$f":"CONCATENATE(Général!BQ$3,Général!BQ10)","v":""},{"$f":"CONCATENATE(Général!BR$3,Général!BR10)","v":""},{"$f":"CONCATENATE(Général!BS$3,Général!BS10)","v":""},{"$f":"CONCATENATE(Général!BT$3,Général!BT10)","v":""},{"$f":"CONCATENATE(Général!BU$3,Général!BU10)","v":""},{"$f":"CONCATENATE(Général!BV$3,Général!BV10)","v":""},{"$f":"CONCATENATE(Général!BW$3,Général!BW10)","v":""},{"$f":"CONCATENATE(Général!BX$3,Général!BX10)","v":""},{"$f":"CONCATENATE(Général!BY$3,Général!BY10)","v":""},{"$f":"CONCATENATE(Général!BZ$3,Général!BZ10)","v":""},{"$f":"CONCATENATE(Général!CA$3,Général!CA10)","v":""},{"$f":"CONCATENATE(Général!CB$3,Général!CB10)","v":""},{"$f":"CONCATENATE(Général!CC$3,Général!CC10)","v":""},{"$f":"CONCATENATE(Général!CD$3,Général!CD10)","v":""},{"$f":"CONCATENATE(Général!CE$3,Général!CE10)","v":""},{"$f":"CONCATENATE(Général!CF$3,Général!CF10)","v":""},{"$f":"CONCATENATE(Général!CG$3,Général!CG10)","v":""},{"$f":"CONCATENATE(Général!CH$3,Général!CH10)","v":""},{"$f":"CONCATENATE(Général!CI$3,Général!CI10)","v":""},{"$f":"CONCATENATE(Général!CJ$3,Général!CJ10)","v":""},{"$f":"CONCATENATE(Général!CK$3,Général!CK10)","v":""},{"$f":"CONCATENATE(Général!CL$3,Général!CL10)","v":""},{"$f":"CONCATENATE(Général!CM$3,Général!CM10)","v":""},{"$f":"CONCATENATE(Général!CN$3,Général!CN10)","v":""},{"$f":"CONCATENATE(Général!CO$3,Général!CO10)","v":""},{"$f":"CONCATENATE(Général!CP$3,Général!CP10)","v":""},{"$f":"CONCATENATE(Général!CQ$3,Général!CQ10)","v":""},{"$f":"CONCATENATE(Général!CR$3,Général!CR10)","v":""},{"$f":"CONCATENATE(Général!CS$3,Général!CS10)","v":""},{"$f":"CONCATENATE(Général!CT$3,Général!CT10)","v":""},{"$f":"CONCATENATE(Général!CU$3,Général!CU10)","v":""},{"$f":"CONCATENATE(Général!CV$3,Général!CV10)","v":""},{"$f":"CONCATENATE(Général!CW$3,Général!CW10)","v":""},{"$f":"CONCATENATE(Général!CX$3,Général!CX10)","v":""},null,0,0,0,0,0,33,0,{"$f":"IF(DE8=0,\"\",HLOOKUP(DE8,CY8:DC$40,DD8,FALSE))","v":""},0,0,0,0,0,33,0,{"$f":"IF(DM8=0,\"\",HLOOKUP(DM8,DG8:DK$40,DL8,FALSE))","v":""},0,0,0,0,0,33,0,{"$f":"IF(DU8=0,\"\",HLOOKUP(DU8,DO8:DS$40,DT8,FALSE))","v":""},0,0,0,0,0,33,0,{"$f":"IF(EC8=0,\"\",HLOOKUP(EC8,DW8:EA$40,EB8,FALSE))","v":""},0,0,0,0,0,33,0,{"$f":"IF(EK8=0,\"\",HLOOKUP(EK8,EE8:EI$40,EJ8,FALSE))","v":""},0,0,0,0,0,33,0,{"$f":"IF(ES8=0,\"\",HLOOKUP(ES8,EM8:EQ$40,ER8,FALSE))","v":""},0,0,0,0,0,33,0,{"$f":"IF(FA8=0,\"\",HLOOKUP(FA8,EU8:EY$40,EZ8,FALSE))","v":""},{"$f":"COUNTIF(Général!$C10:$CX10,FC$1)","v":0},{"$f":"COUNTIF(Général!$C10:$CX10,FD$1)","v":0},{"$f":"COUNTIF(Général!$C10:$CX10,FE$1)","v":0},{"$f":"COUNTIF(Général!$C10:$CX10,FF$1)","v":0},{"$f":"COUNTIF(Général!$C10:$CX10,FG$1)","v":0},33,0,{"$f":"IF(FI8<1,\"\",HLOOKUP(FI8,FC8:FG$40,FH8,FALSE))","v":""},5,"Non concerné","1","10","100","1000","10000",2222.1999999999998,"Non concerné"]
["G8",{"$f":"CONCATENATE(Général!C$3,Général!C11)","v":""},{"$f":"CONCATENATE(Général!D$3,Général!D11)","v":""},{"$f":"CONCATENATE(Général!E$3,Général!E11)","v":""},{"$f":"CONCATENATE(Général!F$3,Général!F11)","v":""},{"$f":"CONCATENATE(Général!G$3,Général!G11)","v":""},{"$f":"CONCATENATE(Général!H$3,Général!H11)","v":""},{"$f":"CONCATENATE(Général!I$3,Général!I11)","v":""},{"$f":"CONCATENATE(Général!J$3,Général!J11)","v":""},{"$f":"CONCATENATE(Général!K$3,Général!K11)","v":""},{"$f":"CONCATENATE(Général!L$3,Général!L11)","v":""},{"$f":"CONCATENATE(Général!M$3,Général!M11)","v":""},{"$f":"CONCATENATE(Général!N$3,Général!N11)","v":""},{"$f":"CONCATENATE(Général!O$3,Général!O11)","v":""},{"$f":"CONCATENATE(Général!P$3,Général!P11)","v":""},{"$f":"CONCATENATE(Général!Q$3,Général!Q11)","v":""},{"$f":"CONCATENATE(Général!R$3,Général!R11)","v":""},{"$f":"CONCATENATE(Général!S$3,Général!S11)","v":""},{"$f":"CONCATENATE(Général!T$3,Général!T11)","v":""},{"$f":"CONCATENATE(Général!U$3,Général!U11)","v":""},{"$f":"CONCATENATE(Général!V$3,Général!V11)","v":""},{"$f":"CONCATENATE(Général!W$3,Général!W11)","v":""},{"$f":"CONCATENATE(Général!X$3,Général!X11)","v":""},{"$f":"CONCATENATE(Général!Y$3,Général!Y11)","v":""},{"$f":"CONCATENATE(Général!Z$3,Général!Z11)","v":""},{"$f":"CONCATENATE(Général!AA$3,Général!AA11)","v":""},{"$f":"CONCATENATE(Général!AB$3,Général!AB11)","v":""},{"$f":"CONCATENATE(Général!AC$3,Général!AC11)","v":""},{"$f":"CONCATENATE(Général!AD$3,Général!AD11)","v":""},{"$f":"CONCATENATE(Général!AE$3,Général!AE11)","v":""},{"$f":"CONCATENATE(Général!AF$3,Général!AF11)","v":""},{"$f":"CONCATENATE(Général!AG$3,Général!AG11)","v":""},{"$f":"CONCATENATE(Général!AH$3,Général!AH11)","v":""},{"$f":"CONCATENATE(Général!AI$3,Général!AI11)","v":""},{"$f":"CONCATENATE(Général!AJ$3,Général!AJ11)","v":""},{"$f":"CONCATENATE(Général!AK$3,Général!AK11)","v":""},{"$f":"CONCATENATE(Général!AL$3,Général!AL11)","v":""},{"$f":"CONCATENATE(Général!AM$3,Général!AM11)","v":""},{"$f":"CONCATENATE(Général!AN$3,Général!AN11)","v":""},{"$f":"CONCATENATE(Général!AO$3,Général!AO11)","v":""},{"$f":"CONCATENATE(Général!AP$3,Général!AP11)","v":""},{"$f":"CONCATENATE(Général!AQ$3,Général!AQ11)","v":""},{"$f":"CONCATENATE(Général!AR$3,Général!AR11)","v":""},{"$f":"CONCATENATE(Général!AS$3,Général!AS11)","v":""},{"$f":"CONCATENATE(Général!AT$3,Général!AT11)","v":""},{"$f":"CONCATENATE(Général!AU$3,Général!AU11)","v":""},{"$f":"CONCATENATE(Général!AV$3,Général!AV11)","v":""},{"$f":"CONCATENATE(Général!AW$3,Général!AW11)","v":""},{"$f":"CONCATENATE(Général!AX$3,Général!AX11)","v":""},{"$f":"CONCATENATE(Général!AY$3,Général!AY11)","v":""},{"$f":"CONCATENATE(Général!AZ$3,Général!AZ11)","v":""},{"$f":"CONCATENATE(Général!BA$3,Général!BA11)","v":""},{"$f":"CONCATENATE(Général!BB$3,Général!BB11)","v":""},{"$f":"CONCATENATE(Général!BC$3,Général!BC11)","v":""},{"$f":"CONCATENATE(Général!BD$3,Général!BD11)","v":""},{"$f":"CONCATENATE(Général!BE$3,Général!BE11)","v":""},{"$f":"CONCATENATE(Général!BF$3,Général!BF11)","v":""},{"$f":"CONCATENATE(Général!BG$3,Général!BG11)","v":""},{"$f":"CONCATENATE(Général!BH$3,Général!BH11)","v":""},{"$f":"CONCATENATE(Général!BI$3,Général!BI11)","v":""},{"$f":"CONCATENATE(Général!BJ$3,Général!BJ11)","v":""},{"$f":"CONCATENATE(Général!BK$3,Général!BK11)","v":""},{"$f":"CONCATENATE(Général!BL$3,Général!BL11)","v":""},{"$f":"CONCATENATE(Général!BM$3,Général!BM11)","v":""},{"$f":"CONCATENATE(Général!BN$3,Général!BN11)","v":""},{"$f":"CONCATENATE(Général!BO$3,Général!BO11)","v":""},{"$f":"CONCATENATE(Général!BP$3,Général!BP11)","v":""},{"$f":"CONCATENATE(Général!BQ$3,Général!BQ11)","v":""},{"$f":"CONCATENATE(Général!BR$3,Général!BR11)","v":""},{"$f":"CONCATENATE(Général!BS$3,Général!BS11)","v":""},{"$f":"CONCATENATE(Général!BT$3,Général!BT11)","v":""},{"$f":"CONCATENATE(Général!BU$3,Général!BU11)","v":""},{"$f":"CONCATENATE(Général!BV$3,Général!BV11)","v":""},{"$f":"CONCATENATE(Général!BW$3,Général!BW11)","v":""},{"$f":"CONCATENATE(Général!BX$3,Général!BX11)","v":""},{"$f":"CONCATENATE(Général!BY$3,Général!BY11)","v":""},{"$f":"CONCATENATE(Général!BZ$3,Général!BZ11)","v":""},{"$f":"CONCATENATE(Général!CA$3,Général!CA11)","v":""},{"$f":"CONCATENATE(Général!CB$3,Général!CB11)","v":""},{"$f":"CONCATENATE(Général!CC$3,Général!CC11)","v":""},{"$f":"CONCATENATE(Général!CD$3,Général!CD11)","v":""},{"$f":"CONCATENATE(Général!CE$3,Général!CE11)","v":""},{"$f":"CONCATENATE(Général!CF$3,Général!CF11)","v":""},{"$f":"CONCATENATE(Général!CG$3,Général!CG11)","v":""},{"$f":"CONCATENATE(Général!CH$3,Général!CH11)","v":""},{"$f":"CONCATENATE(Général!CI$3,Général!CI11)","v":""},{"$f":"CONCATENATE(Général!CJ$3,Général!CJ11)","v":""},{"$f":"CONCATENATE(Général!CK$3,Général!CK11)","v":""},{"$f":"CONCATENATE(Général!CL$3,Général!CL11)","v":""},{"$f":"CONCATENATE(Général!CM$3,Général!CM11)","v":""},{"$f":"CONCATENATE(Général!CN$3,Général!CN11)","v":""},{"$f":"CONCATENATE(Général!CO$3,Général!CO11)","v":""},{"$f":"CONCATENATE(Général!CP$3,Général!CP11)","v":""},{"$f":"CONCATENATE(Général!CQ$3,Général!CQ11)","v":""},{"$f":"CONCATENATE(Général!CR$3,Général!CR11)","v":""},{"$f":"CONCATENATE(Général!CS$3,Général!CS11)","v":""},{"$f":"CONCATENATE(Général!CT$3,Général!CT11)","v":""},{"$f":"CONCATENATE(Général!CU$3,Général!CU11)","v":""},{"$f":"CONCATENATE(Général!CV$3,Général!CV11)","v":""},{"$f":"CONCATENATE(Général!CW$3,Général!CW11)","v":""},{"$f":"CONCATENATE(Général!CX$3,Général!CX11)","v":""},null,0,0,0,0,0,32,0,{"$f":"IF(DE9=0,\"\",HLOOKUP(DE9,CY9:DC$40,DD9,FALSE))","v":""},0,0,0,0,0,32,0,{"$f":"IF(DM9=0,\"\",HLOOKUP(DM9,DG9:DK$40,DL9,FALSE))","v":""},0,0,0,0,0,32,0,{"$f":"IF(DU9=0,\"\",HLOOKUP(DU9,DO9:DS$40,DT9,FALSE))","v":""},0,0,0,0,0,32,0,{"$f":"IF(EC9=0,\"\",HLOOKUP(EC9,DW9:EA$40,EB9,FALSE))","v":""},0,0,0,0,0,32,0,{"$f":"IF(EK9=0,\"\",HLOOKUP(EK9,EE9:EI$40,EJ9,FALSE))","v":""},0,0,0,0,0,32,0,{"$f":"IF(ES9=0,\"\",HLOOKUP(ES9,EM9:EQ$40,ER9,FALSE))","v":""},0,0,0,0,0,32,0,{"$f":"IF(FA9=0,\"\",HLOOKUP(FA9,EU9:EY$40,EZ9,FALSE))","v":""},{"$f":"COUNTIF(Général!$C11:$CX11,FC$1)","v":0},{"$f":"COUNTIF(Général!$C11:$CX11,FD$1)","v":0},{"$f":"COUNTIF(Général!$C11:$CX11,FE$1)","v":0},{"$f":"COUNTIF(Général!$C11:$CX11,FF$1)","v":0},{"$f":"COUNTIF(Général!$C11:$CX11,FG$1)","v":0},32,0,{"$f":"IF(FI9<1,\"\",HLOOKUP(FI9,FC9:FG$40,FH9,FALSE))","v":""},5,"Non concerné","1","10","100","1000","10000",2222.1999999999998,"Non concerné"]
["G9",{"$f":"CONCATENATE(Général!C$3,Général!C12)","v":""},{"$f":"CONCATENATE(Général!D$3,Général!D12)","v":""},{"$f":"CONCATENATE(Général!E$3,Général!E12)","v":""},{"$f":"CONCATENATE(Général!F$3,Général!F12)","v":""},{"$f":"CONCATENATE(Général!G$3,Général!G12)","v":""},{"$f":"CONCATENATE(Général!H$3,Général!H12)","v":""},{"$f":"CONCATENATE(Général!I$3,Général!I12)","v":""},{"$f":"CONCATENATE(Général!J$3,Général!J12)","v":""},{"$f":"CONCATENATE(Général!K$3,Général!K12)","v":""},{"$f":"CONCATENATE(Général!L$3,Général!L12)","v":""},{"$f":"CONCATENATE(Général!M$3,Général!M12)","v":""},{"$f":"CONCATENATE(Général!N$3,Général!N12)","v":""},{"$f":"CONCATENATE(Général!O$3,Général!O12)","v":""},{"$f":"CONCATENATE(Général!P$3,Général!P12)","v":""},{"$f":"CONCATENATE(Général!Q$3,Général!Q12)","v":""},{"$f":"CONCATENATE(Général!R$3,Général!R12)","v":""},{"$f":"CONCATENATE(Général!S$3,Général!S12)","v":""},{"$f":"CONCATENATE(Général!T$3,Général!T12)","v":""},{"$f":"CONCATENATE(Général!U$3,Général!U12)","v":""},{"$f":"CONCATENATE(Général!V$3,Général!V12)","v":""},{"$f":"CONCATENATE(Général!W$3,Général!W12)","v":""},{"$f":"CONCATENATE(Général!X$3,Général!X12)","v":""},{"$f":"CONCATENATE(Général!Y$3,Général!Y12)","v":""},{"$f":"CONCATENATE(Général!Z$3,Général!Z12)","v":""},{"$f":"CONCATENATE(Général!AA$3,Général!AA12)","v":""},{"$f":"CONCATENATE(Général!AB$3,Général!AB12)","v":""},{"$f":"CONCATENATE(Général!AC$3,Général!AC12)","v":""},{"$f":"CONCATENATE(Général!AD$3,Général!AD12)","v":""},{"$f":"CONCATENATE(Général!AE$3,Général!AE12)","v":""},{"$f":"CONCATENATE(Général!AF$3,Général!AF12)","v":""},{"$f":"CONCATENATE(Général!AG$3,Général!AG12)","v":""},{"$f":"CONCATENATE(Général!AH$3,Général!AH12)","v":""},{"$f":"CONCATENATE(Général!AI$3,Général!AI12)","v":""},{"$f":"CONCATENATE(Général!AJ$3,Général!AJ12)","v":""},{"$f":"CONCATENATE(Général!AK$3,Général!AK12)","v":""},{"$f":"CONCATENATE(Général!AL$3,Général!AL12)","v":""},{"$f":"CONCATENATE(Général!AM$3,Général!AM12)","v":""},{"$f":"CONCATENATE(Général!AN$3,Général!AN12)","v":""},{"$f":"CONCATENATE(Général!AO$3,Général!AO12)","v":""},{"$f":"CONCATENATE(Général!AP$3,Général!AP12)","v":""},{"$f":"CONCATENATE(Général!AQ$3,Général!AQ12)","v":""},{"$f":"CONCATENATE(Général!AR$3,Général!AR12)","v":""},{"$f":"CONCATENATE(Général!AS$3,Général!AS12)","v":""},{"$f":"CONCATENATE(Général!AT$3,Général!AT12)","v":""},{"$f":"CONCATENATE(Général!AU$3,Général!AU12)","v":""},{"$f":"CONCATENATE(Général!AV$3,Général!AV12)","v":""},{"$f":"CONCATENATE(Général!AW$3,Général!AW12)","v":""},{"$f":"CONCATENATE(Général!AX$3,Général!AX12)","v":""},{"$f":"CONCATENATE(Général!AY$3,Général!AY12)","v":""},{"$f":"CONCATENATE(Général!AZ$3,Général!AZ12)","v":""},{"$f":"CONCATENATE(Général!BA$3,Général!BA12)","v":""},{"$f":"CONCATENATE(Général!BB$3,Général!BB12)","v":""},{"$f":"CONCATENATE(Général!BC$3,Général!BC12)","v":""},{"$f":"CONCATENATE(Général!BD$3,Général!BD12)","v":""},{"$f":"CONCATENATE(Général!BE$3,Général!BE12)","v":""},{"$f":"CONCATENATE(Général!BF$3,Général!BF12)","v":""},{"$f":"CONCATENATE(Général!BG$3,Général!BG12)","v":""},{"$f":"CONCATENATE(Général!BH$3,Général!BH12)","v":""},{"$f":"CONCATENATE(Général!BI$3,Général!BI12)","v":""},{"$f":"CONCATENATE(Général!BJ$3,Général!BJ12)","v":""},{"$f":"CONCATENATE(Général!BK$3,Général!BK12)","v":""},{"$f":"CONCATENATE(Général!BL$3,Général!BL12)","v":""},{"$f":"CONCATENATE(Général!BM$3,Général!BM12)","v":""},{"$f":"CONCATENATE(Général!BN$3,Général!BN12)","v":""},{"$f":"CONCATENATE(Général!BO$3,Général!BO12)","v":""},{"$f":"CONCATENATE(Général!BP$3,Général!BP12)","v":""},{"$f":"CONCATENATE(Général!BQ$3,Général!BQ12)","v":""},{"$f":"CONCATENATE(Général!BR$3,Général!BR12)","v":""},{"$f":"CONCATENATE(Général!BS$3,Général!BS12)","v":""},{"$f":"CONCATENATE(Général!BT$3,Général!BT12)","v":""},{"$f":"CONCATENATE(Général!BU$3,Général!BU12)","v":""},{"$f":"CONCATENATE(Général!BV$3,Général!BV12)","v":""},{"$f":"CONCATENATE(Général!BW$3,Général!BW12)","v":""},{"$f":"CONCATENATE(Général!BX$3,Général!BX12)","v":""},{"$f":"CONCATENATE(Général!BY$3,Général!BY12)","v":""},{"$f":"CONCATENATE(Général!BZ$3,Général!BZ12)","v":""},{"$f":"CONCATENATE(Général!CA$3,Général!CA12)","v":""},{"$f":"CONCATENATE(Général!CB$3,Général!CB12)","v":""},{"$f":"CONCATENATE(Général!CC$3,Général!CC12)","v":""},{"$f":"CONCATENATE(Général!CD$3,Général!CD12)","v":""},{"$f":"CONCATENATE(Général!CE$3,Général!CE12)","v":""},{"$f":"CONCATENATE(Général!CF$3,Général!CF12)","v":""},{"$f":"CONCATENATE(Général!CG$3,Général!CG12)","v":""},{"$f":"CONCATENATE(Général!CH$3,Général!CH12)","v":""},{"$f":"CONCATENATE(Général!CI$3,Général!CI12)","v":""},{"$f":"CONCATENATE(Général!CJ$3,Général!CJ12)","v":""},{"$f":"CONCATENATE(Général!CK$3,Général!CK12)","v":""},{"$f":"CONCATENATE(Général!CL$3,Général!CL12)","v":""},{"$f":"CONCATENATE(Général!CM$3,Général!CM12)","v":""},{"$f":"CONCATENATE(Général!CN$3,Général!CN12)","v":""},{"$f":"CONCATENATE(Général!CO$3,Général!CO12)","v":""},{"$f":"CONCATENATE(Général!CP$3,Général!CP12)","v":""},{"$f":"CONCATENATE(Général!CQ$3,Général!CQ12)","v":""},{"$f":"CONCATENATE(Général!CR$3,Général!CR12)","v":""},{"$f":"CONCATENATE(Général!CS$3,Général!CS12)","v":""},{"$f":"CONCATENATE(Général!CT$3,Général!CT12)","v":""},{"$f":"CONCATENATE(Général!CU$3,Général!CU12)","v":""},{"$f":"CONCATENATE(Général!CV$3,Général!CV12)","v":""},{"$f":"CONCATENATE(Général!CW$3,Général!CW12)","v":""},{"$f":"CONCATENATE(Général!CX$3,Général!CX12)","v":""},null,0,0,0,0,0,31,0,{"$f":"IF(DE10=0,\"\",HLOOKUP(DE10,CY10:DC$40,DD10,FALSE))","v":""},0,0,0,0,0,31,0,{"$f":"IF(DM10=0,\"\",HLOOKUP(DM10,DG10:DK$40,DL10,FALSE))","v":""},0,0,0,0,0,31,0,{"$f":"IF(DU10=0,\"\",HLOOKUP(DU10,DO10:DS$40,DT10,FALSE))","v":""},0,0,0,0,0,31,0,{"$f":"IF(EC10=0,\"\",HLOOKUP(EC10,DW10:EA$40,EB10,FALSE))","v":""},0,0,0,0,0,31,0,{"$f":"IF(EK10=0,\"\",HLOOKUP(EK10,EE10:EI$40,EJ10,FALSE))","v":""},0,0,0,0,0,31,0,{"$f":"IF(ES10=0,\"\",HLOOKUP(ES10,EM10:EQ$40,ER10,FALSE))","v":""},0,0,0,0,0,31,0,{"$f":"IF(FA10=0,\"\",HLOOKUP(FA10,EU10:EY$40,EZ10,FALSE))","v":""},{"$f":"COUNTIF(Général!$C12:$CX12,FC$1)","v":0},{"$f":"COUNTIF(Général!$C12:$CX12,FD$1)","v":0},{"$f":"COUNTIF(Général!$C12:$CX12,FE$1)","v":0},{"$f":"COUNTIF(Général!$C12:$CX12,FF$1)","v":0},{"$f":"COUNTIF(Général!$C12:$CX12,FG$1)","v":0},31,0,{"$f":"IF(FI10<1,\"\",HLOOKUP(FI10,FC10:FG$40,FH10,FALSE))","v":""},5,"Non concerné","1","10","100","1000","10000",2222.1999999999998,"Non concerné"]
["G10",{"$f":"CONCATENATE(Général!C$3,Général!C13)","v":""},{"$f":"CONCATENATE(Général!D$3,Général!D13)","v":""},{"$f":"CONCATENATE(Général!E$3,Général!E13)","v":""},{"$f":"CONCATENATE(Général!F$3,Général!F13)","v":""},{"$f":"CONCATENATE(Général!G$3,Général!G13)","v":""},{"$f":"CONCATENATE(Général!H$3,Général!H13)","v":""},{"$f":"CONCATENATE(Général!I$3,Général!I13)","v":""},{"$f":"CONCATENATE(Général!J$3,Général!J13)","v":""},{"$f":"CONCATENATE(Général!K$3,Général!K13)","v":""},{"$f":"CONCATENATE(Général!L$3,Général!L13)","v":""},{"$f":"CONCATENATE(Général!M$3,Général!M13)","v":""},{"$f":"CONCATENATE(Général!N$3,Général!N13)","v":""},{"$f":"CONCATENATE(Général!O$3,Général!O13)","v":""},{"$f":"CONCATENATE(Général!P$3,Général!P13)","v":""},{"$f":"CONCATENATE(Général!Q$3,Général!Q13)","v":""},{"$f":"CONCATENATE(Général!R$3,Général!R13)","v":""},{"$f":"CONCATENATE(Général!S$3,Général!S13)","v":""},{"$f":"CONCATENATE(Général!T$3,Général!T13)","v":""},{"$f":"CONCATENATE(Général!U$3,Général!U13)","v":""},{"$f":"CONCATENATE(Général!V$3,Général!V13)","v":""},{"$f":"CONCATENATE(Général!W$3,Général!W13)","v":""},{"$f":"CONCATENATE(Général!X$3,Général!X13)","v":""},{"$f":"CONCATENATE(Général!Y$3,Général!Y13)","v":""},{"$f":"CONCATENATE(Général!Z$3,Général!Z13)","v":""},{"$f":"CONCATENATE(Général!AA$3,Général!AA13)","v":""},{"$f":"CONCATENATE(Général!AB$3,Général!AB13)","v":""},{"$f":"CONCATENATE(Général!AC$3,Général!AC13)","v":""},{"$f":"CONCATENATE(Général!AD$3,Général!AD13)","v":""},{"$f":"CONCATENATE(Général!AE$3,Général!AE13)","v":""},{"$f":"CONCATENATE(Général!AF$3,Général!AF13)","v":""},{"$f":"CONCATENATE(Général!AG$3,Général!AG13)","v":""},{"$f":"CONCATENATE(Général!AH$3,Général!AH13)","v":""},{"$f":"CONCATENATE(Général!AI$3,Général!AI13)","v":""},{"$f":"CONCATENATE(Général!AJ$3,Général!AJ13)","v":""},{"$f":"CONCATENATE(Général!AK$3,Général!AK13)","v":""},{"$f":"CONCATENATE(Général!AL$3,Général!AL13)","v":""},{"$f":"CONCATENATE(Général!AM$3,Général!AM13)","v":""},{"$f":"CONCATENATE(Général!AN$3,Général!AN13)","v":""},{"$f":"CONCATENATE(Général!AO$3,Général!AO13)","v":""},{"$f":"CONCATENATE(Général!AP$3,Général!AP13)","v":""},{"$f":"CONCATENATE(Général!AQ$3,Général!AQ13)","v":""},{"$f":"CONCATENATE(Général!AR$3,Général!AR13)","v":""},{"$f":"CONCATENATE(Général!AS$3,Général!AS13)","v":""},{"$f":"CONCATENATE(Général!AT$3,Général!AT13)","v":""},{"$f":"CONCATENATE(Général!AU$3,Général!AU13)","v":""},{"$f":"CONCATENATE(Général!AV$3,Général!AV13)","v":""},{"$f":"CONCATENATE(Général!AW$3,Général!AW13)","v":""},{"$f":"CONCATENATE(Général!AX$3,Général!AX13)","v":""},{"$f":"CONCATENATE(Général!AY$3,Général!AY13)","v":""},{"$f":"CONCATENATE(Général!AZ$3,Général!AZ13)","v":""},{"$f":"CONCATENATE(Général!BA$3,Général!BA13)","v":""},{"$f":"CONCATENATE(Général!BB$3,Général!BB13)","v":""},{"$f":"CONCATENATE(Général!BC$3,Général!BC13)","v":""},{"$f":"CONCATENATE(Général!BD$3,Général!BD13)","v":""},{"$f":"CONCATENATE(Général!BE$3,Général!BE13)","v":""},{"$f":"CONCATENATE(Général!BF$3,Général!BF13)","v":""},{"$f":"CONCATENATE(Général!BG$3,Général!BG13)","v":""},{"$f":"CONCATENATE(Général!BH$3,Général!BH13)","v":""},{"$f":"CONCATENATE(Général!BI$3,Général!BI13)","v":""},{"$f":"CONCATENATE(Général!BJ$3,Général!BJ13)","v":""},{"$f":"CONCATENATE(Général!BK$3,Général!BK13)","v":""},{"$f":"CONCATENATE(Général!BL$3,Général!BL13)","v":""},{"$f":"CONCATENATE(Général!BM$3,Général!BM13)","v":""},{"$f":"CONCATENATE(Général!BN$3,Général!BN13)","v":""},{"$f":"CONCATENATE(Général!BO$3,Général!BO13)","v":""},{"$f":"CONCATENATE(Général!BP$3,Général!BP13)","v":""},{"$f":"CONCATENATE(Général!BQ$3,Général!BQ13)","v":""},{"$f":"CONCATENATE(Général!BR$3,Général!BR13)","v":""},{"$f":"CONCATENATE(Général!BS$3,Général!BS13)","v":""},{"$f":"CONCATENATE(Général!BT$3,Général!BT13)","v":""},{"$f":"CONCATENATE(Général!BU$3,Général!BU13)","v":""},{"$f":"CONCATENATE(Général!BV$3,Général!BV13)","v":""},{"$f":"CONCATENATE(Général!BW$3,Général!BW13)","v":""},{"$f":"CONCATENATE(Général!BX$3,Général!BX13)","v":""},{"$f":"CONCATENATE(Général!BY$3,Général!BY13)","v":""},{"$f":"CONCATENATE(Général!BZ$3,Général!BZ13)","v":""},{"$f":"CONCATENATE(Général!CA$3,Général!CA13)","v":""},{"$f":"CONCATENATE(Général!CB$3,Général!CB13)","v":""},{"$f":"CONCATENATE(Général!CC$3,Général!CC13)","v":""},{"$f":"CONCATENATE(Général!CD$3,Général!CD13)","v":""},{"$f":"CONCATENATE(Général!CE$3,Général!CE13)","v":""},{"$f":"CONCATENATE(Général!CF$3,Général!CF13)","v":""},{"$f":"CONCATENATE(Général!CG$3,Général!CG13)","v":""},{"$f":"CONCATENATE(Général!CH$3,Général!CH13)","v":""},{"$f":"CONCATENATE(Général!CI$3,Général!CI13)","v":""},{"$f":"CONCATENATE(Général!CJ$3,Général!CJ13)","v":""},{"$f":"CONCATENATE(Général!CK$3,Général!CK13)","v":""},{"$f":"CONCATENATE(Général!CL$3,Général!CL13)","v":""},{"$f":"CONCATENATE(Général!CM$3,Général!CM13)","v":""},{"$f":"CONCATENATE(Général!CN$3,Général!CN13)","v":""},{"$f":"CONCATENATE(Général!CO$3,Général!CO13)","v":""},{"$f":"CONCATENATE(Général!CP$3,Général!CP13)","v":""},{"$f":"CONCATENATE(Général!CQ$3,Général!CQ13)","v":""},{"$f":"CONCATENATE(Général!CR$3,Général!CR13)","v":""},{"$f":"CONCATENATE(Général!CS$3,Général!CS13)","v":""},{"$f":"CONCATENATE(Général!CT$3,Général!CT13)","v":""},{"$f":"CONCATENATE(Général!CU$3,Général!CU13)","v":""},{"$f":"CONCATENATE(Général!CV$3,Général!CV13)","v":""},{"$f":"CONCATENATE(Général!CW$3,Général!CW13)","v":""},{"$f":"CONCATENATE(Général!CX$3,Général!CX13)","v":""},null,0,0,0,0,0,30,0,{"$f":"IF(DE11=0,\"\",HLOOKUP(DE11,CY11:DC$40,DD11,FALSE))","v":""},0,0,0,0,0,30,0,{"$f":"IF(DM11=0,\"\",HLOOKUP(DM11,DG11:DK$40,DL11,FALSE))","v":""},0,0,0,0,0,30,0,{"$f":"IF(DU11=0,\"\",HLOOKUP(DU11,DO11:DS$40,DT11,FALSE))","v":""},0,0,0,0,0,30,0,{"$f":"IF(EC11=0,\"\",HLOOKUP(EC11,DW11:EA$40,EB11,FALSE))","v":""},0,0,0,0,0,30,0,{"$f":"IF(EK11=0,\"\",HLOOKUP(EK11,EE11:EI$40,EJ11,FALSE))","v":""},0,0,0,0,0,30,0,{"$f":"IF(ES11=0,\"\",HLOOKUP(ES11,EM11:EQ$40,ER11,FALSE))","v":""},0,0,0,0,0,30,0,{"$f":"IF(FA11=0,\"\",HLOOKUP(FA11,EU11:EY$40,EZ11,FALSE))","v":""},{"$f":"COUNTIF(Général!$C13:$CX13,FC$1)","v":0},{"$f":"COUNTIF(Général!$C13:$CX13,FD$1)","v":0},{"$f":"COUNTIF(Général!$C13:$CX13,FE$1)","v":0},{"$f":"COUNTIF(Général!$C13:$CX13,FF$1)","v":0},{"$f":"COUNTIF(Général!$C13:$CX13,FG$1)","v":0},30,0,{"$f":"IF(FI11<1,\"\",HLOOKUP(FI11,FC11:FG$40,FH11,FALSE))","v":""},5,"Non concerné","1","10","100","1000","10000",2222.1999999999998,"Non concerné"]
["G11",{"$f":"CONCATENATE(Général!C$3,Général!C14)","v":""},{"$f":"CONCATENATE(Général!D$3,Général!D14)","v":""},{"$f":"CONCATENATE(Général!E$3,Général!E14)","v":""},{"$f":"CONCATENATE(Général!F$3,Général!F14)","v":""},{"$f":"CONCATENATE(Général!G$3,Général!G14)","v":""},{"$f":"CONCATENATE(Général!H$3,Général!H14)","v":""},{"$f":"CONCATENATE(Général!I$3,Général!I14)","v":""},{"$f":"CONCATENATE(Général!J$3,Général!J14)","v":""},{"$f":"CONCATENATE(Général!K$3,Général!K14)","v":""},{"$f":"CONCATENATE(Général!L$3,Général!L14)","v":""},{"$f":"CONCATENATE(Général!M$3,Général!M14)","v":""},{"$f":"CONCATENATE(Général!N$3,Général!N14)","v":""},{"$f":"CONCATENATE(Général!O$3,Général!O14)","v":""},{"$f":"CONCATENATE(Général!P$3,Général!P14)","v":""},{"$f":"CONCATENATE(Général!Q$3,Général!Q14)","v":""},{"$f":"CONCATENATE(Général!R$3,Général!R14)","v":""},{"$f":"CONCATENATE(Général!S$3,Général!S14)","v":""},{"$f":"CONCATENATE(Général!T$3,Général!T14)","v":""},{"$f":"CONCATENATE(Général!U$3,Général!U14)","v":""},{"$f":"CONCATENATE(Général!V$3,Général!V14)","v":""},{"$f":"CONCATENATE(Général!W$3,Général!W14)","v":""},{"$f":"CONCATENATE(Général!X$3,Général!X14)","v":""},{"$f":"CONCATENATE(Général!Y$3,Général!Y14)","v":""},{"$f":"CONCATENATE(Général!Z$3,Général!Z14)","v":""},{"$f":"CONCATENATE(Général!AA$3,Général!AA14)","v":""},{"$f":"CONCATENATE(Général!AB$3,Général!AB14)","v":""},{"$f":"CONCATENATE(Général!AC$3,Général!AC14)","v":""},{"$f":"CONCATENATE(Général!AD$3,Général!AD14)","v":""},{"$f":"CONCATENATE(Général!AE$3,Général!AE14)","v":""},{"$f":"CONCATENATE(Général!AF$3,Général!AF14)","v":""},{"$f":"CONCATENATE(Général!AG$3,Général!AG14)","v":""},{"$f":"CONCATENATE(Général!AH$3,Général!AH14)","v":""},{"$f":"CONCATENATE(Général!AI$3,Général!AI14)","v":""},{"$f":"CONCATENATE(Général!AJ$3,Général!AJ14)","v":""},{"$f":"CONCATENATE(Général!AK$3,Général!AK14)","v":""},{"$f":"CONCATENATE(Général!AL$3,Général!AL14)","v":""},{"$f":"CONCATENATE(Général!AM$3,Général!AM14)","v":""},{"$f":"CONCATENATE(Général!AN$3,Général!AN14)","v":""},{"$f":"CONCATENATE(Général!AO$3,Général!AO14)","v":""},{"$f":"CONCATENATE(Général!AP$3,Général!AP14)","v":""},{"$f":"CONCATENATE(Général!AQ$3,Général!AQ14)","v":""},{"$f":"CONCATENATE(Général!AR$3,Général!AR14)","v":""},{"$f":"CONCATENATE(Général!AS$3,Général!AS14)","v":""},{"$f":"CONCATENATE(Général!AT$3,Général!AT14)","v":""},{"$f":"CONCATENATE(Général!AU$3,Général!AU14)","v":""},{"$f":"CONCATENATE(Général!AV$3,Général!AV14)","v":""},{"$f":"CONCATENATE(Général!AW$3,Général!AW14)","v":""},{"$f":"CONCATENATE(Général!AX$3,Général!AX14)","v":""},{"$f":"CONCATENATE(Général!AY$3,Général!AY14)","v":""},{"$f":"CONCATENATE(Général!AZ$3,Général!AZ14)","v":""},{"$f":"CONCATENATE(Général!BA$3,Général!BA14)","v":""},{"$f":"CONCATENATE(Général!BB$3,Général!BB14)","v":""},{"$f":"CONCATENATE(Général!BC$3,Général!BC14)","v":""},{"$f":"CONCATENATE(Général!BD$3,Général!BD14)","v":""},{"$f":"CONCATENATE(Général!BE$3,Général!BE14)","v":""},{"$f":"CONCATENATE(Général!BF$3,Général!BF14)","v":""},{"$f":"CONCATENATE(Général!BG$3,Général!BG14)","v":""},{"$f":"CONCATENATE(Général!BH$3,Général!BH14)","v":""},{"$f":"CONCATENATE(Général!BI$3,Général!BI14)","v":""},{"$f":"CONCATENATE(Général!BJ$3,Général!BJ14)","v":""},{"$f":"CONCATENATE(Général!BK$3,Général!BK14)","v":""},{"$f":"CONCATENATE(Général!BL$3,Général!BL14)","v":""},{"$f":"CONCATENATE(Général!BM$3,Général!BM14)","v":""},{"$f":"CONCATENATE(Général!BN$3,Général!BN14)","v":""},{"$f":"CONCATENATE(Général!BO$3,Général!BO14)","v":""},{"$f":"CONCATENATE(Général!BP$3,Général!BP14)","v":""},{"$f":"CONCATENATE(Général!BQ$3,Général!BQ14)","v":""},{"$f":"CONCATENATE(Général!BR$3,Général!BR14)","v":""},{"$f":"CONCATENATE(Général!BS$3,Général!BS14)","v":""},{"$f":"CONCATENATE(Général!BT$3,Général!BT14)","v":""},{"$f":"CONCATENATE(Général!BU$3,Général!BU14)","v":""},{"$f":"CONCATENATE(Général!BV$3,Général!BV14)","v":""},{"$f":"CONCATENATE(Général!BW$3,Général!BW14)","v":""},{"$f":"CONCATENATE(Général!BX$3,Général!BX14)","v":""},{"$f":"CONCATENATE(Général!BY$3,Général!BY14)","v":""},{"$f":"CONCATENATE(Général!BZ$3,Général!BZ14)","v":""},{"$f":"CONCATENATE(Général!CA$3,Général!CA14)","v":""},{"$f":"CONCATENATE(Général!CB$3,Général!CB14)","v":""},{"$f":"CONCATENATE(Général!CC$3,Général!CC14)","v":""},{"$f":"CONCATENATE(Général!CD$3,Général!CD14)","v":""},{"$f":"CONCATENATE(Général!CE$3,Général!CE14)","v":""},{"$f":"CONCATENATE(Général!CF$3,Général!CF14)","v":""},{"$f":"CONCATENATE(Général!CG$3,Général!CG14)","v":""},{"$f":"CONCATENATE(Général!CH$3,Général!CH14)","v":""},{"$f":"CONCATENATE(Général!CI$3,Général!CI14)","v":""},{"$f":"CONCATENATE(Général!CJ$3,Général!CJ14)","v":""},{"$f":"CONCATENATE(Général!CK$3,Général!CK14)","v":""},{"$f":"CONCATENATE(Général!CL$3,Général!CL14)","v":""},{"$f":"CONCATENATE(Général!CM$3,Général!CM14)","v":""},{"$f":"CONCATENATE(Général!CN$3,Général!CN14)","v":""},{"$f":"CONCATENATE(Général!CO$3,Général!CO14)","v":""},{"$f":"CONCATENATE(Général!CP$3,Général!CP14)","v":""},{"$f":"CONCATENATE(Général!CQ$3,Général!CQ14)","v":""},{"$f":"CONCATENATE(Général!CR$3,Général!CR14)","v":""},{"$f":"CONCATENATE(Général!CS$3,Général!CS14)","v":""},{"$f":"CONCATENATE(Général!CT$3,Général!CT14)","v":""},{"$f":"CONCATENATE(Général!CU$3,Général!CU14)","v":""},{"$f":"CONCATENATE(Général!CV$3,Général!CV14)","v":""},{"$f":"CONCATENATE(Général!CW$3,Général!CW14)","v":""},{"$f":"CONCATENATE(Général!CX$3,Général!CX14)","v":""},null,0,0,0,0,0,29,0,{"$f":"IF(DE12=0,\"\",HLOOKUP(DE12,CY12:DC$40,DD12,FALSE))","v":""},{"$f":"COUNTIF($A12:$CW12,(CONCATENATE(\"Un fournisseur\",DG$1)))","v":0},0,0,0,0,29,0,{"$f":"IF(DM12=0,\"\",HLOOKUP(DM12,DG12:DK$40,DL12,FALSE))","v":""},{"$f":"COUNTIF($A12:$CW12,(CONCATENATE(\"Une collectivité/organisme local\",DO$1)))","v":0},0,0,0,0,29,0,{"$f":"IF(DU12=0,\"\",HLOOKUP(DU12,DO12:DS$40,DT12,FALSE))","v":""},{"$f":"COUNTIF($A12:$CW12,(CONCATENATE(\"Un collaborateur/salarié\",DW$1)))","v":0},0,0,0,0,29,0,{"$f":"IF(EC12=0,\"\",HLOOKUP(EC12,DW12:EA$40,EB12,FALSE))","v":""},{"$f":"COUNTIF($A12:$CW12,(CONCATENATE(\"Un prestataire\",EE$1)))","v":0},0,0,0,0,29,0,{"$f":"IF(EK12=0,\"\",HLOOKUP(EK12,EE12:EI$40,EJ12,FALSE))","v":""},{"$f":"COUNTIF($A12:$CW12,(CONCATENATE(\"Un actionnaire\",EM$1)))","v":0},0,0,0,0,29,0,{"$f":"IF(ES12=0,\"\",HLOOKUP(ES12,EM12:EQ$40,ER12,FALSE))","v":""},{"$f":"COUNTIF($A12:$CW12,(CONCATENATE(\"Autre\",EU$1)))","v":0},0,0,0,0,29,0,{"$f":"IF(FA12=0,\"\",HLOOKUP(FA12,EU12:EY$40,EZ12,FALSE))","v":""},{"$f":"COUNTIF(Général!$C14:$CX14,FC$1)","v":0},{"$f":"COUNTIF(Général!$C14:$CX14,FD$1)","v":0},{"$f":"COUNTIF(Général!$C14:$CX14,FE$1)","v":0},{"$f":"COUNTIF(Général!$C14:$CX14,FF$1)","v":0},{"$f":"COUNTIF(Général!$C14:$CX14,FG$1)","v":0},29,0,{"$f":"IF(FI12<1,\"\",HLOOKUP(FI12,FC12:FG$40,FH12,FALSE))","v":""},5,"Non concerné","1","10","100","1000","10000",2222.1999999999998,"Non concerné"]
["G12",{"$f":"CONCATENATE(Général!C$3,Général!C15)","v":""},{"$f":"CONCATENATE(Général!D$3,Général!D15)","v":""},{"$f":"CONCATENATE(Général!E$3,Général!E15)","v":""},{"$f":"CONCATENATE(Général!F$3,Général!F15)","v":""},{"$f":"CONCATENATE(Général!G$3,Général!G15)","v":""},{"$f":"CONCATENATE(Général!H$3,Général!H15)","v":""},{"$f":"CONCATENATE(Général!I$3,Général!I15)","v":""},{"$f":"CONCATENATE(Général!J$3,Général!J15)","v":""},{"$f":"CONCATENATE(Général!K$3,Général!K15)","v":""},{"$f":"CONCATENATE(Général!L$3,Général!L15)","v":""},{"$f":"CONCATENATE(Général!M$3,Général!M15)","v":""},{"$f":"CONCATENATE(Général!N$3,Général!N15)","v":""},{"$f":"CONCATENATE(Général!O$3,Général!O15)","v":""},{"$f":"CONCATENATE(Général!P$3,Général!P15)","v":""},{"$f":"CONCATENATE(Général!Q$3,Général!Q15)","v":""},{"$f":"CONCATENATE(Général!R$3,Général!R15)","v":""},{"$f":"CONCATENATE(Général!S$3,Général!S15)","v":""},{"$f":"CONCATENATE(Général!T$3,Général!T15)","v":""},{"$f":"CONCATENATE(Général!U$3,Général!U15)","v":""},{"$f":"CONCATENATE(Général!V$3,Général!V15)","v":""},{"$f":"CONCATENATE(Général!W$3,Général!W15)","v":""},{"$f":"CONCATENATE(Général!X$3,Général!X15)","v":""},{"$f":"CONCATENATE(Général!Y$3,Général!Y15)","v":""},{"$f":"CONCATENATE(Général!Z$3,Général!Z15)","v":""},{"$f":"CONCATENATE(Général!AA$3,Général!AA15)","v":""},{"$f":"CONCATENATE(Général!AB$3,Général!AB15)","v":""},{"$f":"CONCATENATE(Général!AC$3,Général!AC15)","v":""},{"$f":"CONCATENATE(Général!AD$3,Général!AD15)","v":""},{"$f":"CONCATENATE(Général!AE$3,Général!AE15)","v":""},{"$f":"CONCATENATE(Général!AF$3,Général!AF15)","v":""},{"$f":"CONCATENATE(Général!AG$3,Général!AG15)","v":""},{"$f":"CONCATENATE(Général!AH$3,Général!AH15)","v":""},{"$f":"CONCATENATE(Général!AI$3,Général!AI15)","v":""},{"$f":"CONCATENATE(Général!AJ$3,Général!AJ15)","v":""},{"$f":"CONCATENATE(Général!AK$3,Général!AK15)","v":""},{"$f":"CONCATENATE(Général!AL$3,Général!AL15)","v":""},{"$f":"CONCATENATE(Général!AM$3,Général!AM15)","v":""},{"$f":"CONCATENATE(Général!AN$3,Général!AN15)","v":""},{"$f":"CONCATENATE(Général!AO$3,Général!AO15)","v":""},{"$f":"CONCATENATE(Général!AP$3,Général!AP15)","v":""},{"$f":"CONCATENATE(Général!AQ$3,Général!AQ15)","v":""},{"$f":"CONCATENATE(Général!AR$3,Général!AR15)","v":""},{"$f":"CONCATENATE(Général!AS$3,Général!AS15)","v":""},{"$f":"CONCATENATE(Général!AT$3,Général!AT15)","v":""},{"$f":"CONCATENATE(Général!AU$3,Général!AU15)","v":""},{"$f":"CONCATENATE(Général!AV$3,Général!AV15)","v":""},{"$f":"CONCATENATE(Général!AW$3,Général!AW15)","v":""},{"$f":"CONCATENATE(Général!AX$3,Général!AX15)","v":""},{"$f":"CONCATENATE(Général!AY$3,Général!AY15)","v":""},{"$f":"CONCATENATE(Général!AZ$3,Général!AZ15)","v":""},{"$f":"CONCATENATE(Général!BA$3,Général!BA15)","v":""},{"$f":"CONCATENATE(Général!BB$3,Général!BB15)","v":""},{"$f":"CONCATENATE(Général!BC$3,Général!BC15)","v":""},{"$f":"CONCATENATE(Général!BD$3,Général!BD15)","v":""},{"$f":"CONCATENATE(Général!BE$3,Général!BE15)","v":""},{"$f":"CONCATENATE(Général!BF$3,Général!BF15)","v":""},{"$f":"CONCATENATE(Général!BG$3,Général!BG15)","v":""},{"$f":"CONCATENATE(Général!BH$3,Général!BH15)","v":""},{"$f":"CONCATENATE(Général!BI$3,Général!BI15)","v":""},{"$f":"CONCATENATE(Général!BJ$3,Général!BJ15)","v":""},{"$f":"CONCATENATE(Général!BK$3,Général!BK15)","v":""},{"$f":"CONCATENATE(Général!BL$3,Général!BL15)","v":""},{"$f":"CONCATENATE(Général!BM$3,Général!BM15)","v":""},{"$f":"CONCATENATE(Général!BN$3,Général!BN15)","v":""},{"$f":"CONCATENATE(Général!BO$3,Général!BO15)","v":""},{"$f":"CONCATENATE(Général!BP$3,Général!BP15)","v":""},{"$f":"CONCATENATE(Général!BQ$3,Général!BQ15)","v":""},{"$f":"CONCATENATE(Général!BR$3,Général!BR15)","v":""},{"$f":"CONCATENATE(Général!BS$3,Général!BS15)","v":""},{"$f":"CONCATENATE(Général!BT$3,Général!BT15)","v":""},{"$f":"CONCATENATE(Général!BU$3,Général!BU15)","v":""},{"$f":"CONCATENATE(Général!BV$3,Général!BV15)","v":""},{"$f":"CONCATENATE(Général!BW$3,Général!BW15)","v":""},{"$f":"CONCATENATE(Général!BX$3,Général!BX15)","v":""},{"$f":"CONCATENATE(Général!BY$3,Général!BY15)","v":""},{"$f":"CONCATENATE(Général!BZ$3,Général!BZ15)","v":""},{"$f":"CONCATENATE(Général!CA$3,Général!CA15)","v":""},{"$f":"CONCATENATE(Général!CB$3,Général!CB15)","v":""},{"$f":"CONCATENATE(Général!CC$3,Général!CC15)","v":""},{"$f":"CONCATENATE(Général!CD$3,Général!CD15)","v":""},{"$f":"CONCATENATE(Général!CE$3,Général!CE15)","v":""},{"$f":"CONCATENATE(Général!CF$3,Général!CF15)","v":""},{"$f":"CONCATENATE(Général!CG$3,Général!CG15)","v":""},{"$f":"CONCATENATE(Général!CH$3,Général!CH15)","v":""},{"$f":"CONCATENATE(Général!CI$3,Général!CI15)","v":""},{"$f":"CONCATENATE(Général!CJ$3,Général!CJ15)","v":""},{"$f":"CONCATENATE(Général!CK$3,Général!CK15)","v":""},{"$f":"CONCATENATE(Général!CL$3,Général!CL15)","v":""},{"$f":"CONCATENATE(Général!CM$3,Général!CM15)","v":""},{"$f":"CONCATENATE(Général!CN$3,Général!CN15)","v":""},{"$f":"CONCATENATE(Général!CO$3,Général!CO15)","v":""},{"$f":"CONCATENATE(Général!CP$3,Général!CP15)","v":""},{"$f":"CONCATENATE(Général!CQ$3,Général!CQ15)","v":""},{"$f":"CONCATENATE(Général!CR$3,Général!CR15)","v":""},{"$f":"CONCATENATE(Général!CS$3,Général!CS15)","v":""},{"$f":"CONCATENATE(Général!CT$3,Général!CT15)","v":""},{"$f":"CONCATENATE(Général!CU$3,Général!CU15)","v":""},{"$f":"CONCATENATE(Général!CV$3,Général!CV15)","v":""},{"$f":"CONCATENATE(Général!CW$3,Général!CW15)","v":""},{"$f":"CONCATENATE(Général!CX$3,Général!CX15)","v":""},null,0,0,0,0,0,28,0,{"$f":"IF(DE13=0,\"\",HLOOKUP(DE13,CY13:DC$40,DD13,FALSE))","v":""},0,0,0,0,0,28,0,{"$f":"IF(DM13=0,\"\",HLOOKUP(DM13,DG13:DK$40,DL13,FALSE))","v":""},0,0,0,0,0,28,0,{"$f":"IF(DU13=0,\"\",HLOOKUP(DU13,DO13:DS$40,DT13,FALSE))","v":""},0,0,0,0,0,28,0,{"$f":"IF(EC13=0,\"\",HLOOKUP(EC13,DW13:EA$40,EB13,FALSE))","v":""},0,0,0,0,0,28,0,{"$f":"IF(EK13=0,\"\",HLOOKUP(EK13,EE13:EI$40,EJ13,FALSE))","v":""},0,0,0,0,0,28,0,{"$f":"IF(ES13=0,\"\",HLOOKUP(ES13,EM13:EQ$40,ER13,FALSE))","v":""},0,0,0,0,0,28,0,{"$f":"IF(FA13=0,\"\",HLOOKUP(FA13,EU13:EY$40,EZ13,FALSE))","v":""},{"$f":"COUNTIF(Général!$C15:$CX15,FC$1)","v":0},{"$f":"COUNTIF(Général!$C15:$CX15,FD$1)","v":0},{"$f":"COUNTIF(Général!$C15:$CX15,FE$1)","v":0},{"$f":"COUNTIF(Général!$C15:$CX15,FF$1)","v":0},{"$f":"COUNTIF(Général!$C15:$CX15,FG$1)","v":0},28,0,{"$f":"IF(FI13<1,\"\",HLOOKUP(FI13,FC13:FG$40,FH13,FALSE))","v":""},5,"Non concerné","1","10","100","1000","10000",2222.1999999999998,"Non concerné"]
["G13",{"$f":"CONCATENATE(Général!C$3,Général!C16)","v":""},{"$f":"CONCATENATE(Général!D$3,Général!D16)","v":""},{"$f":"CONCATENATE(Général!E$3,Général!E16)","v":""},{"$f":"CONCATENATE(Général!F$3,Général!F16)","v":""},{"$f":"CONCATENATE(Général!G$3,Général!G16)","v":""},{"$f":"CONCATENATE(Général!H$3,Général!H16)","v":""},{"$f":"CONCATENATE(Général!I$3,Général!I16)","v":""},{"$f":"CONCATENATE(Général!J$3,Général!J16)","v":""},{"$f":"CONCATENATE(Général!K$3,Général!K16)","v":""},{"$f":"CONCATENATE(Général!L$3,Général!L16)","v":""},{"$f":"CONCATENATE(Général!M$3,Général!M16)","v":""},{"$f":"CONCATENATE(Général!N$3,Général!N16)","v":""},{"$f":"CONCATENATE(Général!O$3,Général!O16)","v":""},{"$f":"CONCATENATE(Général!P$3,Général!P16)","v":""},{"$f":"CONCATENATE(Général!Q$3,Général!Q16)","v":""},{"$f":"CONCATENATE(Général!R$3,Général!R16)","v":""},{"$f":"CONCATENATE(Général!S$3,Général!S16)","v":""},{"$f":"CONCATENATE(Général!T$3,Général!T16)","v":""},{"$f":"CONCATENATE(Général!U$3,Général!U16)","v":""},{"$f":"CONCATENATE(Général!V$3,Général!V16)","v":""},{"$f":"CONCATENATE(Général!W$3,Général!W16)","v":""},{"$f":"CONCATENATE(Général!X$3,Général!X16)","v":""},{"$f":"CONCATENATE(Général!Y$3,Général!Y16)","v":""},{"$f":"CONCATENATE(Général!Z$3,Général!Z16)","v":""},{"$f":"CONCATENATE(Général!AA$3,Général!AA16)","v":""},{"$f":"CONCATENATE(Général!AB$3,Général!AB16)","v":""},{"$f":"CONCATENATE(Général!AC$3,Général!AC16)","v":""},{"$f":"CONCATENATE(Général!AD$3,Général!AD16)","v":""},{"$f":"CONCATENATE(Général!AE$3,Général!AE16)","v":""},{"$f":"CONCATENATE(Général!AF$3,Général!AF16)","v":""},{"$f":"CONCATENATE(Général!AG$3,Général!AG16)","v":""},{"$f":"CONCATENATE(Général!AH$3,Général!AH16)","v":""},{"$f":"CONCATENATE(Général!AI$3,Général!AI16)","v":""},{"$f":"CONCATENATE(Général!AJ$3,Général!AJ16)","v":""},{"$f":"CONCATENATE(Général!AK$3,Général!AK16)","v":""},{"$f":"CONCATENATE(Général!AL$3,Général!AL16)","v":""},{"$f":"CONCATENATE(Général!AM$3,Général!AM16)","v":""},{"$f":"CONCATENATE(Général!AN$3,Général!AN16)","v":""},{"$f":"CONCATENATE(Général!AO$3,Général!AO16)","v":""},{"$f":"CONCATENATE(Général!AP$3,Général!AP16)","v":""},{"$f":"CONCATENATE(Général!AQ$3,Général!AQ16)","v":""},{"$f":"CONCATENATE(Général!AR$3,Général!AR16)","v":""},{"$f":"CONCATENATE(Général!AS$3,Général!AS16)","v":""},{"$f":"CONCATENATE(Général!AT$3,Général!AT16)","v":""},{"$f":"CONCATENATE(Général!AU$3,Général!AU16)","v":""},{"$f":"CONCATENATE(Général!AV$3,Général!AV16)","v":""},{"$f":"CONCATENATE(Général!AW$3,Général!AW16)","v":""},{"$f":"CONCATENATE(Général!AX$3,Général!AX16)","v":""},{"$f":"CONCATENATE(Général!AY$3,Général!AY16)","v":""},{"$f":"CONCATENATE(Général!AZ$3,Général!AZ16)","v":""},{"$f":"CONCATENATE(Général!BA$3,Général!BA16)","v":""},{"$f":"CONCATENATE(Général!BB$3,Général!BB16)","v":""},{"$f":"CONCATENATE(Général!BC$3,Général!BC16)","v":""},{"$f":"CONCATENATE(Général!BD$3,Général!BD16)","v":""},{"$f":"CONCATENATE(Général!BE$3,Général!BE16)","v":""},{"$f":"CONCATENATE(Général!BF$3,Général!BF16)","v":""},{"$f":"CONCATENATE(Général!BG$3,Général!BG16)","v":""},{"$f":"CONCATENATE(Général!BH$3,Général!BH16)","v":""},{"$f":"CONCATENATE(Général!BI$3,Général!BI16)","v":""},{"$f":"CONCATENATE(Général!BJ$3,Général!BJ16)","v":""},{"$f":"CONCATENATE(Général!BK$3,Général!BK16)","v":""},{"$f":"CONCATENATE(Général!BL$3,Général!BL16)","v":""},{"$f":"CONCATENATE(Général!BM$3,Général!BM16)","v":""},{"$f":"CONCATENATE(Général!BN$3,Général!BN16)","v":""},{"$f":"CONCATENATE(Général!BO$3,Général!BO16)","v":""},{"$f":"CONCATENATE(Général!BP$3,Général!BP16)","v":""},{"$f":"CONCATENATE(Général!BQ$3,Général!BQ16)","v":""},{"$f":"CONCATENATE(Général!BR$3,Général!BR16)","v":""},{"$f":"CONCATENATE(Général!BS$3,Général!BS16)","v":""},{"$f":"CONCATENATE(Général!BT$3,Général!BT16)","v":""},{"$f":"CONCATENATE(Général!BU$3,Général!BU16)","v":""},{"$f":"CONCATENATE(Général!BV$3,Général!BV16)","v":""},{"$f":"CONCATENATE(Général!BW$3,Général!BW16)","v":""},{"$f":"CONCATENATE(Général!BX$3,Général!BX16)","v":""},{"$f":"CONCATENATE(Général!BY$3,Général!BY16)","v":""},{"$f":"CONCATENATE(Général!BZ$3,Général!BZ16)","v":""},{"$f":"CONCATENATE(Général!CA$3,Général!CA16)","v":""},{"$f":"CONCATENATE(Général!CB$3,Général!CB16)","v":""},{"$f":"CONCATENATE(Général!CC$3,Général!CC16)","v":""},{"$f":"CONCATENATE(Général!CD$3,Général!CD16)","v":""},{"$f":"CONCATENATE(Général!CE$3,Général!CE16)","v":""},{"$f":"CONCATENATE(Général!CF$3,Général!CF16)","v":""},{"$f":"CONCATENATE(Général!CG$3,Général!CG16)","v":""},{"$f":"CONCATENATE(Général!CH$3,Général!CH16)","v":""},{"$f":"CONCATENATE(Général!CI$3,Général!CI16)","v":""},{"$f":"CONCATENATE(Général!CJ$3,Général!CJ16)","v":""},{"$f":"CONCATENATE(Général!CK$3,Général!CK16)","v":""},{"$f":"CONCATENATE(Général!CL$3,Général!CL16)","v":""},{"$f":"CONCATENATE(Général!CM$3,Général!CM16)","v":""},{"$f":"CONCATENATE(Général!CN$3,Général!CN16)","v":""},{"$f":"CONCATENATE(Général!CO$3,Général!CO16)","v":""},{"$f":"CONCATENATE(Général!CP$3,Général!CP16)","v":""},{"$f":"CONCATENATE(Général!CQ$3,Général!CQ16)","v":""},{"$f":"CONCATENATE(Général!CR$3,Général!CR16)","v":""},{"$f":"CONCATENATE(Général!CS$3,Général!CS16)","v":""},{"$f":"CONCATENATE(Général!CT$3,Général!CT16)","v":""},{"$f":"CONCATENATE(Général!CU$3,Général!CU16)","v":""},{"$f":"CONCATENATE(Général!CV$3,Général!CV16)","v":""},{"$f":"CONCATENATE(Général!CW$3,Général!CW16)","v":""},{"$f":"CONCATENATE(Général!CX$3,Général!CX16)","v":""},null,0,0,0,0,0,27,0,{"$f":"IF(DE14=0,\"\",HLOOKUP(DE14,CY14:DC$40,DD14,FALSE))","v":""},0,0,0,0,0,27,0,{"$f":"IF(DM14=0,\"\",HLOOKUP(DM14,DG14:DK$40,DL14,FALSE))","v":""},0,0,0,0,0,27,0,{"$f":"IF(DU14=0,\"\",HLOOKUP(DU14,DO14:DS$40,DT14,FALSE))","v":""},0,0,0,0,0,27,0,{"$f":"IF(EC14=0,\"\",HLOOKUP(EC14,DW14:EA$40,EB14,FALSE))","v":""},0,0,0,0,0,27,0,{"$f":"IF(EK14=0,\"\",HLOOKUP(EK14,EE14:EI$40,EJ14,FALSE))","v":""},0,0,0,0,0,27,0,{"$f":"IF(ES14=0,\"\",HLOOKUP(ES14,EM14:EQ$40,ER14,FALSE))","v":""},0,0,0,0,0,27,0,{"$f":"IF(FA14=0,\"\",HLOOKUP(FA14,EU14:EY$40,EZ14,FALSE))","v":""},{"$f":"COUNTIF(Général!$C16:$CX16,FC$1)","v":0},{"$f":"COUNTIF(Général!$C16:$CX16,FD$1)","v":0},{"$f":"COUNTIF(Général!$C16:$CX16,FE$1)","v":0},{"$f":"COUNTIF(Général!$C16:$CX16,FF$1)","v":0},{"$f":"COUNTIF(Général!$C16:$CX16,FG$1)","v":0},27,0,{"$f":"IF(FI14<1,\"\",HLOOKUP(FI14,FC14:FG$40,FH14,FALSE))","v":""},5,"Non concerné","1","10","100","1000","10000",2222.1999999999998,"Non concerné"]
["G14",{"$f":"CONCATENATE(Général!C$3,Général!C17)","v":""},{"$f":"CONCATENATE(Général!D$3,Général!D17)","v":""},{"$f":"CONCATENATE(Général!E$3,Général!E17)","v":""},{"$f":"CONCATENATE(Général!F$3,Général!F17)","v":""},{"$f":"CONCATENATE(Général!G$3,Général!G17)","v":""},{"$f":"CONCATENATE(Général!H$3,Général!H17)","v":""},{"$f":"CONCATENATE(Général!I$3,Général!I17)","v":""},{"$f":"CONCATENATE(Général!J$3,Général!J17)","v":""},{"$f":"CONCATENATE(Général!K$3,Général!K17)","v":""},{"$f":"CONCATENATE(Général!L$3,Général!L17)","v":""},{"$f":"CONCATENATE(Général!M$3,Général!M17)","v":""},{"$f":"CONCATENATE(Général!N$3,Général!N17)","v":""},{"$f":"CONCATENATE(Général!O$3,Général!O17)","v":""},{"$f":"CONCATENATE(Général!P$3,Général!P17)","v":""},{"$f":"CONCATENATE(Général!Q$3,Général!Q17)","v":""},{"$f":"CONCATENATE(Général!R$3,Général!R17)","v":""},{"$f":"CONCATENATE(Général!S$3,Général!S17)","v":""},{"$f":"CONCATENATE(Général!T$3,Général!T17)","v":""},{"$f":"CONCATENATE(Général!U$3,Général!U17)","v":""},{"$f":"CONCATENATE(Général!V$3,Général!V17)","v":""},{"$f":"CONCATENATE(Général!W$3,Général!W17)","v":""},{"$f":"CONCATENATE(Général!X$3,Général!X17)","v":""},{"$f":"CONCATENATE(Général!Y$3,Général!Y17)","v":""},{"$f":"CONCATENATE(Général!Z$3,Général!Z17)","v":""},{"$f":"CONCATENATE(Général!AA$3,Général!AA17)","v":""},{"$f":"CONCATENATE(Général!AB$3,Général!AB17)","v":""},{"$f":"CONCATENATE(Général!AC$3,Général!AC17)","v":""},{"$f":"CONCATENATE(Général!AD$3,Général!AD17)","v":""},{"$f":"CONCATENATE(Général!AE$3,Général!AE17)","v":""},{"$f":"CONCATENATE(Général!AF$3,Général!AF17)","v":""},{"$f":"CONCATENATE(Général!AG$3,Général!AG17)","v":""},{"$f":"CONCATENATE(Général!AH$3,Général!AH17)","v":""},{"$f":"CONCATENATE(Général!AI$3,Général!AI17)","v":""},{"$f":"CONCATENATE(Général!AJ$3,Général!AJ17)","v":""},{"$f":"CONCATENATE(Général!AK$3,Général!AK17)","v":""},{"$f":"CONCATENATE(Général!AL$3,Général!AL17)","v":""},{"$f":"CONCATENATE(Général!AM$3,Général!AM17)","v":""},{"$f":"CONCATENATE(Général!AN$3,Général!AN17)","v":""},{"$f":"CONCATENATE(Général!AO$3,Général!AO17)","v":""},{"$f":"CONCATENATE(Général!AP$3,Général!AP17)","v":""},{"$f":"CONCATENATE(Général!AQ$3,Général!AQ17)","v":""},{"$f":"CONCATENATE(Général!AR$3,Général!AR17)","v":""},{"$f":"CONCATENATE(Général!AS$3,Général!AS17)","v":""},{"$f":"CONCATENATE(Général!AT$3,Général!AT17)","v":""},{"$f":"CONCATENATE(Général!AU$3,Général!AU17)","v":""},{"$f":"CONCATENATE(Général!AV$3,Général!AV17)","v":""},{"$f":"CONCATENATE(Général!AW$3,Général!AW17)","v":""},{"$f":"CONCATENATE(Général!AX$3,Général!AX17)","v":""},{"$f":"CONCATENATE(Général!AY$3,Général!AY17)","v":""},{"$f":"CONCATENATE(Général!AZ$3,Général!AZ17)","v":""},{"$f":"CONCATENATE(Général!BA$3,Général!BA17)","v":""},{"$f":"CONCATENATE(Général!BB$3,Général!BB17)","v":""},{"$f":"CONCATENATE(Général!BC$3,Général!BC17)","v":""},{"$f":"CONCATENATE(Général!BD$3,Général!BD17)","v":""},{"$f":"CONCATENATE(Général!BE$3,Général!BE17)","v":""},{"$f":"CONCATENATE(Général!BF$3,Général!BF17)","v":""},{"$f":"CONCATENATE(Général!BG$3,Général!BG17)","v":""},{"$f":"CONCATENATE(Général!BH$3,Général!BH17)","v":""},{"$f":"CONCATENATE(Général!BI$3,Général!BI17)","v":""},{"$f":"CONCATENATE(Général!BJ$3,Général!BJ17)","v":""},{"$f":"CONCATENATE(Général!BK$3,Général!BK17)","v":""},{"$f":"CONCATENATE(Général!BL$3,Général!BL17)","v":""},{"$f":"CONCATENATE(Général!BM$3,Général!BM17)","v":""},{"$f":"CONCATENATE(Général!BN$3,Général!BN17)","v":""},{"$f":"CONCATENATE(Général!BO$3,Général!BO17)","v":""},{"$f":"CONCATENATE(Général!BP$3,Général!BP17)","v":""},{"$f":"CONCATENATE(Général!BQ$3,Général!BQ17)","v":""},{"$f":"CONCATENATE(Général!BR$3,Général!BR17)","v":""},{"$f":"CONCATENATE(Général!BS$3,Général!BS17)","v":""},{"$f":"CONCATENATE(Général!BT$3,Général!BT17)","v":""},{"$f":"CONCATENATE(Général!BU$3,Général!BU17)","v":""},{"$f":"CONCATENATE(Général!BV$3,Général!BV17)","v":""},{"$f":"CONCATENATE(Général!BW$3,Général!BW17)","v":""},{"$f":"CONCATENATE(Général!BX$3,Général!BX17)","v":""},{"$f":"CONCATENATE(Général!BY$3,Général!BY17)","v":""},{"$f":"CONCATENATE(Général!BZ$3,Général!BZ17)","v":""},{"$f":"CONCATENATE(Général!CA$3,Général!CA17)","v":""},{"$f":"CONCATENATE(Général!CB$3,Général!CB17)","v":""},{"$f":"CONCATENATE(Général!CC$3,Général!CC17)","v":""},{"$f":"CONCATENATE(Général!CD$3,Général!CD17)","v":""},{"$f":"CONCATENATE(Général!CE$3,Général!CE17)","v":""},{"$f":"CONCATENATE(Général!CF$3,Général!CF17)","v":""},{"$f":"CONCATENATE(Général!CG$3,Général!CG17)","v":""},{"$f":"CONCATENATE(Général!CH$3,Général!CH17)","v":""},{"$f":"CONCATENATE(Général!CI$3,Général!CI17)","v":""},{"$f":"CONCATENATE(Général!CJ$3,Général!CJ17)","v":""},{"$f":"CONCATENATE(Général!CK$3,Général!CK17)","v":""},{"$f":"CONCATENATE(Général!CL$3,Général!CL17)","v":""},{"$f":"CONCATENATE(Général!CM$3,Général!CM17)","v":""},{"$f":"CONCATENATE(Général!CN$3,Général!CN17)","v":""},{"$f":"CONCATENATE(Général!CO$3,Général!CO17)","v":""},{"$f":"CONCATENATE(Général!CP$3,Général!CP17)","v":""},{"$f":"CONCATENATE(Général!CQ$3,Général!CQ17)","v":""},{"$f":"CONCATENATE(Général!CR$3,Général!CR17)","v":""},{"$f":"CONCATENATE(Général!CS$3,Général!CS17)","v":""},{"$f":"CONCATENATE(Général!CT$3,Général!CT17)","v":""},{"$f":"CONCATENATE(Général!CU$3,Général!CU17)","v":""},{"$f":"CONCATENATE(Général!CV$3,Général!CV17)","v":""},{"$f":"CONCATENATE(Général!CW$3,Général!CW17)","v":""},{"$f":"CONCATENATE(Général!CX$3,Général!CX17)","v":""},null,0,0,0,0,0,26,0,{"$f":"IF(DE15=0,\"\",HLOOKUP(DE15,CY15:DC$40,DD15,FALSE))","v":""},0,0,0,0,0,26,0,{"$f":"IF(DM15=0,\"\",HLOOKUP(DM15,DG15:DK$40,DL15,FALSE))","v":""},0,0,0,0,0,26,0,{"$f":"IF(DU15=0,\"\",HLOOKUP(DU15,DO15:DS$40,DT15,FALSE))","v":""},0,0,0,0,0,26,0,{"$f":"IF(EC15=0,\"\",HLOOKUP(EC15,DW15:EA$40,EB15,FALSE))","v":""},0,0,0,0,0,26,0,{"$f":"IF(EK15=0,\"\",HLOOKUP(EK15,EE15:EI$40,EJ15,FALSE))","v":""},0,0,0,0,0,26,0,{"$f":"IF(ES15=0,\"\",HLOOKUP(ES15,EM15:EQ$40,ER15,FALSE))","v":""},0,0,0,0,0,26,0,{"$f":"IF(FA15=0,\"\",HLOOKUP(FA15,EU15:EY$40,EZ15,FALSE))","v":""},{"$f":"COUNTIF(Général!$C17:$CX17,FC$1)","v":0},{"$f":"COUNTIF(Général!$C17:$CX17,FD$1)","v":0},{"$f":"COUNTIF(Général!$C17:$CX17,FE$1)","v":0},{"$f":"COUNTIF(Général!$C17:$CX17,FF$1)","v":0},{"$f":"COUNTIF(Général!$C17:$CX17,FG$1)","v":0},26,0,{"$f":"IF(FI15<1,\"\",HLOOKUP(FI15,FC15:FG$40,FH15,FALSE))","v":""},5,"Non concerné","1","10","100","1000","10000",2222.1999999999998,"Non concerné"]
["G15",{"$f":"CONCATENATE(Général!C$3,Général!C18)","v":""},{"$f":"CONCATENATE(Général!D$3,Général!D18)","v":""},{"$f":"CONCATENATE(Général!E$3,Général!E18)","v":""},{"$f":"CONCATENATE(Général!F$3,Général!F18)","v":""},{"$f":"CONCATENATE(Général!G$3,Général!G18)","v":""},{"$f":"CONCATENATE(Général!H$3,Général!H18)","v":""},{"$f":"CONCATENATE(Général!I$3,Général!I18)","v":""},{"$f":"CONCATENATE(Général!J$3,Général!J18)","v":""},{"$f":"CONCATENATE(Général!K$3,Général!K18)","v":""},{"$f":"CONCATENATE(Général!L$3,Général!L18)","v":""},{"$f":"CONCATENATE(Général!M$3,Général!M18)","v":""},{"$f":"CONCATENATE(Général!N$3,Général!N18)","v":""},{"$f":"CONCATENATE(Général!O$3,Général!O18)","v":""},{"$f":"CONCATENATE(Général!P$3,Général!P18)","v":""},{"$f":"CONCATENATE(Général!Q$3,Général!Q18)","v":""},{"$f":"CONCATENATE(Général!R$3,Général!R18)","v":""},{"$f":"CONCATENATE(Général!S$3,Général!S18)","v":""},{"$f":"CONCATENATE(Général!T$3,Général!T18)","v":""},{"$f":"CONCATENATE(Général!U$3,Général!U18)","v":""},{"$f":"CONCATENATE(Général!V$3,Général!V18)","v":""},{"$f":"CONCATENATE(Général!W$3,Général!W18)","v":""},{"$f":"CONCATENATE(Général!X$3,Général!X18)","v":""},{"$f":"CONCATENATE(Général!Y$3,Général!Y18)","v":""},{"$f":"CONCATENATE(Général!Z$3,Général!Z18)","v":""},{"$f":"CONCATENATE(Général!AA$3,Général!AA18)","v":""},{"$f":"CONCATENATE(Général!AB$3,Général!AB18)","v":""},{"$f":"CONCATENATE(Général!AC$3,Général!AC18)","v":""},{"$f":"CONCATENATE(Général!AD$3,Général!AD18)","v":""},{"$f":"CONCATENATE(Général!AE$3,Général!AE18)","v":""},{"$f":"CONCATENATE(Général!AF$3,Général!AF18)","v":""},{"$f":"CONCATENATE(Général!AG$3,Général!AG18)","v":""},{"$f":"CONCATENATE(Général!AH$3,Général!AH18)","v":""},{"$f":"CONCATENATE(Général!AI$3,Général!AI18)","v":""},{"$f":"CONCATENATE(Général!AJ$3,Général!AJ18)","v":""},{"$f":"CONCATENATE(Général!AK$3,Général!AK18)","v":""},{"$f":"CONCATENATE(Général!AL$3,Général!AL18)","v":""},{"$f":"CONCATENATE(Général!AM$3,Général!AM18)","v":""},{"$f":"CONCATENATE(Général!AN$3,Général!AN18)","v":""},{"$f":"CONCATENATE(Général!AO$3,Général!AO18)","v":""},{"$f":"CONCATENATE(Général!AP$3,Général!AP18)","v":""},{"$f":"CONCATENATE(Général!AQ$3,Général!AQ18)","v":""},{"$f":"CONCATENATE(Général!AR$3,Général!AR18)","v":""},{"$f":"CONCATENATE(Général!AS$3,Général!AS18)","v":""},{"$f":"CONCATENATE(Général!AT$3,Général!AT18)","v":""},{"$f":"CONCATENATE(Général!AU$3,Général!AU18)","v":""},{"$f":"CONCATENATE(Général!AV$3,Général!AV18)","v":""},{"$f":"CONCATENATE(Général!AW$3,Général!AW18)","v":""},{"$f":"CONCATENATE(Général!AX$3,Général!AX18)","v":""},{"$f":"CONCATENATE(Général!AY$3,Général!AY18)","v":""},{"$f":"CONCATENATE(Général!AZ$3,Général!AZ18)","v":""},{"$f":"CONCATENATE(Général!BA$3,Général!BA18)","v":""},{"$f":"CONCATENATE(Général!BB$3,Général!BB18)","v":""},{"$f":"CONCATENATE(Général!BC$3,Général!BC18)","v":""},{"$f":"CONCATENATE(Général!BD$3,Général!BD18)","v":""},{"$f":"CONCATENATE(Général!BE$3,Général!BE18)","v":""},{"$f":"CONCATENATE(Général!BF$3,Général!BF18)","v":""},{"$f":"CONCATENATE(Général!BG$3,Général!BG18)","v":""},{"$f":"CONCATENATE(Général!BH$3,Général!BH18)","v":""},{"$f":"CONCATENATE(Général!BI$3,Général!BI18)","v":""},{"$f":"CONCATENATE(Général!BJ$3,Général!BJ18)","v":""},{"$f":"CONCATENATE(Général!BK$3,Général!BK18)","v":""},{"$f":"CONCATENATE(Général!BL$3,Général!BL18)","v":""},{"$f":"CONCATENATE(Général!BM$3,Général!BM18)","v":""},{"$f":"CONCATENATE(Général!BN$3,Général!BN18)","v":""},{"$f":"CONCATENATE(Général!BO$3,Général!BO18)","v":""},{"$f":"CONCATENATE(Général!BP$3,Général!BP18)","v":""},{"$f":"CONCATENATE(Général!BQ$3,Général!BQ18)","v":""},{"$f":"CONCATENATE(Général!BR$3,Général!BR18)","v":""},{"$f":"CONCATENATE(Général!BS$3,Général!BS18)","v":""},{"$f":"CONCATENATE(Général!BT$3,Général!BT18)","v":""},{"$f":"CONCATENATE(Général!BU$3,Général!BU18)","v":""},{"$f":"CONCATENATE(Général!BV$3,Général!BV18)","v":""},{"$f":"CONCATENATE(Général!BW$3,Général!BW18)","v":""},{"$f":"CONCATENATE(Général!BX$3,Général!BX18)","v":""},{"$f":"CONCATENATE(Général!BY$3,Général!BY18)","v":""},{"$f":"CONCATENATE(Général!BZ$3,Général!BZ18)","v":""},{"$f":"CONCATENATE(Général!CA$3,Général!CA18)","v":""},{"$f":"CONCATENATE(Général!CB$3,Général!CB18)","v":""},{"$f":"CONCATENATE(Général!CC$3,Général!CC18)","v":""},{"$f":"CONCATENATE(Général!CD$3,Général!CD18)","v":""},{"$f":"CONCATENATE(Général!CE$3,Général!CE18)","v":""},{"$f":"CONCATENATE(Général!CF$3,Général!CF18)","v":""},{"$f":"CONCATENATE(Général!CG$3,Général!CG18)","v":""},{"$f":"CONCATENATE(Général!CH$3,Général!CH18)","v":""},{"$f":"CONCATENATE(Général!CI$3,Général!CI18)","v":""},{"$f":"CONCATENATE(Général!CJ$3,Général!CJ18)","v":""},{"$f":"CONCATENATE(Général!CK$3,Général!CK18)","v":""},{"$f":"CONCATENATE(Général!CL$3,Général!CL18)","v":""},{"$f":"CONCATENATE(Général!CM$3,Général!CM18)","v":""},{"$f":"CONCATENATE(Général!CN$3,Général!CN18)","v":""},{"$f":"CONCATENATE(Général!CO$3,Général!CO18)","v":""},{"$f":"CONCATENATE(Général!CP$3,Général!CP18)","v":""},{"$f":"CONCATENATE(Général!CQ$3,Général!CQ18)","v":""},{"$f":"CONCATENATE(Général!CR$3,Général!CR18)","v":""},{"$f":"CONCATENATE(Général!CS$3,Général!CS18)","v":""},{"$f":"CONCATENATE(Général!CT$3,Général!CT18)","v":""},{"$f":"CONCATENATE(Général!CU$3,Général!CU18)","v":""},{"$f":"CONCATENATE(Général!CV$3,Général!CV18)","v":""},{"$f":"CONCATENATE(Général!CW$3,Général!CW18)","v":""},{"$f":"CONCATENATE(Général!CX$3,Général!CX18)","v":""},null,0,0,0,0,0,25,0,{"$f":"IF(DE16=0,\"\",HLOOKUP(DE16,CY16:DC$40,DD16,FALSE))","v":""},0,0,0,0,0,25,0,{"$f":"IF(DM16=0,\"\",HLOOKUP(DM16,DG16:DK$40,DL16,FALSE))","v":""},0,0,0,0,0,25,0,{"$f":"IF(DU16=0,\"\",HLOOKUP(DU16,DO16:DS$40,DT16,FALSE))","v":""},0,0,0,0,0,25,0,{"$f":"IF(EC16=0,\"\",HLOOKUP(EC16,DW16:EA$40,EB16,FALSE))","v":""},0,0,0,0,0,25,0,{"$f":"IF(EK16=0,\"\",HLOOKUP(EK16,EE16:EI$40,EJ16,FALSE))","v":""},0,0,0,0,0,25,0,{"$f":"IF(ES16=0,\"\",HLOOKUP(ES16,EM16:EQ$40,ER16,FALSE))","v":""},0,0,0,0,0,25,0,{"$f":"IF(FA16=0,\"\",HLOOKUP(FA16,EU16:EY$40,EZ16,FALSE))","v":""},{"$f":"COUNTIF(Général!$C18:$CX18,FC$1)","v":0},{"$f":"COUNTIF(Général!$C18:$CX18,FD$1)","v":0},{"$f":"COUNTIF(Général!$C18:$CX18,FE$1)","v":0},{"$f":"COUNTIF(Général!$C18:$CX18,FF$1)","v":0},{"$f":"COUNTIF(Général!$C18:$CX18,FG$1)","v":0},25,0,{"$f":"IF(FI16<1,\"\",HLOOKUP(FI16,FC16:FG$40,FH16,FALSE))","v":""},5,"Non concerné","1","10","100","1000","10000",2222.1999999999998,"Non concerné"]
["G16",{"$f":"CONCATENATE(Général!C$3,Général!C19)","v":""},{"$f":"CONCATENATE(Général!D$3,Général!D19)","v":""},{"$f":"CONCATENATE(Général!E$3,Général!E19)","v":""},{"$f":"CONCATENATE(Général!F$3,Général!F19)","v":""},{"$f":"CONCATENATE(Général!G$3,Général!G19)","v":""},{"$f":"CONCATENATE(Général!H$3,Général!H19)","v":""},{"$f":"CONCATENATE(Général!I$3,Général!I19)","v":""},{"$f":"CONCATENATE(Général!J$3,Général!J19)","v":""},{"$f":"CONCATENATE(Général!K$3,Général!K19)","v":""},{"$f":"CONCATENATE(Général!L$3,Général!L19)","v":""},{"$f":"CONCATENATE(Général!M$3,Général!M19)","v":""},{"$f":"CONCATENATE(Général!N$3,Général!N19)","v":""},{"$f":"CONCATENATE(Général!O$3,Général!O19)","v":""},{"$f":"CONCATENATE(Général!P$3,Général!P19)","v":""},{"$f":"CONCATENATE(Général!Q$3,Général!Q19)","v":""},{"$f":"CONCATENATE(Général!R$3,Général!R19)","v":""},{"$f":"CONCATENATE(Général!S$3,Général!S19)","v":""},{"$f":"CONCATENATE(Général!T$3,Général!T19)","v":""},{"$f":"CONCATENATE(Général!U$3,Général!U19)","v":""},{"$f":"CONCATENATE(Général!V$3,Général!V19)","v":""},{"$f":"CONCATENATE(Général!W$3,Général!W19)","v":""},{"$f":"CONCATENATE(Général!X$3,Général!X19)","v":""},{"$f":"CONCATENATE(Général!Y$3,Général!Y19)","v":""},{"$f":"CONCATENATE(Général!Z$3,Général!Z19)","v":""},{"$f":"CONCATENATE(Général!AA$3,Général!AA19)","v":""},{"$f":"CONCATENATE(Général!AB$3,Général!AB19)","v":""},{"$f":"CONCATENATE(Général!AC$3,Général!AC19)","v":""},{"$f":"CONCATENATE(Général!AD$3,Général!AD19)","v":""},{"$f":"CONCATENATE(Général!AE$3,Général!AE19)","v":""},{"$f":"CONCATENATE(Général!AF$3,Général!AF19)","v":""},{"$f":"CONCATENATE(Général!AG$3,Général!AG19)","v":""},{"$f":"CONCATENATE(Général!AH$3,Général!AH19)","v":""},{"$f":"CONCATENATE(Général!AI$3,Général!AI19)","v":""},{"$f":"CONCATENATE(Général!AJ$3,Général!AJ19)","v":""},{"$f":"CONCATENATE(Général!AK$3,Général!AK19)","v":""},{"$f":"CONCATENATE(Général!AL$3,Général!AL19)","v":""},{"$f":"CONCATENATE(Général!AM$3,Général!AM19)","v":""},{"$f":"CONCATENATE(Général!AN$3,Général!AN19)","v":""},{"$f":"CONCATENATE(Général!AO$3,Général!AO19)","v":""},{"$f":"CONCATENATE(Général!AP$3,Général!AP19)","v":""},{"$f":"CONCATENATE(Général!AQ$3,Général!AQ19)","v":""},{"$f":"CONCATENATE(Général!AR$3,Général!AR19)","v":""},{"$f":"CONCATENATE(Général!AS$3,Général!AS19)","v":""},{"$f":"CONCATENATE(Général!AT$3,Général!AT19)","v":""},{"$f":"CONCATENATE(Général!AU$3,Général!AU19)","v":""},{"$f":"CONCATENATE(Général!AV$3,Général!AV19)","v":""},{"$f":"CONCATENATE(Général!AW$3,Général!AW19)","v":""},{"$f":"CONCATENATE(Général!AX$3,Général!AX19)","v":""},{"$f":"CONCATENATE(Général!AY$3,Général!AY19)","v":""},{"$f":"CONCATENATE(Général!AZ$3,Général!AZ19)","v":""},{"$f":"CONCATENATE(Général!BA$3,Général!BA19)","v":""},{"$f":"CONCATENATE(Général!BB$3,Général!BB19)","v":""},{"$f":"CONCATENATE(Général!BC$3,Général!BC19)","v":""},{"$f":"CONCATENATE(Général!BD$3,Général!BD19)","v":""},{"$f":"CONCATENATE(Général!BE$3,Général!BE19)","v":""},{"$f":"CONCATENATE(Général!BF$3,Général!BF19)","v":""},{"$f":"CONCATENATE(Général!BG$3,Général!BG19)","v":""},{"$f":"CONCATENATE(Général!BH$3,Général!BH19)","v":""},{"$f":"CONCATENATE(Général!BI$3,Général!BI19)","v":""},{"$f":"CONCATENATE(Général!BJ$3,Général!BJ19)","v":""},{"$f":"CONCATENATE(Général!BK$3,Général!BK19)","v":""},{"$f":"CONCATENATE(Général!BL$3,Général!BL19)","v":""},{"$f":"CONCATENATE(Général!BM$3,Général!BM19)","v":""},{"$f":"CONCATENATE(Général!BN$3,Général!BN19)","v":""},{"$f":"CONCATENATE(Général!BO$3,Général!BO19)","v":""},{"$f":"CONCATENATE(Général!BP$3,Général!BP19)","v":""},{"$f":"CONCATENATE(Général!BQ$3,Général!BQ19)","v":""},{"$f":"CONCATENATE(Général!BR$3,Général!BR19)","v":""},{"$f":"CONCATENATE(Général!BS$3,Général!BS19)","v":""},{"$f":"CONCATENATE(Général!BT$3,Général!BT19)","v":""},{"$f":"CONCATENATE(Général!BU$3,Général!BU19)","v":""},{"$f":"CONCATENATE(Général!BV$3,Général!BV19)","v":""},{"$f":"CONCATENATE(Général!BW$3,Général!BW19)","v":""},{"$f":"CONCATENATE(Général!BX$3,Général!BX19)","v":""},{"$f":"CONCATENATE(Général!BY$3,Général!BY19)","v":""},{"$f":"CONCATENATE(Général!BZ$3,Général!BZ19)","v":""},{"$f":"CONCATENATE(Général!CA$3,Général!CA19)","v":""},{"$f":"CONCATENATE(Général!CB$3,Général!CB19)","v":""},{"$f":"CONCATENATE(Général!CC$3,Général!CC19)","v":""},{"$f":"CONCATENATE(Général!CD$3,Général!CD19)","v":""},{"$f":"CONCATENATE(Général!CE$3,Général!CE19)","v":""},{"$f":"CONCATENATE(Général!CF$3,Général!CF19)","v":""},{"$f":"CONCATENATE(Général!CG$3,Général!CG19)","v":""},{"$f":"CONCATENATE(Général!CH$3,Général!CH19)","v":""},{"$f":"CONCATENATE(Général!CI$3,Général!CI19)","v":""},{"$f":"CONCATENATE(Général!CJ$3,Général!CJ19)","v":""},{"$f":"CONCATENATE(Général!CK$3,Général!CK19)","v":""},{"$f":"CONCATENATE(Général!CL$3,Général!CL19)","v":""},{"$f":"CONCATENATE(Général!CM$3,Général!CM19)","v":""},{"$f":"CONCATENATE(Général!CN$3,Général!CN19)","v":""},{"$f":"CONCATENATE(Général!CO$3,Général!CO19)","v":""},{"$f":"CONCATENATE(Général!CP$3,Général!CP19)","v":""},{"$f":"CONCATENATE(Général!CQ$3,Général!CQ19)","v":""},{"$f":"CONCATENATE(Général!CR$3,Général!CR19)","v":""},{"$f":"CONCATENATE(Général!CS$3,Général!CS19)","v":""},{"$f":"CONCATENATE(Général!CT$3,Général!CT19)","v":""},{"$f":"CONCATENATE(Général!CU$3,Général!CU19)","v":""},{"$f":"CONCATENATE(Général!CV$3,Général!CV19)","v":""},{"$f":"CONCATENATE(Général!CW$3,Général!CW19)","v":""},{"$f":"CONCATENATE(Général!CX$3,Général!CX19)","v":""},null,0,0,0,0,0,24,0,{"$f":"IF(DE17=0,\"\",HLOOKUP(DE17,CY17:DC$40,DD17,FALSE))","v":""},0,0,0,0,0,24,0,{"$f":"IF(DM17=0,\"\",HLOOKUP(DM17,DG17:DK$40,DL17,FALSE))","v":""},0,0,0,0,0,24,0,{"$f":"IF(DU17=0,\"\",HLOOKUP(DU17,DO17:DS$40,DT17,FALSE))","v":""},0,0,0,0,0,24,0,{"$f":"IF(EC17=0,\"\",HLOOKUP(EC17,DW17:EA$40,EB17,FALSE))","v":""},0,0,0,0,0,24,0,{"$f":"IF(EK17=0,\"\",HLOOKUP(EK17,EE17:EI$40,EJ17,FALSE))","v":""},0,0,0,0,0,24,0,{"$f":"IF(ES17=0,\"\",HLOOKUP(ES17,EM17:EQ$40,ER17,FALSE))","v":""},0,0,0,0,0,24,0,{"$f":"IF(FA17=0,\"\",HLOOKUP(FA17,EU17:EY$40,EZ17,FALSE))","v":""},{"$f":"COUNTIF(Général!$C19:$CX19,FC$1)","v":0},{"$f":"COUNTIF(Général!$C19:$CX19,FD$1)","v":0},{"$f":"COUNTIF(Général!$C19:$CX19,FE$1)","v":0},{"$f":"COUNTIF(Général!$C19:$CX19,FF$1)","v":0},{"$f":"COUNTIF(Général!$C19:$CX19,FG$1)","v":0},24,0,{"$f":"IF(FI17<1,\"\",HLOOKUP(FI17,FC17:FG$40,FH17,FALSE))","v":""},5,"Non concerné","1","10","100","1000","10000",2222.1999999999998,"Non concerné"]
["G17",{"$f":"CONCATENATE(Général!C$3,Général!C20)","v":""},{"$f":"CONCATENATE(Général!D$3,Général!D20)","v":""},{"$f":"CONCATENATE(Général!E$3,Général!E20)","v":""},{"$f":"CONCATENATE(Général!F$3,Général!F20)","v":""},{"$f":"CONCATENATE(Général!G$3,Général!G20)","v":""},{"$f":"CONCATENATE(Général!H$3,Général!H20)","v":""},{"$f":"CONCATENATE(Général!I$3,Général!I20)","v":""},{"$f":"CONCATENATE(Général!J$3,Général!J20)","v":""},{"$f":"CONCATENATE(Général!K$3,Général!K20)","v":""},{"$f":"CONCATENATE(Général!L$3,Général!L20)","v":""},{"$f":"CONCATENATE(Général!M$3,Général!M20)","v":""},{"$f":"CONCATENATE(Général!N$3,Général!N20)","v":""},{"$f":"CONCATENATE(Général!O$3,Général!O20)","v":""},{"$f":"CONCATENATE(Général!P$3,Général!P20)","v":""},{"$f":"CONCATENATE(Général!Q$3,Général!Q20)","v":""},{"$f":"CONCATENATE(Général!R$3,Général!R20)","v":""},{"$f":"CONCATENATE(Général!S$3,Général!S20)","v":""},{"$f":"CONCATENATE(Général!T$3,Général!T20)","v":""},{"$f":"CONCATENATE(Général!U$3,Général!U20)","v":""},{"$f":"CONCATENATE(Général!V$3,Général!V20)","v":""},{"$f":"CONCATENATE(Général!W$3,Général!W20)","v":""},{"$f":"CONCATENATE(Général!X$3,Général!X20)","v":""},{"$f":"CONCATENATE(Général!Y$3,Général!Y20)","v":""},{"$f":"CONCATENATE(Général!Z$3,Général!Z20)","v":""},{"$f":"CONCATENATE(Général!AA$3,Général!AA20)","v":""},{"$f":"CONCATENATE(Général!AB$3,Général!AB20)","v":""},{"$f":"CONCATENATE(Général!AC$3,Général!AC20)","v":""},{"$f":"CONCATENATE(Général!AD$3,Général!AD20)","v":""},{"$f":"CONCATENATE(Général!AE$3,Général!AE20)","v":""},{"$f":"CONCATENATE(Général!AF$3,Général!AF20)","v":""},{"$f":"CONCATENATE(Général!AG$3,Général!AG20)","v":""},{"$f":"CONCATENATE(Général!AH$3,Général!AH20)","v":""},{"$f":"CONCATENATE(Général!AI$3,Général!AI20)","v":""},{"$f":"CONCATENATE(Général!AJ$3,Général!AJ20)","v":""},{"$f":"CONCATENATE(Général!AK$3,Général!AK20)","v":""},{"$f":"CONCATENATE(Général!AL$3,Général!AL20)","v":""},{"$f":"CONCATENATE(Général!AM$3,Général!AM20)","v":""},{"$f":"CONCATENATE(Général!AN$3,Général!AN20)","v":""},{"$f":"CONCATENATE(Général!AO$3,Général!AO20)","v":""},{"$f":"CONCATENATE(Général!AP$3,Général!AP20)","v":""},{"$f":"CONCATENATE(Général!AQ$3,Général!AQ20)","v":""},{"$f":"CONCATENATE(Général!AR$3,Général!AR20)","v":""},{"$f":"CONCATENATE(Général!AS$3,Général!AS20)","v":""},{"$f":"CONCATENATE(Général!AT$3,Général!AT20)","v":""},{"$f":"CONCATENATE(Général!AU$3,Général!AU20)","v":""},{"$f":"CONCATENATE(Général!AV$3,Général!AV20)","v":""},{"$f":"CONCATENATE(Général!AW$3,Général!AW20)","v":""},{"$f":"CONCATENATE(Général!AX$3,Général!AX20)","v":""},{"$f":"CONCATENATE(Général!AY$3,Général!AY20)","v":""},{"$f":"CONCATENATE(Général!AZ$3,Général!AZ20)","v":""},{"$f":"CONCATENATE(Général!BA$3,Général!BA20)","v":""},{"$f":"CONCATENATE(Général!BB$3,Général!BB20)","v":""},{"$f":"CONCATENATE(Général!BC$3,Général!BC20)","v":""},{"$f":"CONCATENATE(Général!BD$3,Général!BD20)","v":""},{"$f":"CONCATENATE(Général!BE$3,Général!BE20)","v":""},{"$f":"CONCATENATE(Général!BF$3,Général!BF20)","v":""},{"$f":"CONCATENATE(Général!BG$3,Général!BG20)","v":""},{"$f":"CONCATENATE(Général!BH$3,Général!BH20)","v":""},{"$f":"CONCATENATE(Général!BI$3,Général!BI20)","v":""},{"$f":"CONCATENATE(Général!BJ$3,Général!BJ20)","v":""},{"$f":"CONCATENATE(Général!BK$3,Général!BK20)","v":""},{"$f":"CONCATENATE(Général!BL$3,Général!BL20)","v":""},{"$f":"CONCATENATE(Général!BM$3,Général!BM20)","v":""},{"$f":"CONCATENATE(Général!BN$3,Général!BN20)","v":""},{"$f":"CONCATENATE(Général!BO$3,Général!BO20)","v":""},{"$f":"CONCATENATE(Général!BP$3,Général!BP20)","v":""},{"$f":"CONCATENATE(Général!BQ$3,Général!BQ20)","v":""},{"$f":"CONCATENATE(Général!BR$3,Général!BR20)","v":""},{"$f":"CONCATENATE(Général!BS$3,Général!BS20)","v":""},{"$f":"CONCATENATE(Général!BT$3,Général!BT20)","v":""},{"$f":"CONCATENATE(Général!BU$3,Général!BU20)","v":""},{"$f":"CONCATENATE(Général!BV$3,Général!BV20)","v":""},{"$f":"CONCATENATE(Général!BW$3,Général!BW20)","v":""},{"$f":"CONCATENATE(Général!BX$3,Général!BX20)","v":""},{"$f":"CONCATENATE(Général!BY$3,Général!BY20)","v":""},{"$f":"CONCATENATE(Général!BZ$3,Général!BZ20)","v":""},{"$f":"CONCATENATE(Général!CA$3,Général!CA20)","v":""},{"$f":"CONCATENATE(Général!CB$3,Général!CB20)","v":""},{"$f":"CONCATENATE(Général!CC$3,Général!CC20)","v":""},{"$f":"CONCATENATE(Général!CD$3,Général!CD20)","v":""},{"$f":"CONCATENATE(Général!CE$3,Général!CE20)","v":""},{"$f":"CONCATENATE(Général!CF$3,Général!CF20)","v":""},{"$f":"CONCATENATE(Général!CG$3,Général!CG20)","v":""},{"$f":"CONCATENATE(Général!CH$3,Général!CH20)","v":""},{"$f":"CONCATENATE(Général!CI$3,Général!CI20)","v":""},{"$f":"CONCATENATE(Général!CJ$3,Général!CJ20)","v":""},{"$f":"CONCATENATE(Général!CK$3,Général!CK20)","v":""},{"$f":"CONCATENATE(Général!CL$3,Général!CL20)","v":""},{"$f":"CONCATENATE(Général!CM$3,Général!CM20)","v":""},{"$f":"CONCATENATE(Général!CN$3,Général!CN20)","v":""},{"$f":"CONCATENATE(Général!CO$3,Général!CO20)","v":""},{"$f":"CONCATENATE(Général!CP$3,Général!CP20)","v":""},{"$f":"CONCATENATE(Général!CQ$3,Général!CQ20)","v":""},{"$f":"CONCATENATE(Général!CR$3,Général!CR20)","v":""},{"$f":"CONCATENATE(Général!CS$3,Général!CS20)","v":""},{"$f":"CONCATENATE(Général!CT$3,Général!CT20)","v":""},{"$f":"CONCATENATE(Général!CU$3,Général!CU20)","v":""},{"$f":"CONCATENATE(Général!CV$3,Général!CV20)","v":""},{"$f":"CONCATENATE(Général!CW$3,Général!CW20)","v":""},{"$f":"CONCATENATE(Général!CX$3,Général!CX20)","v":""},null,0,0,0,0,0,23,0,{"$f":"IF(DE18=0,\"\",HLOOKUP(DE18,CY18:DC$40,DD18,FALSE))","v":""},0,0,0,0,0,23,0,{"$f":"IF(DM18=0,\"\",HLOOKUP(DM18,DG18:DK$40,DL18,FALSE))","v":""},0,0,0,0,0,23,0,{"$f":"IF(DU18=0,\"\",HLOOKUP(DU18,DO18:DS$40,DT18,FALSE))","v":""},0,0,0,0,0,23,0,{"$f":"IF(EC18=0,\"\",HLOOKUP(EC18,DW18:EA$40,EB18,FALSE))","v":""},0,0,0,0,0,23,0,{"$f":"IF(EK18=0,\"\",HLOOKUP(EK18,EE18:EI$40,EJ18,FALSE))","v":""},0,0,0,0,0,23,0,{"$f":"IF(ES18=0,\"\",HLOOKUP(ES18,EM18:EQ$40,ER18,FALSE))","v":""},0,0,0,0,0,23,0,{"$f":"IF(FA18=0,\"\",HLOOKUP(FA18,EU18:EY$40,EZ18,FALSE))","v":""},{"$f":"COUNTIF(Général!$C20:$CX20,FC$1)","v":0},{"$f":"COUNTIF(Général!$C20:$CX20,FD$1)","v":0},{"$f":"COUNTIF(Général!$C20:$CX20,FE$1)","v":0},{"$f":"COUNTIF(Général!$C20:$CX20,FF$1)","v":0},{"$f":"COUNTIF(Général!$C20:$CX20,FG$1)","v":0},23,0,{"$f":"IF(FI18<1,\"\",HLOOKUP(FI18,FC18:FG$40,FH18,FALSE))","v":""},5,"Non concerné","1","10","100","1000","10000",2222.1999999999998,"Non concerné"]
["G18",{"$f":"CONCATENATE(Général!C$3,Général!C21)","v":""},{"$f":"CONCATENATE(Général!D$3,Général!D21)","v":""},{"$f":"CONCATENATE(Général!E$3,Général!E21)","v":""},{"$f":"CONCATENATE(Général!F$3,Général!F21)","v":""},{"$f":"CONCATENATE(Général!G$3,Général!G21)","v":""},{"$f":"CONCATENATE(Général!H$3,Général!H21)","v":""},{"$f":"CONCATENATE(Général!I$3,Général!I21)","v":""},{"$f":"CONCATENATE(Général!J$3,Général!J21)","v":""},{"$f":"CONCATENATE(Général!K$3,Général!K21)","v":""},{"$f":"CONCATENATE(Général!L$3,Général!L21)","v":""},{"$f":"CONCATENATE(Général!M$3,Général!M21)","v":""},{"$f":"CONCATENATE(Général!N$3,Général!N21)","v":""},{"$f":"CONCATENATE(Général!O$3,Général!O21)","v":""},{"$f":"CONCATENATE(Général!P$3,Général!P21)","v":""},{"$f":"CONCATENATE(Général!Q$3,Général!Q21)","v":""},{"$f":"CONCATENATE(Général!R$3,Général!R21)","v":""},{"$f":"CONCATENATE(Général!S$3,Général!S21)","v":""},{"$f":"CONCATENATE(Général!T$3,Général!T21)","v":""},{"$f":"CONCATENATE(Général!U$3,Général!U21)","v":""},{"$f":"CONCATENATE(Général!V$3,Général!V21)","v":""},{"$f":"CONCATENATE(Général!W$3,Général!W21)","v":""},{"$f":"CONCATENATE(Général!X$3,Général!X21)","v":""},{"$f":"CONCATENATE(Général!Y$3,Général!Y21)","v":""},{"$f":"CONCATENATE(Général!Z$3,Général!Z21)","v":""},{"$f":"CONCATENATE(Général!AA$3,Général!AA21)","v":""},{"$f":"CONCATENATE(Général!AB$3,Général!AB21)","v":""},{"$f":"CONCATENATE(Général!AC$3,Général!AC21)","v":""},{"$f":"CONCATENATE(Général!AD$3,Général!AD21)","v":""},{"$f":"CONCATENATE(Général!AE$3,Général!AE21)","v":""},{"$f":"CONCATENATE(Général!AF$3,Général!AF21)","v":""},{"$f":"CONCATENATE(Général!AG$3,Général!AG21)","v":""},{"$f":"CONCATENATE(Général!AH$3,Général!AH21)","v":""},{"$f":"CONCATENATE(Général!AI$3,Général!AI21)","v":""},{"$f":"CONCATENATE(Général!AJ$3,Général!AJ21)","v":""},{"$f":"CONCATENATE(Général!AK$3,Général!AK21)","v":""},{"$f":"CONCATENATE(Général!AL$3,Général!AL21)","v":""},{"$f":"CONCATENATE(Général!AM$3,Général!AM21)","v":""},{"$f":"CONCATENATE(Général!AN$3,Général!AN21)","v":""},{"$f":"CONCATENATE(Général!AO$3,Général!AO21)","v":""},{"$f":"CONCATENATE(Général!AP$3,Général!AP21)","v":""},{"$f":"CONCATENATE(Général!AQ$3,Général!AQ21)","v":""},{"$f":"CONCATENATE(Général!AR$3,Général!AR21)","v":""},{"$f":"CONCATENATE(Général!AS$3,Général!AS21)","v":""},{"$f":"CONCATENATE(Général!AT$3,Général!AT21)","v":""},{"$f":"CONCATENATE(Général!AU$3,Général!AU21)","v":""},{"$f":"CONCATENATE(Général!AV$3,Général!AV21)","v":""},{"$f":"CONCATENATE(Général!AW$3,Général!AW21)","v":""},{"$f":"CONCATENATE(Général!AX$3,Général!AX21)","v":""},{"$f":"CONCATENATE(Général!AY$3,Général!AY21)","v":""},{"$f":"CONCATENATE(Général!AZ$3,Général!AZ21)","v":""},{"$f":"CONCATENATE(Général!BA$3,Général!BA21)","v":""},{"$f":"CONCATENATE(Général!BB$3,Général!BB21)","v":""},{"$f":"CONCATENATE(Général!BC$3,Général!BC21)","v":""},{"$f":"CONCATENATE(Général!BD$3,Général!BD21)","v":""},{"$f":"CONCATENATE(Général!BE$3,Général!BE21)","v":""},{"$f":"CONCATENATE(Général!BF$3,Général!BF21)","v":""},{"$f":"CONCATENATE(Général!BG$3,Général!BG21)","v":""},{"$f":"CONCATENATE(Général!BH$3,Général!BH21)","v":""},{"$f":"CONCATENATE(Général!BI$3,Général!BI21)","v":""},{"$f":"CONCATENATE(Général!BJ$3,Général!BJ21)","v":""},{"$f":"CONCATENATE(Général!BK$3,Général!BK21)","v":""},{"$f":"CONCATENATE(Général!BL$3,Général!BL21)","v":""},{"$f":"CONCATENATE(Général!BM$3,Général!BM21)","v":""},{"$f":"CONCATENATE(Général!BN$3,Général!BN21)","v":""},{"$f":"CONCATENATE(Général!BO$3,Général!BO21)","v":""},{"$f":"CONCATENATE(Général!BP$3,Général!BP21)","v":""},{"$f":"CONCATENATE(Général!BQ$3,Général!BQ21)","v":""},{"$f":"CONCATENATE(Général!BR$3,Général!BR21)","v":""},{"$f":"CONCATENATE(Général!BS$3,Général!BS21)","v":""},{"$f":"CONCATENATE(Général!BT$3,Général!BT21)","v":""},{"$f":"CONCATENATE(Général!BU$3,Général!BU21)","v":""},{"$f":"CONCATENATE(Général!BV$3,Général!BV21)","v":""},{"$f":"CONCATENATE(Général!BW$3,Général!BW21)","v":""},{"$f":"CONCATENATE(Général!BX$3,Général!BX21)","v":""},{"$f":"CONCATENATE(Général!BY$3,Général!BY21)","v":""},{"$f":"CONCATENATE(Général!BZ$3,Général!BZ21)","v":""},{"$f":"CONCATENATE(Général!CA$3,Général!CA21)","v":""},{"$f":"CONCATENATE(Général!CB$3,Général!CB21)","v":""},{"$f":"CONCATENATE(Général!CC$3,Général!CC21)","v":""},{"$f":"CONCATENATE(Général!CD$3,Général!CD21)","v":""},{"$f":"CONCATENATE(Général!CE$3,Général!CE21)","v":""},{"$f":"CONCATENATE(Général!CF$3,Général!CF21)","v":""},{"$f":"CONCATENATE(Général!CG$3,Général!CG21)","v":""},{"$f":"CONCATENATE(Général!CH$3,Général!CH21)","v":""},{"$f":"CONCATENATE(Général!CI$3,Général!CI21)","v":""},{"$f":"CONCATENATE(Général!CJ$3,Général!CJ21)","v":""},{"$f":"CONCATENATE(Général!CK$3,Général!CK21)","v":""},{"$f":"CONCATENATE(Général!CL$3,Général!CL21)","v":""},{"$f":"CONCATENATE(Général!CM$3,Général!CM21)","v":""},{"$f":"CONCATENATE(Général!CN$3,Général!CN21)","v":""},{"$f":"CONCATENATE(Général!CO$3,Général!CO21)","v":""},{"$f":"CONCATENATE(Général!CP$3,Général!CP21)","v":""},{"$f":"CONCATENATE(Général!CQ$3,Général!CQ21)","v":""},{"$f":"CONCATENATE(Général!CR$3,Général!CR21)","v":""},{"$f":"CONCATENATE(Général!CS$3,Général!CS21)","v":""},{"$f":"CONCATENATE(Général!CT$3,Général!CT21)","v":""},{"$f":"CONCATENATE(Général!CU$3,Général!CU21)","v":""},{"$f":"CONCATENATE(Général!CV$3,Général!CV21)","v":""},{"$f":"CONCATENATE(Général!CW$3,Général!CW21)","v":""},{"$f":"CONCATENATE(Général!CX$3,Général!CX21)","v":""},null,0,0,0,0,0,22,0,{"$f":"IF(DE19=0,\"\",HLOOKUP(DE19,CY19:DC$40,DD19,FALSE))","v":""},0,0,0,0,0,22,0,{"$f":"IF(DM19=0,\"\",HLOOKUP(DM19,DG19:DK$40,DL19,FALSE))","v":""},0,0,0,0,0,22,0,{"$f":"IF(DU19=0,\"\",HLOOKUP(DU19,DO19:DS$40,DT19,FALSE))","v":""},0,0,0,0,0,22,0,{"$f":"IF(EC19=0,\"\",HLOOKUP(EC19,DW19:EA$40,EB19,FALSE))","v":""},0,0,0,0,0,22,0,{"$f":"IF(EK19=0,\"\",HLOOKUP(EK19,EE19:EI$40,EJ19,FALSE))","v":""},0,0,0,0,0,22,0,{"$f":"IF(ES19=0,\"\",HLOOKUP(ES19,EM19:EQ$40,ER19,FALSE))","v":""},0,0,0,0,0,22,0,{"$f":"IF(FA19=0,\"\",HLOOKUP(FA19,EU19:EY$40,EZ19,FALSE))","v":""},{"$f":"COUNTIF(Général!$C21:$CX21,FC$1)","v":0},{"$f":"COUNTIF(Général!$C21:$CX21,FD$1)","v":0},{"$f":"COUNTIF(Général!$C21:$CX21,FE$1)","v":0},{"$f":"COUNTIF(Général!$C21:$CX21,FF$1)","v":0},{"$f":"COUNTIF(Général!$C21:$CX21,FG$1)","v":0},22,0,{"$f":"IF(FI19<1,\"\",HLOOKUP(FI19,FC19:FG$40,FH19,FALSE))","v":""},5,"Non concerné","1","10","100","1000","10000",2222.1999999999998,"Non concerné"]
["G19",{"$f":"CONCATENATE(Général!C$3,Général!C22)","v":""},{"$f":"CONCATENATE(Général!D$3,Général!D22)","v":""},{"$f":"CONCATENATE(Général!E$3,Général!E22)","v":""},{"$f":"CONCATENATE(Général!F$3,Général!F22)","v":""},{"$f":"CONCATENATE(Général!G$3,Général!G22)","v":""},{"$f":"CONCATENATE(Général!H$3,Général!H22)","v":""},{"$f":"CONCATENATE(Général!I$3,Général!I22)","v":""},{"$f":"CONCATENATE(Général!J$3,Général!J22)","v":""},{"$f":"CONCATENATE(Général!K$3,Général!K22)","v":""},{"$f":"CONCATENATE(Général!L$3,Général!L22)","v":""},{"$f":"CONCATENATE(Général!M$3,Général!M22)","v":""},{"$f":"CONCATENATE(Général!N$3,Général!N22)","v":""},{"$f":"CONCATENATE(Général!O$3,Général!O22)","v":""},{"$f":"CONCATENATE(Général!P$3,Général!P22)","v":""},{"$f":"CONCATENATE(Général!Q$3,Général!Q22)","v":""},{"$f":"CONCATENATE(Général!R$3,Général!R22)","v":""},{"$f":"CONCATENATE(Général!S$3,Général!S22)","v":""},{"$f":"CONCATENATE(Général!T$3,Général!T22)","v":""},{"$f":"CONCATENATE(Général!U$3,Général!U22)","v":""},{"$f":"CONCATENATE(Général!V$3,Général!V22)","v":""},{"$f":"CONCATENATE(Général!W$3,Général!W22)","v":""},{"$f":"CONCATENATE(Général!X$3,Général!X22)","v":""},{"$f":"CONCATENATE(Général!Y$3,Général!Y22)","v":""},{"$f":"CONCATENATE(Général!Z$3,Général!Z22)","v":""},{"$f":"CONCATENATE(Général!AA$3,Général!AA22)","v":""},{"$f":"CONCATENATE(Général!AB$3,Général!AB22)","v":""},{"$f":"CONCATENATE(Général!AC$3,Général!AC22)","v":""},{"$f":"CONCATENATE(Général!AD$3,Général!AD22)","v":""},{"$f":"CONCATENATE(Général!AE$3,Général!AE22)","v":""},{"$f":"CONCATENATE(Général!AF$3,Général!AF22)","v":""},{"$f":"CONCATENATE(Général!AG$3,Général!AG22)","v":""},{"$f":"CONCATENATE(Général!AH$3,Général!AH22)","v":""},{"$f":"CONCATENATE(Général!AI$3,Général!AI22)","v":""},{"$f":"CONCATENATE(Général!AJ$3,Général!AJ22)","v":""},{"$f":"CONCATENATE(Général!AK$3,Général!AK22)","v":""},{"$f":"CONCATENATE(Général!AL$3,Général!AL22)","v":""},{"$f":"CONCATENATE(Général!AM$3,Général!AM22)","v":""},{"$f":"CONCATENATE(Général!AN$3,Général!AN22)","v":""},{"$f":"CONCATENATE(Général!AO$3,Général!AO22)","v":""},{"$f":"CONCATENATE(Général!AP$3,Général!AP22)","v":""},{"$f":"CONCATENATE(Général!AQ$3,Général!AQ22)","v":""},{"$f":"CONCATENATE(Général!AR$3,Général!AR22)","v":""},{"$f":"CONCATENATE(Général!AS$3,Général!AS22)","v":""},{"$f":"CONCATENATE(Général!AT$3,Général!AT22)","v":""},{"$f":"CONCATENATE(Général!AU$3,Général!AU22)","v":""},{"$f":"CONCATENATE(Général!AV$3,Général!AV22)","v":""},{"$f":"CONCATENATE(Général!AW$3,Général!AW22)","v":""},{"$f":"CONCATENATE(Général!AX$3,Général!AX22)","v":""},{"$f":"CONCATENATE(Général!AY$3,Général!AY22)","v":""},{"$f":"CONCATENATE(Général!AZ$3,Général!AZ22)","v":""},{"$f":"CONCATENATE(Général!BA$3,Général!BA22)","v":""},{"$f":"CONCATENATE(Général!BB$3,Général!BB22)","v":""},{"$f":"CONCATENATE(Général!BC$3,Général!BC22)","v":""},{"$f":"CONCATENATE(Général!BD$3,Général!BD22)","v":""},{"$f":"CONCATENATE(Général!BE$3,Général!BE22)","v":""},{"$f":"CONCATENATE(Général!BF$3,Général!BF22)","v":""},{"$f":"CONCATENATE(Général!BG$3,Général!BG22)","v":""},{"$f":"CONCATENATE(Général!BH$3,Général!BH22)","v":""},{"$f":"CONCATENATE(Général!BI$3,Général!BI22)","v":""},{"$f":"CONCATENATE(Général!BJ$3,Général!BJ22)","v":""},{"$f":"CONCATENATE(Général!BK$3,Général!BK22)","v":""},{"$f":"CONCATENATE(Général!BL$3,Général!BL22)","v":""},{"$f":"CONCATENATE(Général!BM$3,Général!BM22)","v":""},{"$f":"CONCATENATE(Général!BN$3,Général!BN22)","v":""},{"$f":"CONCATENATE(Général!BO$3,Général!BO22)","v":""},{"$f":"CONCATENATE(Général!BP$3,Général!BP22)","v":""},{"$f":"CONCATENATE(Général!BQ$3,Général!BQ22)","v":""},{"$f":"CONCATENATE(Général!BR$3,Général!BR22)","v":""},{"$f":"CONCATENATE(Général!BS$3,Général!BS22)","v":""},{"$f":"CONCATENATE(Général!BT$3,Général!BT22)","v":""},{"$f":"CONCATENATE(Général!BU$3,Général!BU22)","v":""},{"$f":"CONCATENATE(Général!BV$3,Général!BV22)","v":""},{"$f":"CONCATENATE(Général!BW$3,Général!BW22)","v":""},{"$f":"CONCATENATE(Général!BX$3,Général!BX22)","v":""},{"$f":"CONCATENATE(Général!BY$3,Général!BY22)","v":""},{"$f":"CONCATENATE(Général!BZ$3,Général!BZ22)","v":""},{"$f":"CONCATENATE(Général!CA$3,Général!CA22)","v":""},{"$f":"CONCATENATE(Général!CB$3,Général!CB22)","v":""},{"$f":"CONCATENATE(Général!CC$3,Général!CC22)","v":""},{"$f":"CONCATENATE(Général!CD$3,Général!CD22)","v":""},{"$f":"CONCATENATE(Général!CE$3,Général!CE22)","v":""},{"$f":"CONCATENATE(Général!CF$3,Général!CF22)","v":""},{"$f":"CONCATENATE(Général!CG$3,Général!CG22)","v":""},{"$f":"CONCATENATE(Général!CH$3,Général!CH22)","v":""},{"$f":"CONCATENATE(Général!CI$3,Général!CI22)","v":""},{"$f":"CONCATENATE(Général!CJ$3,Général!CJ22)","v":""},{"$f":"CONCATENATE(Général!CK$3,Général!CK22)","v":""},{"$f":"CONCATENATE(Général!CL$3,Général!CL22)","v":""},{"$f":"CONCATENATE(Général!CM$3,Général!CM22)","v":""},{"$f":"CONCATENATE(Général!CN$3,Général!CN22)","v":""},{"$f":"CONCATENATE(Général!CO$3,Général!CO22)","v":""},{"$f":"CONCATENATE(Général!CP$3,Général!CP22)","v":""},{"$f":"CONCATENATE(Général!CQ$3,Général!CQ22)","v":""},{"$f":"CONCATENATE(Général!CR$3,Général!CR22)","v":""},{"$f":"CONCATENATE(Général!CS$3,Général!CS22)","v":""},{"$f":"CONCATENATE(Général!CT$3,Général!CT22)","v":""},{"$f":"CONCATENATE(Général!CU$3,Général!CU22)","v":""},{"$f":"CONCATENATE(Général!CV$3,Général!CV22)","v":""},{"$f":"CONCATENATE(Général!CW$3,Général!CW22)","v":""},{"$f":"CONCATENATE(Général!CX$3,Général!CX22)","v":""},null,0,0,0,0,0,21,0,{"$f":"IF(DE20=0,\"\",HLOOKUP(DE20,CY20:DC$40,DD20,FALSE))","v":""},0,0,0,0,0,21,0,{"$f":"IF(DM20=0,\"\",HLOOKUP(DM20,DG20:DK$40,DL20,FALSE))","v":""},0,0,0,0,0,21,0,{"$f":"IF(DU20=0,\"\",HLOOKUP(DU20,DO20:DS$40,DT20,FALSE))","v":""},0,0,0,0,0,21,0,{"$f":"IF(EC20=0,\"\",HLOOKUP(EC20,DW20:EA$40,EB20,FALSE))","v":""},0,0,0,0,0,21,0,{"$f":"IF(EK20=0,\"\",HLOOKUP(EK20,EE20:EI$40,EJ20,FALSE))","v":""},0,0,0,0,0,21,0,{"$f":"IF(ES20=0,\"\",HLOOKUP(ES20,EM20:EQ$40,ER20,FALSE))","v":""},0,0,0,0,0,21,0,{"$f":"IF(FA20=0,\"\",HLOOKUP(FA20,EU20:EY$40,EZ20,FALSE))","v":""},{"$f":"COUNTIF(Général!$C22:$CX22,FC$1)","v":0},{"$f":"COUNTIF(Général!$C22:$CX22,FD$1)","v":0},{"$f":"COUNTIF(Général!$C22:$CX22,FE$1)","v":0},{"$f":"COUNTIF(Général!$C22:$CX22,FF$1)","v":0},{"$f":"COUNTIF(Général!$C22:$CX22,FG$1)","v":0},21,0,{"$f":"IF(FI20<1,\"\",HLOOKUP(FI20,FC20:FG$40,FH20,FALSE))","v":""},5,"Non concerné","1","10","100","1000","10000",2222.1999999999998,"Non concerné"]
["E1",{"$f":"CONCATENATE(Général!C$3,Général!C23)","v":""},{"$f":"CONCATENATE(Général!D$3,Général!D23)","v":""},{"$f":"CONCATENATE(Général!E$3,Général!E23)","v":""},{"$f":"CONCATENATE(Général!F$3,Général!F23)","v":""},{"$f":"CONCATENATE(Général!G$3,Général!G23)","v":""},{"$f":"CONCATENATE(Général!H$3,Général!H23)","v":""},{"$f":"CONCATENATE(Général!I$3,Général!I23)","v":""},{"$f":"CONCATENATE(Général!J$3,Général!J23)","v":""},{"$f":"CONCATENATE(Général!K$3,Général!K23)","v":""},{"$f":"CONCATENATE(Général!L$3,Général!L23)","v":""},{"$f":"CONCATENATE(Général!M$3,Général!M23)","v":""},{"$f":"CONCATENATE(Général!N$3,Général!N23)","v":""},{"$f":"CONCATENATE(Général!O$3,Général!O23)","v":""},{"$f":"CONCATENATE(Général!P$3,Général!P23)","v":""},{"$f":"CONCATENATE(Général!Q$3,Général!Q23)","v":""},{"$f":"CONCATENATE(Général!R$3,Général!R23)","v":""},{"$f":"CONCATENATE(Général!S$3,Général!S23)","v":""},{"$f":"CONCATENATE(Général!T$3,Général!T23)","v":""},{"$f":"CONCATENATE(Général!U$3,Général!U23)","v":""},{"$f":"CONCATENATE(Général!V$3,Général!V23)","v":""},{"$f":"CONCATENATE(Général!W$3,Général!W23)","v":""},{"$f":"CONCATENATE(Général!X$3,Général!X23)","v":""},{"$f":"CONCATENATE(Général!Y$3,Général!Y23)","v":""},{"$f":"CONCATENATE(Général!Z$3,Général!Z23)","v":""},{"$f":"CONCATENATE(Général!AA$3,Général!AA23)","v":""},{"$f":"CONCATENATE(Général!AB$3,Général!AB23)","v":""},{"$f":"CONCATENATE(Général!AC$3,Général!AC23)","v":""},{"$f":"CONCATENATE(Général!AD$3,Général!AD23)","v":""},{"$f":"CONCATENATE(Général!AE$3,Général!AE23)","v":""},{"$f":"CONCATENATE(Général!AF$3,Général!AF23)","v":""},{"$f":"CONCATENATE(Général!AG$3,Général!AG23)","v":""},{"$f":"CONCATENATE(Général!AH$3,Général!AH23)","v":""},{"$f":"CONCATENATE(Général!AI$3,Général!AI23)","v":""},{"$f":"CONCATENATE(Général!AJ$3,Général!AJ23)","v":""},{"$f":"CONCATENATE(Général!AK$3,Général!AK23)","v":""},{"$f":"CONCATENATE(Général!AL$3,Général!AL23)","v":""},{"$f":"CONCATENATE(Général!AM$3,Général!AM23)","v":""},{"$f":"CONCATENATE(Général!AN$3,Général!AN23)","v":""},{"$f":"CONCATENATE(Général!AO$3,Général!AO23)","v":""},{"$f":"CONCATENATE(Général!AP$3,Général!AP23)","v":""},{"$f":"CONCATENATE(Général!AQ$3,Général!AQ23)","v":""},{"$f":"CONCATENATE(Général!AR$3,Général!AR23)","v":""},{"$f":"CONCATENATE(Général!AS$3,Général!AS23)","v":""},{"$f":"CONCATENATE(Général!AT$3,Général!AT23)","v":""},{"$f":"CONCATENATE(Général!AU$3,Général!AU23)","v":""},{"$f":"CONCATENATE(Général!AV$3,Général!AV23)","v":""},{"$f":"CONCATENATE(Général!AW$3,Général!AW23)","v":""},{"$f":"CONCATENATE(Général!AX$3,Général!AX23)","v":""},{"$f":"CONCATENATE(Général!AY$3,Général!AY23)","v":""},{"$f":"CONCATENATE(Général!AZ$3,Général!AZ23)","v":""},{"$f":"CONCATENATE(Général!BA$3,Général!BA23)","v":""},{"$f":"CONCATENATE(Général!BB$3,Général!BB23)","v":""},{"$f":"CONCATENATE(Général!BC$3,Général!BC23)","v":""},{"$f":"CONCATENATE(Général!BD$3,Général!BD23)","v":""},{"$f":"CONCATENATE(Général!BE$3,Général!BE23)","v":""},{"$f":"CONCATENATE(Général!BF$3,Général!BF23)","v":""},{"$f":"CONCATENATE(Général!BG$3,Général!BG23)","v":""},{"$f":"CONCATENATE(Général!BH$3,Général!BH23)","v":""},{"$f":"CONCATENATE(Général!BI$3,Général!BI23)","v":""},{"$f":"CONCATENATE(Général!BJ$3,Général!BJ23)","v":""},{"$f":"CONCATENATE(Général!BK$3,Général!BK23)","v":""},{"$f":"CONCATENATE(Général!BL$3,Général!BL23)","v":""},{"$f":"CONCATENATE(Général!BM$3,Général!BM23)","v":""},{"$f":"CONCATENATE(Général!BN$3,Général!BN23)","v":""},{"$f":"CONCATENATE(Général!BO$3,Général!BO23)","v":""},{"$f":"CONCATENATE(Général!BP$3,Général!BP23)","v":""},{"$f":"CONCATENATE(Général!BQ$3,Général!BQ23)","v":""},{"$f":"CONCATENATE(Général!BR$3,Général!BR23)","v":""},{"$f":"CONCATENATE(Général!BS$3,Général!BS23)","v":""},{"$f":"CONCATENATE(Général!BT$3,Général!BT23)","v":""},{"$f":"CONCATENATE(Général!BU$3,Général!BU23)","v":""},{"$f":"CONCATENATE(Général!BV$3,Général!BV23)","v":""},{"$f":"CONCATENATE(Général!BW$3,Général!BW23)","v":""},{"$f":"CONCATENATE(Général!BX$3,Général!BX23)","v":""},{"$f":"CONCATENATE(Général!BY$3,Général!BY23)","v":""},{"$f":"CONCATENATE(Général!BZ$3,Général!BZ23)","v":""},{"$f":"CONCATENATE(Général!CA$3,Général!CA23)","v":""},{"$f":"CONCATENATE(Général!CB$3,Général!CB23)","v":""},{"$f":"CONCATENATE(Général!CC$3,Général!CC23)","v":""},{"$f":"CONCATENATE(Général!CD$3,Général!CD23)","v":""},{"$f":"CONCATENATE(Général!CE$3,Général!CE23)","v":""},{"$f":"CONCATENATE(Général!CF$3,Général!CF23)","v":""},{"$f":"CONCATENATE(Général!CG$3,Général!CG23)","v":""},{"$f":"CONCATENATE(Général!CH$3,Général!CH23)","v":""},{"$f":"CONCATENATE(Général!CI$3,Général!CI23)","v":""},{"$f":"CONCATENATE(Général!CJ$3,Général!CJ23)","v":""},{"$f":"CONCATENATE(Général!CK$3,Général!CK23)","v":""},{"$f":"CONCATENATE(Général!CL$3,Général!CL23)","v":""},{"$f":"CONCATENATE(Général!CM$3,Général!CM23)","v":""},{"$f":"CONCATENATE(Général!CN$3,Général!CN23)","v":""},{"$f":"CONCATENATE(Général!CO$3,Général!CO23)","v":""},{"$f":"CONCATENATE(Général!CP$3,Général!CP23)","v":""},{"$f":"CONCATENATE(Général!CQ$3,Général!CQ23)","v":""},{"$f":"CONCATENATE(Général!CR$3,Général!CR23)","v":""},{"$f":"CONCATENATE(Général!CS$3,Général!CS23)","v":""},{"$f":"CONCATENATE(Général!CT$3,Général!CT23)","v":""},{"$f":"CONCATENATE(Général!CU$3,Général!CU23)","v":""},{"$f":"CONCATENATE(Général!CV$3,Général!CV23)","v":""},{"$f":"CONCATENATE(Général!CW$3,Général!CW23)","v":""},{"$f":"CONCATENATE(Général!CX$3,Général!CX23)","v":""},null,0,0,0,0,0,20,0,{"$f":"IF(DE21=0,\"\",HLOOKUP(DE21,CY21:DC$40,DD21,FALSE))","v":""},0,0,0,0,0,20,0,{"$f":"IF(DM21=0,\"\",HLOOKUP(DM21,DG21:DK$40,DL21,FALSE))","v":""},0,0,0,0,0,20,0,{"$f":"IF(DU21=0,\"\",HLOOKUP(DU21,DO21:DS$40,DT21,FALSE))","v":""},0,0,0,0,0,20,0,{"$f":"IF(EC21=0,\"\",HLOOKUP(EC21,DW21:EA$40,EB21,FALSE))","v":""},0,0,0,0,0,20,0,{"$f":"IF(EK21=0,\"\",HLOOKUP(EK21,EE21:EI$40,EJ21,FALSE))","v":""},0,0,0,0,0,20,0,{"$f":"IF(ES21=0,\"\",HLOOKUP(ES21,EM21:EQ$40,ER21,FALSE))","v":""},0,0,0,0,0,20,0,{"$f":"IF(FA21=0,\"\",HLOOKUP(FA21,EU21:EY$40,EZ21,FALSE))","v":""},{"$f":"COUNTIF(Général!$C23:$CX23,FC$1)","v":0},{"$f":"COUNTIF(Général!$C23:$CX23,FD$1)","v":0},{"$f":"COUNTIF(Général!$C23:$CX23,FE$1)","v":0},{"$f":"COUNTIF(Général!$C23:$CX23,FF$1)","v":0},{"$f":"COUNTIF(Général!$C23:$CX23,FG$1)","v":0},20,0,{"$f":"IF(FI21<1,\"\",HLOOKUP(FI21,FC21:FG$40,FH21,FALSE))","v":""},5,"Non concerné","1","10","100","1000","10000",2222.1999999999998,"Non concerné"]
["E2",{"$f":"CONCATENATE(Général!C$3,Général!C24)","v":""},{"$f":"CONCATENATE(Général!D$3,Général!D24)","v":""},{"$f":"CONCATENATE(Général!E$3,Général!E24)","v":""},{"$f":"CONCATENATE(Général!F$3,Général!F24)","v":""},{"$f":"CONCATENATE(Général!G$3,Général!G24)","v":""},{"$f":"CONCATENATE(Général!H$3,Général!H24)","v":""},{"$f":"CONCATENATE(Général!I$3,Général!I24)","v":""},{"$f":"CONCATENATE(Général!J$3,Général!J24)","v":""},{"$f":"CONCATENATE(Général!K$3,Général!K24)","v":""},{"$f":"CONCATENATE(Général!L$3,Général!L24)","v":""},{"$f":"CONCATENATE(Général!M$3,Général!M24)","v":""},{"$f":"CONCATENATE(Général!N$3,Général!N24)","v":""},{"$f":"CONCATENATE(Général!O$3,Général!O24)","v":""},{"$f":"CONCATENATE(Général!P$3,Général!P24)","v":""},{"$f":"CONCATENATE(Général!Q$3,Général!Q24)","v":""},{"$f":"CONCATENATE(Général!R$3,Général!R24)","v":""},{"$f":"CONCATENATE(Général!S$3,Général!S24)","v":""},{"$f":"CONCATENATE(Général!T$3,Général!T24)","v":""},{"$f":"CONCATENATE(Général!U$3,Général!U24)","v":""},{"$f":"CONCATENATE(Général!V$3,Général!V24)","v":""},{"$f":"CONCATENATE(Général!W$3,Général!W24)","v":""},{"$f":"CONCATENATE(Général!X$3,Général!X24)","v":""},{"$f":"CONCATENATE(Général!Y$3,Général!Y24)","v":""},{"$f":"CONCATENATE(Général!Z$3,Général!Z24)","v":""},{"$f":"CONCATENATE(Général!AA$3,Général!AA24)","v":""},{"$f":"CONCATENATE(Général!AB$3,Général!AB24)","v":""},{"$f":"CONCATENATE(Général!AC$3,Général!AC24)","v":""},{"$f":"CONCATENATE(Général!AD$3,Général!AD24)","v":""},{"$f":"CONCATENATE(Général!AE$3,Général!AE24)","v":""},{"$f":"CONCATENATE(Général!AF$3,Général!AF24)","v":""},{"$f":"CONCATENATE(Général!AG$3,Général!AG24)","v":""},{"$f":"CONCATENATE(Général!AH$3,Général!AH24)","v":""},{"$f":"CONCATENATE(Général!AI$3,Général!AI24)","v":""},{"$f":"CONCATENATE(Général!AJ$3,Général!AJ24)","v":""},{"$f":"CONCATENATE(Général!AK$3,Général!AK24)","v":""},{"$f":"CONCATENATE(Général!AL$3,Général!AL24)","v":""},{"$f":"CONCATENATE(Général!AM$3,Général!AM24)","v":""},{"$f":"CONCATENATE(Général!AN$3,Général!AN24)","v":""},{"$f":"CONCATENATE(Général!AO$3,Général!AO24)","v":""},{"$f":"CONCATENATE(Général!AP$3,Général!AP24)","v":""},{"$f":"CONCATENATE(Général!AQ$3,Général!AQ24)","v":""},{"$f":"CONCATENATE(Général!AR$3,Général!AR24)","v":""},{"$f":"CONCATENATE(Général!AS$3,Général!AS24)","v":""},{"$f":"CONCATENATE(Général!AT$3,Général!AT24)","v":""},{"$f":"CONCATENATE(Général!AU$3,Général!AU24)","v":""},{"$f":"CONCATENATE(Général!AV$3,Général!AV24)","v":""},{"$f":"CONCATENATE(Général!AW$3,Général!AW24)","v":""},{"$f":"CONCATENATE(Général!AX$3,Général!AX24)","v":""},{"$f":"CONCATENATE(Général!AY$3,Général!AY24)","v":""},{"$f":"CONCATENATE(Général!AZ$3,Général!AZ24)","v":""},{"$f":"CONCATENATE(Général!BA$3,Général!BA24)","v":""},{"$f":"CONCATENATE(Général!BB$3,Général!BB24)","v":""},{"$f":"CONCATENATE(Général!BC$3,Général!BC24)","v":""},{"$f":"CONCATENATE(Général!BD$3,Général!BD24)","v":""},{"$f":"CONCATENATE(Général!BE$3,Général!BE24)","v":""},{"$f":"CONCATENATE(Général!BF$3,Général!BF24)","v":""},{"$f":"CONCATENATE(Général!BG$3,Général!BG24)","v":""},{"$f":"CONCATENATE(Général!BH$3,Général!BH24)","v":""},{"$f":"CONCATENATE(Général!BI$3,Général!BI24)","v":""},{"$f":"CONCATENATE(Général!BJ$3,Général!BJ24)","v":""},{"$f":"CONCATENATE(Général!BK$3,Général!BK24)","v":""},{"$f":"CONCATENATE(Général!BL$3,Général!BL24)","v":""},{"$f":"CONCATENATE(Général!BM$3,Général!BM24)","v":""},{"$f":"CONCATENATE(Général!BN$3,Général!BN24)","v":""},{"$f":"CONCATENATE(Général!BO$3,Général!BO24)","v":""},{"$f":"CONCATENATE(Général!BP$3,Général!BP24)","v":""},{"$f":"CONCATENATE(Général!BQ$3,Général!BQ24)","v":""},{"$f":"CONCATENATE(Général!BR$3,Général!BR24)","v":""},{"$f":"CONCATENATE(Général!BS$3,Général!BS24)","v":""},{"$f":"CONCATENATE(Général!BT$3,Général!BT24)","v":""},{"$f":"CONCATENATE(Général!BU$3,Général!BU24)","v":""},{"$f":"CONCATENATE(Général!BV$3,Général!BV24)","v":""},{"$f":"CONCATENATE(Général!BW$3,Général!BW24)","v":""},{"$f":"CONCATENATE(Général!BX$3,Général!BX24)","v":""},{"$f":"CONCATENATE(Général!BY$3,Général!BY24)","v":""},{"$f":"CONCATENATE(Général!BZ$3,Général!BZ24)","v":""},{"$f":"CONCATENATE(Général!CA$3,Général!CA24)","v":""},{"$f":"CONCATENATE(Général!CB$3,Général!CB24)","v":""},{"$f":"CONCATENATE(Général!CC$3,Général!CC24)","v":""},{"$f":"CONCATENATE(Général!CD$3,Général!CD24)","v":""},{"$f":"CONCATENATE(Général!CE$3,Général!CE24)","v":""},{"$f":"CONCATENATE(Général!CF$3,Général!CF24)","v":""},{"$f":"CONCATENATE(Général!CG$3,Général!CG24)","v":""},{"$f":"CONCATENATE(Général!CH$3,Général!CH24)","v":""},{"$f":"CONCATENATE(Général!CI$3,Général!CI24)","v":""},{"$f":"CONCATENATE(Général!CJ$3,Général!CJ24)","v":""},{"$f":"CONCATENATE(Général!CK$3,Général!CK24)","v":""},{"$f":"CONCATENATE(Général!CL$3,Général!CL24)","v":""},{"$f":"CONCATENATE(Général!CM$3,Général!CM24)","v":""},{"$f":"CONCATENATE(Général!CN$3,Général!CN24)","v":""},{"$f":"CONCATENATE(Général!CO$3,Général!CO24)","v":""},{"$f":"CONCATENATE(Général!CP$3,Général!CP24)","v":""},{"$f":"CONCATENATE(Général!CQ$3,Général!CQ24)","v":""},{"$f":"CONCATENATE(Général!CR$3,Général!CR24)","v":""},{"$f":"CONCATENATE(Général!CS$3,Général!CS24)","v":""},{"$f":"CONCATENATE(Général!CT$3,Général!CT24)","v":""},{"$f":"CONCATENATE(Général!CU$3,Général!CU24)","v":""},{"$f":"CONCATENATE(Général!CV$3,Général!CV24)","v":""},{"$f":"CONCATENATE(Général!CW$3,Général!CW24)","v":""},{"$f":"CONCATENATE(Général!CX$3,Général!CX24)","v":""},null,0,0,0,0,0,19,0,{"$f":"IF(DE22=0,\"\",HLOOKUP(DE22,CY22:DC$40,DD22,FALSE))","v":""},{"$f":"COUNTIF($A22:$CW22,(CONCATENATE(\"Un fournisseur\",DG$1)))","v":0},0,0,0,0,19,0,{"$f":"IF(DM22=0,\"\",HLOOKUP(DM22,DG22:DK$40,DL22,FALSE))","v":""},{"$f":"COUNTIF($A22:$CW22,(CONCATENATE(\"Une collectivité/organisme local\",DO$1)))","v":0},0,0,0,0,19,0,{"$f":"IF(DU22=0,\"\",HLOOKUP(DU22,DO22:DS$40,DT22,FALSE))","v":""},{"$f":"COUNTIF($A22:$CW22,(CONCATENATE(\"Un collaborateur/salarié\",DW$1)))","v":0},0,0,0,0,19,0,{"$f":"IF(EC22=0,\"\",HLOOKUP(EC22,DW22:EA$40,EB22,FALSE))","v":""},{"$f":"COUNTIF($A22:$CW22,(CONCATENATE(\"Un prestataire\",EE$1)))","v":0},0,0,0,0,19,0,{"$f":"IF(EK22=0,\"\",HLOOKUP(EK22,EE22:EI$40,EJ22,FALSE))","v":""},{"$f":"COUNTIF($A22:$CW22,(CONCATENATE(\"Un actionnaire\",EM$1)))","v":0},0,0,0,0,19,0,{"$f":"IF(ES22=0,\"\",HLOOKUP(ES22,EM22:EQ$40,ER22,FALSE))","v":""},{"$f":"COUNTIF($A22:$CW22,(CONCATENATE(\"Autre\",EU$1)))","v":0},0,0,0,0,19,0,{"$f":"IF(FA22=0,\"\",HLOOKUP(FA22,EU22:EY$40,EZ22,FALSE))","v":""},{"$f":"COUNTIF(Général!$C24:$CX24,FC$1)","v":0},{"$f":"COUNTIF(Général!$C24:$CX24,FD$1)","v":0},{"$f":"COUNTIF(Général!$C24:$CX24,FE$1)","v":0},{"$f":"COUNTIF(Général!$C24:$CX24,FF$1)","v":0},{"$f":"COUNTIF(Général!$C24:$CX24,FG$1)","v":0},19,0,{"$f":"IF(FI22<1,\"\",HLOOKUP(FI22,FC22:FG$40,FH22,FALSE))","v":""},5,"Non concerné","1","10","100","1000","10000",2222.1999999999998,"Non concerné"]
["E3",{"$f":"CONCATENATE(Général!C$3,Général!C25)","v":""},{"$f":"CONCATENATE(Général!D$3,Général!D25)","v":""},{"$f":"CONCATENATE(Général!E$3,Général!E25)","v":""},{"$f":"CONCATENATE(Général!F$3,Général!F25)","v":""},{"$f":"CONCATENATE(Général!G$3,Général!G25)","v":""},{"$f":"CONCATENATE(Général!H$3,Général!H25)","v":""},{"$f":"CONCATENATE(Général!I$3,Général!I25)","v":""},{"$f":"CONCATENATE(Général!J$3,Général!J25)","v":""},{"$f":"CONCATENATE(Général!K$3,Général!K25)","v":""},{"$f":"CONCATENATE(Général!L$3,Général!L25)","v":""},{"$f":"CONCATENATE(Général!M$3,Général!M25)","v":""},{"$f":"CONCATENATE(Général!N$3,Général!N25)","v":""},{"$f":"CONCATENATE(Général!O$3,Général!O25)","v":""},{"$f":"CONCATENATE(Général!P$3,Général!P25)","v":""},{"$f":"CONCATENATE(Général!Q$3,Général!Q25)","v":""},{"$f":"CONCATENATE(Général!R$3,Général!R25)","v":""},{"$f":"CONCATENATE(Général!S$3,Général!S25)","v":""},{"$f":"CONCATENATE(Général!T$3,Général!T25)","v":""},{"$f":"CONCATENATE(Général!U$3,Général!U25)","v":""},{"$f":"CONCATENATE(Général!V$3,Général!V25)","v":""},{"$f":"CONCATENATE(Général!W$3,Général!W25)","v":""},{"$f":"CONCATENATE(Général!X$3,Général!X25)","v":""},{"$f":"CONCATENATE(Général!Y$3,Général!Y25)","v":""},{"$f":"CONCATENATE(Général!Z$3,Général!Z25)","v":""},{"$f":"CONCATENATE(Général!AA$3,Général!AA25)","v":""},{"$f":"CONCATENATE(Général!AB$3,Général!AB25)","v":""},{"$f":"CONCATENATE(Général!AC$3,Général!AC25)","v":""},{"$f":"CONCATENATE(Général!AD$3,Général!AD25)","v":""},{"$f":"CONCATENATE(Général!AE$3,Général!AE25)","v":""},{"$f":"CONCATENATE(Général!AF$3,Général!AF25)","v":""},{"$f":"CONCATENATE(Général!AG$3,Général!AG25)","v":""},{"$f":"CONCATENATE(Général!AH$3,Général!AH25)","v":""},{"$f":"CONCATENATE(Général!AI$3,Général!AI25)","v":""},{"$f":"CONCATENATE(Général!AJ$3,Général!AJ25)","v":""},{"$f":"CONCATENATE(Général!AK$3,Général!AK25)","v":""},{"$f":"CONCATENATE(Général!AL$3,Général!AL25)","v":""},{"$f":"CONCATENATE(Général!AM$3,Général!AM25)","v":""},{"$f":"CONCATENATE(Général!AN$3,Général!AN25)","v":""},{"$f":"CONCATENATE(Général!AO$3,Général!AO25)","v":""},{"$f":"CONCATENATE(Général!AP$3,Général!AP25)","v":""},{"$f":"CONCATENATE(Général!AQ$3,Général!AQ25)","v":""},{"$f":"CONCATENATE(Général!AR$3,Général!AR25)","v":""},{"$f":"CONCATENATE(Général!AS$3,Général!AS25)","v":""},{"$f":"CONCATENATE(Général!AT$3,Général!AT25)","v":""},{"$f":"CONCATENATE(Général!AU$3,Général!AU25)","v":""},{"$f":"CONCATENATE(Général!AV$3,Général!AV25)","v":""},{"$f":"CONCATENATE(Général!AW$3,Général!AW25)","v":""},{"$f":"CONCATENATE(Général!AX$3,Général!AX25)","v":""},{"$f":"CONCATENATE(Général!AY$3,Général!AY25)","v":""},{"$f":"CONCATENATE(Général!AZ$3,Général!AZ25)","v":""},{"$f":"CONCATENATE(Général!BA$3,Général!BA25)","v":""},{"$f":"CONCATENATE(Général!BB$3,Général!BB25)","v":""},{"$f":"CONCATENATE(Général!BC$3,Général!BC25)","v":""},{"$f":"CONCATENATE(Général!BD$3,Général!BD25)","v":""},{"$f":"CONCATENATE(Général!BE$3,Général!BE25)","v":""},{"$f":"CONCATENATE(Général!BF$3,Général!BF25)","v":""},{"$f":"CONCATENATE(Général!BG$3,Général!BG25)","v":""},{"$f":"CONCATENATE(Général!BH$3,Général!BH25)","v":""},{"$f":"CONCATENATE(Général!BI$3,Général!BI25)","v":""},{"$f":"CONCATENATE(Général!BJ$3,Général!BJ25)","v":""},{"$f":"CONCATENATE(Général!BK$3,Général!BK25)","v":""},{"$f":"CONCATENATE(Général!BL$3,Général!BL25)","v":""},{"$f":"CONCATENATE(Général!BM$3,Général!BM25)","v":""},{"$f":"CONCATENATE(Général!BN$3,Général!BN25)","v":""},{"$f":"CONCATENATE(Général!BO$3,Général!BO25)","v":""},{"$f":"CONCATENATE(Général!BP$3,Général!BP25)","v":""},{"$f":"CONCATENATE(Général!BQ$3,Général!BQ25)","v":""},{"$f":"CONCATENATE(Général!BR$3,Général!BR25)","v":""},{"$f":"CONCATENATE(Général!BS$3,Général!BS25)","v":""},{"$f":"CONCATENATE(Général!BT$3,Général!BT25)","v":""},{"$f":"CONCATENATE(Général!BU$3,Général!BU25)","v":""},{"$f":"CONCATENATE(Général!BV$3,Général!BV25)","v":""},{"$f":"CONCATENATE(Général!BW$3,Général!BW25)","v":""},{"$f":"CONCATENATE(Général!BX$3,Général!BX25)","v":""},{"$f":"CONCATENATE(Général!BY$3,Général!BY25)","v":""},{"$f":"CONCATENATE(Général!BZ$3,Général!BZ25)","v":""},{"$f":"CONCATENATE(Général!CA$3,Général!CA25)","v":""},{"$f":"CONCATENATE(Général!CB$3,Général!CB25)","v":""},{"$f":"CONCATENATE(Général!CC$3,Général!CC25)","v":""},{"$f":"CONCATENATE(Général!CD$3,Général!CD25)","v":""},{"$f":"CONCATENATE(Général!CE$3,Général!CE25)","v":""},{"$f":"CONCATENATE(Général!CF$3,Général!CF25)","v":""},{"$f":"CONCATENATE(Général!CG$3,Général!CG25)","v":""},{"$f":"CONCATENATE(Général!CH$3,Général!CH25)","v":""},{"$f":"CONCATENATE(Général!CI$3,Général!CI25)","v":""},{"$f":"CONCATENATE(Général!CJ$3,Général!CJ25)","v":""},{"$f":"CONCATENATE(Général!CK$3,Général!CK25)","v":""},{"$f":"CONCATENATE(Général!CL$3,Général!CL25)","v":""},{"$f":"CONCATENATE(Général!CM$3,Général!CM25)","v":""},{"$f":"CONCATENATE(Général!CN$3,Général!CN25)","v":""},{"$f":"CONCATENATE(Général!CO$3,Général!CO25)","v":""},{"$f":"CONCATENATE(Général!CP$3,Général!CP25)","v":""},{"$f":"CONCATENATE(Général!CQ$3,Général!CQ25)","v":""},{"$f":"CONCATENATE(Général!CR$3,Général!CR25)","v":""},{"$f":"CONCATENATE(Général!CS$3,Général!CS25)","v":""},{"$f":"CONCATENATE(Général!CT$3,Général!CT25)","v":""},{"$f":"CONCATENATE(Général!CU$3,Général!CU25)","v":""},{"$f":"CONCATENATE(Général!CV$3,Général!CV25)","v":""},{"$f":"CONCATENATE(Général!CW$3,Général!CW25)","v":""},{"$f":"CONCATENATE(Général!CX$3,Général!CX25)","v":""},null,0,0,0,0,0,18,0,{"$f":"IF(DE23=0,\"\",HLOOKUP(DE23,CY23:DC$40,DD23,FALSE))","v":""},0,0,0,0,0,18,0,{"$f":"IF(DM23=0,\"\",HLOOKUP(DM23,DG23:DK$40,DL23,FALSE))","v":""},0,0,0,0,0,18,0,{"$f":"IF(DU23=0,\"\",HLOOKUP(DU23,DO23:DS$40,DT23,FALSE))","v":""},0,0,0,0,0,18,0,{"$f":"IF(EC23=0,\"\",HLOOKUP(EC23,DW23:EA$40,EB23,FALSE))","v":""},0,0,0,0,0,18,0,{"$f":"IF(EK23=0,\"\",HLOOKUP(EK23,EE23:EI$40,EJ23,FALSE))","v":""},0,0,0,0,0,18,0,{"$f":"IF(ES23=0,\"\",HLOOKUP(ES23,EM23:EQ$40,ER23,FALSE))","v":""},0,0,0,0,0,18,0,{"$f":"IF(FA23=0,\"\",HLOOKUP(FA23,EU23:EY$40,EZ23,FALSE))","v":""},{"$f":"COUNTIF(Général!$C25:$CX25,FC$1)","v":0},{"$f":"COUNTIF(Général!$C25:$CX25,FD$1)","v":0},{"$f":"COUNTIF(Général!$C25:$CX25,FE$1)","v":0},{"$f":"COUNTIF(Général!$C25:$CX25,FF$1)","v":0},{"$f":"COUNTIF(Général!$C25:$CX25,FG$1)","v":0},18,0,{"$f":"IF(FI23<1,\"\",HLOOKUP(FI23,FC23:FG$40,FH23,FALSE))","v":""},5,"Non concerné","1","10","100","1000","10000",2222.1999999999998,"Non concerné"]
["E4",{"$f":"CONCATENATE(Général!C$3,Général!C26)","v":""},{"$f":"CONCATENATE(Général!D$3,Général!D26)","v":""},{"$f":"CONCATENATE(Général!E$3,Général!E26)","v":""},{"$f":"CONCATENATE(Général!F$3,Général!F26)","v":""},{"$f":"CONCATENATE(Général!G$3,Général!G26)","v":""},{"$f":"CONCATENATE(Général!H$3,Général!H26)","v":""},{"$f":"CONCATENATE(Général!I$3,Général!I26)","v":""},{"$f":"CONCATENATE(Général!J$3,Général!J26)","v":""},{"$f":"CONCATENATE(Général!K$3,Général!K26)","v":""},{"$f":"CONCATENATE(Général!L$3,Général!L26)","v":""},{"$f":"CONCATENATE(Général!M$3,Général!M26)","v":""},{"$f":"CONCATENATE(Général!N$3,Général!N26)","v":""},{"$f":"CONCATENATE(Général!O$3,Général!O26)","v":""},{"$f":"CONCATENATE(Général!P$3,Général!P26)","v":""},{"$f":"CONCATENATE(Général!Q$3,Général!Q26)","v":""},{"$f":"CONCATENATE(Général!R$3,Général!R26)","v":""},{"$f":"CONCATENATE(Général!S$3,Général!S26)","v":""},{"$f":"CONCATENATE(Général!T$3,Général!T26)","v":""},{"$f":"CONCATENATE(Général!U$3,Général!U26)","v":""},{"$f":"CONCATENATE(Général!V$3,Général!V26)","v":""},{"$f":"CONCATENATE(Général!W$3,Général!W26)","v":""},{"$f":"CONCATENATE(Général!X$3,Général!X26)","v":""},{"$f":"CONCATENATE(Général!Y$3,Général!Y26)","v":""},{"$f":"CONCATENATE(Général!Z$3,Général!Z26)","v":""},{"$f":"CONCATENATE(Général!AA$3,Général!AA26)","v":""},{"$f":"CONCATENATE(Général!AB$3,Général!AB26)","v":""},{"$f":"CONCATENATE(Général!AC$3,Général!AC26)","v":""},{"$f":"CONCATENATE(Général!AD$3,Général!AD26)","v":""},{"$f":"CONCATENATE(Général!AE$3,Général!AE26)","v":""},{"$f":"CONCATENATE(Général!AF$3,Général!AF26)","v":""},{"$f":"CONCATENATE(Général!AG$3,Général!AG26)","v":""},{"$f":"CONCATENATE(Général!AH$3,Général!AH26)","v":""},{"$f":"CONCATENATE(Général!AI$3,Général!AI26)","v":""},{"$f":"CONCATENATE(Général!AJ$3,Général!AJ26)","v":""},{"$f":"CONCATENATE(Général!AK$3,Général!AK26)","v":""},{"$f":"CONCATENATE(Général!AL$3,Général!AL26)","v":""},{"$f":"CONCATENATE(Général!AM$3,Général!AM26)","v":""},{"$f":"CONCATENATE(Général!AN$3,Général!AN26)","v":""},{"$f":"CONCATENATE(Général!AO$3,Général!AO26)","v":""},{"$f":"CONCATENATE(Général!AP$3,Général!AP26)","v":""},{"$f":"CONCATENATE(Général!AQ$3,Général!AQ26)","v":""},{"$f":"CONCATENATE(Général!AR$3,Général!AR26)","v":""},{"$f":"CONCATENATE(Général!AS$3,Général!AS26)","v":""},{"$f":"CONCATENATE(Général!AT$3,Général!AT26)","v":""},{"$f":"CONCATENATE(Général!AU$3,Général!AU26)","v":""},{"$f":"CONCATENATE(Général!AV$3,Général!AV26)","v":""},{"$f":"CONCATENATE(Général!AW$3,Général!AW26)","v":""},{"$f":"CONCATENATE(Général!AX$3,Général!AX26)","v":""},{"$f":"CONCATENATE(Général!AY$3,Général!AY26)","v":""},{"$f":"CONCATENATE(Général!AZ$3,Général!AZ26)","v":""},{"$f":"CONCATENATE(Général!BA$3,Général!BA26)","v":""},{"$f":"CONCATENATE(Général!BB$3,Général!BB26)","v":""},{"$f":"CONCATENATE(Général!BC$3,Général!BC26)","v":""},{"$f":"CONCATENATE(Général!BD$3,Général!BD26)","v":""},{"$f":"CONCATENATE(Général!BE$3,Général!BE26)","v":""},{"$f":"CONCATENATE(Général!BF$3,Général!BF26)","v":""},{"$f":"CONCATENATE(Général!BG$3,Général!BG26)","v":""},{"$f":"CONCATENATE(Général!BH$3,Général!BH26)","v":""},{"$f":"CONCATENATE(Général!BI$3,Général!BI26)","v":""},{"$f":"CONCATENATE(Général!BJ$3,Général!BJ26)","v":""},{"$f":"CONCATENATE(Général!BK$3,Général!BK26)","v":""},{"$f":"CONCATENATE(Général!BL$3,Général!BL26)","v":""},{"$f":"CONCATENATE(Général!BM$3,Général!BM26)","v":""},{"$f":"CONCATENATE(Général!BN$3,Général!BN26)","v":""},{"$f":"CONCATENATE(Général!BO$3,Général!BO26)","v":""},{"$f":"CONCATENATE(Général!BP$3,Général!BP26)","v":""},{"$f":"CONCATENATE(Général!BQ$3,Général!BQ26)","v":""},{"$f":"CONCATENATE(Général!BR$3,Général!BR26)","v":""},{"$f":"CONCATENATE(Général!BS$3,Général!BS26)","v":""},{"$f":"CONCATENATE(Général!BT$3,Général!BT26)","v":""},{"$f":"CONCATENATE(Général!BU$3,Général!BU26)","v":""},{"$f":"CONCATENATE(Général!BV$3,Général!BV26)","v":""},{"$f":"CONCATENATE(Général!BW$3,Général!BW26)","v":""},{"$f":"CONCATENATE(Général!BX$3,Général!BX26)","v":""},{"$f":"CONCATENATE(Général!BY$3,Général!BY26)","v":""},{"$f":"CONCATENATE(Général!BZ$3,Général!BZ26)","v":""},{"$f":"CONCATENATE(Général!CA$3,Général!CA26)","v":""},{"$f":"CONCATENATE(Général!CB$3,Général!CB26)","v":""},{"$f":"CONCATENATE(Général!CC$3,Général!CC26)","v":""},{"$f":"CONCATENATE(Général!CD$3,Général!CD26)","v":""},{"$f":"CONCATENATE(Général!CE$3,Général!CE26)","v":""},{"$f":"CONCATENATE(Général!CF$3,Général!CF26)","v":""},{"$f":"CONCATENATE(Général!CG$3,Général!CG26)","v":""},{"$f":"CONCATENATE(Général!CH$3,Général!CH26)","v":""},{"$f":"CONCATENATE(Général!CI$3,Général!CI26)","v":""},{"$f":"CONCATENATE(Général!CJ$3,Général!CJ26)","v":""},{"$f":"CONCATENATE(Général!CK$3,Général!CK26)","v":""},{"$f":"CONCATENATE(Général!CL$3,Général!CL26)","v":""},{"$f":"CONCATENATE(Général!CM$3,Général!CM26)","v":""},{"$f":"CONCATENATE(Général!CN$3,Général!CN26)","v":""},{"$f":"CONCATENATE(Général!CO$3,Général!CO26)","v":""},{"$f":"CONCATENATE(Général!CP$3,Général!CP26)","v":""},{"$f":"CONCATENATE(Général!CQ$3,Général!CQ26)","v":""},{"$f":"CONCATENATE(Général!CR$3,Général!CR26)","v":""},{"$f":"CONCATENATE(Général!CS$3,Général!CS26)","v":""},{"$f":"CONCATENATE(Général!CT$3,Général!CT26)","v":""},{"$f":"CONCATENATE(Général!CU$3,Général!CU26)","v":""},{"$f":"CONCATENATE(Général!CV$3,Général!CV26)","v":""},{"$f":"CONCATENATE(Général!CW$3,Général!CW26)","v":""},{"$f":"CONCATENATE(Général!CX$3,Général!CX26)","v":""},null,0,0,0,0,0,17,0,{"$f":"IF(DE24=0,\"\",HLOOKUP(DE24,CY24:DC$40,DD24,FALSE))","v":""},0,0,0,0,0,17,0,{"$f":"IF(DM24=0,\"\",HLOOKUP(DM24,DG24:DK$40,DL24,FALSE))","v":""},0,0,0,0,0,17,0,{"$f":"IF(DU24=0,\"\",HLOOKUP(DU24,DO24:DS$40,DT24,FALSE))","v":""},0,0,0,0,0,17,0,{"$f":"IF(EC24=0,\"\",HLOOKUP(EC24,DW24:EA$40,EB24,FALSE))","v":""},0,0,0,0,0,17,0,{"$f":"IF(EK24=0,\"\",HLOOKUP(EK24,EE24:EI$40,EJ24,FALSE))","v":""},0,0,0,0,0,17,0,{"$f":"IF(ES24=0,\"\",HLOOKUP(ES24,EM24:EQ$40,ER24,FALSE))","v":""},0,0,0,0,0,17,0,{"$f":"IF(FA24=0,\"\",HLOOKUP(FA24,EU24:EY$40,EZ24,FALSE))","v":""},{"$f":"COUNTIF(Général!$C26:$CX26,FC$1)","v":0},{"$f":"COUNTIF(Général!$C26:$CX26,FD$1)","v":0},{"$f":"COUNTIF(Général!$C26:$CX26,FE$1)","v":0},{"$f":"COUNTIF(Général!$C26:$CX26,FF$1)","v":0},{"$f":"COUNTIF(Général!$C26:$CX26,FG$1)","v":0},17,0,{"$f":"IF(FI24<1,\"\",HLOOKUP(FI24,FC24:FG$40,FH24,FALSE))","v":""},5,"Non concerné","1","10","100","1000","10000",2222.1999999999998,"Non concerné"]
["E5",{"$f":"CONCATENATE(Général!C$3,Général!C27)","v":""},{"$f":"CONCATENATE(Général!D$3,Général!D27)","v":""},{"$f":"CONCATENATE(Général!E$3,Général!E27)","v":""},{"$f":"CONCATENATE(Général!F$3,Général!F27)","v":""},{"$f":"CONCATENATE(Général!G$3,Général!G27)","v":""},{"$f":"CONCATENATE(Général!H$3,Général!H27)","v":""},{"$f":"CONCATENATE(Général!I$3,Général!I27)","v":""},{"$f":"CONCATENATE(Général!J$3,Général!J27)","v":""},{"$f":"CONCATENATE(Général!K$3,Général!K27)","v":""},{"$f":"CONCATENATE(Général!L$3,Général!L27)","v":""},{"$f":"CONCATENATE(Général!M$3,Général!M27)","v":""},{"$f":"CONCATENATE(Général!N$3,Général!N27)","v":""},{"$f":"CONCATENATE(Général!O$3,Général!O27)","v":""},{"$f":"CONCATENATE(Général!P$3,Général!P27)","v":""},{"$f":"CONCATENATE(Général!Q$3,Général!Q27)","v":""},{"$f":"CONCATENATE(Général!R$3,Général!R27)","v":""},{"$f":"CONCATENATE(Général!S$3,Général!S27)","v":""},{"$f":"CONCATENATE(Général!T$3,Général!T27)","v":""},{"$f":"CONCATENATE(Général!U$3,Général!U27)","v":""},{"$f":"CONCATENATE(Général!V$3,Général!V27)","v":""},{"$f":"CONCATENATE(Général!W$3,Général!W27)","v":""},{"$f":"CONCATENATE(Général!X$3,Général!X27)","v":""},{"$f":"CONCATENATE(Général!Y$3,Général!Y27)","v":""},{"$f":"CONCATENATE(Général!Z$3,Général!Z27)","v":""},{"$f":"CONCATENATE(Général!AA$3,Général!AA27)","v":""},{"$f":"CONCATENATE(Général!AB$3,Général!AB27)","v":""},{"$f":"CONCATENATE(Général!AC$3,Général!AC27)","v":""},{"$f":"CONCATENATE(Général!AD$3,Général!AD27)","v":""},{"$f":"CONCATENATE(Général!AE$3,Général!AE27)","v":""},{"$f":"CONCATENATE(Général!AF$3,Général!AF27)","v":""},{"$f":"CONCATENATE(Général!AG$3,Général!AG27)","v":""},{"$f":"CONCATENATE(Général!AH$3,Général!AH27)","v":""},{"$f":"CONCATENATE(Général!AI$3,Général!AI27)","v":""},{"$f":"CONCATENATE(Général!AJ$3,Général!AJ27)","v":""},{"$f":"CONCATENATE(Général!AK$3,Général!AK27)","v":""},{"$f":"CONCATENATE(Général!AL$3,Général!AL27)","v":""},{"$f":"CONCATENATE(Général!AM$3,Général!AM27)","v":""},{"$f":"CONCATENATE(Général!AN$3,Général!AN27)","v":""},{"$f":"CONCATENATE(Général!AO$3,Général!AO27)","v":""},{"$f":"CONCATENATE(Général!AP$3,Général!AP27)","v":""},{"$f":"CONCATENATE(Général!AQ$3,Général!AQ27)","v":""},{"$f":"CONCATENATE(Général!AR$3,Général!AR27)","v":""},{"$f":"CONCATENATE(Général!AS$3,Général!AS27)","v":""},{"$f":"CONCATENATE(Général!AT$3,Général!AT27)","v":""},{"$f":"CONCATENATE(Général!AU$3,Général!AU27)","v":""},{"$f":"CONCATENATE(Général!AV$3,Général!AV27)","v":""},{"$f":"CONCATENATE(Général!AW$3,Général!AW27)","v":""},{"$f":"CONCATENATE(Général!AX$3,Général!AX27)","v":""},{"$f":"CONCATENATE(Général!AY$3,Général!AY27)","v":""},{"$f":"CONCATENATE(Général!AZ$3,Général!AZ27)","v":""},{"$f":"CONCATENATE(Général!BA$3,Général!BA27)","v":""},{"$f":"CONCATENATE(Général!BB$3,Général!BB27)","v":""},{"$f":"CONCATENATE(Général!BC$3,Général!BC27)","v":""},{"$f":"CONCATENATE(Général!BD$3,Général!BD27)","v":""},{"$f":"CONCATENATE(Général!BE$3,Général!BE27)","v":""},{"$f":"CONCATENATE(Général!BF$3,Général!BF27)","v":""},{"$f":"CONCATENATE(Général!BG$3,Général!BG27)","v":""},{"$f":"CONCATENATE(Général!BH$3,Général!BH27)","v":""},{"$f":"CONCATENATE(Général!BI$3,Général!BI27)","v":""},{"$f":"CONCATENATE(Général!BJ$3,Général!BJ27)","v":""},{"$f":"CONCATENATE(Général!BK$3,Général!BK27)","v":""},{"$f":"CONCATENATE(Général!BL$3,Général!BL27)","v":""},{"$f":"CONCATENATE(Général!BM$3,Général!BM27)","v":""},{"$f":"CONCATENATE(Général!BN$3,Général!BN27)","v":""},{"$f":"CONCATENATE(Général!BO$3,Général!BO27)","v":""},{"$f":"CONCATENATE(Général!BP$3,Général!BP27)","v":""},{"$f":"CONCATENATE(Général!BQ$3,Général!BQ27)","v":""},{"$f":"CONCATENATE(Général!BR$3,Général!BR27)","v":""},{"$f":"CONCATENATE(Général!BS$3,Général!BS27)","v":""},{"$f":"CONCATENATE(Général!BT$3,Général!BT27)","v":""},{"$f":"CONCATENATE(Général!BU$3,Général!BU27)","v":""},{"$f":"CONCATENATE(Général!BV$3,Général!BV27)","v":""},{"$f":"CONCATENATE(Général!BW$3,Général!BW27)","v":""},{"$f":"CONCATENATE(Général!BX$3,Général!BX27)","v":""},{"$f":"CONCATENATE(Général!BY$3,Général!BY27)","v":""},{"$f":"CONCATENATE(Général!BZ$3,Général!BZ27)","v":""},{"$f":"CONCATENATE(Général!CA$3,Général!CA27)","v":""},{"$f":"CONCATENATE(Général!CB$3,Général!CB27)","v":""},{"$f":"CONCATENATE(Général!CC$3,Général!CC27)","v":""},{"$f":"CONCATENATE(Général!CD$3,Général!CD27)","v":""},{"$f":"CONCATENATE(Général!CE$3,Général!CE27)","v":""},{"$f":"CONCATENATE(Général!CF$3,Général!CF27)","v":""},{"$f":"CONCATENATE(Général!CG$3,Général!CG27)","v":""},{"$f":"CONCATENATE(Général!CH$3,Général!CH27)","v":""},{"$f":"CONCATENATE(Général!CI$3,Général!CI27)","v":""},{"$f":"CONCATENATE(Général!CJ$3,Général!CJ27)","v":""},{"$f":"CONCATENATE(Général!CK$3,Général!CK27)","v":""},{"$f":"CONCATENATE(Général!CL$3,Général!CL27)","v":""},{"$f":"CONCATENATE(Général!CM$3,Général!CM27)","v":""},{"$f":"CONCATENATE(Général!CN$3,Général!CN27)","v":""},{"$f":"CONCATENATE(Général!CO$3,Général!CO27)","v":""},{"$f":"CONCATENATE(Général!CP$3,Général!CP27)","v":""},{"$f":"CONCATENATE(Général!CQ$3,Général!CQ27)","v":""},{"$f":"CONCATENATE(Général!CR$3,Général!CR27)","v":""},{"$f":"CONCATENATE(Général!CS$3,Général!CS27)","v":""},{"$f":"CONCATENATE(Général!CT$3,Général!CT27)","v":""},{"$f":"CONCATENATE(Général!CU$3,Général!CU27)","v":""},{"$f":"CONCATENATE(Général!CV$3,Général!CV27)","v":""},{"$f":"CONCATENATE(Général!CW$3,Général!CW27)","v":""},{"$f":"CONCATENATE(Général!CX$3,Général!CX27)","v":""},null,0,0,0,0,0,16,0,{"$f":"IF(DE25=0,\"\",HLOOKUP(DE25,CY25:DC$40,DD25,FALSE))","v":""},0,0,0,0,0,16,0,{"$f":"IF(DM25=0,\"\",HLOOKUP(DM25,DG25:DK$40,DL25,FALSE))","v":""},0,0,0,0,0,16,0,{"$f":"IF(DU25=0,\"\",HLOOKUP(DU25,DO25:DS$40,DT25,FALSE))","v":""},0,0,0,0,0,16,0,{"$f":"IF(EC25=0,\"\",HLOOKUP(EC25,DW25:EA$40,EB25,FALSE))","v":""},0,0,0,0,0,16,0,{"$f":"IF(EK25=0,\"\",HLOOKUP(EK25,EE25:EI$40,EJ25,FALSE))","v":""},0,0,0,0,0,16,0,{"$f":"IF(ES25=0,\"\",HLOOKUP(ES25,EM25:EQ$40,ER25,FALSE))","v":""},0,0,0,0,0,16,0,{"$f":"IF(FA25=0,\"\",HLOOKUP(FA25,EU25:EY$40,EZ25,FALSE))","v":""},{"$f":"COUNTIF(Général!$C27:$CX27,FC$1)","v":0},{"$f":"COUNTIF(Général!$C27:$CX27,FD$1)","v":0},{"$f":"COUNTIF(Général!$C27:$CX27,FE$1)","v":0},{"$f":"COUNTIF(Général!$C27:$CX27,FF$1)","v":0},{"$f":"COUNTIF(Général!$C27:$CX27,FG$1)","v":0},16,0,{"$f":"IF(FI25<1,\"\",HLOOKUP(FI25,FC25:FG$40,FH25,FALSE))","v":""},5,"Non concerné","1","10","100","1000","10000",2222.1999999999998,"Non concerné"]
["E6",{"$f":"CONCATENATE(Général!C$3,Général!C28)","v":""},{"$f":"CONCATENATE(Général!D$3,Général!D28)","v":""},{"$f":"CONCATENATE(Général!E$3,Général!E28)","v":""},{"$f":"CONCATENATE(Général!F$3,Général!F28)","v":""},{"$f":"CONCATENATE(Général!G$3,Général!G28)","v":""},{"$f":"CONCATENATE(Général!H$3,Général!H28)","v":""},{"$f":"CONCATENATE(Général!I$3,Général!I28)","v":""},{"$f":"CONCATENATE(Général!J$3,Général!J28)","v":""},{"$f":"CONCATENATE(Général!K$3,Général!K28)","v":""},{"$f":"CONCATENATE(Général!L$3,Général!L28)","v":""},{"$f":"CONCATENATE(Général!M$3,Général!M28)","v":""},{"$f":"CONCATENATE(Général!N$3,Général!N28)","v":""},{"$f":"CONCATENATE(Général!O$3,Général!O28)","v":""},{"$f":"CONCATENATE(Général!P$3,Général!P28)","v":""},{"$f":"CONCATENATE(Général!Q$3,Général!Q28)","v":""},{"$f":"CONCATENATE(Général!R$3,Général!R28)","v":""},{"$f":"CONCATENATE(Général!S$3,Général!S28)","v":""},{"$f":"CONCATENATE(Général!T$3,Général!T28)","v":""},{"$f":"CONCATENATE(Général!U$3,Général!U28)","v":""},{"$f":"CONCATENATE(Général!V$3,Général!V28)","v":""},{"$f":"CONCATENATE(Général!W$3,Général!W28)","v":""},{"$f":"CONCATENATE(Général!X$3,Général!X28)","v":""},{"$f":"CONCATENATE(Général!Y$3,Général!Y28)","v":""},{"$f":"CONCATENATE(Général!Z$3,Général!Z28)","v":""},{"$f":"CONCATENATE(Général!AA$3,Général!AA28)","v":""},{"$f":"CONCATENATE(Général!AB$3,Général!AB28)","v":""},{"$f":"CONCATENATE(Général!AC$3,Général!AC28)","v":""},{"$f":"CONCATENATE(Général!AD$3,Général!AD28)","v":""},{"$f":"CONCATENATE(Général!AE$3,Général!AE28)","v":""},{"$f":"CONCATENATE(Général!AF$3,Général!AF28)","v":""},{"$f":"CONCATENATE(Général!AG$3,Général!AG28)","v":""},{"$f":"CONCATENATE(Général!AH$3,Général!AH28)","v":""},{"$f":"CONCATENATE(Général!AI$3,Général!AI28)","v":""},{"$f":"CONCATENATE(Général!AJ$3,Général!AJ28)","v":""},{"$f":"CONCATENATE(Général!AK$3,Général!AK28)","v":""},{"$f":"CONCATENATE(Général!AL$3,Général!AL28)","v":""},{"$f":"CONCATENATE(Général!AM$3,Général!AM28)","v":""},{"$f":"CONCATENATE(Général!AN$3,Général!AN28)","v":""},{"$f":"CONCATENATE(Général!AO$3,Général!AO28)","v":""},{"$f":"CONCATENATE(Général!AP$3,Général!AP28)","v":""},{"$f":"CONCATENATE(Général!AQ$3,Général!AQ28)","v":""},{"$f":"CONCATENATE(Général!AR$3,Général!AR28)","v":""},{"$f":"CONCATENATE(Général!AS$3,Général!AS28)","v":""},{"$f":"CONCATENATE(Général!AT$3,Général!AT28)","v":""},{"$f":"CONCATENATE(Général!AU$3,Général!AU28)","v":""},{"$f":"CONCATENATE(Général!AV$3,Général!AV28)","v":""},{"$f":"CONCATENATE(Général!AW$3,Général!AW28)","v":""},{"$f":"CONCATENATE(Général!AX$3,Général!AX28)","v":""},{"$f":"CONCATENATE(Général!AY$3,Général!AY28)","v":""},{"$f":"CONCATENATE(Général!AZ$3,Général!AZ28)","v":""},{"$f":"CONCATENATE(Général!BA$3,Général!BA28)","v":""},{"$f":"CONCATENATE(Général!BB$3,Général!BB28)","v":""},{"$f":"CONCATENATE(Général!BC$3,Général!BC28)","v":""},{"$f":"CONCATENATE(Général!BD$3,Général!BD28)","v":""},{"$f":"CONCATENATE(Général!BE$3,Général!BE28)","v":""},{"$f":"CONCATENATE(Général!BF$3,Général!BF28)","v":""},{"$f":"CONCATENATE(Général!BG$3,Général!BG28)","v":""},{"$f":"CONCATENATE(Général!BH$3,Général!BH28)","v":""},{"$f":"CONCATENATE(Général!BI$3,Général!BI28)","v":""},{"$f":"CONCATENATE(Général!BJ$3,Général!BJ28)","v":""},{"$f":"CONCATENATE(Général!BK$3,Général!BK28)","v":""},{"$f":"CONCATENATE(Général!BL$3,Général!BL28)","v":""},{"$f":"CONCATENATE(Général!BM$3,Général!BM28)","v":""},{"$f":"CONCATENATE(Général!BN$3,Général!BN28)","v":""},{"$f":"CONCATENATE(Général!BO$3,Général!BO28)","v":""},{"$f":"CONCATENATE(Général!BP$3,Général!BP28)","v":""},{"$f":"CONCATENATE(Général!BQ$3,Général!BQ28)","v":""},{"$f":"CONCATENATE(Général!BR$3,Général!BR28)","v":""},{"$f":"CONCATENATE(Général!BS$3,Général!BS28)","v":""},{"$f":"CONCATENATE(Général!BT$3,Général!BT28)","v":""},{"$f":"CONCATENATE(Général!BU$3,Général!BU28)","v":""},{"$f":"CONCATENATE(Général!BV$3,Général!BV28)","v":""},{"$f":"CONCATENATE(Général!BW$3,Général!BW28)","v":""},{"$f":"CONCATENATE(Général!BX$3,Général!BX28)","v":""},{"$f":"CONCATENATE(Général!BY$3,Général!BY28)","v":""},{"$f":"CONCATENATE(Général!BZ$3,Général!BZ28)","v":""},{"$f":"CONCATENATE(Général!CA$3,Général!CA28)","v":""},{"$f":"CONCATENATE(Général!CB$3,Général!CB28)","v":""},{"$f":"CONCATENATE(Général!CC$3,Général!CC28)","v":""},{"$f":"CONCATENATE(Général!CD$3,Général!CD28)","v":""},{"$f":"CONCATENATE(Général!CE$3,Général!CE28)","v":""},{"$f":"CONCATENATE(Général!CF$3,Général!CF28)","v":""},{"$f":"CONCATENATE(Général!CG$3,Général!CG28)","v":""},{"$f":"CONCATENATE(Général!CH$3,Général!CH28)","v":""},{"$f":"CONCATENATE(Général!CI$3,Général!CI28)","v":""},{"$f":"CONCATENATE(Général!CJ$3,Général!CJ28)","v":""},{"$f":"CONCATENATE(Général!CK$3,Général!CK28)","v":""},{"$f":"CONCATENATE(Général!CL$3,Général!CL28)","v":""},{"$f":"CONCATENATE(Général!CM$3,Général!CM28)","v":""},{"$f":"CONCATENATE(Général!CN$3,Général!CN28)","v":""},{"$f":"CONCATENATE(Général!CO$3,Général!CO28)","v":""},{"$f":"CONCATENATE(Général!CP$3,Général!CP28)","v":""},{"$f":"CONCATENATE(Général!CQ$3,Général!CQ28)","v":""},{"$f":"CONCATENATE(Général!CR$3,Général!CR28)","v":""},{"$f":"CONCATENATE(Général!CS$3,Général!CS28)","v":""},{"$f":"CONCATENATE(Général!CT$3,Général!CT28)","v":""},{"$f":"CONCATENATE(Général!CU$3,Général!CU28)","v":""},{"$f":"CONCATENATE(Général!CV$3,Général!CV28)","v":""},{"$f":"CONCATENATE(Général!CW$3,Général!CW28)","v":""},{"$f":"CONCATENATE(Général!CX$3,Général!CX28)","v":""},null,0,0,0,0,0,15,0,{"$f":"IF(DE26=0,\"\",HLOOKUP(DE26,CY26:DC$40,DD26,FALSE))","v":""},0,0,0,0,0,15,0,{"$f":"IF(DM26=0,\"\",HLOOKUP(DM26,DG26:DK$40,DL26,FALSE))","v":""},0,0,0,0,0,15,0,{"$f":"IF(DU26=0,\"\",HLOOKUP(DU26,DO26:DS$40,DT26,FALSE))","v":""},0,0,0,0,0,15,0,{"$f":"IF(EC26=0,\"\",HLOOKUP(EC26,DW26:EA$40,EB26,FALSE))","v":""},0,0,0,0,0,15,0,{"$f":"IF(EK26=0,\"\",HLOOKUP(EK26,EE26:EI$40,EJ26,FALSE))","v":""},0,0,0,0,0,15,0,{"$f":"IF(ES26=0,\"\",HLOOKUP(ES26,EM26:EQ$40,ER26,FALSE))","v":""},0,0,0,0,0,15,0,{"$f":"IF(FA26=0,\"\",HLOOKUP(FA26,EU26:EY$40,EZ26,FALSE))","v":""},{"$f":"COUNTIF(Général!$C28:$CX28,FC$1)","v":0},{"$f":"COUNTIF(Général!$C28:$CX28,FD$1)","v":0},{"$f":"COUNTIF(Général!$C28:$CX28,FE$1)","v":0},{"$f":"COUNTIF(Général!$C28:$CX28,FF$1)","v":0},{"$f":"COUNTIF(Général!$C28:$CX28,FG$1)","v":0},15,0,{"$f":"IF(FI26<1,\"\",HLOOKUP(FI26,FC26:FG$40,FH26,FALSE))","v":""},5,"Non concerné","1","10","100","1000","10000",2222.1999999999998,"Non concerné"]
["E7",{"$f":"CONCATENATE(Général!C$3,Général!C29)","v":""},{"$f":"CONCATENATE(Général!D$3,Général!D29)","v":""},{"$f":"CONCATENATE(Général!E$3,Général!E29)","v":""},{"$f":"CONCATENATE(Général!F$3,Général!F29)","v":""},{"$f":"CONCATENATE(Général!G$3,Général!G29)","v":""},{"$f":"CONCATENATE(Général!H$3,Général!H29)","v":""},{"$f":"CONCATENATE(Général!I$3,Général!I29)","v":""},{"$f":"CONCATENATE(Général!J$3,Général!J29)","v":""},{"$f":"CONCATENATE(Général!K$3,Général!K29)","v":""},{"$f":"CONCATENATE(Général!L$3,Général!L29)","v":""},{"$f":"CONCATENATE(Général!M$3,Général!M29)","v":""},{"$f":"CONCATENATE(Général!N$3,Général!N29)","v":""},{"$f":"CONCATENATE(Général!O$3,Général!O29)","v":""},{"$f":"CONCATENATE(Général!P$3,Général!P29)","v":""},{"$f":"CONCATENATE(Général!Q$3,Général!Q29)","v":""},{"$f":"CONCATENATE(Général!R$3,Général!R29)","v":""},{"$f":"CONCATENATE(Général!S$3,Général!S29)","v":""},{"$f":"CONCATENATE(Général!T$3,Général!T29)","v":""},{"$f":"CONCATENATE(Général!U$3,Général!U29)","v":""},{"$f":"CONCATENATE(Général!V$3,Général!V29)","v":""},{"$f":"CONCATENATE(Général!W$3,Général!W29)","v":""},{"$f":"CONCATENATE(Général!X$3,Général!X29)","v":""},{"$f":"CONCATENATE(Général!Y$3,Général!Y29)","v":""},{"$f":"CONCATENATE(Général!Z$3,Général!Z29)","v":""},{"$f":"CONCATENATE(Général!AA$3,Général!AA29)","v":""},{"$f":"CONCATENATE(Général!AB$3,Général!AB29)","v":""},{"$f":"CONCATENATE(Général!AC$3,Général!AC29)","v":""},{"$f":"CONCATENATE(Général!AD$3,Général!AD29)","v":""},{"$f":"CONCATENATE(Général!AE$3,Général!AE29)","v":""},{"$f":"CONCATENATE(Général!AF$3,Général!AF29)","v":""},{"$f":"CONCATENATE(Général!AG$3,Général!AG29)","v":""},{"$f":"CONCATENATE(Général!AH$3,Général!AH29)","v":""},{"$f":"CONCATENATE(Général!AI$3,Général!AI29)","v":""},{"$f":"CONCATENATE(Général!AJ$3,Général!AJ29)","v":""},{"$f":"CONCATENATE(Général!AK$3,Général!AK29)","v":""},{"$f":"CONCATENATE(Général!AL$3,Général!AL29)","v":""},{"$f":"CONCATENATE(Général!AM$3,Général!AM29)","v":""},{"$f":"CONCATENATE(Général!AN$3,Général!AN29)","v":""},{"$f":"CONCATENATE(Général!AO$3,Général!AO29)","v":""},{"$f":"CONCATENATE(Général!AP$3,Général!AP29)","v":""},{"$f":"CONCATENATE(Général!AQ$3,Général!AQ29)","v":""},{"$f":"CONCATENATE(Général!AR$3,Général!AR29)","v":""},{"$f":"CONCATENATE(Général!AS$3,Général!AS29)","v":""},{"$f":"CONCATENATE(Général!AT$3,Général!AT29)","v":""},{"$f":"CONCATENATE(Général!AU$3,Général!AU29)","v":""},{"$f":"CONCATENATE(Général!AV$3,Général!AV29)","v":""},{"$f":"CONCATENATE(Général!AW$3,Général!AW29)","v":""},{"$f":"CONCATENATE(Général!AX$3,Général!AX29)","v":""},{"$f":"CONCATENATE(Général!AY$3,Général!AY29)","v":""},{"$f":"CONCATENATE(Général!AZ$3,Général!AZ29)","v":""},{"$f":"CONCATENATE(Général!BA$3,Général!BA29)","v":""},{"$f":"CONCATENATE(Général!BB$3,Général!BB29)","v":""},{"$f":"CONCATENATE(Général!BC$3,Général!BC29)","v":""},{"$f":"CONCATENATE(Général!BD$3,Général!BD29)","v":""},{"$f":"CONCATENATE(Général!BE$3,Général!BE29)","v":""},{"$f":"CONCATENATE(Général!BF$3,Général!BF29)","v":""},{"$f":"CONCATENATE(Général!BG$3,Général!BG29)","v":""},{"$f":"CONCATENATE(Général!BH$3,Général!BH29)","v":""},{"$f":"CONCATENATE(Général!BI$3,Général!BI29)","v":""},{"$f":"CONCATENATE(Général!BJ$3,Général!BJ29)","v":""},{"$f":"CONCATENATE(Général!BK$3,Général!BK29)","v":""},{"$f":"CONCATENATE(Général!BL$3,Général!BL29)","v":""},{"$f":"CONCATENATE(Général!BM$3,Général!BM29)","v":""},{"$f":"CONCATENATE(Général!BN$3,Général!BN29)","v":""},{"$f":"CONCATENATE(Général!BO$3,Général!BO29)","v":""},{"$f":"CONCATENATE(Général!BP$3,Général!BP29)","v":""},{"$f":"CONCATENATE(Général!BQ$3,Général!BQ29)","v":""},{"$f":"CONCATENATE(Général!BR$3,Général!BR29)","v":""},{"$f":"CONCATENATE(Général!BS$3,Général!BS29)","v":""},{"$f":"CONCATENATE(Général!BT$3,Général!BT29)","v":""},{"$f":"CONCATENATE(Général!BU$3,Général!BU29)","v":""},{"$f":"CONCATENATE(Général!BV$3,Général!BV29)","v":""},{"$f":"CONCATENATE(Général!BW$3,Général!BW29)","v":""},{"$f":"CONCATENATE(Général!BX$3,Général!BX29)","v":""},{"$f":"CONCATENATE(Général!BY$3,Général!BY29)","v":""},{"$f":"CONCATENATE(Général!BZ$3,Général!BZ29)","v":""},{"$f":"CONCATENATE(Général!CA$3,Général!CA29)","v":""},{"$f":"CONCATENATE(Général!CB$3,Général!CB29)","v":""},{"$f":"CONCATENATE(Général!CC$3,Général!CC29)","v":""},{"$f":"CONCATENATE(Général!CD$3,Général!CD29)","v":""},{"$f":"CONCATENATE(Général!CE$3,Général!CE29)","v":""},{"$f":"CONCATENATE(Général!CF$3,Général!CF29)","v":""},{"$f":"CONCATENATE(Général!CG$3,Général!CG29)","v":""},{"$f":"CONCATENATE(Général!CH$3,Général!CH29)","v":""},{"$f":"CONCATENATE(Général!CI$3,Général!CI29)","v":""},{"$f":"CONCATENATE(Général!CJ$3,Général!CJ29)","v":""},{"$f":"CONCATENATE(Général!CK$3,Général!CK29)","v":""},{"$f":"CONCATENATE(Général!CL$3,Général!CL29)","v":""},{"$f":"CONCATENATE(Général!CM$3,Général!CM29)","v":""},{"$f":"CONCATENATE(Général!CN$3,Général!CN29)","v":""},{"$f":"CONCATENATE(Général!CO$3,Général!CO29)","v":""},{"$f":"CONCATENATE(Général!CP$3,Général!CP29)","v":""},{"$f":"CONCATENATE(Général!CQ$3,Général!CQ29)","v":""},{"$f":"CONCATENATE(Général!CR$3,Général!CR29)","v":""},{"$f":"CONCATENATE(Général!CS$3,Général!CS29)","v":""},{"$f":"CONCATENATE(Général!CT$3,Général!CT29)","v":""},{"$f":"CONCATENATE(Général!CU$3,Général!CU29)","v":""},{"$f":"CONCATENATE(Général!CV$3,Général!CV29)","v":""},{"$f":"CONCATENATE(Général!CW$3,Général!CW29)","v":""},{"$f":"CONCATENATE(Général!CX$3,Général!CX29)","v":""},null,0,0,0,0,0,14,0,{"$f":"IF(DE27=0,\"\",HLOOKUP(DE27,CY27:DC$40,DD27,FALSE))","v":""},0,0,0,0,0,14,0,{"$f":"IF(DM27=0,\"\",HLOOKUP(DM27,DG27:DK$40,DL27,FALSE))","v":""},0,0,0,0,0,14,0,{"$f":"IF(DU27=0,\"\",HLOOKUP(DU27,DO27:DS$40,DT27,FALSE))","v":""},0,0,0,0,0,14,0,{"$f":"IF(EC27=0,\"\",HLOOKUP(EC27,DW27:EA$40,EB27,FALSE))","v":""},0,0,0,0,0,14,0,{"$f":"IF(EK27=0,\"\",HLOOKUP(EK27,EE27:EI$40,EJ27,FALSE))","v":""},0,0,0,0,0,14,0,{"$f":"IF(ES27=0,\"\",HLOOKUP(ES27,EM27:EQ$40,ER27,FALSE))","v":""},0,0,0,0,0,14,0,{"$f":"IF(FA27=0,\"\",HLOOKUP(FA27,EU27:EY$40,EZ27,FALSE))","v":""},{"$f":"COUNTIF(Général!$C29:$CX29,FC$1)","v":0},{"$f":"COUNTIF(Général!$C29:$CX29,FD$1)","v":0},{"$f":"COUNTIF(Général!$C29:$CX29,FE$1)","v":0},{"$f":"COUNTIF(Général!$C29:$CX29,FF$1)","v":0},{"$f":"COUNTIF(Général!$C29:$CX29,FG$1)","v":0},14,0,{"$f":"IF(FI27<1,\"\",HLOOKUP(FI27,FC27:FG$40,FH27,FALSE))","v":""},5,"Non concerné","1","10","100","1000","10000",2222.1999999999998,"Non concerné"]
["E8",{"$f":"CONCATENATE(Général!C$3,Général!C30)","v":""},{"$f":"CONCATENATE(Général!D$3,Général!D30)","v":""},{"$f":"CONCATENATE(Général!E$3,Général!E30)","v":""},{"$f":"CONCATENATE(Général!F$3,Général!F30)","v":""},{"$f":"CONCATENATE(Général!G$3,Général!G30)","v":""},{"$f":"CONCATENATE(Général!H$3,Général!H30)","v":""},{"$f":"CONCATENATE(Général!I$3,Général!I30)","v":""},{"$f":"CONCATENATE(Général!J$3,Général!J30)","v":""},{"$f":"CONCATENATE(Général!K$3,Général!K30)","v":""},{"$f":"CONCATENATE(Général!L$3,Général!L30)","v":""},{"$f":"CONCATENATE(Général!M$3,Général!M30)","v":""},{"$f":"CONCATENATE(Général!N$3,Général!N30)","v":""},{"$f":"CONCATENATE(Général!O$3,Général!O30)","v":""},{"$f":"CONCATENATE(Général!P$3,Général!P30)","v":""},{"$f":"CONCATENATE(Général!Q$3,Général!Q30)","v":""},{"$f":"CONCATENATE(Général!R$3,Général!R30)","v":""},{"$f":"CONCATENATE(Général!S$3,Général!S30)","v":""},{"$f":"CONCATENATE(Général!T$3,Général!T30)","v":""},{"$f":"CONCATENATE(Général!U$3,Général!U30)","v":""},{"$f":"CONCATENATE(Général!V$3,Général!V30)","v":""},{"$f":"CONCATENATE(Général!W$3,Général!W30)","v":""},{"$f":"CONCATENATE(Général!X$3,Général!X30)","v":""},{"$f":"CONCATENATE(Général!Y$3,Général!Y30)","v":""},{"$f":"CONCATENATE(Général!Z$3,Général!Z30)","v":""},{"$f":"CONCATENATE(Général!AA$3,Général!AA30)","v":""},{"$f":"CONCATENATE(Général!AB$3,Général!AB30)","v":""},{"$f":"CONCATENATE(Général!AC$3,Général!AC30)","v":""},{"$f":"CONCATENATE(Général!AD$3,Général!AD30)","v":""},{"$f":"CONCATENATE(Général!AE$3,Général!AE30)","v":""},{"$f":"CONCATENATE(Général!AF$3,Général!AF30)","v":""},{"$f":"CONCATENATE(Général!AG$3,Général!AG30)","v":""},{"$f":"CONCATENATE(Général!AH$3,Général!AH30)","v":""},{"$f":"CONCATENATE(Général!AI$3,Général!AI30)","v":""},{"$f":"CONCATENATE(Général!AJ$3,Général!AJ30)","v":""},{"$f":"CONCATENATE(Général!AK$3,Général!AK30)","v":""},{"$f":"CONCATENATE(Général!AL$3,Général!AL30)","v":""},{"$f":"CONCATENATE(Général!AM$3,Général!AM30)","v":""},{"$f":"CONCATENATE(Général!AN$3,Général!AN30)","v":""},{"$f":"CONCATENATE(Général!AO$3,Général!AO30)","v":""},{"$f":"CONCATENATE(Général!AP$3,Général!AP30)","v":""},{"$f":"CONCATENATE(Général!AQ$3,Général!AQ30)","v":""},{"$f":"CONCATENATE(Général!AR$3,Général!AR30)","v":""},{"$f":"CONCATENATE(Général!AS$3,Général!AS30)","v":""},{"$f":"CONCATENATE(Général!AT$3,Général!AT30)","v":""},{"$f":"CONCATENATE(Général!AU$3,Général!AU30)","v":""},{"$f":"CONCATENATE(Général!AV$3,Général!AV30)","v":""},{"$f":"CONCATENATE(Général!AW$3,Général!AW30)","v":""},{"$f":"CONCATENATE(Général!AX$3,Général!AX30)","v":""},{"$f":"CONCATENATE(Général!AY$3,Général!AY30)","v":""},{"$f":"CONCATENATE(Général!AZ$3,Général!AZ30)","v":""},{"$f":"CONCATENATE(Général!BA$3,Général!BA30)","v":""},{"$f":"CONCATENATE(Général!BB$3,Général!BB30)","v":""},{"$f":"CONCATENATE(Général!BC$3,Général!BC30)","v":""},{"$f":"CONCATENATE(Général!BD$3,Général!BD30)","v":""},{"$f":"CONCATENATE(Général!BE$3,Général!BE30)","v":""},{"$f":"CONCATENATE(Général!BF$3,Général!BF30)","v":""},{"$f":"CONCATENATE(Général!BG$3,Général!BG30)","v":""},{"$f":"CONCATENATE(Général!BH$3,Général!BH30)","v":""},{"$f":"CONCATENATE(Général!BI$3,Général!BI30)","v":""},{"$f":"CONCATENATE(Général!BJ$3,Général!BJ30)","v":""},{"$f":"CONCATENATE(Général!BK$3,Général!BK30)","v":""},{"$f":"CONCATENATE(Général!BL$3,Général!BL30)","v":""},{"$f":"CONCATENATE(Général!BM$3,Général!BM30)","v":""},{"$f":"CONCATENATE(Général!BN$3,Général!BN30)","v":""},{"$f":"CONCATENATE(Général!BO$3,Général!BO30)","v":""},{"$f":"CONCATENATE(Général!BP$3,Général!BP30)","v":""},{"$f":"CONCATENATE(Général!BQ$3,Général!BQ30)","v":""},{"$f":"CONCATENATE(Général!BR$3,Général!BR30)","v":""},{"$f":"CONCATENATE(Général!BS$3,Général!BS30)","v":""},{"$f":"CONCATENATE(Général!BT$3,Général!BT30)","v":""},{"$f":"CONCATENATE(Général!BU$3,Général!BU30)","v":""},{"$f":"CONCATENATE(Général!BV$3,Général!BV30)","v":""},{"$f":"CONCATENATE(Général!BW$3,Général!BW30)","v":""},{"$f":"CONCATENATE(Général!BX$3,Général!BX30)","v":""},{"$f":"CONCATENATE(Général!BY$3,Général!BY30)","v":""},{"$f":"CONCATENATE(Général!BZ$3,Général!BZ30)","v":""},{"$f":"CONCATENATE(Général!CA$3,Général!CA30)","v":""},{"$f":"CONCATENATE(Général!CB$3,Général!CB30)","v":""},{"$f":"CONCATENATE(Général!CC$3,Général!CC30)","v":""},{"$f":"CONCATENATE(Général!CD$3,Général!CD30)","v":""},{"$f":"CONCATENATE(Général!CE$3,Général!CE30)","v":""},{"$f":"CONCATENATE(Général!CF$3,Général!CF30)","v":""},{"$f":"CONCATENATE(Général!CG$3,Général!CG30)","v":""},{"$f":"CONCATENATE(Général!CH$3,Général!CH30)","v":""},{"$f":"CONCATENATE(Général!CI$3,Général!CI30)","v":""},{"$f":"CONCATENATE(Général!CJ$3,Général!CJ30)","v":""},{"$f":"CONCATENATE(Général!CK$3,Général!CK30)","v":""},{"$f":"CONCATENATE(Général!CL$3,Général!CL30)","v":""},{"$f":"CONCATENATE(Général!CM$3,Général!CM30)","v":""},{"$f":"CONCATENATE(Général!CN$3,Général!CN30)","v":""},{"$f":"CONCATENATE(Général!CO$3,Général!CO30)","v":""},{"$f":"CONCATENATE(Général!CP$3,Général!CP30)","v":""},{"$f":"CONCATENATE(Général!CQ$3,Général!CQ30)","v":""},{"$f":"CONCATENATE(Général!CR$3,Général!CR30)","v":""},{"$f":"CONCATENATE(Général!CS$3,Général!CS30)","v":""},{"$f":"CONCATENATE(Général!CT$3,Général!CT30)","v":""},{"$f":"CONCATENATE(Général!CU$3,Général!CU30)","v":""},{"$f":"CONCATENATE(Général!CV$3,Général!CV30)","v":""},{"$f":"CONCATENATE(Général!CW$3,Général!CW30)","v":""},{"$f":"CONCATENATE(Général!CX$3,Général!CX30)","v":""},null,0,0,0,0,0,13,0,{"$f":"IF(DE28=0,\"\",HLOOKUP(DE28,CY28:DC$40,DD28,FALSE))","v":""},0,0,0,0,0,13,0,{"$f":"IF(DM28=0,\"\",HLOOKUP(DM28,DG28:DK$40,DL28,FALSE))","v":""},0,0,0,0,0,13,0,{"$f":"IF(DU28=0,\"\",HLOOKUP(DU28,DO28:DS$40,DT28,FALSE))","v":""},0,0,0,0,0,13,0,{"$f":"IF(EC28=0,\"\",HLOOKUP(EC28,DW28:EA$40,EB28,FALSE))","v":""},0,0,0,0,0,13,0,{"$f":"IF(EK28=0,\"\",HLOOKUP(EK28,EE28:EI$40,EJ28,FALSE))","v":""},0,0,0,0,0,13,0,{"$f":"IF(ES28=0,\"\",HLOOKUP(ES28,EM28:EQ$40,ER28,FALSE))","v":""},0,0,0,0,0,13,0,{"$f":"IF(FA28=0,\"\",HLOOKUP(FA28,EU28:EY$40,EZ28,FALSE))","v":""},{"$f":"COUNTIF(Général!$C30:$CX30,FC$1)","v":0},{"$f":"COUNTIF(Général!$C30:$CX30,FD$1)","v":0},{"$f":"COUNTIF(Général!$C30:$CX30,FE$1)","v":0},{"$f":"COUNTIF(Général!$C30:$CX30,FF$1)","v":0},{"$f":"COUNTIF(Général!$C30:$CX30,FG$1)","v":0},13,0,{"$f":"IF(FI28<1,\"\",HLOOKUP(FI28,FC28:FG$40,FH28,FALSE))","v":""},5,"Non concerné","1","10","100","1000","10000",2222.1999999999998,"Non concerné"]
["E9",{"$f":"CONCATENATE(Général!C$3,Général!C31)","v":""},{"$f":"CONCATENATE(Général!D$3,Général!D31)","v":""},{"$f":"CONCATENATE(Général!E$3,Général!E31)","v":""},{"$f":"CONCATENATE(Général!F$3,Général!F31)","v":""},{"$f":"CONCATENATE(Général!G$3,Général!G31)","v":""},{"$f":"CONCATENATE(Général!H$3,Général!H31)","v":""},{"$f":"CONCATENATE(Général!I$3,Général!I31)","v":""},{"$f":"CONCATENATE(Général!J$3,Général!J31)","v":""},{"$f":"CONCATENATE(Général!K$3,Général!K31)","v":""},{"$f":"CONCATENATE(Général!L$3,Général!L31)","v":""},{"$f":"CONCATENATE(Général!M$3,Général!M31)","v":""},{"$f":"CONCATENATE(Général!N$3,Général!N31)","v":""},{"$f":"CONCATENATE(Général!O$3,Général!O31)","v":""},{"$f":"CONCATENATE(Général!P$3,Général!P31)","v":""},{"$f":"CONCATENATE(Général!Q$3,Général!Q31)","v":""},{"$f":"CONCATENATE(Général!R$3,Général!R31)","v":""},{"$f":"CONCATENATE(Général!S$3,Général!S31)","v":""},{"$f":"CONCATENATE(Général!T$3,Général!T31)","v":""},{"$f":"CONCATENATE(Général!U$3,Général!U31)","v":""},{"$f":"CONCATENATE(Général!V$3,Général!V31)","v":""},{"$f":"CONCATENATE(Général!W$3,Général!W31)","v":""},{"$f":"CONCATENATE(Général!X$3,Général!X31)","v":""},{"$f":"CONCATENATE(Général!Y$3,Général!Y31)","v":""},{"$f":"CONCATENATE(Général!Z$3,Général!Z31)","v":""},{"$f":"CONCATENATE(Général!AA$3,Général!AA31)","v":""},{"$f":"CONCATENATE(Général!AB$3,Général!AB31)","v":""},{"$f":"CONCATENATE(Général!AC$3,Général!AC31)","v":""},{"$f":"CONCATENATE(Général!AD$3,Général!AD31)","v":""},{"$f":"CONCATENATE(Général!AE$3,Général!AE31)","v":""},{"$f":"CONCATENATE(Général!AF$3,Général!AF31)","v":""},{"$f":"CONCATENATE(Général!AG$3,Général!AG31)","v":""},{"$f":"CONCATENATE(Général!AH$3,Général!AH31)","v":""},{"$f":"CONCATENATE(Général!AI$3,Général!AI31)","v":""},{"$f":"CONCATENATE(Général!AJ$3,Général!AJ31)","v":""},{"$f":"CONCATENATE(Général!AK$3,Général!AK31)","v":""},{"$f":"CONCATENATE(Général!AL$3,Général!AL31)","v":""},{"$f":"CONCATENATE(Général!AM$3,Général!AM31)","v":""},{"$f":"CONCATENATE(Général!AN$3,Général!AN31)","v":""},{"$f":"CONCATENATE(Général!AO$3,Général!AO31)","v":""},{"$f":"CONCATENATE(Général!AP$3,Général!AP31)","v":""},{"$f":"CONCATENATE(Général!AQ$3,Général!AQ31)","v":""},{"$f":"CONCATENATE(Général!AR$3,Général!AR31)","v":""},{"$f":"CONCATENATE(Général!AS$3,Général!AS31)","v":""},{"$f":"CONCATENATE(Général!AT$3,Général!AT31)","v":""},{"$f":"CONCATENATE(Général!AU$3,Général!AU31)","v":""},{"$f":"CONCATENATE(Général!AV$3,Général!AV31)","v":""},{"$f":"CONCATENATE(Général!AW$3,Général!AW31)","v":""},{"$f":"CONCATENATE(Général!AX$3,Général!AX31)","v":""},{"$f":"CONCATENATE(Général!AY$3,Général!AY31)","v":""},{"$f":"CONCATENATE(Général!AZ$3,Général!AZ31)","v":""},{"$f":"CONCATENATE(Général!BA$3,Général!BA31)","v":""},{"$f":"CONCATENATE(Général!BB$3,Général!BB31)","v":""},{"$f":"CONCATENATE(Général!BC$3,Général!BC31)","v":""},{"$f":"CONCATENATE(Général!BD$3,Général!BD31)","v":""},{"$f":"CONCATENATE(Général!BE$3,Général!BE31)","v":""},{"$f":"CONCATENATE(Général!BF$3,Général!BF31)","v":""},{"$f":"CONCATENATE(Général!BG$3,Général!BG31)","v":""},{"$f":"CONCATENATE(Général!BH$3,Général!BH31)","v":""},{"$f":"CONCATENATE(Général!BI$3,Général!BI31)","v":""},{"$f":"CONCATENATE(Général!BJ$3,Général!BJ31)","v":""},{"$f":"CONCATENATE(Général!BK$3,Général!BK31)","v":""},{"$f":"CONCATENATE(Général!BL$3,Général!BL31)","v":""},{"$f":"CONCATENATE(Général!BM$3,Général!BM31)","v":""},{"$f":"CONCATENATE(Général!BN$3,Général!BN31)","v":""},{"$f":"CONCATENATE(Général!BO$3,Général!BO31)","v":""},{"$f":"CONCATENATE(Général!BP$3,Général!BP31)","v":""},{"$f":"CONCATENATE(Général!BQ$3,Général!BQ31)","v":""},{"$f":"CONCATENATE(Général!BR$3,Général!BR31)","v":""},{"$f":"CONCATENATE(Général!BS$3,Général!BS31)","v":""},{"$f":"CONCATENATE(Général!BT$3,Général!BT31)","v":""},{"$f":"CONCATENATE(Général!BU$3,Général!BU31)","v":""},{"$f":"CONCATENATE(Général!BV$3,Général!BV31)","v":""},{"$f":"CONCATENATE(Général!BW$3,Général!BW31)","v":""},{"$f":"CONCATENATE(Général!BX$3,Général!BX31)","v":""},{"$f":"CONCATENATE(Général!BY$3,Général!BY31)","v":""},{"$f":"CONCATENATE(Général!BZ$3,Général!BZ31)","v":""},{"$f":"CONCATENATE(Général!CA$3,Général!CA31)","v":""},{"$f":"CONCATENATE(Général!CB$3,Général!CB31)","v":""},{"$f":"CONCATENATE(Général!CC$3,Général!CC31)","v":""},{"$f":"CONCATENATE(Général!CD$3,Général!CD31)","v":""},{"$f":"CONCATENATE(Général!CE$3,Général!CE31)","v":""},{"$f":"CONCATENATE(Général!CF$3,Général!CF31)","v":""},{"$f":"CONCATENATE(Général!CG$3,Général!CG31)","v":""},{"$f":"CONCATENATE(Général!CH$3,Général!CH31)","v":""},{"$f":"CONCATENATE(Général!CI$3,Général!CI31)","v":""},{"$f":"CONCATENATE(Général!CJ$3,Général!CJ31)","v":""},{"$f":"CONCATENATE(Général!CK$3,Général!CK31)","v":""},{"$f":"CONCATENATE(Général!CL$3,Général!CL31)","v":""},{"$f":"CONCATENATE(Général!CM$3,Général!CM31)","v":""},{"$f":"CONCATENATE(Général!CN$3,Général!CN31)","v":""},{"$f":"CONCATENATE(Général!CO$3,Général!CO31)","v":""},{"$f":"CONCATENATE(Général!CP$3,Général!CP31)","v":""},{"$f":"CONCATENATE(Général!CQ$3,Général!CQ31)","v":""},{"$f":"CONCATENATE(Général!CR$3,Général!CR31)","v":""},{"$f":"CONCATENATE(Général!CS$3,Général!CS31)","v":""},{"$f":"CONCATENATE(Général!CT$3,Général!CT31)","v":""},{"$f":"CONCATENATE(Général!CU$3,Général!CU31)","v":""},{"$f":"CONCATENATE(Général!CV$3,Général!CV31)","v":""},{"$f":"CONCATENATE(Général!CW$3,Général!CW31)","v":""},{"$f":"CONCATENATE(Général!CX$3,Général!CX31)","v":""},null,0,0,0,0,0,12,0,{"$f":"IF(DE29=0,\"\",HLOOKUP(DE29,CY29:DC$40,DD29,FALSE))","v":""},0,0,0,0,0,12,0,{"$f":"IF(DM29=0,\"\",HLOOKUP(DM29,DG29:DK$40,DL29,FALSE))","v":""},0,0,0,0,0,12,0,{"$f":"IF(DU29=0,\"\",HLOOKUP(DU29,DO29:DS$40,DT29,FALSE))","v":""},0,0,0,0,0,12,0,{"$f":"IF(EC29=0,\"\",HLOOKUP(EC29,DW29:EA$40,EB29,FALSE))","v":""},0,0,0,0,0,12,0,{"$f":"IF(EK29=0,\"\",HLOOKUP(EK29,EE29:EI$40,EJ29,FALSE))","v":""},0,0,0,0,0,12,0,{"$f":"IF(ES29=0,\"\",HLOOKUP(ES29,EM29:EQ$40,ER29,FALSE))","v":""},0,0,0,0,0,12,0,{"$f":"IF(FA29=0,\"\",HLOOKUP(FA29,EU29:EY$40,EZ29,FALSE))","v":""},{"$f":"COUNTIF(Général!$C31:$CX31,FC$1)","v":0},{"$f":"COUNTIF(Général!$C31:$CX31,FD$1)","v":0},{"$f":"COUNTIF(Général!$C31:$CX31,FE$1)","v":0},{"$f":"COUNTIF(Général!$C31:$CX31,FF$1)","v":0},{"$f":"COUNTIF(Général!$C31:$CX31,FG$1)","v":0},12,0,{"$f":"IF(FI29<1,\"\",HLOOKUP(FI29,FC29:FG$40,FH29,FALSE))","v":""},5,"Non concerné","1","10","100","1000","10000",2222.1999999999998,"Non concerné"]
["E10",{"$f":"CONCATENATE(Général!C$3,Général!C32)","v":""},{"$f":"CONCATENATE(Général!D$3,Général!D32)","v":""},{"$f":"CONCATENATE(Général!E$3,Général!E32)","v":""},{"$f":"CONCATENATE(Général!F$3,Général!F32)","v":""},{"$f":"CONCATENATE(Général!G$3,Général!G32)","v":""},{"$f":"CONCATENATE(Général!H$3,Général!H32)","v":""},{"$f":"CONCATENATE(Général!I$3,Général!I32)","v":""},{"$f":"CONCATENATE(Général!J$3,Général!J32)","v":""},{"$f":"CONCATENATE(Général!K$3,Général!K32)","v":""},{"$f":"CONCATENATE(Général!L$3,Général!L32)","v":""},{"$f":"CONCATENATE(Général!M$3,Général!M32)","v":""},{"$f":"CONCATENATE(Général!N$3,Général!N32)","v":""},{"$f":"CONCATENATE(Général!O$3,Général!O32)","v":""},{"$f":"CONCATENATE(Général!P$3,Général!P32)","v":""},{"$f":"CONCATENATE(Général!Q$3,Général!Q32)","v":""},{"$f":"CONCATENATE(Général!R$3,Général!R32)","v":""},{"$f":"CONCATENATE(Général!S$3,Général!S32)","v":""},{"$f":"CONCATENATE(Général!T$3,Général!T32)","v":""},{"$f":"CONCATENATE(Général!U$3,Général!U32)","v":""},{"$f":"CONCATENATE(Général!V$3,Général!V32)","v":""},{"$f":"CONCATENATE(Général!W$3,Général!W32)","v":""},{"$f":"CONCATENATE(Général!X$3,Général!X32)","v":""},{"$f":"CONCATENATE(Général!Y$3,Général!Y32)","v":""},{"$f":"CONCATENATE(Général!Z$3,Général!Z32)","v":""},{"$f":"CONCATENATE(Général!AA$3,Général!AA32)","v":""},{"$f":"CONCATENATE(Général!AB$3,Général!AB32)","v":""},{"$f":"CONCATENATE(Général!AC$3,Général!AC32)","v":""},{"$f":"CONCATENATE(Général!AD$3,Général!AD32)","v":""},{"$f":"CONCATENATE(Général!AE$3,Général!AE32)","v":""},{"$f":"CONCATENATE(Général!AF$3,Général!AF32)","v":""},{"$f":"CONCATENATE(Général!AG$3,Général!AG32)","v":""},{"$f":"CONCATENATE(Général!AH$3,Général!AH32)","v":""},{"$f":"CONCATENATE(Général!AI$3,Général!AI32)","v":""},{"$f":"CONCATENATE(Général!AJ$3,Général!AJ32)","v":""},{"$f":"CONCATENATE(Général!AK$3,Général!AK32)","v":""},{"$f":"CONCATENATE(Général!AL$3,Général!AL32)","v":""},{"$f":"CONCATENATE(Général!AM$3,Général!AM32)","v":""},{"$f":"CONCATENATE(Général!AN$3,Général!AN32)","v":""},{"$f":"CONCATENATE(Général!AO$3,Général!AO32)","v":""},{"$f":"CONCATENATE(Général!AP$3,Général!AP32)","v":""},{"$f":"CONCATENATE(Général!AQ$3,Général!AQ32)","v":""},{"$f":"CONCATENATE(Général!AR$3,Général!AR32)","v":""},{"$f":"CONCATENATE(Général!AS$3,Général!AS32)","v":""},{"$f":"CONCATENATE(Général!AT$3,Général!AT32)","v":""},{"$f":"CONCATENATE(Général!AU$3,Général!AU32)","v":""},{"$f":"CONCATENATE(Général!AV$3,Général!AV32)","v":""},{"$f":"CONCATENATE(Général!AW$3,Général!AW32)","v":""},{"$f":"CONCATENATE(Général!AX$3,Général!AX32)","v":""},{"$f":"CONCATENATE(Général!AY$3,Général!AY32)","v":""},{"$f":"CONCATENATE(Général!AZ$3,Général!AZ32)","v":""},{"$f":"CONCATENATE(Général!BA$3,Général!BA32)","v":""},{"$f":"CONCATENATE(Général!BB$3,Général!BB32)","v":""},{"$f":"CONCATENATE(Général!BC$3,Général!BC32)","v":""},{"$f":"CONCATENATE(Général!BD$3,Général!BD32)","v":""},{"$f":"CONCATENATE(Général!BE$3,Général!BE32)","v":""},{"$f":"CONCATENATE(Général!BF$3,Général!BF32)","v":""},{"$f":"CONCATENATE(Général!BG$3,Général!BG32)","v":""},{"$f":"CONCATENATE(Général!BH$3,Général!BH32)","v":""},{"$f":"CONCATENATE(Général!BI$3,Général!BI32)","v":""},{"$f":"CONCATENATE(Général!BJ$3,Général!BJ32)","v":""},{"$f":"CONCATENATE(Général!BK$3,Général!BK32)","v":""},{"$f":"CONCATENATE(Général!BL$3,Général!BL32)","v":""},{"$f":"CONCATENATE(Général!BM$3,Général!BM32)","v":""},{"$f":"CONCATENATE(Général!BN$3,Général!BN32)","v":""},{"$f":"CONCATENATE(Général!BO$3,Général!BO32)","v":""},{"$f":"CONCATENATE(Général!BP$3,Général!BP32)","v":""},{"$f":"CONCATENATE(Général!BQ$3,Général!BQ32)","v":""},{"$f":"CONCATENATE(Général!BR$3,Général!BR32)","v":""},{"$f":"CONCATENATE(Général!BS$3,Général!BS32)","v":""},{"$f":"CONCATENATE(Général!BT$3,Général!BT32)","v":""},{"$f":"CONCATENATE(Général!BU$3,Général!BU32)","v":""},{"$f":"CONCATENATE(Général!BV$3,Général!BV32)","v":""},{"$f":"CONCATENATE(Général!BW$3,Général!BW32)","v":""},{"$f":"CONCATENATE(Général!BX$3,Général!BX32)","v":""},{"$f":"CONCATENATE(Général!BY$3,Général!BY32)","v":""},{"$f":"CONCATENATE(Général!BZ$3,Général!BZ32)","v":""},{"$f":"CONCATENATE(Général!CA$3,Général!CA32)","v":""},{"$f":"CONCATENATE(Général!CB$3,Général!CB32)","v":""},{"$f":"CONCATENATE(Général!CC$3,Général!CC32)","v":""},{"$f":"CONCATENATE(Général!CD$3,Général!CD32)","v":""},{"$f":"CONCATENATE(Général!CE$3,Général!CE32)","v":""},{"$f":"CONCATENATE(Général!CF$3,Général!CF32)","v":""},{"$f":"CONCATENATE(Général!CG$3,Général!CG32)","v":""},{"$f":"CONCATENATE(Général!CH$3,Général!CH32)","v":""},{"$f":"CONCATENATE(Général!CI$3,Général!CI32)","v":""},{"$f":"CONCATENATE(Général!CJ$3,Général!CJ32)","v":""},{"$f":"CONCATENATE(Général!CK$3,Général!CK32)","v":""},{"$f":"CONCATENATE(Général!CL$3,Général!CL32)","v":""},{"$f":"CONCATENATE(Général!CM$3,Général!CM32)","v":""},{"$f":"CONCATENATE(Général!CN$3,Général!CN32)","v":""},{"$f":"CONCATENATE(Général!CO$3,Général!CO32)","v":""},{"$f":"CONCATENATE(Général!CP$3,Général!CP32)","v":""},{"$f":"CONCATENATE(Général!CQ$3,Général!CQ32)","v":""},{"$f":"CONCATENATE(Général!CR$3,Général!CR32)","v":""},{"$f":"CONCATENATE(Général!CS$3,Général!CS32)","v":""},{"$f":"CONCATENATE(Général!CT$3,Général!CT32)","v":""},{"$f":"CONCATENATE(Général!CU$3,Général!CU32)","v":""},{"$f":"CONCATENATE(Général!CV$3,Général!CV32)","v":""},{"$f":"CONCATENATE(Général!CW$3,Général!CW32)","v":""},{"$f":"CONCATENATE(Général!CX$3,Général!CX32)","v":""},null,0,0,0,0,0,11,0,{"$f":"IF(DE30=0,\"\",HLOOKUP(DE30,CY30:DC$40,DD30,FALSE))","v":""},0,0,0,0,0,11,0,{"$f":"IF(DM30=0,\"\",HLOOKUP(DM30,DG30:DK$40,DL30,FALSE))","v":""},0,0,0,0,0,11,0,{"$f":"IF(DU30=0,\"\",HLOOKUP(DU30,DO30:DS$40,DT30,FALSE))","v":""},0,0,0,0,0,11,0,{"$f":"IF(EC30=0,\"\",HLOOKUP(EC30,DW30:EA$40,EB30,FALSE))","v":""},0,0,0,0,0,11,0,{"$f":"IF(EK30=0,\"\",HLOOKUP(EK30,EE30:EI$40,EJ30,FALSE))","v":""},0,0,0,0,0,11,0,{"$f":"IF(ES30=0,\"\",HLOOKUP(ES30,EM30:EQ$40,ER30,FALSE))","v":""},0,0,0,0,0,11,0,{"$f":"IF(FA30=0,\"\",HLOOKUP(FA30,EU30:EY$40,EZ30,FALSE))","v":""},{"$f":"COUNTIF(Général!$C32:$CX32,FC$1)","v":0},{"$f":"COUNTIF(Général!$C32:$CX32,FD$1)","v":0},{"$f":"COUNTIF(Général!$C32:$CX32,FE$1)","v":0},{"$f":"COUNTIF(Général!$C32:$CX32,FF$1)","v":0},{"$f":"COUNTIF(Général!$C32:$CX32,FG$1)","v":0},11,0,{"$f":"IF(FI30<1,\"\",HLOOKUP(FI30,FC30:FG$40,FH30,FALSE))","v":""},5,"Non concerné","1","10","100","1000","10000",2222.1999999999998,"Non concerné"]
["E11",{"$f":"CONCATENATE(Général!C$3,Général!C33)","v":""},{"$f":"CONCATENATE(Général!D$3,Général!D33)","v":""},{"$f":"CONCATENATE(Général!E$3,Général!E33)","v":""},{"$f":"CONCATENATE(Général!F$3,Général!F33)","v":""},{"$f":"CONCATENATE(Général!G$3,Général!G33)","v":""},{"$f":"CONCATENATE(Général!H$3,Général!H33)","v":""},{"$f":"CONCATENATE(Général!I$3,Général!I33)","v":""},{"$f":"CONCATENATE(Général!J$3,Général!J33)","v":""},{"$f":"CONCATENATE(Général!K$3,Général!K33)","v":""},{"$f":"CONCATENATE(Général!L$3,Général!L33)","v":""},{"$f":"CONCATENATE(Général!M$3,Général!M33)","v":""},{"$f":"CONCATENATE(Général!N$3,Général!N33)","v":""},{"$f":"CONCATENATE(Général!O$3,Général!O33)","v":""},{"$f":"CONCATENATE(Général!P$3,Général!P33)","v":""},{"$f":"CONCATENATE(Général!Q$3,Général!Q33)","v":""},{"$f":"CONCATENATE(Général!R$3,Général!R33)","v":""},{"$f":"CONCATENATE(Général!S$3,Général!S33)","v":""},{"$f":"CONCATENATE(Général!T$3,Général!T33)","v":""},{"$f":"CONCATENATE(Général!U$3,Général!U33)","v":""},{"$f":"CONCATENATE(Général!V$3,Général!V33)","v":""},{"$f":"CONCATENATE(Général!W$3,Général!W33)","v":""},{"$f":"CONCATENATE(Général!X$3,Général!X33)","v":""},{"$f":"CONCATENATE(Général!Y$3,Général!Y33)","v":""},{"$f":"CONCATENATE(Général!Z$3,Général!Z33)","v":""},{"$f":"CONCATENATE(Général!AA$3,Général!AA33)","v":""},{"$f":"CONCATENATE(Général!AB$3,Général!AB33)","v":""},{"$f":"CONCATENATE(Général!AC$3,Général!AC33)","v":""},{"$f":"CONCATENATE(Général!AD$3,Général!AD33)","v":""},{"$f":"CONCATENATE(Général!AE$3,Général!AE33)","v":""},{"$f":"CONCATENATE(Général!AF$3,Général!AF33)","v":""},{"$f":"CONCATENATE(Général!AG$3,Général!AG33)","v":""},{"$f":"CONCATENATE(Général!AH$3,Général!AH33)","v":""},{"$f":"CONCATENATE(Général!AI$3,Général!AI33)","v":""},{"$f":"CONCATENATE(Général!AJ$3,Général!AJ33)","v":""},{"$f":"CONCATENATE(Général!AK$3,Général!AK33)","v":""},{"$f":"CONCATENATE(Général!AL$3,Général!AL33)","v":""},{"$f":"CONCATENATE(Général!AM$3,Général!AM33)","v":""},{"$f":"CONCATENATE(Général!AN$3,Général!AN33)","v":""},{"$f":"CONCATENATE(Général!AO$3,Général!AO33)","v":""},{"$f":"CONCATENATE(Général!AP$3,Général!AP33)","v":""},{"$f":"CONCATENATE(Général!AQ$3,Général!AQ33)","v":""},{"$f":"CONCATENATE(Général!AR$3,Général!AR33)","v":""},{"$f":"CONCATENATE(Général!AS$3,Général!AS33)","v":""},{"$f":"CONCATENATE(Général!AT$3,Général!AT33)","v":""},{"$f":"CONCATENATE(Général!AU$3,Général!AU33)","v":""},{"$f":"CONCATENATE(Général!AV$3,Général!AV33)","v":""},{"$f":"CONCATENATE(Général!AW$3,Général!AW33)","v":""},{"$f":"CONCATENATE(Général!AX$3,Général!AX33)","v":""},{"$f":"CONCATENATE(Général!AY$3,Général!AY33)","v":""},{"$f":"CONCATENATE(Général!AZ$3,Général!AZ33)","v":""},{"$f":"CONCATENATE(Général!BA$3,Général!BA33)","v":""},{"$f":"CONCATENATE(Général!BB$3,Général!BB33)","v":""},{"$f":"CONCATENATE(Général!BC$3,Général!BC33)","v":""},{"$f":"CONCATENATE(Général!BD$3,Général!BD33)","v":""},{"$f":"CONCATENATE(Général!BE$3,Général!BE33)","v":""},{"$f":"CONCATENATE(Général!BF$3,Général!BF33)","v":""},{"$f":"CONCATENATE(Général!BG$3,Général!BG33)","v":""},{"$f":"CONCATENATE(Général!BH$3,Général!BH33)","v":""},{"$f":"CONCATENATE(Général!BI$3,Général!BI33)","v":""},{"$f":"CONCATENATE(Général!BJ$3,Général!BJ33)","v":""},{"$f":"CONCATENATE(Général!BK$3,Général!BK33)","v":""},{"$f":"CONCATENATE(Général!BL$3,Général!BL33)","v":""},{"$f":"CONCATENATE(Général!BM$3,Général!BM33)","v":""},{"$f":"CONCATENATE(Général!BN$3,Général!BN33)","v":""},{"$f":"CONCATENATE(Général!BO$3,Général!BO33)","v":""},{"$f":"CONCATENATE(Général!BP$3,Général!BP33)","v":""},{"$f":"CONCATENATE(Général!BQ$3,Général!BQ33)","v":""},{"$f":"CONCATENATE(Général!BR$3,Général!BR33)","v":""},{"$f":"CONCATENATE(Général!BS$3,Général!BS33)","v":""},{"$f":"CONCATENATE(Général!BT$3,Général!BT33)","v":""},{"$f":"CONCATENATE(Général!BU$3,Général!BU33)","v":""},{"$f":"CONCATENATE(Général!BV$3,Général!BV33)","v":""},{"$f":"CONCATENATE(Général!BW$3,Général!BW33)","v":""},{"$f":"CONCATENATE(Général!BX$3,Général!BX33)","v":""},{"$f":"CONCATENATE(Général!BY$3,Général!BY33)","v":""},{"$f":"CONCATENATE(Général!BZ$3,Général!BZ33)","v":""},{"$f":"CONCATENATE(Général!CA$3,Général!CA33)","v":""},{"$f":"CONCATENATE(Général!CB$3,Général!CB33)","v":""},{"$f":"CONCATENATE(Général!CC$3,Général!CC33)","v":""},{"$f":"CONCATENATE(Général!CD$3,Général!CD33)","v":""},{"$f":"CONCATENATE(Général!CE$3,Général!CE33)","v":""},{"$f":"CONCATENATE(Général!CF$3,Général!CF33)","v":""},{"$f":"CONCATENATE(Général!CG$3,Général!CG33)","v":""},{"$f":"CONCATENATE(Général!CH$3,Général!CH33)","v":""},{"$f":"CONCATENATE(Général!CI$3,Général!CI33)","v":""},{"$f":"CONCATENATE(Général!CJ$3,Général!CJ33)","v":""},{"$f":"CONCATENATE(Général!CK$3,Général!CK33)","v":""},{"$f":"CONCATENATE(Général!CL$3,Général!CL33)","v":""},{"$f":"CONCATENATE(Général!CM$3,Général!CM33)","v":""},{"$f":"CONCATENATE(Général!CN$3,Général!CN33)","v":""},{"$f":"CONCATENATE(Général!CO$3,Général!CO33)","v":""},{"$f":"CONCATENATE(Général!CP$3,Général!CP33)","v":""},{"$f":"CONCATENATE(Général!CQ$3,Général!CQ33)","v":""},{"$f":"CONCATENATE(Général!CR$3,Général!CR33)","v":""},{"$f":"CONCATENATE(Général!CS$3,Général!CS33)","v":""},{"$f":"CONCATENATE(Général!CT$3,Général!CT33)","v":""},{"$f":"CONCATENATE(Général!CU$3,Général!CU33)","v":""},{"$f":"CONCATENATE(Général!CV$3,Général!CV33)","v":""},{"$f":"CONCATENATE(Général!CW$3,Général!CW33)","v":""},{"$f":"CONCATENATE(Général!CX$3,Général!CX33)","v":""},null,0,0,0,0,0,10,0,{"$f":"IF(DE31=0,\"\",HLOOKUP(DE31,CY31:DC$40,DD31,FALSE))","v":""},0,0,0,0,0,10,0,{"$f":"IF(DM31=0,\"\",HLOOKUP(DM31,DG31:DK$40,DL31,FALSE))","v":""},0,0,0,0,0,10,0,{"$f":"IF(DU31=0,\"\",HLOOKUP(DU31,DO31:DS$40,DT31,FALSE))","v":""},0,0,0,0,0,10,0,{"$f":"IF(EC31=0,\"\",HLOOKUP(EC31,DW31:EA$40,EB31,FALSE))","v":""},0,0,0,0,0,10,0,{"$f":"IF(EK31=0,\"\",HLOOKUP(EK31,EE31:EI$40,EJ31,FALSE))","v":""},0,0,0,0,0,10,0,{"$f":"IF(ES31=0,\"\",HLOOKUP(ES31,EM31:EQ$40,ER31,FALSE))","v":""},0,0,0,0,0,10,0,{"$f":"IF(FA31=0,\"\",HLOOKUP(FA31,EU31:EY$40,EZ31,FALSE))","v":""},{"$f":"COUNTIF(Général!$C33:$CX33,FC$1)","v":0},{"$f":"COUNTIF(Général!$C33:$CX33,FD$1)","v":0},{"$f":"COUNTIF(Général!$C33:$CX33,FE$1)","v":0},{"$f":"COUNTIF(Général!$C33:$CX33,FF$1)","v":0},{"$f":"COUNTIF(Général!$C33:$CX33,FG$1)","v":0},10,0,{"$f":"IF(FI31<1,\"\",HLOOKUP(FI31,FC31:FG$40,FH31,FALSE))","v":""},5,"Non concerné","1","10","100","1000","10000",2222.1999999999998,"Non concerné"]
["E12",{"$f":"CONCATENATE(Général!C$3,Général!C34)","v":""},{"$f":"CONCATENATE(Général!D$3,Général!D34)","v":""},{"$f":"CONCATENATE(Général!E$3,Général!E34)","v":""},{"$f":"CONCATENATE(Général!F$3,Général!F34)","v":""},{"$f":"CONCATENATE(Général!G$3,Général!G34)","v":""},{"$f":"CONCATENATE(Général!H$3,Général!H34)","v":""},{"$f":"CONCATENATE(Général!I$3,Général!I34)","v":""},{"$f":"CONCATENATE(Général!J$3,Général!J34)","v":""},{"$f":"CONCATENATE(Général!K$3,Général!K34)","v":""},{"$f":"CONCATENATE(Général!L$3,Général!L34)","v":""},{"$f":"CONCATENATE(Général!M$3,Général!M34)","v":""},{"$f":"CONCATENATE(Général!N$3,Général!N34)","v":""},{"$f":"CONCATENATE(Général!O$3,Général!O34)","v":""},{"$f":"CONCATENATE(Général!P$3,Général!P34)","v":""},{"$f":"CONCATENATE(Général!Q$3,Général!Q34)","v":""},{"$f":"CONCATENATE(Général!R$3,Général!R34)","v":""},{"$f":"CONCATENATE(Général!S$3,Général!S34)","v":""},{"$f":"CONCATENATE(Général!T$3,Général!T34)","v":""},{"$f":"CONCATENATE(Général!U$3,Général!U34)","v":""},{"$f":"CONCATENATE(Général!V$3,Général!V34)","v":""},{"$f":"CONCATENATE(Général!W$3,Général!W34)","v":""},{"$f":"CONCATENATE(Général!X$3,Général!X34)","v":""},{"$f":"CONCATENATE(Général!Y$3,Général!Y34)","v":""},{"$f":"CONCATENATE(Général!Z$3,Général!Z34)","v":""},{"$f":"CONCATENATE(Général!AA$3,Général!AA34)","v":""},{"$f":"CONCATENATE(Général!AB$3,Général!AB34)","v":""},{"$f":"CONCATENATE(Général!AC$3,Général!AC34)","v":""},{"$f":"CONCATENATE(Général!AD$3,Général!AD34)","v":""},{"$f":"CONCATENATE(Général!AE$3,Général!AE34)","v":""},{"$f":"CONCATENATE(Général!AF$3,Général!AF34)","v":""},{"$f":"CONCATENATE(Général!AG$3,Général!AG34)","v":""},{"$f":"CONCATENATE(Général!AH$3,Général!AH34)","v":""},{"$f":"CONCATENATE(Général!AI$3,Général!AI34)","v":""},{"$f":"CONCATENATE(Général!AJ$3,Général!AJ34)","v":""},{"$f":"CONCATENATE(Général!AK$3,Général!AK34)","v":""},{"$f":"CONCATENATE(Général!AL$3,Général!AL34)","v":""},{"$f":"CONCATENATE(Général!AM$3,Général!AM34)","v":""},{"$f":"CONCATENATE(Général!AN$3,Général!AN34)","v":""},{"$f":"CONCATENATE(Général!AO$3,Général!AO34)","v":""},{"$f":"CONCATENATE(Général!AP$3,Général!AP34)","v":""},{"$f":"CONCATENATE(Général!AQ$3,Général!AQ34)","v":""},{"$f":"CONCATENATE(Général!AR$3,Général!AR34)","v":""},{"$f":"CONCATENATE(Général!AS$3,Général!AS34)","v":""},{"$f":"CONCATENATE(Général!AT$3,Général!AT34)","v":""},{"$f":"CONCATENATE(Général!AU$3,Général!AU34)","v":""},{"$f":"CONCATENATE(Général!AV$3,Général!AV34)","v":""},{"$f":"CONCATENATE(Général!AW$3,Général!AW34)","v":""},{"$f":"CONCATENATE(Général!AX$3,Général!AX34)","v":""},{"$f":"CONCATENATE(Général!AY$3,Général!AY34)","v":""},{"$f":"CONCATENATE(Général!AZ$3,Général!AZ34)","v":""},{"$f":"CONCATENATE(Général!BA$3,Général!BA34)","v":""},{"$f":"CONCATENATE(Général!BB$3,Général!BB34)","v":""},{"$f":"CONCATENATE(Général!BC$3,Général!BC34)","v":""},{"$f":"CONCATENATE(Général!BD$3,Général!BD34)","v":""},{"$f":"CONCATENATE(Général!BE$3,Général!BE34)","v":""},{"$f":"CONCATENATE(Général!BF$3,Général!BF34)","v":""},{"$f":"CONCATENATE(Général!BG$3,Général!BG34)","v":""},{"$f":"CONCATENATE(Général!BH$3,Général!BH34)","v":""},{"$f":"CONCATENATE(Général!BI$3,Général!BI34)","v":""},{"$f":"CONCATENATE(Général!BJ$3,Général!BJ34)","v":""},{"$f":"CONCATENATE(Général!BK$3,Général!BK34)","v":""},{"$f":"CONCATENATE(Général!BL$3,Général!BL34)","v":""},{"$f":"CONCATENATE(Général!BM$3,Général!BM34)","v":""},{"$f":"CONCATENATE(Général!BN$3,Général!BN34)","v":""},{"$f":"CONCATENATE(Général!BO$3,Général!BO34)","v":""},{"$f":"CONCATENATE(Général!BP$3,Général!BP34)","v":""},{"$f":"CONCATENATE(Général!BQ$3,Général!BQ34)","v":""},{"$f":"CONCATENATE(Général!BR$3,Général!BR34)","v":""},{"$f":"CONCATENATE(Général!BS$3,Général!BS34)","v":""},{"$f":"CONCATENATE(Général!BT$3,Général!BT34)","v":""},{"$f":"CONCATENATE(Général!BU$3,Général!BU34)","v":""},{"$f":"CONCATENATE(Général!BV$3,Général!BV34)","v":""},{"$f":"CONCATENATE(Général!BW$3,Général!BW34)","v":""},{"$f":"CONCATENATE(Général!BX$3,Général!BX34)","v":""},{"$f":"CONCATENATE(Général!BY$3,Général!BY34)","v":""},{"$f":"CONCATENATE(Général!BZ$3,Général!BZ34)","v":""},{"$f":"CONCATENATE(Général!CA$3,Général!CA34)","v":""},{"$f":"CONCATENATE(Général!CB$3,Général!CB34)","v":""},{"$f":"CONCATENATE(Général!CC$3,Général!CC34)","v":""},{"$f":"CONCATENATE(Général!CD$3,Général!CD34)","v":""},{"$f":"CONCATENATE(Général!CE$3,Général!CE34)","v":""},{"$f":"CONCATENATE(Général!CF$3,Général!CF34)","v":""},{"$f":"CONCATENATE(Général!CG$3,Général!CG34)","v":""},{"$f":"CONCATENATE(Général!CH$3,Général!CH34)","v":""},{"$f":"CONCATENATE(Général!CI$3,Général!CI34)","v":""},{"$f":"CONCATENATE(Général!CJ$3,Général!CJ34)","v":""},{"$f":"CONCATENATE(Général!CK$3,Général!CK34)","v":""},{"$f":"CONCATENATE(Général!CL$3,Général!CL34)","v":""},{"$f":"CONCATENATE(Général!CM$3,Général!CM34)","v":""},{"$f":"CONCATENATE(Général!CN$3,Général!CN34)","v":""},{"$f":"CONCATENATE(Général!CO$3,Général!CO34)","v":""},{"$f":"CONCATENATE(Général!CP$3,Général!CP34)","v":""},{"$f":"CONCATENATE(Général!CQ$3,Général!CQ34)","v":""},{"$f":"CONCATENATE(Général!CR$3,Général!CR34)","v":""},{"$f":"CONCATENATE(Général!CS$3,Général!CS34)","v":""},{"$f":"CONCATENATE(Général!CT$3,Général!CT34)","v":""},{"$f":"CONCATENATE(Général!CU$3,Général!CU34)","v":""},{"$f":"CONCATENATE(Général!CV$3,Général!CV34)","v":""},{"$f":"CONCATENATE(Général!CW$3,Général!CW34)","v":""},{"$f":"CONCATENATE(Général!CX$3,Général!CX34)","v":""},null,0,0,0,0,0,9,0,{"$f":"IF(DE32=0,\"\",HLOOKUP(DE32,CY32:DC$40,DD32,FALSE))","v":""},{"$f":"COUNTIF($A32:$CW32,(CONCATENATE(\"Un fournisseur\",DG$1)))","v":0},0,0,0,0,9,0,{"$f":"IF(DM32=0,\"\",HLOOKUP(DM32,DG32:DK$40,DL32,FALSE))","v":""},{"$f":"COUNTIF($A32:$CW32,(CONCATENATE(\"Une collectivité/organisme local\",DO$1)))","v":0},0,0,0,0,9,0,{"$f":"IF(DU32=0,\"\",HLOOKUP(DU32,DO32:DS$40,DT32,FALSE))","v":""},{"$f":"COUNTIF($A32:$CW32,(CONCATENATE(\"Un collaborateur/salarié\",DW$1)))","v":0},0,0,0,0,9,0,{"$f":"IF(EC32=0,\"\",HLOOKUP(EC32,DW32:EA$40,EB32,FALSE))","v":""},{"$f":"COUNTIF($A32:$CW32,(CONCATENATE(\"Un prestataire\",EE$1)))","v":0},0,0,0,0,9,0,{"$f":"IF(EK32=0,\"\",HLOOKUP(EK32,EE32:EI$40,EJ32,FALSE))","v":""},{"$f":"COUNTIF($A32:$CW32,(CONCATENATE(\"Un actionnaire\",EM$1)))","v":0},0,0,0,0,9,0,{"$f":"IF(ES32=0,\"\",HLOOKUP(ES32,EM32:EQ$40,ER32,FALSE))","v":""},{"$f":"COUNTIF($A32:$CW32,(CONCATENATE(\"Autre\",EU$1)))","v":0},0,0,0,0,9,0,{"$f":"IF(FA32=0,\"\",HLOOKUP(FA32,EU32:EY$40,EZ32,FALSE))","v":""},{"$f":"COUNTIF(Général!$C34:$CX34,FC$1)","v":0},{"$f":"COUNTIF(Général!$C34:$CX34,FD$1)","v":0},{"$f":"COUNTIF(Général!$C34:$CX34,FE$1)","v":0},{"$f":"COUNTIF(Général!$C34:$CX34,FF$1)","v":0},{"$f":"COUNTIF(Général!$C34:$CX34,FG$1)","v":0},9,0,{"$f":"IF(FI32<1,\"\",HLOOKUP(FI32,FC32:FG$40,FH32,FALSE))","v":""},5,"Non concerné","1","10","100","1000","10000",2222.1999999999998,"Non concerné"]
["E13",{"$f":"CONCATENATE(Général!C$3,Général!C35)","v":""},{"$f":"CONCATENATE(Général!D$3,Général!D35)","v":""},{"$f":"CONCATENATE(Général!E$3,Général!E35)","v":""},{"$f":"CONCATENATE(Général!F$3,Général!F35)","v":""},{"$f":"CONCATENATE(Général!G$3,Général!G35)","v":""},{"$f":"CONCATENATE(Général!H$3,Général!H35)","v":""},{"$f":"CONCATENATE(Général!I$3,Général!I35)","v":""},{"$f":"CONCATENATE(Général!J$3,Général!J35)","v":""},{"$f":"CONCATENATE(Général!K$3,Général!K35)","v":""},{"$f":"CONCATENATE(Général!L$3,Général!L35)","v":""},{"$f":"CONCATENATE(Général!M$3,Général!M35)","v":""},{"$f":"CONCATENATE(Général!N$3,Général!N35)","v":""},{"$f":"CONCATENATE(Général!O$3,Général!O35)","v":""},{"$f":"CONCATENATE(Général!P$3,Général!P35)","v":""},{"$f":"CONCATENATE(Général!Q$3,Général!Q35)","v":""},{"$f":"CONCATENATE(Général!R$3,Général!R35)","v":""},{"$f":"CONCATENATE(Général!S$3,Général!S35)","v":""},{"$f":"CONCATENATE(Général!T$3,Général!T35)","v":""},{"$f":"CONCATENATE(Général!U$3,Général!U35)","v":""},{"$f":"CONCATENATE(Général!V$3,Général!V35)","v":""},{"$f":"CONCATENATE(Général!W$3,Général!W35)","v":""},{"$f":"CONCATENATE(Général!X$3,Général!X35)","v":""},{"$f":"CONCATENATE(Général!Y$3,Général!Y35)","v":""},{"$f":"CONCATENATE(Général!Z$3,Général!Z35)","v":""},{"$f":"CONCATENATE(Général!AA$3,Général!AA35)","v":""},{"$f":"CONCATENATE(Général!AB$3,Général!AB35)","v":""},{"$f":"CONCATENATE(Général!AC$3,Général!AC35)","v":""},{"$f":"CONCATENATE(Général!AD$3,Général!AD35)","v":""},{"$f":"CONCATENATE(Général!AE$3,Général!AE35)","v":""},{"$f":"CONCATENATE(Général!AF$3,Général!AF35)","v":""},{"$f":"CONCATENATE(Général!AG$3,Général!AG35)","v":""},{"$f":"CONCATENATE(Général!AH$3,Général!AH35)","v":""},{"$f":"CONCATENATE(Général!AI$3,Général!AI35)","v":""},{"$f":"CONCATENATE(Général!AJ$3,Général!AJ35)","v":""},{"$f":"CONCATENATE(Général!AK$3,Général!AK35)","v":""},{"$f":"CONCATENATE(Général!AL$3,Général!AL35)","v":""},{"$f":"CONCATENATE(Général!AM$3,Général!AM35)","v":""},{"$f":"CONCATENATE(Général!AN$3,Général!AN35)","v":""},{"$f":"CONCATENATE(Général!AO$3,Général!AO35)","v":""},{"$f":"CONCATENATE(Général!AP$3,Général!AP35)","v":""},{"$f":"CONCATENATE(Général!AQ$3,Général!AQ35)","v":""},{"$f":"CONCATENATE(Général!AR$3,Général!AR35)","v":""},{"$f":"CONCATENATE(Général!AS$3,Général!AS35)","v":""},{"$f":"CONCATENATE(Général!AT$3,Général!AT35)","v":""},{"$f":"CONCATENATE(Général!AU$3,Général!AU35)","v":""},{"$f":"CONCATENATE(Général!AV$3,Général!AV35)","v":""},{"$f":"CONCATENATE(Général!AW$3,Général!AW35)","v":""},{"$f":"CONCATENATE(Général!AX$3,Général!AX35)","v":""},{"$f":"CONCATENATE(Général!AY$3,Général!AY35)","v":""},{"$f":"CONCATENATE(Général!AZ$3,Général!AZ35)","v":""},{"$f":"CONCATENATE(Général!BA$3,Général!BA35)","v":""},{"$f":"CONCATENATE(Général!BB$3,Général!BB35)","v":""},{"$f":"CONCATENATE(Général!BC$3,Général!BC35)","v":""},{"$f":"CONCATENATE(Général!BD$3,Général!BD35)","v":""},{"$f":"CONCATENATE(Général!BE$3,Général!BE35)","v":""},{"$f":"CONCATENATE(Général!BF$3,Général!BF35)","v":""},{"$f":"CONCATENATE(Général!BG$3,Général!BG35)","v":""},{"$f":"CONCATENATE(Général!BH$3,Général!BH35)","v":""},{"$f":"CONCATENATE(Général!BI$3,Général!BI35)","v":""},{"$f":"CONCATENATE(Général!BJ$3,Général!BJ35)","v":""},{"$f":"CONCATENATE(Général!BK$3,Général!BK35)","v":""},{"$f":"CONCATENATE(Général!BL$3,Général!BL35)","v":""},{"$f":"CONCATENATE(Général!BM$3,Général!BM35)","v":""},{"$f":"CONCATENATE(Général!BN$3,Général!BN35)","v":""},{"$f":"CONCATENATE(Général!BO$3,Général!BO35)","v":""},{"$f":"CONCATENATE(Général!BP$3,Général!BP35)","v":""},{"$f":"CONCATENATE(Général!BQ$3,Général!BQ35)","v":""},{"$f":"CONCATENATE(Général!BR$3,Général!BR35)","v":""},{"$f":"CONCATENATE(Général!BS$3,Général!BS35)","v":""},{"$f":"CONCATENATE(Général!BT$3,Général!BT35)","v":""},{"$f":"CONCATENATE(Général!BU$3,Général!BU35)","v":""},{"$f":"CONCATENATE(Général!BV$3,Général!BV35)","v":""},{"$f":"CONCATENATE(Général!BW$3,Général!BW35)","v":""},{"$f":"CONCATENATE(Général!BX$3,Général!BX35)","v":""},{"$f":"CONCATENATE(Général!BY$3,Général!BY35)","v":""},{"$f":"CONCATENATE(Général!BZ$3,Général!BZ35)","v":""},{"$f":"CONCATENATE(Général!CA$3,Général!CA35)","v":""},{"$f":"CONCATENATE(Général!CB$3,Général!CB35)","v":""},{"$f":"CONCATENATE(Général!CC$3,Général!CC35)","v":""},{"$f":"CONCATENATE(Général!CD$3,Général!CD35)","v":""},{"$f":"CONCATENATE(Général!CE$3,Général!CE35)","v":""},{"$f":"CONCATENATE(Général!CF$3,Général!CF35)","v":""},{"$f":"CONCATENATE(Général!CG$3,Général!CG35)","v":""},{"$f":"CONCATENATE(Général!CH$3,Général!CH35)","v":""},{"$f":"CONCATENATE(Général!CI$3,Général!CI35)","v":""},{"$f":"CONCATENATE(Général!CJ$3,Général!CJ35)","v":""},{"$f":"CONCATENATE(Général!CK$3,Général!CK35)","v":""},{"$f":"CONCATENATE(Général!CL$3,Général!CL35)","v":""},{"$f":"CONCATENATE(Général!CM$3,Général!CM35)","v":""},{"$f":"CONCATENATE(Général!CN$3,Général!CN35)","v":""},{"$f":"CONCATENATE(Général!CO$3,Général!CO35)","v":""},{"$f":"CONCATENATE(Général!CP$3,Général!CP35)","v":""},{"$f":"CONCATENATE(Général!CQ$3,Général!CQ35)","v":""},{"$f":"CONCATENATE(Général!CR$3,Général!CR35)","v":""},{"$f":"CONCATENATE(Général!CS$3,Général!CS35)","v":""},{"$f":"CONCATENATE(Général!CT$3,Général!CT35)","v":""},{"$f":"CONCATENATE(Général!CU$3,Général!CU35)","v":""},{"$f":"CONCATENATE(Général!CV$3,Général!CV35)","v":""},{"$f":"CONCATENATE(Général!CW$3,Général!CW35)","v":""},{"$f":"CONCATENATE(Général!CX$3,Général!CX35)","v":""},null,0,0,0,0,0,8,0,{"$f":"IF(DE33=0,\"\",HLOOKUP(DE33,CY33:DC$40,DD33,FALSE))","v":""},0,0,0,0,0,8,0,{"$f":"IF(DM33=0,\"\",HLOOKUP(DM33,DG33:DK$40,DL33,FALSE))","v":""},0,0,0,0,0,8,0,{"$f":"IF(DU33=0,\"\",HLOOKUP(DU33,DO33:DS$40,DT33,FALSE))","v":""},0,0,0,0,0,8,0,{"$f":"IF(EC33=0,\"\",HLOOKUP(EC33,DW33:EA$40,EB33,FALSE))","v":""},0,0,0,0,0,8,0,{"$f":"IF(EK33=0,\"\",HLOOKUP(EK33,EE33:EI$40,EJ33,FALSE))","v":""},0,0,0,0,0,8,0,{"$f":"IF(ES33=0,\"\",HLOOKUP(ES33,EM33:EQ$40,ER33,FALSE))","v":""},0,0,0,0,0,8,0,{"$f":"IF(FA33=0,\"\",HLOOKUP(FA33,EU33:EY$40,EZ33,FALSE))","v":""},{"$f":"COUNTIF(Général!$C35:$CX35,FC$1)","v":0},{"$f":"COUNTIF(Général!$C35:$CX35,FD$1)","v":0},{"$f":"COUNTIF(Général!$C35:$CX35,FE$1)","v":0},{"$f":"COUNTIF(Général!$C35:$CX35,FF$1)","v":0},{"$f":"COUNTIF(Général!$C35:$CX35,FG$1)","v":0},8,0,{"$f":"IF(FI33<1,\"\",HLOOKUP(FI33,FC33:FG$40,FH33,FALSE))","v":""},5,"Non concerné","1","10","100","1000","10000",2222.1999999999998,"Non concerné"]
["E14",{"$f":"CONCATENATE(Général!C$3,Général!C36)","v":""},{"$f":"CONCATENATE(Général!D$3,Général!D36)","v":""},{"$f":"CONCATENATE(Général!E$3,Général!E36)","v":""},{"$f":"CONCATENATE(Général!F$3,Général!F36)","v":""},{"$f":"CONCATENATE(Général!G$3,Général!G36)","v":""},{"$f":"CONCATENATE(Général!H$3,Général!H36)","v":""},{"$f":"CONCATENATE(Général!I$3,Général!I36)","v":""},{"$f":"CONCATENATE(Général!J$3,Général!J36)","v":""},{"$f":"CONCATENATE(Général!K$3,Général!K36)","v":""},{"$f":"CONCATENATE(Général!L$3,Général!L36)","v":""},{"$f":"CONCATENATE(Général!M$3,Général!M36)","v":""},{"$f":"CONCATENATE(Général!N$3,Général!N36)","v":""},{"$f":"CONCATENATE(Général!O$3,Général!O36)","v":""},{"$f":"CONCATENATE(Général!P$3,Général!P36)","v":""},{"$f":"CONCATENATE(Général!Q$3,Général!Q36)","v":""},{"$f":"CONCATENATE(Général!R$3,Général!R36)","v":""},{"$f":"CONCATENATE(Général!S$3,Général!S36)","v":""},{"$f":"CONCATENATE(Général!T$3,Général!T36)","v":""},{"$f":"CONCATENATE(Général!U$3,Général!U36)","v":""},{"$f":"CONCATENATE(Général!V$3,Général!V36)","v":""},{"$f":"CONCATENATE(Général!W$3,Général!W36)","v":""},{"$f":"CONCATENATE(Général!X$3,Général!X36)","v":""},{"$f":"CONCATENATE(Général!Y$3,Général!Y36)","v":""},{"$f":"CONCATENATE(Général!Z$3,Général!Z36)","v":""},{"$f":"CONCATENATE(Général!AA$3,Général!AA36)","v":""},{"$f":"CONCATENATE(Général!AB$3,Général!AB36)","v":""},{"$f":"CONCATENATE(Général!AC$3,Général!AC36)","v":""},{"$f":"CONCATENATE(Général!AD$3,Général!AD36)","v":""},{"$f":"CONCATENATE(Général!AE$3,Général!AE36)","v":""},{"$f":"CONCATENATE(Général!AF$3,Général!AF36)","v":""},{"$f":"CONCATENATE(Général!AG$3,Général!AG36)","v":""},{"$f":"CONCATENATE(Général!AH$3,Général!AH36)","v":""},{"$f":"CONCATENATE(Général!AI$3,Général!AI36)","v":""},{"$f":"CONCATENATE(Général!AJ$3,Général!AJ36)","v":""},{"$f":"CONCATENATE(Général!AK$3,Général!AK36)","v":""},{"$f":"CONCATENATE(Général!AL$3,Général!AL36)","v":""},{"$f":"CONCATENATE(Général!AM$3,Général!AM36)","v":""},{"$f":"CONCATENATE(Général!AN$3,Général!AN36)","v":""},{"$f":"CONCATENATE(Général!AO$3,Général!AO36)","v":""},{"$f":"CONCATENATE(Général!AP$3,Général!AP36)","v":""},{"$f":"CONCATENATE(Général!AQ$3,Général!AQ36)","v":""},{"$f":"CONCATENATE(Général!AR$3,Général!AR36)","v":""},{"$f":"CONCATENATE(Général!AS$3,Général!AS36)","v":""},{"$f":"CONCATENATE(Général!AT$3,Général!AT36)","v":""},{"$f":"CONCATENATE(Général!AU$3,Général!AU36)","v":""},{"$f":"CONCATENATE(Général!AV$3,Général!AV36)","v":""},{"$f":"CONCATENATE(Général!AW$3,Général!AW36)","v":""},{"$f":"CONCATENATE(Général!AX$3,Général!AX36)","v":""},{"$f":"CONCATENATE(Général!AY$3,Général!AY36)","v":""},{"$f":"CONCATENATE(Général!AZ$3,Général!AZ36)","v":""},{"$f":"CONCATENATE(Général!BA$3,Général!BA36)","v":""},{"$f":"CONCATENATE(Général!BB$3,Général!BB36)","v":""},{"$f":"CONCATENATE(Général!BC$3,Général!BC36)","v":""},{"$f":"CONCATENATE(Général!BD$3,Général!BD36)","v":""},{"$f":"CONCATENATE(Général!BE$3,Général!BE36)","v":""},{"$f":"CONCATENATE(Général!BF$3,Général!BF36)","v":""},{"$f":"CONCATENATE(Général!BG$3,Général!BG36)","v":""},{"$f":"CONCATENATE(Général!BH$3,Général!BH36)","v":""},{"$f":"CONCATENATE(Général!BI$3,Général!BI36)","v":""},{"$f":"CONCATENATE(Général!BJ$3,Général!BJ36)","v":""},{"$f":"CONCATENATE(Général!BK$3,Général!BK36)","v":""},{"$f":"CONCATENATE(Général!BL$3,Général!BL36)","v":""},{"$f":"CONCATENATE(Général!BM$3,Général!BM36)","v":""},{"$f":"CONCATENATE(Général!BN$3,Général!BN36)","v":""},{"$f":"CONCATENATE(Général!BO$3,Général!BO36)","v":""},{"$f":"CONCATENATE(Général!BP$3,Général!BP36)","v":""},{"$f":"CONCATENATE(Général!BQ$3,Général!BQ36)","v":""},{"$f":"CONCATENATE(Général!BR$3,Général!BR36)","v":""},{"$f":"CONCATENATE(Général!BS$3,Général!BS36)","v":""},{"$f":"CONCATENATE(Général!BT$3,Général!BT36)","v":""},{"$f":"CONCATENATE(Général!BU$3,Général!BU36)","v":""},{"$f":"CONCATENATE(Général!BV$3,Général!BV36)","v":""},{"$f":"CONCATENATE(Général!BW$3,Général!BW36)","v":""},{"$f":"CONCATENATE(Général!BX$3,Général!BX36)","v":""},{"$f":"CONCATENATE(Général!BY$3,Général!BY36)","v":""},{"$f":"CONCATENATE(Général!BZ$3,Général!BZ36)","v":""},{"$f":"CONCATENATE(Général!CA$3,Général!CA36)","v":""},{"$f":"CONCATENATE(Général!CB$3,Général!CB36)","v":""},{"$f":"CONCATENATE(Général!CC$3,Général!CC36)","v":""},{"$f":"CONCATENATE(Général!CD$3,Général!CD36)","v":""},{"$f":"CONCATENATE(Général!CE$3,Général!CE36)","v":""},{"$f":"CONCATENATE(Général!CF$3,Général!CF36)","v":""},{"$f":"CONCATENATE(Général!CG$3,Général!CG36)","v":""},{"$f":"CONCATENATE(Général!CH$3,Général!CH36)","v":""},{"$f":"CONCATENATE(Général!CI$3,Général!CI36)","v":""},{"$f":"CONCATENATE(Général!CJ$3,Général!CJ36)","v":""},{"$f":"CONCATENATE(Général!CK$3,Général!CK36)","v":""},{"$f":"CONCATENATE(Général!CL$3,Général!CL36)","v":""},{"$f":"CONCATENATE(Général!CM$3,Général!CM36)","v":""},{"$f":"CONCATENATE(Général!CN$3,Général!CN36)","v":""},{"$f":"CONCATENATE(Général!CO$3,Général!CO36)","v":""},{"$f":"CONCATENATE(Général!CP$3,Général!CP36)","v":""},{"$f":"CONCATENATE(Général!CQ$3,Général!CQ36)","v":""},{"$f":"CONCATENATE(Général!CR$3,Général!CR36)","v":""},{"$f":"CONCATENATE(Général!CS$3,Général!CS36)","v":""},{"$f":"CONCATENATE(Général!CT$3,Général!CT36)","v":""},{"$f":"CONCATENATE(Général!CU$3,Général!CU36)","v":""},{"$f":"CONCATENATE(Général!CV$3,Général!CV36)","v":""},{"$f":"CONCATENATE(Général!CW$3,Général!CW36)","v":""},{"$f":"CONCATENATE(Général!CX$3,Général!CX36)","v":""},null,0,0,0,0,0,7,0,{"$f":"IF(DE34=0,\"\",HLOOKUP(DE34,CY34:DC$40,DD34,FALSE))","v":""},0,0,0,0,0,7,0,{"$f":"IF(DM34=0,\"\",HLOOKUP(DM34,DG34:DK$40,DL34,FALSE))","v":""},0,0,0,0,0,7,0,{"$f":"IF(DU34=0,\"\",HLOOKUP(DU34,DO34:DS$40,DT34,FALSE))","v":""},0,0,0,0,0,7,0,{"$f":"IF(EC34=0,\"\",HLOOKUP(EC34,DW34:EA$40,EB34,FALSE))","v":""},0,0,0,0,0,7,0,{"$f":"IF(EK34=0,\"\",HLOOKUP(EK34,EE34:EI$40,EJ34,FALSE))","v":""},0,0,0,0,0,7,0,{"$f":"IF(ES34=0,\"\",HLOOKUP(ES34,EM34:EQ$40,ER34,FALSE))","v":""},0,0,0,0,0,7,0,{"$f":"IF(FA34=0,\"\",HLOOKUP(FA34,EU34:EY$40,EZ34,FALSE))","v":""},{"$f":"COUNTIF(Général!$C36:$CX36,FC$1)","v":0},{"$f":"COUNTIF(Général!$C36:$CX36,FD$1)","v":0},{"$f":"COUNTIF(Général!$C36:$CX36,FE$1)","v":0},{"$f":"COUNTIF(Général!$C36:$CX36,FF$1)","v":0},{"$f":"COUNTIF(Général!$C36:$CX36,FG$1)","v":0},7,0,{"$f":"IF(FI34<1,\"\",HLOOKUP(FI34,FC34:FG$40,FH34,FALSE))","v":""},5,"Non concerné","1","10","100","1000","10000",2222.1999999999998,"Non concerné"]
["E15",{"$f":"CONCATENATE(Général!C$3,Général!C37)","v":""},{"$f":"CONCATENATE(Général!D$3,Général!D37)","v":""},{"$f":"CONCATENATE(Général!E$3,Général!E37)","v":""},{"$f":"CONCATENATE(Général!F$3,Général!F37)","v":""},{"$f":"CONCATENATE(Général!G$3,Général!G37)","v":""},{"$f":"CONCATENATE(Général!H$3,Général!H37)","v":""},{"$f":"CONCATENATE(Général!I$3,Général!I37)","v":""},{"$f":"CONCATENATE(Général!J$3,Général!J37)","v":""},{"$f":"CONCATENATE(Général!K$3,Général!K37)","v":""},{"$f":"CONCATENATE(Général!L$3,Général!L37)","v":""},{"$f":"CONCATENATE(Général!M$3,Général!M37)","v":""},{"$f":"CONCATENATE(Général!N$3,Général!N37)","v":""},{"$f":"CONCATENATE(Général!O$3,Général!O37)","v":""},{"$f":"CONCATENATE(Général!P$3,Général!P37)","v":""},{"$f":"CONCATENATE(Général!Q$3,Général!Q37)","v":""},{"$f":"CONCATENATE(Général!R$3,Général!R37)","v":""},{"$f":"CONCATENATE(Général!S$3,Général!S37)","v":""},{"$f":"CONCATENATE(Général!T$3,Général!T37)","v":""},{"$f":"CONCATENATE(Général!U$3,Général!U37)","v":""},{"$f":"CONCATENATE(Général!V$3,Général!V37)","v":""},{"$f":"CONCATENATE(Général!W$3,Général!W37)","v":""},{"$f":"CONCATENATE(Général!X$3,Général!X37)","v":""},{"$f":"CONCATENATE(Général!Y$3,Général!Y37)","v":""},{"$f":"CONCATENATE(Général!Z$3,Général!Z37)","v":""},{"$f":"CONCATENATE(Général!AA$3,Général!AA37)","v":""},{"$f":"CONCATENATE(Général!AB$3,Général!AB37)","v":""},{"$f":"CONCATENATE(Général!AC$3,Général!AC37)","v":""},{"$f":"CONCATENATE(Général!AD$3,Général!AD37)","v":""},{"$f":"CONCATENATE(Général!AE$3,Général!AE37)","v":""},{"$f":"CONCATENATE(Général!AF$3,Général!AF37)","v":""},{"$f":"CONCATENATE(Général!AG$3,Général!AG37)","v":""},{"$f":"CONCATENATE(Général!AH$3,Général!AH37)","v":""},{"$f":"CONCATENATE(Général!AI$3,Général!AI37)","v":""},{"$f":"CONCATENATE(Général!AJ$3,Général!AJ37)","v":""},{"$f":"CONCATENATE(Général!AK$3,Général!AK37)","v":""},{"$f":"CONCATENATE(Général!AL$3,Général!AL37)","v":""},{"$f":"CONCATENATE(Général!AM$3,Général!AM37)","v":""},{"$f":"CONCATENATE(Général!AN$3,Général!AN37)","v":""},{"$f":"CONCATENATE(Général!AO$3,Général!AO37)","v":""},{"$f":"CONCATENATE(Général!AP$3,Général!AP37)","v":""},{"$f":"CONCATENATE(Général!AQ$3,Général!AQ37)","v":""},{"$f":"CONCATENATE(Général!AR$3,Général!AR37)","v":""},{"$f":"CONCATENATE(Général!AS$3,Général!AS37)","v":""},{"$f":"CONCATENATE(Général!AT$3,Général!AT37)","v":""},{"$f":"CONCATENATE(Général!AU$3,Général!AU37)","v":""},{"$f":"CONCATENATE(Général!AV$3,Général!AV37)","v":""},{"$f":"CONCATENATE(Général!AW$3,Général!AW37)","v":""},{"$f":"CONCATENATE(Général!AX$3,Général!AX37)","v":""},{"$f":"CONCATENATE(Général!AY$3,Général!AY37)","v":""},{"$f":"CONCATENATE(Général!AZ$3,Général!AZ37)","v":""},{"$f":"CONCATENATE(Général!BA$3,Général!BA37)","v":""},{"$f":"CONCATENATE(Général!BB$3,Général!BB37)","v":""},{"$f":"CONCATENATE(Général!BC$3,Général!BC37)","v":""},{"$f":"CONCATENATE(Général!BD$3,Général!BD37)","v":""},{"$f":"CONCATENATE(Général!BE$3,Général!BE37)","v":""},{"$f":"CONCATENATE(Général!BF$3,Général!BF37)","v":""},{"$f":"CONCATENATE(Général!BG$3,Général!BG37)","v":""},{"$f":"CONCATENATE(Général!BH$3,Général!BH37)","v":""},{"$f":"CONCATENATE(Général!BI$3,Général!BI37)","v":""},{"$f":"CONCATENATE(Général!BJ$3,Général!BJ37)","v":""},{"$f":"CONCATENATE(Général!BK$3,Général!BK37)","v":""},{"$f":"CONCATENATE(Général!BL$3,Général!BL37)","v":""},{"$f":"CONCATENATE(Général!BM$3,Général!BM37)","v":""},{"$f":"CONCATENATE(Général!BN$3,Général!BN37)","v":""},{"$f":"CONCATENATE(Général!BO$3,Général!BO37)","v":""},{"$f":"CONCATENATE(Général!BP$3,Général!BP37)","v":""},{"$f":"CONCATENATE(Général!BQ$3,Général!BQ37)","v":""},{"$f":"CONCATENATE(Général!BR$3,Général!BR37)","v":""},{"$f":"CONCATENATE(Général!BS$3,Général!BS37)","v":""},{"$f":"CONCATENATE(Général!BT$3,Général!BT37)","v":""},{"$f":"CONCATENATE(Général!BU$3,Général!BU37)","v":""},{"$f":"CONCATENATE(Général!BV$3,Général!BV37)","v":""},{"$f":"CONCATENATE(Général!BW$3,Général!BW37)","v":""},{"$f":"CONCATENATE(Général!BX$3,Général!BX37)","v":""},{"$f":"CONCATENATE(Général!BY$3,Général!BY37)","v":""},{"$f":"CONCATENATE(Général!BZ$3,Général!BZ37)","v":""},{"$f":"CONCATENATE(Général!CA$3,Général!CA37)","v":""},{"$f":"CONCATENATE(Général!CB$3,Général!CB37)","v":""},{"$f":"CONCATENATE(Général!CC$3,Général!CC37)","v":""},{"$f":"CONCATENATE(Général!CD$3,Général!CD37)","v":""},{"$f":"CONCATENATE(Général!CE$3,Général!CE37)","v":""},{"$f":"CONCATENATE(Général!CF$3,Général!CF37)","v":""},{"$f":"CONCATENATE(Général!CG$3,Général!CG37)","v":""},{"$f":"CONCATENATE(Général!CH$3,Général!CH37)","v":""},{"$f":"CONCATENATE(Général!CI$3,Général!CI37)","v":""},{"$f":"CONCATENATE(Général!CJ$3,Général!CJ37)","v":""},{"$f":"CONCATENATE(Général!CK$3,Général!CK37)","v":""},{"$f":"CONCATENATE(Général!CL$3,Général!CL37)","v":""},{"$f":"CONCATENATE(Général!CM$3,Général!CM37)","v":""},{"$f":"CONCATENATE(Général!CN$3,Général!CN37)","v":""},{"$f":"CONCATENATE(Général!CO$3,Général!CO37)","v":""},{"$f":"CONCATENATE(Général!CP$3,Général!CP37)","v":""},{"$f":"CONCATENATE(Général!CQ$3,Général!CQ37)","v":""},{"$f":"CONCATENATE(Général!CR$3,Général!CR37)","v":""},{"$f":"CONCATENATE(Général!CS$3,Général!CS37)","v":""},{"$f":"CONCATENATE(Général!CT$3,Général!CT37)","v":""},{"$f":"CONCATENATE(Général!CU$3,Général!CU37)","v":""},{"$f":"CONCATENATE(Général!CV$3,Général!CV37)","v":""},{"$f":"CONCATENATE(Général!CW$3,Général!CW37)","v":""},{"$f":"CONCATENATE(Général!CX$3,Général!CX37)","v":""},null,0,0,0,0,0,6,0,{"$f":"IF(DE35=0,\"\",HLOOKUP(DE35,CY35:DC$40,DD35,FALSE))","v":""},0,0,0,0,0,6,0,{"$f":"IF(DM35=0,\"\",HLOOKUP(DM35,DG35:DK$40,DL35,FALSE))","v":""},0,0,0,0,0,6,0,{"$f":"IF(DU35=0,\"\",HLOOKUP(DU35,DO35:DS$40,DT35,FALSE))","v":""},0,0,0,0,0,6,0,{"$f":"IF(EC35=0,\"\",HLOOKUP(EC35,DW35:EA$40,EB35,FALSE))","v":""},0,0,0,0,0,6,0,{"$f":"IF(EK35=0,\"\",HLOOKUP(EK35,EE35:EI$40,EJ35,FALSE))","v":""},0,0,0,0,0,6,0,{"$f":"IF(ES35=0,\"\",HLOOKUP(ES35,EM35:EQ$40,ER35,FALSE))","v":""},0,0,0,0,0,6,0,{"$f":"IF(FA35=0,\"\",HLOOKUP(FA35,EU35:EY$40,EZ35,FALSE))","v":""},{"$f":"COUNTIF(Général!$C37:$CX37,FC$1)","v":0},{"$f":"COUNTIF(Général!$C37:$CX37,FD$1)","v":0},{"$f":"COUNTIF(Général!$C37:$CX37,FE$1)","v":0},{"$f":"COUNTIF(Général!$C37:$CX37,FF$1)","v":0},{"$f":"COUNTIF(Général!$C37:$CX37,FG$1)","v":0},6,0,{"$f":"IF(FI35<1,\"\",HLOOKUP(FI35,FC35:FG$40,FH35,FALSE))","v":""},5,"Non concerné","1","10","100","1000","10000",2222.1999999999998,"Non concerné"]
["E16",{"$f":"CONCATENATE(Général!C$3,Général!C38)","v":""},{"$f":"CONCATENATE(Général!D$3,Général!D38)","v":""},{"$f":"CONCATENATE(Général!E$3,Général!E38)","v":""},{"$f":"CONCATENATE(Général!F$3,Général!F38)","v":""},{"$f":"CONCATENATE(Général!G$3,Général!G38)","v":""},{"$f":"CONCATENATE(Général!H$3,Général!H38)","v":""},{"$f":"CONCATENATE(Général!I$3,Général!I38)","v":""},{"$f":"CONCATENATE(Général!J$3,Général!J38)","v":""},{"$f":"CONCATENATE(Général!K$3,Général!K38)","v":""},{"$f":"CONCATENATE(Général!L$3,Général!L38)","v":""},{"$f":"CONCATENATE(Général!M$3,Général!M38)","v":""},{"$f":"CONCATENATE(Général!N$3,Général!N38)","v":""},{"$f":"CONCATENATE(Général!O$3,Général!O38)","v":""},{"$f":"CONCATENATE(Général!P$3,Général!P38)","v":""},{"$f":"CONCATENATE(Général!Q$3,Général!Q38)","v":""},{"$f":"CONCATENATE(Général!R$3,Général!R38)","v":""},{"$f":"CONCATENATE(Général!S$3,Général!S38)","v":""},{"$f":"CONCATENATE(Général!T$3,Général!T38)","v":""},{"$f":"CONCATENATE(Général!U$3,Général!U38)","v":""},{"$f":"CONCATENATE(Général!V$3,Général!V38)","v":""},{"$f":"CONCATENATE(Général!W$3,Général!W38)","v":""},{"$f":"CONCATENATE(Général!X$3,Général!X38)","v":""},{"$f":"CONCATENATE(Général!Y$3,Général!Y38)","v":""},{"$f":"CONCATENATE(Général!Z$3,Général!Z38)","v":""},{"$f":"CONCATENATE(Général!AA$3,Général!AA38)","v":""},{"$f":"CONCATENATE(Général!AB$3,Général!AB38)","v":""},{"$f":"CONCATENATE(Général!AC$3,Général!AC38)","v":""},{"$f":"CONCATENATE(Général!AD$3,Général!AD38)","v":""},{"$f":"CONCATENATE(Général!AE$3,Général!AE38)","v":""},{"$f":"CONCATENATE(Général!AF$3,Général!AF38)","v":""},{"$f":"CONCATENATE(Général!AG$3,Général!AG38)","v":""},{"$f":"CONCATENATE(Général!AH$3,Général!AH38)","v":""},{"$f":"CONCATENATE(Général!AI$3,Général!AI38)","v":""},{"$f":"CONCATENATE(Général!AJ$3,Général!AJ38)","v":""},{"$f":"CONCATENATE(Général!AK$3,Général!AK38)","v":""},{"$f":"CONCATENATE(Général!AL$3,Général!AL38)","v":""},{"$f":"CONCATENATE(Général!AM$3,Général!AM38)","v":""},{"$f":"CONCATENATE(Général!AN$3,Général!AN38)","v":""},{"$f":"CONCATENATE(Général!AO$3,Général!AO38)","v":""},{"$f":"CONCATENATE(Général!AP$3,Général!AP38)","v":""},{"$f":"CONCATENATE(Général!AQ$3,Général!AQ38)","v":""},{"$f":"CONCATENATE(Général!AR$3,Général!AR38)","v":""},{"$f":"CONCATENATE(Général!AS$3,Général!AS38)","v":""},{"$f":"CONCATENATE(Général!AT$3,Général!AT38)","v":""},{"$f":"CONCATENATE(Général!AU$3,Général!AU38)","v":""},{"$f":"CONCATENATE(Général!AV$3,Général!AV38)","v":""},{"$f":"CONCATENATE(Général!AW$3,Général!AW38)","v":""},{"$f":"CONCATENATE(Général!AX$3,Général!AX38)","v":""},{"$f":"CONCATENATE(Général!AY$3,Général!AY38)","v":""},{"$f":"CONCATENATE(Général!AZ$3,Général!AZ38)","v":""},{"$f":"CONCATENATE(Général!BA$3,Général!BA38)","v":""},{"$f":"CONCATENATE(Général!BB$3,Général!BB38)","v":""},{"$f":"CONCATENATE(Général!BC$3,Général!BC38)","v":""},{"$f":"CONCATENATE(Général!BD$3,Général!BD38)","v":""},{"$f":"CONCATENATE(Général!BE$3,Général!BE38)","v":""},{"$f":"CONCATENATE(Général!BF$3,Général!BF38)","v":""},{"$f":"CONCATENATE(Général!BG$3,Général!BG38)","v":""},{"$f":"CONCATENATE(Général!BH$3,Général!BH38)","v":""},{"$f":"CONCATENATE(Général!BI$3,Général!BI38)","v":""},{"$f":"CONCATENATE(Général!BJ$3,Général!BJ38)","v":""},{"$f":"CONCATENATE(Général!BK$3,Général!BK38)","v":""},{"$f":"CONCATENATE(Général!BL$3,Général!BL38)","v":""},{"$f":"CONCATENATE(Général!BM$3,Général!BM38)","v":""},{"$f":"CONCATENATE(Général!BN$3,Général!BN38)","v":""},{"$f":"CONCATENATE(Général!BO$3,Général!BO38)","v":""},{"$f":"CONCATENATE(Général!BP$3,Général!BP38)","v":""},{"$f":"CONCATENATE(Général!BQ$3,Général!BQ38)","v":""},{"$f":"CONCATENATE(Général!BR$3,Général!BR38)","v":""},{"$f":"CONCATENATE(Général!BS$3,Général!BS38)","v":""},{"$f":"CONCATENATE(Général!BT$3,Général!BT38)","v":""},{"$f":"CONCATENATE(Général!BU$3,Général!BU38)","v":""},{"$f":"CONCATENATE(Général!BV$3,Général!BV38)","v":""},{"$f":"CONCATENATE(Général!BW$3,Général!BW38)","v":""},{"$f":"CONCATENATE(Général!BX$3,Général!BX38)","v":""},{"$f":"CONCATENATE(Général!BY$3,Général!BY38)","v":""},{"$f":"CONCATENATE(Général!BZ$3,Général!BZ38)","v":""},{"$f":"CONCATENATE(Général!CA$3,Général!CA38)","v":""},{"$f":"CONCATENATE(Général!CB$3,Général!CB38)","v":""},{"$f":"CONCATENATE(Général!CC$3,Général!CC38)","v":""},{"$f":"CONCATENATE(Général!CD$3,Général!CD38)","v":""},{"$f":"CONCATENATE(Général!CE$3,Général!CE38)","v":""},{"$f":"CONCATENATE(Général!CF$3,Général!CF38)","v":""},{"$f":"CONCATENATE(Général!CG$3,Général!CG38)","v":""},{"$f":"CONCATENATE(Général!CH$3,Général!CH38)","v":""},{"$f":"CONCATENATE(Général!CI$3,Général!CI38)","v":""},{"$f":"CONCATENATE(Général!CJ$3,Général!CJ38)","v":""},{"$f":"CONCATENATE(Général!CK$3,Général!CK38)","v":""},{"$f":"CONCATENATE(Général!CL$3,Général!CL38)","v":""},{"$f":"CONCATENATE(Général!CM$3,Général!CM38)","v":""},{"$f":"CONCATENATE(Général!CN$3,Général!CN38)","v":""},{"$f":"CONCATENATE(Général!CO$3,Général!CO38)","v":""},{"$f":"CONCATENATE(Général!CP$3,Général!CP38)","v":""},{"$f":"CONCATENATE(Général!CQ$3,Général!CQ38)","v":""},{"$f":"CONCATENATE(Général!CR$3,Général!CR38)","v":""},{"$f":"CONCATENATE(Général!CS$3,Général!CS38)","v":""},{"$f":"CONCATENATE(Général!CT$3,Général!CT38)","v":""},{"$f":"CONCATENATE(Général!CU$3,Général!CU38)","v":""},{"$f":"CONCATENATE(Général!CV$3,Général!CV38)","v":""},{"$f":"CONCATENATE(Général!CW$3,Général!CW38)","v":""},{"$f":"CONCATENATE(Général!CX$3,Général!CX38)","v":""},null,0,0,0,0,0,5,0,{"$f":"IF(DE36=0,\"\",HLOOKUP(DE36,CY36:DC$40,DD36,FALSE))","v":""},0,0,0,0,0,5,0,{"$f":"IF(DM36=0,\"\",HLOOKUP(DM36,DG36:DK$40,DL36,FALSE))","v":""},0,0,0,0,0,5,0,{"$f":"IF(DU36=0,\"\",HLOOKUP(DU36,DO36:DS$40,DT36,FALSE))","v":""},0,0,0,0,0,5,0,{"$f":"IF(EC36=0,\"\",HLOOKUP(EC36,DW36:EA$40,EB36,FALSE))","v":""},0,0,0,0,0,5,0,{"$f":"IF(EK36=0,\"\",HLOOKUP(EK36,EE36:EI$40,EJ36,FALSE))","v":""},0,0,0,0,0,5,0,{"$f":"IF(ES36=0,\"\",HLOOKUP(ES36,EM36:EQ$40,ER36,FALSE))","v":""},0,0,0,0,0,5,0,{"$f":"IF(FA36=0,\"\",HLOOKUP(FA36,EU36:EY$40,EZ36,FALSE))","v":""},{"$f":"COUNTIF(Général!$C38:$CX38,FC$1)","v":0},{"$f":"COUNTIF(Général!$C38:$CX38,FD$1)","v":0},{"$f":"COUNTIF(Général!$C38:$CX38,FE$1)","v":0},{"$f":"COUNTIF(Général!$C38:$CX38,FF$1)","v":0},{"$f":"COUNTIF(Général!$C38:$CX38,FG$1)","v":0},5,0,{"$f":"IF(FI36<1,\"\",HLOOKUP(FI36,FC36:FG$40,FH36,FALSE))","v":""},5,"Non concerné","1","10","100","1000","10000",2222.1999999999998,"Non concerné"]
["E17",{"$f":"CONCATENATE(Général!C$3,Général!C39)","v":""},{"$f":"CONCATENATE(Général!D$3,Général!D39)","v":""},{"$f":"CONCATENATE(Général!E$3,Général!E39)","v":""},{"$f":"CONCATENATE(Général!F$3,Général!F39)","v":""},{"$f":"CONCATENATE(Général!G$3,Général!G39)","v":""},{"$f":"CONCATENATE(Général!H$3,Général!H39)","v":""},{"$f":"CONCATENATE(Général!I$3,Général!I39)","v":""},{"$f":"CONCATENATE(Général!J$3,Général!J39)","v":""},{"$f":"CONCATENATE(Général!K$3,Général!K39)","v":""},{"$f":"CONCATENATE(Général!L$3,Général!L39)","v":""},{"$f":"CONCATENATE(Général!M$3,Général!M39)","v":""},{"$f":"CONCATENATE(Général!N$3,Général!N39)","v":""},{"$f":"CONCATENATE(Général!O$3,Général!O39)","v":""},{"$f":"CONCATENATE(Général!P$3,Général!P39)","v":""},{"$f":"CONCATENATE(Général!Q$3,Général!Q39)","v":""},{"$f":"CONCATENATE(Général!R$3,Général!R39)","v":""},{"$f":"CONCATENATE(Général!S$3,Général!S39)","v":""},{"$f":"CONCATENATE(Général!T$3,Général!T39)","v":""},{"$f":"CONCATENATE(Général!U$3,Général!U39)","v":""},{"$f":"CONCATENATE(Général!V$3,Général!V39)","v":""},{"$f":"CONCATENATE(Général!W$3,Général!W39)","v":""},{"$f":"CONCATENATE(Général!X$3,Général!X39)","v":""},{"$f":"CONCATENATE(Général!Y$3,Général!Y39)","v":""},{"$f":"CONCATENATE(Général!Z$3,Général!Z39)","v":""},{"$f":"CONCATENATE(Général!AA$3,Général!AA39)","v":""},{"$f":"CONCATENATE(Général!AB$3,Général!AB39)","v":""},{"$f":"CONCATENATE(Général!AC$3,Général!AC39)","v":""},{"$f":"CONCATENATE(Général!AD$3,Général!AD39)","v":""},{"$f":"CONCATENATE(Général!AE$3,Général!AE39)","v":""},{"$f":"CONCATENATE(Général!AF$3,Général!AF39)","v":""},{"$f":"CONCATENATE(Général!AG$3,Général!AG39)","v":""},{"$f":"CONCATENATE(Général!AH$3,Général!AH39)","v":""},{"$f":"CONCATENATE(Général!AI$3,Général!AI39)","v":""},{"$f":"CONCATENATE(Général!AJ$3,Général!AJ39)","v":""},{"$f":"CONCATENATE(Général!AK$3,Général!AK39)","v":""},{"$f":"CONCATENATE(Général!AL$3,Général!AL39)","v":""},{"$f":"CONCATENATE(Général!AM$3,Général!AM39)","v":""},{"$f":"CONCATENATE(Général!AN$3,Général!AN39)","v":""},{"$f":"CONCATENATE(Général!AO$3,Général!AO39)","v":""},{"$f":"CONCATENATE(Général!AP$3,Général!AP39)","v":""},{"$f":"CONCATENATE(Général!AQ$3,Général!AQ39)","v":""},{"$f":"CONCATENATE(Général!AR$3,Général!AR39)","v":""},{"$f":"CONCATENATE(Général!AS$3,Général!AS39)","v":""},{"$f":"CONCATENATE(Général!AT$3,Général!AT39)","v":""},{"$f":"CONCATENATE(Général!AU$3,Général!AU39)","v":""},{"$f":"CONCATENATE(Général!AV$3,Général!AV39)","v":""},{"$f":"CONCATENATE(Général!AW$3,Général!AW39)","v":""},{"$f":"CONCATENATE(Général!AX$3,Général!AX39)","v":""},{"$f":"CONCATENATE(Général!AY$3,Général!AY39)","v":""},{"$f":"CONCATENATE(Général!AZ$3,Général!AZ39)","v":""},{"$f":"CONCATENATE(Général!BA$3,Général!BA39)","v":""},{"$f":"CONCATENATE(Général!BB$3,Général!BB39)","v":""},{"$f":"CONCATENATE(Général!BC$3,Général!BC39)","v":""},{"$f":"CONCATENATE(Général!BD$3,Général!BD39)","v":""},{"$f":"CONCATENATE(Général!BE$3,Général!BE39)","v":""},{"$f":"CONCATENATE(Général!BF$3,Général!BF39)","v":""},{"$f":"CONCATENATE(Général!BG$3,Général!BG39)","v":""},{"$f":"CONCATENATE(Général!BH$3,Général!BH39)","v":""},{"$f":"CONCATENATE(Général!BI$3,Général!BI39)","v":""},{"$f":"CONCATENATE(Général!BJ$3,Général!BJ39)","v":""},{"$f":"CONCATENATE(Général!BK$3,Général!BK39)","v":""},{"$f":"CONCATENATE(Général!BL$3,Général!BL39)","v":""},{"$f":"CONCATENATE(Général!BM$3,Général!BM39)","v":""},{"$f":"CONCATENATE(Général!BN$3,Général!BN39)","v":""},{"$f":"CONCATENATE(Général!BO$3,Général!BO39)","v":""},{"$f":"CONCATENATE(Général!BP$3,Général!BP39)","v":""},{"$f":"CONCATENATE(Général!BQ$3,Général!BQ39)","v":""},{"$f":"CONCATENATE(Général!BR$3,Général!BR39)","v":""},{"$f":"CONCATENATE(Général!BS$3,Général!BS39)","v":""},{"$f":"CONCATENATE(Général!BT$3,Général!BT39)","v":""},{"$f":"CONCATENATE(Général!BU$3,Général!BU39)","v":""},{"$f":"CONCATENATE(Général!BV$3,Général!BV39)","v":""},{"$f":"CONCATENATE(Général!BW$3,Général!BW39)","v":""},{"$f":"CONCATENATE(Général!BX$3,Général!BX39)","v":""},{"$f":"CONCATENATE(Général!BY$3,Général!BY39)","v":""},{"$f":"CONCATENATE(Général!BZ$3,Général!BZ39)","v":""},{"$f":"CONCATENATE(Général!CA$3,Général!CA39)","v":""},{"$f":"CONCATENATE(Général!CB$3,Général!CB39)","v":""},{"$f":"CONCATENATE(Général!CC$3,Général!CC39)","v":""},{"$f":"CONCATENATE(Général!CD$3,Général!CD39)","v":""},{"$f":"CONCATENATE(Général!CE$3,Général!CE39)","v":""},{"$f":"CONCATENATE(Général!CF$3,Général!CF39)","v":""},{"$f":"CONCATENATE(Général!CG$3,Général!CG39)","v":""},{"$f":"CONCATENATE(Général!CH$3,Général!CH39)","v":""},{"$f":"CONCATENATE(Général!CI$3,Général!CI39)","v":""},{"$f":"CONCATENATE(Général!CJ$3,Général!CJ39)","v":""},{"$f":"CONCATENATE(Général!CK$3,Général!CK39)","v":""},{"$f":"CONCATENATE(Général!CL$3,Général!CL39)","v":""},{"$f":"CONCATENATE(Général!CM$3,Général!CM39)","v":""},{"$f":"CONCATENATE(Général!CN$3,Général!CN39)","v":""},{"$f":"CONCATENATE(Général!CO$3,Général!CO39)","v":""},{"$f":"CONCATENATE(Général!CP$3,Général!CP39)","v":""},{"$f":"CONCATENATE(Général!CQ$3,Général!CQ39)","v":""},{"$f":"CONCATENATE(Général!CR$3,Général!CR39)","v":""},{"$f":"CONCATENATE(Général!CS$3,Général!CS39)","v":""},{"$f":"CONCATENATE(Général!CT$3,Général!CT39)","v":""},{"$f":"CONCATENATE(Général!CU$3,Général!CU39)","v":""},{"$f":"CONCATENATE(Général!CV$3,Général!CV39)","v":""},{"$f":"CONCATENATE(Général!CW$3,Général!CW39)","v":""},{"$f":"CONCATENATE(Général!CX$3,Général!CX39)","v":""},null,0,0,0,0,0,4,0,{"$f":"IF(DE37=0,\"\",HLOOKUP(DE37,CY37:DC$40,DD37,FALSE))","v":""},0,0,0,0,0,4,0,{"$f":"IF(DM37=0,\"\",HLOOKUP(DM37,DG37:DK$40,DL37,FALSE))","v":""},0,0,0,0,0,4,0,{"$f":"IF(DU37=0,\"\",HLOOKUP(DU37,DO37:DS$40,DT37,FALSE))","v":""},0,0,0,0,0,4,0,{"$f":"IF(EC37=0,\"\",HLOOKUP(EC37,DW37:EA$40,EB37,FALSE))","v":""},0,0,0,0,0,4,0,{"$f":"IF(EK37=0,\"\",HLOOKUP(EK37,EE37:EI$40,EJ37,FALSE))","v":""},0,0,0,0,0,4,0,{"$f":"IF(ES37=0,\"\",HLOOKUP(ES37,EM37:EQ$40,ER37,FALSE))","v":""},0,0,0,0,0,4,0,{"$f":"IF(FA37=0,\"\",HLOOKUP(FA37,EU37:EY$40,EZ37,FALSE))","v":""},{"$f":"COUNTIF(Général!$C39:$CX39,FC$1)","v":0},{"$f":"COUNTIF(Général!$C39:$CX39,FD$1)","v":0},{"$f":"COUNTIF(Général!$C39:$CX39,FE$1)","v":0},{"$f":"COUNTIF(Général!$C39:$CX39,FF$1)","v":0},{"$f":"COUNTIF(Général!$C39:$CX39,FG$1)","v":0},4,0,{"$f":"IF(FI37<1,\"\",HLOOKUP(FI37,FC37:FG$40,FH37,FALSE))","v":""},5,"Non concerné","1","10","100","1000","10000",2222.1999999999998,"Non concerné"]
["E18",{"$f":"CONCATENATE(Général!C$3,Général!C40)","v":""},{"$f":"CONCATENATE(Général!D$3,Général!D40)","v":""},{"$f":"CONCATENATE(Général!E$3,Général!E40)","v":""},{"$f":"CONCATENATE(Général!F$3,Général!F40)","v":""},{"$f":"CONCATENATE(Général!G$3,Général!G40)","v":""},{"$f":"CONCATENATE(Général!H$3,Général!H40)","v":""},{"$f":"CONCATENATE(Général!I$3,Général!I40)","v":""},{"$f":"CONCATENATE(Général!J$3,Général!J40)","v":""},{"$f":"CONCATENATE(Général!K$3,Général!K40)","v":""},{"$f":"CONCATENATE(Général!L$3,Général!L40)","v":""},{"$f":"CONCATENATE(Général!M$3,Général!M40)","v":""},{"$f":"CONCATENATE(Général!N$3,Général!N40)","v":""},{"$f":"CONCATENATE(Général!O$3,Général!O40)","v":""},{"$f":"CONCATENATE(Général!P$3,Général!P40)","v":""},{"$f":"CONCATENATE(Général!Q$3,Général!Q40)","v":""},{"$f":"CONCATENATE(Général!R$3,Général!R40)","v":""},{"$f":"CONCATENATE(Général!S$3,Général!S40)","v":""},{"$f":"CONCATENATE(Général!T$3,Général!T40)","v":""},{"$f":"CONCATENATE(Général!U$3,Général!U40)","v":""},{"$f":"CONCATENATE(Général!V$3,Général!V40)","v":""},{"$f":"CONCATENATE(Général!W$3,Général!W40)","v":""},{"$f":"CONCATENATE(Général!X$3,Général!X40)","v":""},{"$f":"CONCATENATE(Général!Y$3,Général!Y40)","v":""},{"$f":"CONCATENATE(Général!Z$3,Général!Z40)","v":""},{"$f":"CONCATENATE(Général!AA$3,Général!AA40)","v":""},{"$f":"CONCATENATE(Général!AB$3,Général!AB40)","v":""},{"$f":"CONCATENATE(Général!AC$3,Général!AC40)","v":""},{"$f":"CONCATENATE(Général!AD$3,Général!AD40)","v":""},{"$f":"CONCATENATE(Général!AE$3,Général!AE40)","v":""},{"$f":"CONCATENATE(Général!AF$3,Général!AF40)","v":""},{"$f":"CONCATENATE(Général!AG$3,Général!AG40)","v":""},{"$f":"CONCATENATE(Général!AH$3,Général!AH40)","v":""},{"$f":"CONCATENATE(Général!AI$3,Général!AI40)","v":""},{"$f":"CONCATENATE(Général!AJ$3,Général!AJ40)","v":""},{"$f":"CONCATENATE(Général!AK$3,Général!AK40)","v":""},{"$f":"CONCATENATE(Général!AL$3,Général!AL40)","v":""},{"$f":"CONCATENATE(Général!AM$3,Général!AM40)","v":""},{"$f":"CONCATENATE(Général!AN$3,Général!AN40)","v":""},{"$f":"CONCATENATE(Général!AO$3,Général!AO40)","v":""},{"$f":"CONCATENATE(Général!AP$3,Général!AP40)","v":""},{"$f":"CONCATENATE(Général!AQ$3,Général!AQ40)","v":""},{"$f":"CONCATENATE(Général!AR$3,Général!AR40)","v":""},{"$f":"CONCATENATE(Général!AS$3,Général!AS40)","v":""},{"$f":"CONCATENATE(Général!AT$3,Général!AT40)","v":""},{"$f":"CONCATENATE(Général!AU$3,Général!AU40)","v":""},{"$f":"CONCATENATE(Général!AV$3,Général!AV40)","v":""},{"$f":"CONCATENATE(Général!AW$3,Général!AW40)","v":""},{"$f":"CONCATENATE(Général!AX$3,Général!AX40)","v":""},{"$f":"CONCATENATE(Général!AY$3,Général!AY40)","v":""},{"$f":"CONCATENATE(Général!AZ$3,Général!AZ40)","v":""},{"$f":"CONCATENATE(Général!BA$3,Général!BA40)","v":""},{"$f":"CONCATENATE(Général!BB$3,Général!BB40)","v":""},{"$f":"CONCATENATE(Général!BC$3,Général!BC40)","v":""},{"$f":"CONCATENATE(Général!BD$3,Général!BD40)","v":""},{"$f":"CONCATENATE(Général!BE$3,Général!BE40)","v":""},{"$f":"CONCATENATE(Général!BF$3,Général!BF40)","v":""},{"$f":"CONCATENATE(Général!BG$3,Général!BG40)","v":""},{"$f":"CONCATENATE(Général!BH$3,Général!BH40)","v":""},{"$f":"CONCATENATE(Général!BI$3,Général!BI40)","v":""},{"$f":"CONCATENATE(Général!BJ$3,Général!BJ40)","v":""},{"$f":"CONCATENATE(Général!BK$3,Général!BK40)","v":""},{"$f":"CONCATENATE(Général!BL$3,Général!BL40)","v":""},{"$f":"CONCATENATE(Général!BM$3,Général!BM40)","v":""},{"$f":"CONCATENATE(Général!BN$3,Général!BN40)","v":""},{"$f":"CONCATENATE(Général!BO$3,Général!BO40)","v":""},{"$f":"CONCATENATE(Général!BP$3,Général!BP40)","v":""},{"$f":"CONCATENATE(Général!BQ$3,Général!BQ40)","v":""},{"$f":"CONCATENATE(Général!BR$3,Général!BR40)","v":""},{"$f":"CONCATENATE(Général!BS$3,Général!BS40)","v":""},{"$f":"CONCATENATE(Général!BT$3,Général!BT40)","v":""},{"$f":"CONCATENATE(Général!BU$3,Général!BU40)","v":""},{"$f":"CONCATENATE(Général!BV$3,Général!BV40)","v":""},{"$f":"CONCATENATE(Général!BW$3,Général!BW40)","v":""},{"$f":"CONCATENATE(Général!BX$3,Général!BX40)","v":""},{"$f":"CONCATENATE(Général!BY$3,Général!BY40)","v":""},{"$f":"CONCATENATE(Général!BZ$3,Général!BZ40)","v":""},{"$f":"CONCATENATE(Général!CA$3,Général!CA40)","v":""},{"$f":"CONCATENATE(Général!CB$3,Général!CB40)","v":""},{"$f":"CONCATENATE(Général!CC$3,Général!CC40)","v":""},{"$f":"CONCATENATE(Général!CD$3,Général!CD40)","v":""},{"$f":"CONCATENATE(Général!CE$3,Général!CE40)","v":""},{"$f":"CONCATENATE(Général!CF$3,Général!CF40)","v":""},{"$f":"CONCATENATE(Général!CG$3,Général!CG40)","v":""},{"$f":"CONCATENATE(Général!CH$3,Général!CH40)","v":""},{"$f":"CONCATENATE(Général!CI$3,Général!CI40)","v":""},{"$f":"CONCATENATE(Général!CJ$3,Général!CJ40)","v":""},{"$f":"CONCATENATE(Général!CK$3,Général!CK40)","v":""},{"$f":"CONCATENATE(Général!CL$3,Général!CL40)","v":""},{"$f":"CONCATENATE(Général!CM$3,Général!CM40)","v":""},{"$f":"CONCATENATE(Général!CN$3,Général!CN40)","v":""},{"$f":"CONCATENATE(Général!CO$3,Général!CO40)","v":""},{"$f":"CONCATENATE(Général!CP$3,Général!CP40)","v":""},{"$f":"CONCATENATE(Général!CQ$3,Général!CQ40)","v":""},{"$f":"CONCATENATE(Général!CR$3,Général!CR40)","v":""},{"$f":"CONCATENATE(Général!CS$3,Général!CS40)","v":""},{"$f":"CONCATENATE(Général!CT$3,Général!CT40)","v":""},{"$f":"CONCATENATE(Général!CU$3,Général!CU40)","v":""},{"$f":"CONCATENATE(Général!CV$3,Général!CV40)","v":""},{"$f":"CONCATENATE(Général!CW$3,Général!CW40)","v":""},{"$f":"CONCATENATE(Général!CX$3,Général!CX40)","v":""},null,0,0,0,0,0,3,0,{"$f":"IF(DE38=0,\"\",HLOOKUP(DE38,CY38:DC$40,DD38,FALSE))","v":""},0,0,0,0,0,3,0,{"$f":"IF(DM38=0,\"\",HLOOKUP(DM38,DG38:DK$40,DL38,FALSE))","v":""},0,0,0,0,0,3,0,{"$f":"IF(DU38=0,\"\",HLOOKUP(DU38,DO38:DS$40,DT38,FALSE))","v":""},0,0,0,0,0,3,0,{"$f":"IF(EC38=0,\"\",HLOOKUP(EC38,DW38:EA$40,EB38,FALSE))","v":""},0,0,0,0,0,3,0,{"$f":"IF(EK38=0,\"\",HLOOKUP(EK38,EE38:EI$40,EJ38,FALSE))","v":""},0,0,0,0,0,3,0,{"$f":"IF(ES38=0,\"\",HLOOKUP(ES38,EM38:EQ$40,ER38,FALSE))","v":""},0,0,0,0,0,3,0,{"$f":"IF(FA38=0,\"\",HLOOKUP(FA38,EU38:EY$40,EZ38,FALSE))","v":""},{"$f":"COUNTIF(Général!$C40:$CX40,FC$1)","v":0},{"$f":"COUNTIF(Général!$C40:$CX40,FD$1)","v":0},{"$f":"COUNTIF(Général!$C40:$CX40,FE$1)","v":0},{"$f":"COUNTIF(Général!$C40:$CX40,FF$1)","v":0},{"$f":"COUNTIF(Général!$C40:$CX40,FG$1)","v":0},3,0,{"$f":"IF(FI38<1,\"\",HLOOKUP(FI38,FC38:FG$40,FH38,FALSE))","v":""},5,"Non concerné","1","10","100","1000","10000",2222.1999999999998,"Non concerné"]
["E19",{"$f":"CONCATENATE(Général!C$3,Général!C41)","v":""},{"$f":"CONCATENATE(Général!D$3,Général!D41)","v":""},{"$f":"CONCATENATE(Général!E$3,Général!E41)","v":""},{"$f":"CONCATENATE(Général!F$3,Général!F41)","v":""},{"$f":"CONCATENATE(Général!G$3,Général!G41)","v":""},{"$f":"CONCATENATE(Général!H$3,Général!H41)","v":""},{"$f":"CONCATENATE(Général!I$3,Général!I41)","v":""},{"$f":"CONCATENATE(Général!J$3,Général!J41)","v":""},{"$f":"CONCATENATE(Général!K$3,Général!K41)","v":""},{"$f":"CONCATENATE(Général!L$3,Général!L41)","v":""},{"$f":"CONCATENATE(Général!M$3,Général!M41)","v":""},{"$f":"CONCATENATE(Général!N$3,Général!N41)","v":""},{"$f":"CONCATENATE(Général!O$3,Général!O41)","v":""},{"$f":"CONCATENATE(Général!P$3,Général!P41)","v":""},{"$f":"CONCATENATE(Général!Q$3,Général!Q41)","v":""},{"$f":"CONCATENATE(Général!R$3,Général!R41)","v":""},{"$f":"CONCATENATE(Général!S$3,Général!S41)","v":""},{"$f":"CONCATENATE(Général!T$3,Général!T41)","v":""},{"$f":"CONCATENATE(Général!U$3,Général!U41)","v":""},{"$f":"CONCATENATE(Général!V$3,Général!V41)","v":""},{"$f":"CONCATENATE(Général!W$3,Général!W41)","v":""},{"$f":"CONCATENATE(Général!X$3,Général!X41)","v":""},{"$f":"CONCATENATE(Général!Y$3,Général!Y41)","v":""},{"$f":"CONCATENATE(Général!Z$3,Général!Z41)","v":""},{"$f":"CONCATENATE(Général!AA$3,Général!AA41)","v":""},{"$f":"CONCATENATE(Général!AB$3,Général!AB41)","v":""},{"$f":"CONCATENATE(Général!AC$3,Général!AC41)","v":""},{"$f":"CONCATENATE(Général!AD$3,Général!AD41)","v":""},{"$f":"CONCATENATE(Général!AE$3,Général!AE41)","v":""},{"$f":"CONCATENATE(Général!AF$3,Général!AF41)","v":""},{"$f":"CONCATENATE(Général!AG$3,Général!AG41)","v":""},{"$f":"CONCATENATE(Général!AH$3,Général!AH41)","v":""},{"$f":"CONCATENATE(Général!AI$3,Général!AI41)","v":""},{"$f":"CONCATENATE(Général!AJ$3,Général!AJ41)","v":""},{"$f":"CONCATENATE(Général!AK$3,Général!AK41)","v":""},{"$f":"CONCATENATE(Général!AL$3,Général!AL41)","v":""},{"$f":"CONCATENATE(Général!AM$3,Général!AM41)","v":""},{"$f":"CONCATENATE(Général!AN$3,Général!AN41)","v":""},{"$f":"CONCATENATE(Général!AO$3,Général!AO41)","v":""},{"$f":"CONCATENATE(Général!AP$3,Général!AP41)","v":""},{"$f":"CONCATENATE(Général!AQ$3,Général!AQ41)","v":""},{"$f":"CONCATENATE(Général!AR$3,Général!AR41)","v":""},{"$f":"CONCATENATE(Général!AS$3,Général!AS41)","v":""},{"$f":"CONCATENATE(Général!AT$3,Général!AT41)","v":""},{"$f":"CONCATENATE(Général!AU$3,Général!AU41)","v":""},{"$f":"CONCATENATE(Général!AV$3,Général!AV41)","v":""},{"$f":"CONCATENATE(Général!AW$3,Général!AW41)","v":""},{"$f":"CONCATENATE(Général!AX$3,Général!AX41)","v":""},{"$f":"CONCATENATE(Général!AY$3,Général!AY41)","v":""},{"$f":"CONCATENATE(Général!AZ$3,Général!AZ41)","v":""},{"$f":"CONCATENATE(Général!BA$3,Général!BA41)","v":""},{"$f":"CONCATENATE(Général!BB$3,Général!BB41)","v":""},{"$f":"CONCATENATE(Général!BC$3,Général!BC41)","v":""},{"$f":"CONCATENATE(Général!BD$3,Général!BD41)","v":""},{"$f":"CONCATENATE(Général!BE$3,Général!BE41)","v":""},{"$f":"CONCATENATE(Général!BF$3,Général!BF41)","v":""},{"$f":"CONCATENATE(Général!BG$3,Général!BG41)","v":""},{"$f":"CONCATENATE(Général!BH$3,Général!BH41)","v":""},{"$f":"CONCATENATE(Général!BI$3,Général!BI41)","v":""},{"$f":"CONCATENATE(Général!BJ$3,Général!BJ41)","v":""},{"$f":"CONCATENATE(Général!BK$3,Général!BK41)","v":""},{"$f":"CONCATENATE(Général!BL$3,Général!BL41)","v":""},{"$f":"CONCATENATE(Général!BM$3,Général!BM41)","v":""},{"$f":"CONCATENATE(Général!BN$3,Général!BN41)","v":""},{"$f":"CONCATENATE(Général!BO$3,Général!BO41)","v":""},{"$f":"CONCATENATE(Général!BP$3,Général!BP41)","v":""},{"$f":"CONCATENATE(Général!BQ$3,Général!BQ41)","v":""},{"$f":"CONCATENATE(Général!BR$3,Général!BR41)","v":""},{"$f":"CONCATENATE(Général!BS$3,Général!BS41)","v":""},{"$f":"CONCATENATE(Général!BT$3,Général!BT41)","v":""},{"$f":"CONCATENATE(Général!BU$3,Général!BU41)","v":""},{"$f":"CONCATENATE(Général!BV$3,Général!BV41)","v":""},{"$f":"CONCATENATE(Général!BW$3,Général!BW41)","v":""},{"$f":"CONCATENATE(Général!BX$3,Général!BX41)","v":""},{"$f":"CONCATENATE(Général!BY$3,Général!BY41)","v":""},{"$f":"CONCATENATE(Général!BZ$3,Général!BZ41)","v":""},{"$f":"CONCATENATE(Général!CA$3,Général!CA41)","v":""},{"$f":"CONCATENATE(Général!CB$3,Général!CB41)","v":""},{"$f":"CONCATENATE(Général!CC$3,Général!CC41)","v":""},{"$f":"CONCATENATE(Général!CD$3,Général!CD41)","v":""},{"$f":"CONCATENATE(Général!CE$3,Général!CE41)","v":""},{"$f":"CONCATENATE(Général!CF$3,Général!CF41)","v":""},{"$f":"CONCATENATE(Général!CG$3,Général!CG41)","v":""},{"$f":"CONCATENATE(Général!CH$3,Général!CH41)","v":""},{"$f":"CONCATENATE(Général!CI$3,Général!CI41)","v":""},{"$f":"CONCATENATE(Général!CJ$3,Général!CJ41)","v":""},{"$f":"CONCATENATE(Général!CK$3,Général!CK41)","v":""},{"$f":"CONCATENATE(Général!CL$3,Général!CL41)","v":""},{"$f":"CONCATENATE(Général!CM$3,Général!CM41)","v":""},{"$f":"CONCATENATE(Général!CN$3,Général!CN41)","v":""},{"$f":"CONCATENATE(Général!CO$3,Général!CO41)","v":""},{"$f":"CONCATENATE(Général!CP$3,Général!CP41)","v":""},{"$f":"CONCATENATE(Général!CQ$3,Général!CQ41)","v":""},{"$f":"CONCATENATE(Général!CR$3,Général!CR41)","v":""},{"$f":"CONCATENATE(Général!CS$3,Général!CS41)","v":""},{"$f":"CONCATENATE(Général!CT$3,Général!CT41)","v":""},{"$f":"CONCATENATE(Général!CU$3,Général!CU41)","v":""},{"$f":"CONCATENATE(Général!CV$3,Général!CV41)","v":""},{"$f":"CONCATENATE(Général!CW$3,Général!CW41)","v":""},{"$f":"CONCATENATE(Général!CX$3,Général!CX41)","v":""},null,0,0,0,0,0,2,0,{"$f":"IF(DE39=0,\"\",HLOOKUP(DE39,CY39:DC$40,DD39,FALSE))","v":""},0,0,0,0,0,2,0,{"$f":"IF(DM39=0,\"\",HLOOKUP(DM39,DG39:DK$40,DL39,FALSE))","v":""},0,0,0,0,0,2,0,{"$f":"IF(DU39=0,\"\",HLOOKUP(DU39,DO39:DS$40,DT39,FALSE))","v":""},0,0,0,0,0,2,0,{"$f":"IF(EC39=0,\"\",HLOOKUP(EC39,DW39:EA$40,EB39,FALSE))","v":""},0,0,0,0,0,2,0,{"$f":"IF(EK39=0,\"\",HLOOKUP(EK39,EE39:EI$40,EJ39,FALSE))","v":""},0,0,0,0,0,2,0,{"$f":"IF(ES39=0,\"\",HLOOKUP(ES39,EM39:EQ$40,ER39,FALSE))","v":""},0,0,0,0,0,2,0,{"$f":"IF(FA39=0,\"\",HLOOKUP(FA39,EU39:EY$40,EZ39,FALSE))","v":""},{"$f":"COUNTIF(Général!$C41:$CX41,FC$1)","v":0},{"$f":"COUNTIF(Général!$C41:$CX41,FD$1)","v":0},{"$f":"COUNTIF(Général!$C41:$CX41,FE$1)","v":0},{"$f":"COUNTIF(Général!$C41:$CX41,FF$1)","v":0},{"$f":"COUNTIF(Général!$C41:$CX41,FG$1)","v":0},2,0,{"$f":"IF(FI39<1,\"\",HLOOKUP(FI39,FC39:FG$40,FH39,FALSE))","v":""},5,"Non concerné","1","10","100","1000","10000",2222.1999999999998,"Non concerné"]
[null,null,null,null,null,null,null,null,null,null,null,null,null,null,null,null,null,null,null,null,null,null,null,null,null,null,null,null,null,null,null,null,null,null,null,null,null,null,null,null,null,null,null,null,null,null,null,null,null,null,null,null,null,null,null,null,null,null,null,null,null,null,null,null,null,null,null,null,null,null,null,null,null,null,null,null,null,null,null,null,null,null,null,null,null,null,null,null,null,null,null,null,null,null,null,null,null,null,null,null,null,null,"Oui, tout à fait d'accord","Plutôt d'accord","Plutôt pas d'accord","Non, pas du tout d'accord","Non concerné",null,null,null,"Oui, tout à fait d'accord","Plutôt d'accord","Plutôt pas d'accord","Non, pas du tout d'accord","Non concerné",null,null,null,"Oui, tout à fait d'accord","Plutôt d'accord","Plutôt pas d'accord","Non, pas du tout d'accord","Non concerné",null,null,null,"Oui, tout à fait d'accord","Plutôt d'accord","Plutôt pas d'accord","Non, pas du tout d'accord","Non concerné",null,null,null,"Oui, tout à fait d'accord","Plutôt d'accord","Plutôt pas d'accord","Non, pas du tout d'accord","Non concerné",null,null,null,"Oui, tout à fait d'accord","Plutôt d'accord","Plutôt pas d'accord","Non, pas du tout d'accord","Non concerné",null,null,null,"Oui, tout à fait d'accord","Plutôt d'accord","Plutôt pas d'accord","Non, pas du tout d'accord","Non concerné",null,null,null,"Oui, tout à fait d'accord","Plutôt d'accord","Plutôt pas d'accord","Non, pas du tout d'accord","Non concerné"]
[null,null,null,null,null,null,null,null,null,null,null,null,null,null,null,null,null,null,null,null,null,null,null,null,null,null,null,null,null,null,null,null,null,null,null,null,null,null,null,null,null,null,null,null,null,null,null,null,null,null,null,null,null,null,null,null,null,null,null,null,null,null,null,null,null,null,null,null,null,null,null,null,null,null,null,null,null,null,null,null,null,null,null,null,null,null,null,null,null,null,null,null,null,null,null,null,null,null,null,null,null,null,null,null,null,null,null,null,null,null,null,null,null,null,null,null,null,null,null,null,null,null,null,null,null,null,null,null,null,null,null,null,null,null,null,null,null,null,null,null,null,null,null,null,null,null,null,null,null,null,null,null,null,null,null,null,null,null,1,2,3,4,5]

{"sheet":"Parties prenantes","index":4,"n_rows":23,"n_cols":4,"rows_kept":23,"cut":false,"hidden":true,"merged":[[0,2,0,3]]}
[null,"Catégorie de parties prenantes analysée:",{"$f":"Résultats!V4","v":"TOUTES"}]
[null,"ÊTES-VOUS D'ACCORD AVEC LES PROPOSITIONS SUIVANTES?","En général,\npour toutes entreprises","Concernant Axon'Cable, votre ressenti"]
[1,"Vous êtes concernés par des certifications ou réglementations type ISO, Reach, ECSS, droit de l'Homme, code du travail…",{"$f":"IF($C$1=\"TOUTES\",'\"Moyenne\"'!FL2,(IF($C$1=\"Clients\",'\"Moyenne\"'!DF2,(IF($C$1=\"Fournisseurs\",'\"Moyenne\"'!DN2,(IF($C$1=\"Collaborateurs/salariés\",'\"Moyenne\"'!ED2,(IF($C$1=\"Prestataires\",'\"Moyenne\"'!EL2,(IF($C$1=\"Actionnaires\",'\"Moyenne\"'!ET2,(IF($C$1=\"Autre\",'\"Moyenne\"'!FB2,(IF($C$1=\"Collectivités/organismes locaux\",'\"Moyenne\"'!DV2,\"\")))))))))))))))","v":"Non concerné"},{"$f":"IF($C$1=\"TOUTES\",'\"Moyenne\"'!FL21,(IF($C$1=\"Clients\",'\"Moyenne\"'!DF21,(IF($C$1=\"Fournisseurs\",'\"Moyenne\"'!DN21,(IF($C$1=\"Collaborateurs/salariés\",'\"Moyenne\"'!ED21,(IF($C$1=\"Prestataires\",'\"Moyenne\"'!EL21,(IF($C$1=\"Actionnaires\",'\"Moyenne\"'!ET21,(IF($C$1=\"Autre\",'\"Moyenne\"'!FB21,(IF($C$1=\"Collectivités/organismes locaux\",'\"Moyenne\"'!DV21,\"\")))))))))))))))","v":"Non concerné"}]
[2,"L’écoute et la communication est importante pour votre relation avec une/notre entreprise.",{"$f":"IF($C$1=\"TOUTES\",'\"Moyenne\"'!FL3,(IF($C$1=\"Clients\",'\"Moyenne\"'!DF3,(IF($C$1=\"Fournisseurs\",'\"Moyenne\"'!DN3,(IF($C$1=\"Collaborateurs/salariés\",'\"Moyenne\"'!ED3,(IF($C$1=\"Prestataires\",'\"Moyenne\"'!EL3,(IF($C$1=\"Actionnaires\",'\"Moyenne\"'!ET3,(IF($C$1=\"Autre\",'\"Moyenne\"'!FB3,(IF($C$1=\"Collectivités/organismes locaux\",'\"Moyenne\"'!DV3,\"\")))))))))))))))","v":"Non concerné"},{"$f":"IF($C$1=\"TOUTES\",'\"Moyenne\"'!FL22,(IF($C$1=\"Clients\",'\"Moyenne\"'!DF22,(IF($C$1=\"Fournisseurs\",'\"Moyenne\"'!DN22,(IF($C$1=\"Collaborateurs/salariés\",'\"Moyenne\"'!ED22,(IF($C$1=\"Prestataires\",'\"Moyenne\"'!EL22,(IF($C$1=\"Actionnaires\",'\"Moyenne\"'!ET22,(IF($C$1=\"Autre\",'\"Moyenne\"'!FB22,(IF($C$1=\"Collectivités/organismes locaux\",'\"Moyenne\"'!DV22,\"\")))))))))))))))","v":"Non concerné"}]
[3,"Une entreprise doit continuer à s’améliorer même si les attentes clients sont respectées.",{"$f":"IF($C$1=\"TOUTES\",'\"Moyenne\"'!FL4,(IF($C$1=\"Clients\",'\"Moyenne\"'!DF4,(IF($C$1=\"Fournisseurs\",'\"Moyenne\"'!DN4,(IF($C$1=\"Collaborateurs/salariés\",'\"Moyenne\"'!ED4,(IF($C$1=\"Prestataires\",'\"Moyenne\"'!EL4,(IF($C$1=\"Actionnaires\",'\"Moyenne\"'!ET4,(IF($C$1=\"Autre\",'\"Moyenne\"'!FB4,(IF($C$1=\"Collectivités/organismes locaux\",'\"Moyenne\"'!DV4,\"\")))))))))))))))","v":"Non concerné"},{"$f":"IF($C$1=\"TOUTES\",'\"Moyenne\"'!FL23,(IF($C$1=\"Clients\",'\"Moyenne\"'!DF23,(IF($C$1=\"Fournisseurs\",'\"Moyenne\"'!DN23,(IF($C$1=\"Collaborateurs/salariés\",'\"Moyenne\"'!ED23,(IF($C$1=\"Prestataires\",'\"Moyenne\"'!EL23,(IF($C$1=\"Actionnaires\",'\"Moyenne\"'!ET23,(IF($C$1=\"Autre\",'\"Moyenne\"'!FB23,(IF($C$1=\"Collectivités/organismes locaux\",'\"Moyenne\"'!DV23,\"\")))))))))))))))","v":"Non concerné"}]
[4,"Le respect des droits de l'homme, du code du travail et des pratiques éthiques sont importantes dans les pratiques d’entreprise.",{"$f":"IF($C$1=\"TOUTES\",'\"Moyenne\"'!FL5,(IF($C$1=\"Clients\",'\"Moyenne\"'!DF5,(IF($C$1=\"Fournisseurs\",'\"Moyenne\"'!DN5,(IF($C$1=\"Collaborateurs/salariés\",'\"Moyenne\"'!ED5,(IF($C$1=\"Prestataires\",'\"Moyenne\"'!EL5,(IF($C$1=\"Actionnaires\",'\"Moyenne\"'!ET5,(IF($C$1=\"Autre\",'\"Moyenne\"'!FB5,(IF($C$1=\"Collectivités/organismes locaux\",'\"Moyenne\"'!DV5,\"\")))))))))))))))","v":"Non concerné"},{"$f":"IF($C$1=\"TOUTES\",'\"Moyenne\"'!FL24,(IF($C$1=\"Clients\",'\"Moyenne\"'!DF24,(IF($C$1=\"Fournisseurs\",'\"Moyenne\"'!DN24,(IF($C$1=\"Collaborateurs/salariés\",'\"Moyenne\"'!ED24,(IF($C$1=\"Prestataires\",'\"Moyenne\"'!EL24,(IF($C$1=\"Actionnaires\",'\"Moyenne\"'!ET24,(IF($C$1=\"Autre\",'\"Moyenne\"'!FB24,(IF($C$1=\"Collectivités/organismes locaux\",'\"Moyenne\"'!DV24,\"\")))))))))))))))","v":"Non concerné"}]
[5,"La diversité et la lutte contre la discrimination sont des critères qui vous amènent à collaborer avec une entreprise.",{"$f":"IF($C$1=\"TOUTES\",'\"Moyenne\"'!FL6,(IF($C$1=\"Clients\",'\"Moyenne\"'!DF6,(IF($C$1=\"Fournisseurs\",'\"Moyenne\"'!DN6,(IF($C$1=\"Collaborateurs/salariés\",'\"Moyenne\"'!ED6,(IF($C$1=\"Prestataires\",'\"Moyenne\"'!EL6,(IF($C$1=\"Actionnaires\",'\"Moyenne\"'!ET6,(IF($C$1=\"Autre\",'\"Moyenne\"'!FB6,(IF($C$1=\"Collectivités/organismes locaux\",'\"Moyenne\"'!DV6,\"\")))))))))))))))","v":"Non concerné"},{"$f":"IF($C$1=\"TOUTES\",'\"Moyenne\"'!FL25,(IF($C$1=\"Clients\",'\"Moyenne\"'!DF25,(IF($C$1=\"Fournisseurs\",'\"Moyenne\"'!DN25,(IF($C$1=\"Collaborateurs/salariés\",'\"Moyenne\"'!ED25,(IF($C$1=\"Prestataires\",'\"Moyenne\"'!EL25,(IF($C$1=\"Actionnaires\",'\"Moyenne\"'!ET25,(IF($C$1=\"Autre\",'\"Moyenne\"'!FB25,(IF($C$1=\"Collectivités/organismes locaux\",'\"Moyenne\"'!DV25,\"\")))))))))))))))","v":"Non concerné"}]
[6,"Relations et conditions de travail: la santé et le bien-être sont essentiels.",{"$f":"IF($C$1=\"TOUTES\",'\"Moyenne\"'!FL7,(IF($C$1=\"Clients\",'\"Moyenne\"'!DF7,(IF($C$1=\"Fournisseurs\",'\"Moyenne\"'!DN7,(IF($C$1=\"Collaborateurs/salariés\",'\"Moyenne\"'!ED7,(IF($C$1=\"Prestataires\",'\"Moyenne\"'!EL7,(IF($C$1=\"Actionnaires\",'\"Moyenne\"'!ET7,(IF($C$1=\"Autre\",'\"Moyenne\"'!FB7,(IF($C$1=\"Collectivités/organismes locaux\",'\"Moyenne\"'!DV7,\"\")))))))))))))))","v":"Non concerné"},{"$f":"IF($C$1=\"TOUTES\",'\"Moyenne\"'!FL26,(IF($C$1=\"Clients\",'\"Moyenne\"'!DF26,(IF($C$1=\"Fournisseurs\",'\"Moyenne\"'!DN26,(IF($C$1=\"Collaborateurs/salariés\",'\"Moyenne\"'!ED26,(IF($C$1=\"Prestataires\",'\"Moyenne\"'!EL26,(IF($C$1=\"Actionnaires\",'\"Moyenne\"'!ET26,(IF($C$1=\"Autre\",'\"Moyenne\"'!FB26,(IF($C$1=\"Collectivités/organismes locaux\",'\"Moyenne\"'!DV26,\"\")))))))))))))))","v":"Non concerné"}]
[7,"Il faut prévenir des accidents et assurer la sécurité dans une entreprise, même pour les clients/consommateurs.",{"$f":"IF($C$1=\"TOUTES\",'\"Moyenne\"'!FL8,(IF($C$1=\"Clients\",'\"Moyenne\"'!DF8,(IF($C$1=\"Fournisseurs\",'\"Moyenne\"'!DN8,(IF($C$1=\"Collaborateurs/salariés\",'\"Moyenne\"'!ED8,(IF($C$1=\"Prestataires\",'\"Moyenne\"'!EL8,(IF($C$1=\"Actionnaires\",'\"Moyenne\"'!ET8,(IF($C$1=\"Autre\",'\"Moyenne\"'!FB8,(IF($C$1=\"Collectivités/organismes locaux\",'\"Moyenne\"'!DV8,\"\")))))))))))))))","v":"Non concerné"},{"$f":"IF($C$1=\"TOUTES\",'\"Moyenne\"'!FL27,(IF($C$1=\"Clients\",'\"Moyenne\"'!DF27,(IF($C$1=\"Fournisseurs\",'\"Moyenne\"'!DN27,(IF($C$1=\"Collaborateurs/salariés\",'\"Moyenne\"'!ED27,(IF($C$1=\"Prestataires\",'\"Moyenne\"'!EL27,(IF($C$1=\"Actionnaires\",'\"Moyenne\"'!ET27,(IF($C$1=\"Autre\",'\"Moyenne\"'!FB27,(IF($C$1=\"Collectivités/organismes locaux\",'\"Moyenne\"'!DV27,\"\")))))))))))))))","v":"Non concerné"}]
[8,"Chaque entreprise doit réduire son empreinte carbone et améliorer la gestion de l'énergie.",{"$f":"IF($C$1=\"TOUTES\",'\"Moyenne\"'!FL9,(IF($C$1=\"Clients\",'\"Moyenne\"'!DF9,(IF($C$1=\"Fournisseurs\",'\"Moyenne\"'!DN9,(IF($C$1=\"Collaborateurs/salariés\",'\"Moyenne\"'!ED9,(IF($C$1=\"Prestataires\",'\"Moyenne\"'!EL9,(IF($C$1=\"Actionnaires\",'\"Moyenne\"'!ET9,(IF($C$1=\"Autre\",'\"Moyenne\"'!FB9,(IF($C$1=\"Collectivités/organismes locaux\",'\"Moyenne\"'!DV9,\"\")))))))))))))))","v":"Non concerné"},{"$f":"IF($C$1=\"TOUTES\",'\"Moyenne\"'!FL28,(IF($C$1=\"Clients\",'\"Moyenne\"'!DF28,(IF($C$1=\"Fournisseurs\",'\"Moyenne\"'!DN28,(IF($C$1=\"Collaborateurs/salariés\",'\"Moyenne\"'!ED28,(IF($C$1=\"Prestataires\",'\"Moyenne\"'!EL28,(IF($C$1=\"Actionnaires\",'\"Moyenne\"'!ET28,(IF($C$1=\"Autre\",'\"Moyenne\"'!FB28,(IF($C$1=\"Collectivités/organismes locaux\",'\"Moyenne\"'!DV28,\"\")))))))))))))))","v":"Non concerné"}]
[9,"L'éco-construction et l'éco-gestion doivent être intégrées dans la politique d'une entreprise.",{"$f":"IF($C$1=\"TOUTES\",'\"Moyenne\"'!FL10,(IF($C$1=\"Clients\",'\"Moyenne\"'!DF10,(IF($C$1=\"Fournisseurs\",'\"Moyenne\"'!DN10,(IF($C$1=\"Collaborateurs/salariés\",'\"Moyenne\"'!ED10,(IF($C$1=\"Prestataires\",'\"Moyenne\"'!EL10,(IF($C$1=\"Actionnaires\",'\"Moyenne\"'!ET10,(IF($C$1=\"Autre\",'\"Moyenne\"'!FB10,(IF($C$1=\"Collectivités/organismes locaux\",'\"Moyenne\"'!DV10,\"\")))))))))))))))","v":"Non concerné"},{"$f":"IF($C$1=\"TOUTES\",'\"Moyenne\"'!FL29,(IF($C$1=\"Clients\",'\"Moyenne\"'!DF29,(IF($C$1=\"Fournisseurs\",'\"Moyenne\"'!DN29,(IF($C$1=\"Collaborateurs/salariés\",'\"Moyenne\"'!ED29,(IF($C$1=\"Prestataires\",'\"Moyenne\"'!EL29,(IF($C$1=\"Actionnaires\",'\"Moyenne\"'!ET29,(IF($C$1=\"Autre\",'\"Moyenne\"'!FB29,(IF($C$1=\"Collectivités/organismes locaux\",'\"Moyenne\"'!DV29,\"\")))))))))))))))","v":"Non concerné"}]
[10,"Le tri des déchets doit être mise en œuvre partout.",{"$f":"IF($C$1=\"TOUTES\",'\"Moyenne\"'!FL11,(IF($C$1=\"Clients\",'\"Moyenne\"'!DF11,(IF($C$1=\"Fournisseurs\",'\"Moyenne\"'!DN11,(IF($C$1=\"Collaborateurs/salariés\",'\"Moyenne\"'!ED11,(IF($C$1=\"Prestataires\",'\"Moyenne\"'!EL11,(IF($C$1=\"Actionnaires\",'\"Moyenne\"'!ET11,(IF($C$1=\"Autre\",'\"Moyenne\"'!FB11,(IF($C$1=\"Collectivités/organismes locaux\",'\"Moyenne\"'!DV11,\"\")))))))))))))))","v":"Non concerné"},{"$f":"IF($C$1=\"TOUTES\",'\"Moyenne\"'!FL30,(IF($C$1=\"Clients\",'\"Moyenne\"'!DF30,(IF($C$1=\"Fournisseurs\",'\"Moyenne\"'!DN30,(IF($C$1=\"Collaborateurs/salariés\",'\"Moyenne\"'!ED30,(IF($C$1=\"Prestataires\",'\"Moyenne\"'!EL30,(IF($C$1=\"Actionnaires\",'\"Moyenne\"'!ET30,(IF($C$1=\"Autre\",'\"Moyenne\"'!FB30,(IF($C$1=\"Collectivités/organismes locaux\",'\"Moyenne\"'!DV30,\"\")))))))))))))))","v":"Non concerné"}]
[11,"Les valeurs morales, la confiance, la partenariat, la confidentialité, l'intégrité à une concurrence loyale doivent être présentes dans une entreprise.",{"$f":"IF($C$1=\"TOUTES\",'\"Moyenne\"'!FL12,(IF($C$1=\"Clients\",'\"Moyenne\"'!DF12,(IF($C$1=\"Fournisseurs\",'\"Moyenne\"'!DN12,(IF($C$1=\"Collaborateurs/salariés\",'\"Moyenne\"'!ED12,(IF($C$1=\"Prestataires\",'\"Moyenne\"'!EL12,(IF($C$1=\"Actionnaires\",'\"Moyenne\"'!ET12,(IF($C$1=\"Autre\",'\"Moyenne\"'!FB12,(IF($C$1=\"Collectivités/organismes locaux\",'\"Moyenne\"'!DV12,\"\")))))))))))))))","v":"Non concerné"},{"$f":"IF($C$1=\"TOUTES\",'\"Moyenne\"'!FL31,(IF($C$1=\"Clients\",'\"Moyenne\"'!DF31,(IF($C$1=\"Fournisseurs\",'\"Moyenne\"'!DN31,(IF($C$1=\"Collaborateurs/salariés\",'\"Moyenne\"'!ED31,(IF($C$1=\"Prestataires\",'\"Moyenne\"'!EL31,(IF($C$1=\"Actionnaires\",'\"Moyenne\"'!ET31,(IF($C$1=\"Autre\",'\"Moyenne\"'!FB31,(IF($C$1=\"Collectivités/organismes locaux\",'\"Moyenne\"'!DV31,\"\")))))))))))))))","v":"Non concerné"}]
[12,"La lutte contre la corruption , le respect, la transparence, la loyauté de pratique doivent être visibles au sein d'une organisation.",{"$f":"IF($C$1=\"TOUTES\",'\"Moyenne\"'!FL13,(IF($C$1=\"Clients\",'\"Moyenne\"'!DF13,(IF($C$1=\"Fournisseurs\",'\"Moyenne\"'!DN13,(IF($C$1=\"Collaborateurs/salariés\",'\"Moyenne\"'!ED13,(IF($C$1=\"Prestataires\",'\"Moyenne\"'!EL13,(IF($C$1=\"Actionnaires\",'\"Moyenne\"'!ET13,(IF($C$1=\"Autre\",'\"Moyenne\"'!FB13,(IF($C$1=\"Collectivités/organismes locaux\",'\"Moyenne\"'!DV13,\"\")))))))))))))))","v":"Non concerné"},{"$f":"IF($C$1=\"TOUTES\",'\"Moyenne\"'!FL32,(IF($C$1=\"Clients\",'\"Moyenne\"'!DF32,(IF($C$1=\"Fournisseurs\",'\"Moyenne\"'!DN32,(IF($C$1=\"Collaborateurs/salariés\",'\"Moyenne\"'!ED32,(IF($C$1=\"Prestataires\",'\"Moyenne\"'!EL32,(IF($C$1=\"Actionnaires\",'\"Moyenne\"'!ET32,(IF($C$1=\"Autre\",'\"Moyenne\"'!FB32,(IF($C$1=\"Collectivités/organismes locaux\",'\"Moyenne\"'!DV32,\"\")))))))))))))))","v":"Non concerné"}]
[13,"L’innovation est un \"booster\" pour la satisfaction client.",{"$f":"IF($C$1=\"TOUTES\",'\"Moyenne\"'!FL14,(IF($C$1=\"Clients\",'\"Moyenne\"'!DF14,(IF($C$1=\"Fournisseurs\",'\"Moyenne\"'!DN14,(IF($C$1=\"Collaborateurs/salariés\",'\"Moyenne\"'!ED14,(IF($C$1=\"Prestataires\",'\"Moyenne\"'!EL14,(IF($C$1=\"Actionnaires\",'\"Moyenne\"'!ET14,(IF($C$1=\"Autre\",'\"Moyenne\"'!FB14,(IF($C$1=\"Collectivités/organismes locaux\",'\"Moyenne\"'!DV14,\"\")))))))))))))))","v":"Non concerné"},{"$f":"IF($C$1=\"TOUTES\",'\"Moyenne\"'!FL33,(IF($C$1=\"Clients\",'\"Moyenne\"'!DF33,(IF($C$1=\"Fournisseurs\",'\"Moyenne\"'!DN33,(IF($C$1=\"Collaborateurs/salariés\",'\"Moyenne\"'!ED33,(IF($C$1=\"Prestataires\",'\"Moyenne\"'!EL33,(IF($C$1=\"Actionnaires\",'\"Moyenne\"'!ET33,(IF($C$1=\"Autre\",'\"Moyenne\"'!FB33,(IF($C$1=\"Collectivités/organismes locaux\",'\"Moyenne\"'!DV33,\"\")))))))))))))))","v":"Non concerné"}]
[14,"Qualité du produit et des prestations doivent être optimales.",{"$f":"IF($C$1=\"TOUTES\",'\"Moyenne\"'!FL15,(IF($C$1=\"Clients\",'\"Moyenne\"'!DF15,(IF($C$1=\"Fournisseurs\",'\"Moyenne\"'!DN15,(IF($C$1=\"Collaborateurs/salariés\",'\"Moyenne\"'!ED15,(IF($C$1=\"Prestataires\",'\"Moyenne\"'!EL15,(IF($C$1=\"Actionnaires\",'\"Moyenne\"'!ET15,(IF($C$1=\"Autre\",'\"Moyenne\"'!FB15,(IF($C$1=\"Collectivités/organismes locaux\",'\"Moyenne\"'!DV15,\"\")))))))))))))))","v":"Non concerné"},{"$f":"IF($C$1=\"TOUTES\",'\"Moyenne\"'!FL34,(IF($C$1=\"Clients\",'\"Moyenne\"'!DF34,(IF($C$1=\"Fournisseurs\",'\"Moyenne\"'!DN34,(IF($C$1=\"Collaborateurs/salariés\",'\"Moyenne\"'!ED34,(IF($C$1=\"Prestataires\",'\"Moyenne\"'!EL34,(IF($C$1=\"Actionnaires\",'\"Moyenne\"'!ET34,(IF($C$1=\"Autre\",'\"Moyenne\"'!FB34,(IF($C$1=\"Collectivités/organismes locaux\",'\"Moyenne\"'!DV34,\"\")))))))))))))))","v":"Non concerné"}]
[15,"Un délai/réponse rapide et fiable est un critère de choix dans des échanges.",{"$f":"IF($C$1=\"TOUTES\",'\"Moyenne\"'!FL16,(IF($C$1=\"Clients\",'\"Moyenne\"'!DF16,(IF($C$1=\"Fournisseurs\",'\"Moyenne\"'!DN16,(IF($C$1=\"Collaborateurs/salariés\",'\"Moyenne\"'!ED16,(IF($C$1=\"Prestataires\",'\"Moyenne\"'!EL16,(IF($C$1=\"Actionnaires\",'\"Moyenne\"'!ET16,(IF($C$1=\"Autre\",'\"Moyenne\"'!FB16,(IF($C$1=\"Collectivités/organismes locaux\",'\"Moyenne\"'!DV16,\"\")))))))))))))))","v":"Non concerné"},{"$f":"IF($C$1=\"TOUTES\",'\"Moyenne\"'!FL35,(IF($C$1=\"Clients\",'\"Moyenne\"'!DF35,(IF($C$1=\"Fournisseurs\",'\"Moyenne\"'!DN35,(IF($C$1=\"Collaborateurs/salariés\",'\"Moyenne\"'!ED35,(IF($C$1=\"Prestataires\",'\"Moyenne\"'!EL35,(IF($C$1=\"Actionnaires\",'\"Moyenne\"'!ET35,(IF($C$1=\"Autre\",'\"Moyenne\"'!FB35,(IF($C$1=\"Collectivités/organismes locaux\",'\"Moyenne\"'!DV35,\"\")))))))))))))))","v":"Non concerné"}]
[16,"Le « pensez global, agir local » est un bon adage.",{"$f":"IF($C$1=\"TOUTES\",'\"Moyenne\"'!FL17,(IF($C$1=\"Clients\",'\"Moyenne\"'!DF17,(IF($C$1=\"Fournisseurs\",'\"Moyenne\"'!DN17,(IF($C$1=\"Collaborateurs/salariés\",'\"Moyenne\"'!ED17,(IF($C$1=\"Prestataires\",'\"Moyenne\"'!EL17,(IF($C$1=\"Actionnaires\",'\"Moyenne\"'!ET17,(IF($C$1=\"Autre\",'\"Moyenne\"'!FB17,(IF($C$1=\"Collectivités/organismes locaux\",'\"Moyenne\"'!DV17,\"\")))))))))))))))","v":"Non concerné"},{"$f":"IF($C$1=\"TOUTES\",'\"Moyenne\"'!FL36,(IF($C$1=\"Clients\",'\"Moyenne\"'!DF36,(IF($C$1=\"Fournisseurs\",'\"Moyenne\"'!DN36,(IF($C$1=\"Collaborateurs/salariés\",'\"Moyenne\"'!ED36,(IF($C$1=\"Prestataires\",'\"Moyenne\"'!EL36,(IF($C$1=\"Actionnaires\",'\"Moyenne\"'!ET36,(IF($C$1=\"Autre\",'\"Moyenne\"'!FB36,(IF($C$1=\"Collectivités/organismes locaux\",'\"Moyenne\"'!DV36,\"\")))))))))))))))","v":"Non concerné"}]
[17,"Le mécénat et patrimoine local est important pour l'image d'une entreprise.",{"$f":"IF($C$1=\"TOUTES\",'\"Moyenne\"'!FL18,(IF($C$1=\"Clients\",'\"Moyenne\"'!DF18,(IF($C$1=\"Fournisseurs\",'\"Moyenne\"'!DN18,(IF($C$1=\"Collaborateurs/salariés\",'\"Moyenne\"'!ED18,(IF($C$1=\"Prestataires\",'\"Moyenne\"'!EL18,(IF($C$1=\"Actionnaires\",'\"Moyenne\"'!ET18,(IF($C$1=\"Autre\",'\"Moyenne\"'!FB18,(IF($C$1=\"Collectivités/organismes locaux\",'\"Moyenne\"'!DV18,\"\")))))))))))))))","v":"Non concerné"},{"$f":"IF($C$1=\"TOUTES\",'\"Moyenne\"'!FL37,(IF($C$1=\"Clients\",'\"Moyenne\"'!DF37,(IF($C$1=\"Fournisseurs\",'\"Moyenne\"'!DN37,(IF($C$1=\"Collaborateurs/salariés\",'\"Moyenne\"'!ED37,(IF($C$1=\"Prestataires\",'\"Moyenne\"'!EL37,(IF($C$1=\"Actionnaires\",'\"Moyenne\"'!ET37,(IF($C$1=\"Autre\",'\"Moyenne\"'!FB37,(IF($C$1=\"Collectivités/organismes locaux\",'\"Moyenne\"'!DV37,\"\")))))))))))))))","v":"Non concerné"}]
[18,"Etre créatrice d'emploi est valorisant pour une entreprise.",{"$f":"IF($C$1=\"TOUTES\",'\"Moyenne\"'!FL19,(IF($C$1=\"Clients\",'\"Moyenne\"'!DF19,(IF($C$1=\"Fournisseurs\",'\"Moyenne\"'!DN19,(IF($C$1=\"Collaborateurs/salariés\",'\"Moyenne\"'!ED19,(IF($C$1=\"Prestataires\",'\"Moyenne\"'!EL19,(IF($C$1=\"Actionnaires\",'\"Moyenne\"'!ET19,(IF($C$1=\"Autre\",'\"Moyenne\"'!FB19,(IF($C$1=\"Collectivités/organismes locaux\",'\"Moyenne\"'!DV19,\"\")))))))))))))))","v":"Non concerné"},{"$f":"IF($C$1=\"TOUTES\",'\"Moyenne\"'!FL38,(IF($C$1=\"Clients\",'\"Moyenne\"'!DF38,(IF($C$1=\"Fournisseurs\",'\"Moyenne\"'!DN38,(IF($C$1=\"Collaborateurs/salariés\",'\"Moyenne\"'!ED38,(IF($C$1=\"Prestataires\",'\"Moyenne\"'!EL38,(IF($C$1=\"Actionnaires\",'\"Moyenne\"'!ET38,(IF($C$1=\"Autre\",'\"Moyenne\"'!FB38,(IF($C$1=\"Collectivités/organismes locaux\",'\"Moyenne\"'!DV38,\"\")))))))))))))))","v":"Non concerné"}]
[19,"Proposer des offres compétitives est un facteur de succès.",{"$f":"IF($C$1=\"TOUTES\",'\"Moyenne\"'!FL20,(IF($C$1=\"Clients\",'\"Moyenne\"'!DF20,(IF($C$1=\"Fournisseurs\",'\"Moyenne\"'!DN20,(IF($C$1=\"Collaborateurs/salariés\",'\"Moyenne\"'!ED20,(IF($C$1=\"Prestataires\",'\"Moyenne\"'!EL20,(IF($C$1=\"Actionnaires\",'\"Moyenne\"'!ET20,(IF($C$1=\"Autre\",'\"Moyenne\"'!FB20,(IF($C$1=\"Collectivités/organismes locaux\",'\"Moyenne\"'!DV20,\"\")))))))))))))))","v":"Non concerné"},{"$f":"IF($C$1=\"TOUTES\",'\"Moyenne\"'!FL39,(IF($C$1=\"Clients\",'\"Moyenne\"'!DF39,(IF($C$1=\"Fournisseurs\",'\"Moyenne\"'!DN39,(IF($C$1=\"Collaborateurs/salariés\",'\"Moyenne\"'!ED39,(IF($C$1=\"Prestataires\",'\"Moyenne\"'!EL39,(IF($C$1=\"Actionnaires\",'\"Moyenne\"'!ET39,(IF($C$1=\"Autre\",'\"Moyenne\"'!FB39,(IF($C$1=\"Collectivités/organismes locaux\",'\"Moyenne\"'!DV39,\"\")))))))))))))))","v":"Non concerné"}]
[20]
[null,null,{"$f":"COUNTBLANK(C3:C22)+COUNTBLANK(D3:D21)","v":1}]

{"sheet":"Entreprise","index":5,"n_rows":21,"n_cols":7,"rows_kept":21,"cut":false,"hidden":false,"merged":[[1,0,1,1]]}
[null,"Classer ces propositions selon l'ordre de priorité qui correspond\nle mieux à ce que vous souhaiteriez pour votre RSE."]
["PROPOSITIONS:",null,null,"Ordre de priorité"]
["N°1","Vous êtes concernés par des certifications ou réglementations type ISO, Reach, ECSS, droit de l'Homme, code du travail…",null,1,null,{"$f":"IFERROR(VLOOKUP(E3,$A$3:$B$21,2,FALSE),\"\")","v":""},1]
["N°2","L’écoute et la communication est importante pour votre relation avec une/notre entreprise.",null,2,null,{"$f":"IFERROR(VLOOKUP(E4,$A$3:$B$21,2,FALSE),\"\")","v":""},2]
["N°3","Une entreprise doit continuer à s’améliorer même si les attentes clients sont respectées.",null,3,null,"",3]
["N°4","Le respect des droits de l'homme, du code du travail et des pratiques éthiques sont importantes dans les pratiques d’entreprise.",null,4,null,"",4]
["N°5","La diversité et la lutte contre la discrimination sont des critères qui vous amènent à collaborer avec une entreprise.",null,5,null,"",5]
["N°6","Relations et conditions de travail: la santé et le bien-être sont essentiels.",null,6,null,"",6]
["N°7","Il faut prévenir des accidents et assurer la sécurité dans une entreprise, même pour les clients/consommateurs.",null,7,null,"",7]
["N°8","Chaque entreprise doit réduire son empreinte carbone et améliorer la gestion de l'énergie.",null,8,null,"",8]
["N°9","L'éco-construction et l'éco-gestion doivent être intégrées dans la politique d'une entreprise.",null,9,null,"",9]
["N°10","Le tri des déchets doit être mise en œuvre partout.",null,10,null,"",10]
["N°11","Les valeurs morales, la confiance, la partenariat, la confidentialité, l'intégrité à une concurrence loyale doivent être présentes dans une entreprise.",null,11,null,"",11]
["N°12","La lutte contre la corruption , le respect, la transparence, la loyauté de pratique doivent être visibles au sein d'une organisation.",null,12,null,"",12]
["N°13","L’innovation est un \"booster\" pour la satisfaction client.",null,13,null,"",13]
["N°14","Qualité du produit et des prestations doivent être optimales.",null,14,null,"",14]
["N°15","Un délai/réponse rapide et fiable est un critère de choix dans des échanges.",null,15,null,"",15]
["N°16","Le « pensez global, agir local » est un bon adage.",null,16,null,"",16]
["N°17","Le mécénat et patrimoine local est important pour l'image d'une entreprise.",null,17,null,"",17]
["N°18","Etre créatrice d'emploi est valorisant pour une entreprise.",null,18,null,"",18]
["N°19","Proposer des offres compétitives est un facteur de succès.",null,19,null,"",19]

{"sheet":"Synth.","index":6,"n_rows":29,"n_cols":22,"rows_kept":29,"cut":false,"hidden":true,"merged":[]}
[]
["PP","Priorités",null,null,null,null,null,"PP","Priorités",null,null,null,null,null,null,null,null,null,null,null,"Priorité Axon"]
["général","Axon","Axon","PP",null,null,"Question","pour Axon","Axon","Axon","PP",null,null,"Améliorations",null,"Question",null,"Oui, tout à fait d'accord",19,null,1,19]
[{"$f":"VLOOKUP(G4,'Parties prenantes'!A:D,3,FALSE)","v":"Non concerné"},{"$f":"VLOOKUP(CONCATENATE(\"N°\",G4),Entreprise!E:G,3,FALSE)","v":{"$error":"#N/A"}},{"$f":"VLOOKUP(B4,$U$3:$V$21,2,FALSE)","v":{"$error":"#N/A"}},{"$f":"VLOOKUP(A4,$R$3:$S$6,2,FALSE)","v":{"$error":"#N/A"}},{"$f":"AVERAGE(C4,D4)+(C4/100)","v":{"$error":"#N/A"}},{"$f":"RANK(E4,$E$4:$E$22)","v":{"$error":"#N/A"}},1,{"$f":"VLOOKUP(G4,'Parties prenantes'!A:D,4,FALSE)","v":"Non concerné"},{"$f":"VLOOKUP(CONCATENATE(\"N°\",G4),Entreprise!E:G,3,FALSE)","v":{"$error":"#N/A"}},{"$f":"VLOOKUP(I4,$U$3:$V$21,2,FALSE)","v":{"$error":"#N/A"}},{"$f":"VLOOKUP(H4,$R$3:$S$6,2,FALSE)","v":{"$error":"#N/A"}},{"$f":"AVERAGE(J4,K4)+(C4/100)","v":{"$error":"#N/A"}},{"$f":"RANK(L4,$L$4:$L$22)","v":{"$error":"#N/A"}},{"$f":"RANK(O4,$O$4:$O$22)","v":{"$error":"#N/A"}},{"$f":"(Synth.!E4-Synth.!L4)+(Synth.!C4/100)","v":{"$error":"#N/A"}},1,null,"Plutôt d'accord",13,null,2,18]
[{"$f":"VLOOKUP(G5,'Parties prenantes'!A:D,3,FALSE)","v":"Non concerné"},{"$f":"VLOOKUP(CONCATENATE(\"N°\",G5),Entreprise!E:G,3,FALSE)","v":{"$error":"#N/A"}},{"$error":"#N/A"},{"$error":"#N/A"},{"$f":"AVERAGE(C5,D5)+(C5/100)","v":{"$error":"#N/A"}},{"$f":"RANK(E5,$E$4:$E$22)","v":{"$error":"#N/A"}},2,{"$f":"VLOOKUP(G5,'Parties prenantes'!A:D,4,FALSE)","v":"Non concerné"},{"$f":"VLOOKUP(CONCATENATE(\"N°\",G5),Entreprise!E:G,3,FALSE)","v":{"$error":"#N/A"}},{"$error":"#N/A"},{"$error":"#N/A"},{"$f":"AVERAGE(J5,K5)+(C5/100)","v":{"$error":"#N/A"}},{"$f":"RANK(L5,$L$4:$L$22)","v":{"$error":"#N/A"}},{"$error":"#N/A"},{"$f":"(Synth.!E5-Synth.!L5)+(Synth.!C5/100)","v":{"$error":"#N/A"}},2,null,"Plutôt pas d'accord",7,null,3,17]
[{"$f":"VLOOKUP(G6,'Parties prenantes'!A:D,3,FALSE)","v":"Non concerné"},{"$f":"VLOOKUP(CONCATENATE(\"N°\",G6),Entreprise!E:G,3,FALSE)","v":{"$error":"#N/A"}},{"$error":"#N/A"},{"$error":"#N/A"},{"$error":"#N/A"},{"$error":"#N/A"},3,{"$f":"VLOOKUP(G6,'Parties prenantes'!A:D,4,FALSE)","v":"Non concerné"},{"$f":"VLOOKUP(CONCATENATE(\"N°\",G6),Entreprise!E:G,3,FALSE)","v":{"$error":"#N/A"}},{"$error":"#N/A"},{"$error":"#N/A"},{"$error":"#N/A"},{"$error":"#N/A"},{"$error":"#N/A"},{"$f":"(Synth.!E6-Synth.!L6)+(Synth.!C6/100)","v":{"$error":"#N/A"}},3,null,"Non, pas du tout d'accord",1,null,4,16]
[{"$f":"VLOOKUP(G7,'Parties prenantes'!A:D,3,FALSE)","v":"Non concerné"},{"$f":"VLOOKUP(CONCATENATE(\"N°\",G7),Entreprise!E:G,3,FALSE)","v":{"$error":"#N/A"}},{"$error":"#N/A"},{"$error":"#N/A"},{"$error":"#N/A"},{"$error":"#N/A"},4,{"$f":"VLOOKUP(G7,'Parties prenantes'!A:D,4,FALSE)","v":"Non concerné"},{"$f":"VLOOKUP(CONCATENATE(\"N°\",G7),Entreprise!E:G,3,FALSE)","v":{"$error":"#N/A"}},{"$error":"#N/A"},{"$error":"#N/A"},{"$error":"#N/A"},{"$error":"#N/A"},{"$error":"#N/A"},{"$f":"(Synth.!E7-Synth.!L7)+(Synth.!C7/100)","v":{"$error":"#N/A"}},4,null,"Non concerné",0,null,5,15]
[{"$f":"VLOOKUP(G8,'Parties prenantes'!A:D,3,FALSE)","v":"Non concerné"},{"$f":"VLOOKUP(CONCATENATE(\"N°\",G8),Entreprise!E:G,3,FALSE)","v":{"$error":"#N/A"}},{"$error":"#N/A"},{"$error":"#N/A"},{"$error":"#N/A"},{"$error":"#N/A"},5,{"$f":"VLOOKUP(G8,'Parties prenantes'!A:D,4,FALSE)","v":"Non concerné"},{"$f":"VLOOKUP(CONCATENATE(\"N°\",G8),Entreprise!E:G,3,FALSE)","v":{"$error":"#N/A"}},{"$error":"#N/A"},{"$error":"#N/A"},{"$error":"#N/A"},{"$error":"#N/A"},{"$error":"#N/A"},{"$f":"(Synth.!E8-Synth.!L8)+(Synth.!C8/100)","v":{"$error":"#N/A"}},5,null,null,null,null,6,14]
[{"$f":"VLOOKUP(G9,'Parties prenantes'!A:D,3,FALSE)","v":"Non concerné"},{"$f":"VLOOKUP(CONCATENATE(\"N°\",G9),Entreprise!E:G,3,FALSE)","v":{"$error":"#N/A"}},{"$error":"#N/A"},{"$error":"#N/A"},{"$error":"#N/A"},{"$error":"#N/A"},6,{"$f":"VLOOKUP(G9,'Parties prenantes'!A:D,4,FALSE)","v":"Non concerné"},{"$f":"VLOOKUP(CONCATENATE(\"N°\",G9),Entreprise!E:G,3,FALSE)","v":{"$error":"#N/A"}},{"$error":"#N/A"},{"$error":"#N/A"},{"$error":"#N/A"},{"$error":"#N/A"},{"$error":"#N/A"},{"$f":"(Synth.!E9-Synth.!L9)+(Synth.!C9/100)","v":{"$error":"#N/A"}},6,null,null,null,null,7,13]
[{"$f":"VLOOKUP(G10,'Parties prenantes'!A:D,3,FALSE)","v":"Non concerné"},{"$f":"VLOOKUP(CONCATENATE(\"N°\",G10),Entreprise!E:G,3,FALSE)","v":{"$error":"#N/A"}},{"$error":"#N/A"},{"$error":"#N/A"},{"$error":"#N/A"},{"$error":"#N/A"},7,{"$f":"VLOOKUP(G10,'Parties prenantes'!A:D,4,FALSE)","v":"Non concerné"},{"$f":"VLOOKUP(CONCATENATE(\"N°\",G10),Entreprise!E:G,3,FALSE)","v":{"$error":"#N/A"}},{"$error":"#N/A"},{"$error":"#N/A"},{"$error":"#N/A"},{"$error":"#N/A"},{"$error":"#N/A"},{"$f":"(Synth.!E10-Synth.!L10)+(Synth.!C10/100)","v":{"$error":"#N/A"}},7,null,null,null,null,8,12]
[{"$f":"VLOOKUP(G11,'Parties prenantes'!A:D,3,FALSE)","v":"Non concerné"},{"$f":"VLOOKUP(CONCATENATE(\"N°\",G11),Entreprise!E:G,3,FALSE)","v":{"$error":"#N/A"}},{"$error":"#N/A"},{"$error":"#N/A"},{"$error":"#N/A"},{"$error":"#N/A"},8,{"$f":"VLOOKUP(G11,'Parties prenantes'!A:D,4,FALSE)","v":"Non concerné"},{"$f":"VLOOKUP(CONCATENATE(\"N°\",G11),Entreprise!E:G,3,FALSE)","v":{"$error":"#N/A"}},{"$error":"#N/A"},{"$error":"#N/A"},{"$error":"#N/A"},{"$error":"#N/A"},{"$error":"#N/A"},{"$f":"(Synth.!E11-Synth.!L11)+(Synth.!C11/100)","v":{"$error":"#N/A"}},8,1,"Certifications et réglementations",null,null,9,11]
[{"$f":"VLOOKUP(G12,'Parties prenantes'!A:D,3,FALSE)","v":"Non concerné"},{"$f":"VLOOKUP(CONCATENATE(\"N°\",G12),Entreprise!E:G,3,FALSE)","v":{"$error":"#N/A"}},{"$error":"#N/A"},{"$error":"#N/A"},{"$error":"#N/A"},{"$error":"#N/A"},9,{"$f":"VLOOKUP(G12,'Parties prenantes'!A:D,4,FALSE)","v":"Non concerné"},{"$f":"VLOOKUP(CONCATENATE(\"N°\",G12),Entreprise!E:G,3,FALSE)","v":{"$error":"#N/A"}},{"$error":"#N/A"},{"$error":"#N/A"},{"$error":"#N/A"},{"$error":"#N/A"},{"$error":"#N/A"},{"$f":"(Synth.!E12-Synth.!L12)+(Synth.!C12/100)","v":{"$error":"#N/A"}},9,2,"Ecoute et communication dans les Relations",null,null,10,10]
[{"$f":"VLOOKUP(G13,'Parties prenantes'!A:D,3,FALSE)","v":"Non concerné"},{"$f":"VLOOKUP(CONCATENATE(\"N°\",G13),Entreprise!E:G,3,FALSE)","v":{"$error":"#N/A"}},{"$error":"#N/A"},{"$error":"#N/A"},{"$error":"#N/A"},{"$error":"#N/A"},10,{"$f":"VLOOKUP(G13,'Parties prenantes'!A:D,4,FALSE)","v":"Non concerné"},{"$f":"VLOOKUP(CONCATENATE(\"N°\",G13),Entreprise!E:G,3,FALSE)","v":{"$error":"#N/A"}},{"$error":"#N/A"},{"$error":"#N/A"},{"$error":"#N/A"},{"$error":"#N/A"},{"$error":"#N/A"},{"$f":"(Synth.!E13-Synth.!L13)+(Synth.!C13/100)","v":{"$error":"#N/A"}},10,3,"Amélioration continue",null,null,11,9]
[{"$f":"VLOOKUP(G14,'Parties prenantes'!A:D,3,FALSE)","v":"Non concerné"},{"$f":"VLOOKUP(CONCATENATE(\"N°\",G14),Entreprise!E:G,3,FALSE)","v":{"$error":"#N/A"}},{"$error":"#N/A"},{"$error":"#N/A"},{"$error":"#N/A"},{"$error":"#N/A"},11,{"$f":"VLOOKUP(G14,'Parties prenantes'!A:D,4,FALSE)","v":"Non concerné"},{"$f":"VLOOKUP(CONCATENATE(\"N°\",G14),Entreprise!E:G,3,FALSE)","v":{"$error":"#N/A"}},{"$error":"#N/A"},{"$error":"#N/A"},{"$error":"#N/A"},{"$error":"#N/A"},{"$error":"#N/A"},{"$f":"(Synth.!E14-Synth.!L14)+(Synth.!C14/100)","v":{"$error":"#N/A"}},11,4,"Respect et pratiques éthiques",null,null,12,8]
[{"$f":"VLOOKUP(G15,'Parties prenantes'!A:D,3,FALSE)","v":"Non concerné"},{"$f":"VLOOKUP(CONCATENATE(\"N°\",G15),Entreprise!E:G,3,FALSE)","v":{"$error":"#N/A"}},{"$error":"#N/A"},{"$error":"#N/A"},{"$error":"#N/A"},{"$error":"#N/A"},12,{"$f":"VLOOKUP(G15,'Parties prenantes'!A:D,4,FALSE)","v":"Non concerné"},{"$f":"VLOOKUP(CONCATENATE(\"N°\",G15),Entreprise!E:G,3,FALSE)","v":{"$error":"#N/A"}},{"$error":"#N/A"},{"$error":"#N/A"},{"$error":"#N/A"},{"$error":"#N/A"},{"$error":"#N/A"},{"$f":"(Synth.!E15-Synth.!L15)+(Synth.!C15/100)","v":{"$error":"#N/A"}},12,5,"Diversité et lutte contre la discrimination",null,null,13,7]
[{"$f":"VLOOKUP(G16,'Parties prenantes'!A:D,3,FALSE)","v":"Non concerné"},{"$f":"VLOOKUP(CONCATENATE(\"N°\",G16),Entreprise!E:G,3,FALSE)","v":{"$error":"#N/A"}},{"$error":"#N/A"},{"$error":"#N/A"},{"$error":"#N/A"},{"$error":"#N/A"},13,{"$f":"VLOOKUP(G16,'Parties prenantes'!A:D,4,FALSE)","v":"Non concerné"},{"$f":"VLOOKUP(CONCATENATE(\"N°\",G16),Entreprise!E:G,3,FALSE)","v":{"$error":"#N/A"}},{"$error":"#N/A"},{"$error":"#N/A"},{"$error":"#N/A"},{"$error":"#N/A"},{"$error":"#N/A"},{"$f":"(Synth.!E16-Synth.!L16)+(Synth.!C16/100)","v":{"$error":"#N/A"}},13,6,"Relations et conditions de travail: la santé et le bien-être",null,null,14,6]
[{"$f":"VLOOKUP(G17,'Parties prenantes'!A:D,3,FALSE)","v":"Non concerné"},{"$f":"VLOOKUP(CONCATENATE(\"N°\",G17),Entreprise!E:G,3,FALSE)","v":{"$error":"#N/A"}},{"$error":"#N/A"},{"$error":"#N/A"},{"$error":"#N/A"},{"$error":"#N/A"},14,{"$f":"VLOOKUP(G17,'Parties prenantes'!A:D,4,FALSE)","v":"Non concerné"},{"$f":"VLOOKUP(CONCATENATE(\"N°\",G17),Entreprise!E:G,3,FALSE)","v":{"$error":"#N/A"}},{"$error":"#N/A"},{"$error":"#N/A"},{"$error":"#N/A"},{"$error":"#N/A"},{"$error":"#N/A"},{"$f":"(Synth.!E17-Synth.!L17)+(Synth.!C17/100)","v":{"$error":"#N/A"}},14,7,"Sécurité et prévention des accidents",null,null,15,5]
[{"$f":"VLOOKUP(G18,'Parties prenantes'!A:D,3,FALSE)","v":"Non concerné"},{"$f":"VLOOKUP(CONCATENATE(\"N°\",G18),Entreprise!E:G,3,FALSE)","v":{"$error":"#N/A"}},{"$error":"#N/A"},{"$error":"#N/A"},{"$error":"#N/A"},{"$error":"#N/A"},15,{"$f":"VLOOKUP(G18,'Parties prenantes'!A:D,4,FALSE)","v":"Non concerné"},{"$f":"VLOOKUP(CONCATENATE(\"N°\",G18),Entreprise!E:G,3,FALSE)","v":{"$error":"#N/A"}},{"$error":"#N/A"},{"$error":"#N/A"},{"$error":"#N/A"},{"$error":"#N/A"},{"$error":"#N/A"},{"$f":"(Synth.!E18-Synth.!L18)+(Synth.!C18/100)","v":{"$error":"#N/A"}},15,8,"Réduction de l'empreinte carbone et gestion de l'énergie",null,null,16,4]
[{"$f":"VLOOKUP(G19,'Parties prenantes'!A:D,3,FALSE)","v":"Non concerné"},{"$f":"VLOOKUP(CONCATENATE(\"N°\",G19),Entreprise!E:G,3,FALSE)","v":{"$error":"#N/A"}},{"$error":"#N/A"},{"$error":"#N/A"},{"$error":"#N/A"},{"$error":"#N/A"},16,{"$f":"VLOOKUP(G19,'Parties prenantes'!A:D,4,FALSE)","v":"Non concerné"},{"$f":"VLOOKUP(CONCATENATE(\"N°\",G19),Entreprise!E:G,3,FALSE)","v":{"$error":"#N/A"}},{"$error":"#N/A"},{"$error":"#N/A"},{"$error":"#N/A"},{"$error":"#N/A"},{"$error":"#N/A"},{"$f":"(Synth.!E19-Synth.!L19)+(Synth.!C19/100)","v":{"$error":"#N/A"}},16,9,"Eco-construction et éco-gestion",null,null,17,3]
[{"$f":"VLOOKUP(G20,'Parties prenantes'!A:D,3,FALSE)","v":"Non concerné"},{"$f":"VLOOKUP(CONCATENATE(\"N°\",G20),Entreprise!E:G,3,FALSE)","v":{"$error":"#N/A"}},{"$error":"#N/A"},{"$error":"#N/A"},{"$error":"#N/A"},{"$error":"#N/A"},17,{"$f":"VLOOKUP(G20,'Parties prenantes'!A:D,4,FALSE)","v":"Non concerné"},{"$f":"VLOOKUP(CONCATENATE(\"N°\",G20),Entreprise!E:G,3,FALSE)","v":{"$error":"#N/A"}},{"$error":"#N/A"},{"$error":"#N/A"},{"$error":"#N/A"},{"$error":"#N/A"},{"$error":"#N/A"},{"$f":"(Synth.!E20-Synth.!L20)+(Synth.!C20/100)","v":{"$error":"#N/A"}},17,10,"Tri des déchets",null,null,18,2]
[{"$f":"VLOOKUP(G21,'Parties prenantes'!A:D,3,FALSE)","v":"Non concerné"},{"$f":"VLOOKUP(CONCATENATE(\"N°\",G21),Entreprise!E:G,3,FALSE)","v":{"$error":"#N/A"}},{"$error":"#N/A"},{"$error":"#N/A"},{"$error":"#N/A"},{"$error":"#N/A"},18,{"$f":"VLOOKUP(G21,'Parties prenantes'!A:D,4,FALSE)","v":"Non concerné"},{"$f":"VLOOKUP(CONCATENATE(\"N°\",G21),Entreprise!E:G,3,FALSE)","v":{"$error":"#N/A"}},{"$error":"#N/A"},{"$error":"#N/A"},{"$error":"#N/A"},{"$error":"#N/A"},{"$error":"#N/A"},{"$f":"(Synth.!E21-Synth.!L21)+(Synth.!C21/100)","v":{"$error":"#N/A"}},18,11,"Valeurs morales, confiance, partenariat,confidentialité, intégrité, concurrence loyale",null,null,19,1]
[{"$f":"VLOOKUP(G22,'Parties prenantes'!A:D,3,FALSE)","v":"Non concerné"},{"$f":"VLOOKUP(CONCATENATE(\"N°\",G22),Entreprise!E:G,3,FALSE)","v":{"$error":"#N/A"}},{"$error":"#N/A"},{"$error":"#N/A"},{"$error":"#N/A"},{"$error":"#N/A"},19,{"$f":"VLOOKUP(G22,'Parties prenantes'!A:D,4,FALSE)","v":"Non concerné"},{"$f":"VLOOKUP(CONCATENATE(\"N°\",G22),Entreprise!E:G,3,FALSE)","v":{"$error":"#N/A"}},{"$error":"#N/A"},{"$error":"#N/A"},{"$error":"#N/A"},{"$error":"#N/A"},{"$error":"#N/A"},{"$f":"(Synth.!E22-Synth.!L22)+(Synth.!C22/100)","v":{"$error":"#N/A"}},19,12,"Lutte contre la corruption, respect, transparence, loyauté de pratique"]
[{"$f":"VLOOKUP(G23,'Parties prenantes'!A:D,3,FALSE)","v":{"$error":"#N/A"}},null,null,{"$error":"#N/A"},null,null,null,null,null,null,null,null,null,null,null,null,13,"Innovation"]
[null,null,null,null,null,null,null,null,null,null,null,null,null,null,null,null,14,"Qualité du produit et des prestations doivent être optimales"]
[null,null,null,null,null,null,null,null,null,null,null,null,null,null,null,null,15,"Délai/réponse rapide et fiable"]
[null,null,null,null,null,null,null,null,null,null,null,null,null,null,null,null,16,"Ancrage terrritorial"]
[null,null,null,null,null,null,null,null,null,null,null,null,null,null,null,null,17,"Mécénat et patrimoine local"]
[null,null,null,null,null,null,null,null,null,null,null,null,null,null,null,null,18,"Favoriser l'emploi"]
[null,null,null,null,null,null,null,null,null,null,null,null,null,null,null,null,19,"Offres compétitives"]

{"sheet":"Résultats","index":7,"n_rows":46,"n_cols":39,"rows_kept":46,"cut":false,"hidden":false,"merged":[[0,13,0,15],[2,21,2,26],[3,21,3,26]]}
[null,null,null,null,null,null,null,null,null,"Analyse bidimensionnelle de matérialité:",null,null,"RESULTATS AU",{"$f":"TODAY()","v":"2018-06-26"}]
[]
[null,null,null,null,null,null,null,null,null,null,null,null,null,null,null,null,null,null,null,null,null,"Quelle catégorie de parties prenantes souhaitez-vous analyser?"]
[null,null,null,null,null,null,null,null,null,null,null,null,null,null,null,null,null,null,null,null,null,"TOUTES"]
[]
[null,null,null,null,null,null,null,null,null,null,null,null,null,null,null,null,{"$f":"IF(Q7>0,\"1\",\"0\")","v":{"$error":"#N/A"}},null,{"$f":"IF(Q7>0,\"AXES À AMÉLIORER par ordre de priorité:\",\"\")","v":{"$error":"#N/A"}},null,null,null,null,null,null,null,null,null,null,{"$f":"COUNT($Q7)","v":0},{"$f":"COUNT($R7)","v":0},0,0,0,0,0,0,0,{"$f":"COUNT($R7)","v":0}]
["Gouvernance",null,null,null,null,null,null,null,null,null,null,null,null,null,null,1,{"$f":"VLOOKUP(P7,Synth.!$N$4:$O$22,2,FALSE)","v":{"$error":"#N/A"}},{"$f":"IFERROR(IF(Q7>0,IFERROR(VLOOKUP(Q7,Synth.!$O$4:$P$22,2,FALSE),\"\"),\"\"),\"\")","v":""},{"$f":"IF(T7=\"-\",\"\",\"1\")","v":"1"},{"$f":"CONCATENATE(\"(\",R7,\")\")","v":"()"},{"$f":"IFERROR(IF(Q7>0,IFERROR(VLOOKUP(R7,Synth.!$Q$11:$R$29,2,FALSE),\"\"),\"\"),\"\")","v":""},null,null,null,null,null,null,null,null,{"$f":"COUNT($R7)","v":0},{"$f":"COUNT($R7)","v":0},0,0,0,0,0,0,0,0]
["Environnement",null,null,null,null,null,null,null,null,null,null,null,null,null,null,2,{"$f":"VLOOKUP(P8,Synth.!$N$4:$O$22,2,FALSE)","v":{"$error":"#N/A"}},{"$f":"IFERROR(IF(Q8>0,IFERROR(VLOOKUP(Q8,Synth.!$O$4:$P$22,2,FALSE),\"\"),\"\"),\"\")","v":""},{"$f":"IF(T8=\"-\",\"\",\"2\")","v":"2"},{"$f":"CONCATENATE(\"(\",R8,\")\")","v":"()"},{"$f":"IFERROR(IF(Q8>0,IFERROR(VLOOKUP(R8,Synth.!$Q$11:$R$29,2,FALSE),\"\"),\"\"),\"\")","v":""},null,null,null,null,null,null,null,null,{"$f":"COUNT($R8)","v":0},{"$f":"COUNT($R8)","v":0},0,0,0,0,0,0,0,0]
["RH",null,null,null,null,null,null,null,null,null,null,null,null,null,null,3,{"$f":"VLOOKUP(P9,Synth.!$N$4:$O$22,2,FALSE)","v":{"$error":"#N/A"}},{"$f":"IFERROR(IF(Q9>0,IFERROR(VLOOKUP(Q9,Synth.!$O$4:$P$22,2,FALSE),\"\"),\"\"),\"\")","v":""},{"$f":"IF(T9=\"-\",\"\",\"3\")","v":"3"},"()",{"$f":"IFERROR(IF(Q9>0,IFERROR(VLOOKUP(R9,Synth.!$Q$11:$R$29,2,FALSE),\"\"),\"\"),\"\")","v":""},null,null,null,null,null,null,null,null,0,0,0,0,0,0,0,0,0,0]
["Produit",null,null,null,null,null,null,null,null,null,null,null,null,null,null,4,{"$f":"VLOOKUP(P10,Synth.!$N$4:$O$22,2,FALSE)","v":{"$error":"#N/A"}},{"$f":"IFERROR(IF(Q10>0,IFERROR(VLOOKUP(Q10,Synth.!$O$4:$P$22,2,FALSE),\"\"),\"\"),\"\")","v":""},{"$f":"IF(T10=\"-\",\"\",\"4\")","v":"4"},"()",{"$f":"IFERROR(IF(Q10>0,IFERROR(VLOOKUP(R10,Synth.!$Q$11:$R$29,2,FALSE),\"\"),\"\"),\"\")","v":""},null,null,null,null,null,null,null,null,0,0,0,0,0,0,0,0,0,0]
["Territoire",null,null,null,null,null,null,null,null,null,null,null,null,null,null,5,{"$f":"VLOOKUP(P11,Synth.!$N$4:$O$22,2,FALSE)","v":{"$error":"#N/A"}},{"$f":"IFERROR(IF(Q11>0,IFERROR(VLOOKUP(Q11,Synth.!$O$4:$P$22,2,FALSE),\"\"),\"\"),\"\")","v":""},{"$f":"IF(T11=\"-\",\"\",\"5\")","v":"5"},"()",{"$f":"IFERROR(IF(Q11>0,IFERROR(VLOOKUP(R11,Synth.!$Q$11:$R$29,2,FALSE),\"\"),\"\"),\"\")","v":""},null,null,null,null,null,null,null,null,0,0,0,0,0,0,0,0,0,0]
[null,null,null,null,null,null,null,null,null,null,null,null,null,null,null,6,{"$f":"VLOOKUP(P12,Synth.!$N$4:$O$22,2,FALSE)","v":{"$error":"#N/A"}},{"$f":"IFERROR(IF(Q12>0,IFERROR(VLOOKUP(Q12,Synth.!$O$4:$P$22,2,FALSE),\"\"),\"\"),\"\")","v":""},{"$f":"IF(T12=\"-\",\"\",\"6\")","v":"6"},"()",{"$f":"IFERROR(IF(Q12>0,IFERROR(VLOOKUP(R12,Synth.!$Q$11:$R$29,2,FALSE),\"\"),\"\"),\"\")","v":""},null,null,null,null,null,null,null,null,0,0,0,0,0,0,0,0,0,0]
[null,null,null,null,null,null,null,null,null,null,null,null,null,null,null,7,{"$f":"VLOOKUP(P13,Synth.!$N$4:$O$22,2,FALSE)","v":{"$error":"#N/A"}},{"$f":"IFERROR(IF(Q13>0,IFERROR(VLOOKUP(Q13,Synth.!$O$4:$P$22,2,FALSE),\"\"),\"\"),\"\")","v":""},{"$f":"IF(T13=\"-\",\"\",\"7\")","v":"7"},"()",{"$f":"IFERROR(IF(Q13>0,IFERROR(VLOOKUP(R13,Synth.!$Q$11:$R$29,2,FALSE),\"\"),\"\"),\"\")","v":""},null,null,null,null,null,null,null,null,0,0,0,0,0,0,0,0,0,0]
[null,null,null,null,null,null,null,null,null,null,null,null,null,null,null,8,{"$f":"VLOOKUP(P14,Synth.!$N$4:$O$22,2,FALSE)","v":{"$error":"#N/A"}},{"$f":"IFERROR(IF(Q14>0,IFERROR(VLOOKUP(Q14,Synth.!$O$4:$P$22,2,FALSE),\"\"),\"\"),\"\")","v":""},{"$f":"IF(T14=\"-\",\"\",\"8\")","v":"8"},"()",{"$f":"IFERROR(IF(Q14>0,IFERROR(VLOOKUP(R14,Synth.!$Q$11:$R$29,2,FALSE),\"\"),\"\"),\"\")","v":""},null,null,null,null,null,null,null,null,0,0,0,0,0,0,0,0,0,0]
[null,null,null,null,null,null,null,null,null,null,null,null,null,null,null,9,{"$f":"VLOOKUP(P15,Synth.!$N$4:$O$22,2,FALSE)","v":{"$error":"#N/A"}},{"$f":"IFERROR(IF(Q15>0,IFERROR(VLOOKUP(Q15,Synth.!$O$4:$P$22,2,FALSE),\"\"),\"\"),\"\")","v":""},{"$f":"IF(T15=\"-\",\"\",\"9\")","v":"9"},"()",{"$f":"IFERROR(IF(Q15>0,IFERROR(VLOOKUP(R15,Synth.!$Q$11:$R$29,2,FALSE),\"\"),\"\"),\"\")","v":""},null,null,null,null,null,null,null,null,0,0,0,0,0,0,0,0,0,0]
[null,null,null,null,null,null,null,null,null,null,null,null,null,null,null,10,{"$f":"VLOOKUP(P16,Synth.!$N$4:$O$22,2,FALSE)","v":{"$error":"#N/A"}},{"$f":"IFERROR(IF(Q16>0,IFERROR(VLOOKUP(Q16,Synth.!$O$4:$P$22,2,FALSE),\"\"),\"\"),\"\")","v":""},{"$f":"IF(T16=\"-\",\"\",\"10\")","v":"10"},"()",{"$f":"IFERROR(IF(Q16>0,IFERROR(VLOOKUP(R16,Synth.!$Q$11:$R$29,2,FALSE),\"\"),\"\"),\"\")","v":""},null,null,null,null,null,null,null,null,0,0,0,0,0,0,0,0,0,0]
[null,null,null,null,null,null,null,null,null,null,null,null,null,null,null,11,{"$f":"VLOOKUP(P17,Synth.!$N$4:$O$22,2,FALSE)","v":{"$error":"#N/A"}},{"$f":"IFERROR(IF(Q17>0,IFERROR(VLOOKUP(Q17,Synth.!$O$4:$P$22,2,FALSE),\"\"),\"\"),\"\")","v":""},{"$f":"IF(T17=\"-\",\"\",\"11\")","v":"11"},"()",{"$f":"IFERROR(IF(Q17>0,IFERROR(VLOOKUP(R17,Synth.!$Q$11:$R$29,2,FALSE),\"\"),\"\"),\"\")","v":""},null,null,null,null,null,null,null,null,0,0,0,0,0,0,0,0,0,0]
[null,null,null,null,null,null,null,null,null,null,null,null,null,null,null,12,{"$f":"VLOOKUP(P18,Synth.!$N$4:$O$22,2,FALSE)","v":{"$error":"#N/A"}},{"$f":"IFERROR(IF(Q18>0,IFERROR(VLOOKUP(Q18,Synth.!$O$4:$P$22,2,FALSE),\"\"),\"\"),\"\")","v":""},{"$f":"IF(T18=\"-\",\"\",\"12\")","v":"12"},{"$f":"CONCATENATE(\"(\",R18,\")\")","v":"()"},{"$f":"IFERROR(IF(Q18>0,IFERROR(VLOOKUP(R18,Synth.!$Q$11:$R$29,2,FALSE),\"\"),\"\"),\"\")","v":""},null,null,null,null,null,null,null,null,0,0,0,0,0,0,0,0,0,0]
[null,null,null,null,null,null,null,null,null,null,null,null,null,null,null,13,{"$f":"VLOOKUP(P19,Synth.!$N$4:$O$22,2,FALSE)","v":{"$error":"#N/A"}},{"$f":"IFERROR(IF(Q19>0,IFERROR(VLOOKUP(Q19,Synth.!$O$4:$P$22,2,FALSE),\"\"),\"\"),\"\")","v":""},{"$f":"IF(T19=\"-\",\"\",\"13\")","v":"13"},"()",{"$f":"IFERROR(IF(Q19>0,IFERROR(VLOOKUP(R19,Synth.!$Q$11:$R$29,2,FALSE),\"\"),\"\"),\"\")","v":""},null,null,null,null,null,null,null,null,0,0,0,0,0,0,0,0,0,0]
[null,null,null,null,null,null,null,null,null,null,null,null,null,null,null,14,{"$f":"VLOOKUP(P20,Synth.!$N$4:$O$22,2,FALSE)","v":{"$error":"#N/A"}},{"$f":"IFERROR(IF(Q20>0,IFERROR(VLOOKUP(Q20,Synth.!$O$4:$P$22,2,FALSE),\"\"),\"\"),\"\")","v":""},{"$f":"IF(T20=\"-\",\"\",\"14\")","v":"14"},"()",{"$f":"IFERROR(IF(Q20>0,IFERROR(VLOOKUP(R20,Synth.!$Q$11:$R$29,2,FALSE),\"\"),\"\"),\"\")","v":""},null,null,null,null,null,null,null,null,0,0,0,0,0,0,0,0,0,0]
[null,null,null,null,null,null,null,null,null,null,null,null,null,null,null,15,{"$f":"VLOOKUP(P21,Synth.!$N$4:$O$22,2,FALSE)","v":{"$error":"#N/A"}},{"$f":"IFERROR(IF(Q21>0,IFERROR(VLOOKUP(Q21,Synth.!$O$4:$P$22,2,FALSE),\"\"),\"\"),\"\")","v":""},{"$f":"IF(T21=\"-\",\"\",\"15\")","v":"15"},"()",{"$f":"IFERROR(IF(Q21>0,IFERROR(VLOOKUP(R21,Synth.!$Q$11:$R$29,2,FALSE),\"\"),\"\"),\"\")","v":""},null,null,null,null,null,null,null,null,0,0,0,0,0,0,0,0,0,0]
[null,null,null,null,null,null,null,null,null,null,null,null,null,null,null,16,{"$f":"VLOOKUP(P22,Synth.!$N$4:$O$22,2,FALSE)","v":{"$error":"#N/A"}},{"$f":"IFERROR(IF(Q22>0,IFERROR(VLOOKUP(Q22,Synth.!$O$4:$P$22,2,FALSE),\"\"),\"\"),\"\")","v":""},{"$f":"IF(T22=\"-\",\"\",\"16\")","v":"16"},"()",{"$f":"IFERROR(IF(Q22>0,IFERROR(VLOOKUP(R22,Synth.!$Q$11:$R$29,2,FALSE),\"\"),\"\"),\"\")","v":""},null,null,null,null,null,null,null,null,0,0,0,0,0,0,0,0,0,0]
[null,null,null,null,null,null,null,null,null,null,null,null,null,null,null,17,{"$f":"VLOOKUP(P23,Synth.!$N$4:$O$22,2,FALSE)","v":{"$error":"#N/A"}},{"$f":"IFERROR(IF(Q23>0,IFERROR(VLOOKUP(Q23,Synth.!$O$4:$P$22,2,FALSE),\"\"),\"\"),\"\")","v":""},{"$f":"IF(T23=\"-\",\"\",\"17\")","v":"17"},"()",{"$f":"IFERROR(IF(Q23>0,IFERROR(VLOOKUP(R23,Synth.!$Q$11:$R$29,2,FALSE),\"\"),\"\"),\"\")","v":""},null,null,null,null,null,null,null,null,0,0,0,0,0,0,0,0,0,0]
[null,null,null,null,null,null,null,null,null,null,null,null,null,null,null,18,{"$f":"VLOOKUP(P24,Synth.!$N$4:$O$22,2,FALSE)","v":{"$error":"#N/A"}},{"$f":"IFERROR(IF(Q24>0,IFERROR(VLOOKUP(Q24,Synth.!$O$4:$P$22,2,FALSE),\"\"),\"\"),\"\")","v":""},{"$f":"IF(T24=\"-\",\"\",\"18\")","v":"18"},"()",{"$f":"IFERROR(IF(Q24>0,IFERROR(VLOOKUP(R24,Synth.!$Q$11:$R$29,2,FALSE),\"\"),\"\"),\"\")","v":""},null,null,null,null,null,null,null,null,0,0,0,0,0,0,0,0,0,0]
[null,null,null,null,null,null,null,null,null,null,null,null,null,null,null,19,{"$f":"VLOOKUP(P25,Synth.!$N$4:$O$22,2,FALSE)","v":{"$error":"#N/A"}},{"$f":"IFERROR(IF(Q25>0,IFERROR(VLOOKUP(Q25,Synth.!$O$4:$P$22,2,FALSE),\"\"),\"\"),\"\")","v":""},{"$f":"IF(T25=\"-\",\"\",\"19\")","v":"19"},"()",{"$f":"IFERROR(IF(Q25>0,IFERROR(VLOOKUP(R25,Synth.!$Q$11:$R$29,2,FALSE),\"\"),\"\"),\"\")","v":""},null,null,null,null,null,null,null,null,0,0,0,0,0,0,0,0,0,0]
[]
[null,null,{"$f":"IF(B28=0,\"\",\"ORDRE DE PRIORITÉS DES PARTIES PRENANTES:\")","v":"ORDRE DE PRIORITÉS DES PARTIES PRENANTES:"},null,null,null,null,null,null,null,null,{"$f":"IFERROR(IF(K28=0,\"\",\"QUALITÉ PERCUE / PRIORITÉS APPARANTES DE L'ENTREPRISE:\"),\"\")","v":"QUALITÉ PERCUE / PRIORITÉS APPARANTES DE L'ENTREPRISE:"}]
[1,{"$f":"IFERROR(VLOOKUP(A28,Synth.!$F$4:$G$22,2,FALSE),\"\")","v":""},{"$f":"IFERROR(VLOOKUP(B28,Synth.!$Q$11:$R$29,2,FALSE),\"\")","v":""},null,null,null,null,null,null,1,{"$f":"IFERROR(VLOOKUP(J28,Synth.!$M$4:$P$22,4,FALSE),\"\")","v":""},{"$f":"IFERROR(VLOOKUP(K28,Synth.!$Q$11:$R$29,2,FALSE),\"\")","v":""}]
[2,{"$f":"IFERROR(VLOOKUP(A29,Synth.!$F$4:$G$22,2,FALSE),\"\")","v":""},{"$f":"IFERROR(VLOOKUP(B29,Synth.!$Q$11:$R$29,2,FALSE),\"\")","v":""},null,null,null,null,null,null,2,{"$f":"IFERROR(VLOOKUP(J29,Synth.!$M$4:$P$22,4,FALSE),\"\")","v":""},{"$f":"IFERROR(VLOOKUP(K29,Synth.!$Q$11:$R$29,2,FALSE),\"\")","v":""}]
[3,{"$f":"IFERROR(VLOOKUP(A30,Synth.!$F$4:$G$22,2,FALSE),\"\")","v":""},{"$f":"IFERROR(VLOOKUP(B30,Synth.!$Q$11:$R$29,2,FALSE),\"\")","v":""},null,null,null,null,null,null,3,{"$f":"IFERROR(VLOOKUP(J30,Synth.!$M$4:$P$22,4,FALSE),\"\")","v":""},{"$f":"IFERROR(VLOOKUP(K30,Synth.!$Q$11:$R$29,2,FALSE),\"\")","v":""}]
[4,{"$f":"IFERROR(VLOOKUP(A31,Synth.!$F$4:$G$22,2,FALSE),\"\")","v":""},{"$f":"IFERROR(VLOOKUP(B31,Synth.!$Q$11:$R$29,2,FALSE),\"\")","v":""},null,null,null,null,null,null,4,{"$f":"IFERROR(VLOOKUP(J31,Synth.!$M$4:$P$22,4,FALSE),\"\")","v":""},{"$f":"IFERROR(VLOOKUP(K31,Synth.!$Q$11:$R$29,2,FALSE),\"\")","v":""}]
[5,{"$f":"IFERROR(VLOOKUP(A32,Synth.!$F$4:$G$22,2,FALSE),\"\")","v":""},{"$f":"IFERROR(VLOOKUP(B32,Synth.!$Q$11:$R$29,2,FALSE),\"\")","v":""},null,null,null,null,null,null,5,{"$f":"IFERROR(VLOOKUP(J32,Synth.!$M$4:$P$22,4,FALSE),\"\")","v":""},{"$f":"IFERROR(VLOOKUP(K32,Synth.!$Q$11:$R$29,2,FALSE),\"\")","v":""}]
[6,{"$f":"IFERROR(VLOOKUP(A33,Synth.!$F$4:$G$22,2,FALSE),\"\")","v":""},{"$f":"IFERROR(VLOOKUP(B33,Synth.!$Q$11:$R$29,2,FALSE),\"\")","v":""},null,null,null,null,null,null,6,{"$f":"IFERROR(VLOOKUP(J33,Synth.!$M$4:$P$22,4,FALSE),\"\")","v":""},{"$f":"IFERROR(VLOOKUP(K33,Synth.!$Q$11:$R$29,2,FALSE),\"\")","v":""}]
[7,{"$f":"IFERROR(VLOOKUP(A34,Synth.!$F$4:$G$22,2,FALSE),\"\")","v":""},{"$f":"IFERROR(VLOOKUP(B34,Synth.!$Q$11:$R$29,2,FALSE),\"\")","v":""},null,null,null,null,null,null,7,{"$f":"IFERROR(VLOOKUP(J34,Synth.!$M$4:$P$22,4,FALSE),\"\")","v":""},{"$f":"IFERROR(VLOOKUP(K34,Synth.!$Q$11:$R$29,2,FALSE),\"\")","v":""}]
[8,{"$f":"IFERROR(VLOOKUP(A35,Synth.!$F$4:$G$22,2,FALSE),\"\")","v":""},{"$f":"IFERROR(VLOOKUP(B35,Synth.!$Q$11:$R$29,2,FALSE),\"\")","v":""},null,null,null,null,null,null,8,{"$f":"IFERROR(VLOOKUP(J35,Synth.!$M$4:$P$22,4,FALSE),\"\")","v":""},{"$f":"IFERROR(VLOOKUP(K35,Synth.!$Q$11:$R$29,2,FALSE),\"\")","v":""}]
[9,{"$f":"IFERROR(VLOOKUP(A36,Synth.!$F$4:$G$22,2,FALSE),\"\")","v":""},{"$f":"IFERROR(VLOOKUP(B36,Synth.!$Q$11:$R$29,2,FALSE),\"\")","v":""},null,null,null,null,null,null,9,{"$f":"IFERROR(VLOOKUP(J36,Synth.!$M$4:$P$22,4,FALSE),\"\")","v":""},{"$f":"IFERROR(VLOOKUP(K36,Synth.!$Q$11:$R$29,2,FALSE),\"\")","v":""}]
[10,{"$f":"IFERROR(VLOOKUP(A37,Synth.!$F$4:$G$22,2,FALSE),\"\")","v":""},{"$f":"IFERROR(VLOOKUP(B37,Synth.!$Q$11:$R$29,2,FALSE),\"\")","v":""},null,null,null,null,null,null,10,{"$f":"IFERROR(VLOOKUP(J37,Synth.!$M$4:$P$22,4,FALSE),\"\")","v":""},{"$f":"IFERROR(VLOOKUP(K37,Synth.!$Q$11:$R$29,2,FALSE),\"\")","v":""}]
[11,{"$f":"IFERROR(VLOOKUP(A38,Synth.!$F$4:$G$22,2,FALSE),\"\")","v":""},{"$f":"IFERROR(VLOOKUP(B38,Synth.!$Q$11:$R$29,2,FALSE),\"\")","v":""},null,null,null,null,null,null,11,{"$f":"IFERROR(VLOOKUP(J38,Synth.!$M$4:$P$22,4,FALSE),\"\")","v":""},{"$f":"IFERROR(VLOOKUP(K38,Synth.!$Q$11:$R$29,2,FALSE),\"\")","v":""}]
[12,{"$f":"IFERROR(VLOOKUP(A39,Synth.!$F$4:$G$22,2,FALSE),\"\")","v":""},{"$f":"IFERROR(VLOOKUP(B39,Synth.!$Q$11:$R$29,2,FALSE),\"\")","v":""},null,null,null,null,null,null,12,{"$f":"IFERROR(VLOOKUP(J39,Synth.!$M$4:$P$22,4,FALSE),\"\")","v":""},{"$f":"IFERROR(VLOOKUP(K39,Synth.!$Q$11:$R$29,2,FALSE),\"\")","v":""}]
[13,{"$f":"IFERROR(VLOOKUP(A40,Synth.!$F$4:$G$22,2,FALSE),\"\")","v":""},{"$f":"IFERROR(VLOOKUP(B40,Synth.!$Q$11:$R$29,2,FALSE),\"\")","v":""},null,null,null,null,null,null,13,{"$f":"IFERROR(VLOOKUP(J40,Synth.!$M$4:$P$22,4,FALSE),\"\")","v":""},{"$f":"IFERROR(VLOOKUP(K40,Synth.!$Q$11:$R$29,2,FALSE),\"\")","v":""}]
[14,{"$f":"IFERROR(VLOOKUP(A41,Synth.!$F$4:$G$22,2,FALSE),\"\")","v":""},{"$f":"IFERROR(VLOOKUP(B41,Synth.!$Q$11:$R$29,2,FALSE),\"\")","v":""},null,null,null,null,null,null,14,{"$f":"IFERROR(VLOOKUP(J41,Synth.!$M$4:$P$22,4,FALSE),\"\")","v":""},{"$f":"IFERROR(VLOOKUP(K41,Synth.!$Q$11:$R$29,2,FALSE),\"\")","v":""}]
[15,{"$f":"IFERROR(VLOOKUP(A42,Synth.!$F$4:$G$22,2,FALSE),\"\")","v":""},{"$f":"IFERROR(VLOOKUP(B42,Synth.!$Q$11:$R$29,2,FALSE),\"\")","v":""},null,null,null,null,null,null,15,{"$f":"IFERROR(VLOOKUP(J42,Synth.!$M$4:$P$22,4,FALSE),\"\")","v":""},{"$f":"IFERROR(VLOOKUP(K42,Synth.!$Q$11:$R$29,2,FALSE),\"\")","v":""}]
[16,{"$f":"IFERROR(VLOOKUP(A43,Synth.!$F$4:$G$22,2,FALSE),\"\")","v":""},{"$f":"IFERROR(VLOOKUP(B43,Synth.!$Q$11:$R$29,2,FALSE),\"\")","v":""},null,null,null,null,null,null,16,{"$f":"IFERROR(VLOOKUP(J43,Synth.!$M$4:$P$22,4,FALSE),\"\")","v":""},{"$f":"IFERROR(VLOOKUP(K43,Synth.!$Q$11:$R$29,2,FALSE),\"\")","v":""}]
[17,{"$f":"IFERROR(VLOOKUP(A44,Synth.!$F$4:$G$22,2,FALSE),\"\")","v":""},{"$f":"IFERROR(VLOOKUP(B44,Synth.!$Q$11:$R$29,2,FALSE),\"\")","v":""},null,null,null,null,null,null,17,{"$f":"IFERROR(VLOOKUP(J44,Synth.!$M$4:$P$22,4,FALSE),\"\")","v":""},{"$f":"IFERROR(VLOOKUP(K44,Synth.!$Q$11:$R$29,2,FALSE),\"\")","v":""}]
[18,{"$f":"IFERROR(VLOOKUP(A45,Synth.!$F$4:$G$22,2,FALSE),\"\")","v":""},{"$f":"IFERROR(VLOOKUP(B45,Synth.!$Q$11:$R$29,2,FALSE),\"\")","v":""},null,null,null,null,null,null,18,{"$f":"IFERROR(VLOOKUP(J45,Synth.!$M$4:$P$22,4,FALSE),\"\")","v":""},{"$f":"IFERROR(VLOOKUP(K45,Synth.!$Q$11:$R$29,2,FALSE),\"\")","v":""}]
[19,{"$f":"IFERROR(VLOOKUP(A46,Synth.!$F$4:$G$22,2,FALSE),\"\")","v":""},{"$f":"IFERROR(VLOOKUP(B46,Synth.!$Q$11:$R$29,2,FALSE),\"\")","v":""},null,null,null,null,null,null,19,{"$f":"IFERROR(VLOOKUP(J46,Synth.!$M$4:$P$22,4,FALSE),\"\")","v":""},{"$f":"IFERROR(VLOOKUP(K46,Synth.!$Q$11:$R$29,2,FALSE),\"\")","v":""}]